Workbook

Sheet Security Settings (hidden)
C3: Warning: Content Blocked!
C5: Your Excel security settings are currently blocking some of the features in this FAST spreadsheet.
C6: The default settings for Microsoft Excel 2003 (and previous versions) and Excel 2007 do not allow
C7: Macros contained in this spreadsheet to function properly and need to be changed.
C9: For step by step instructions of how to change these settings and allow the content to be displayed
C10: on your computer, please select either the "Excel 2003 and Previous" or "Excel 2007" button below.
C17: Instructions for: Microsoft Excel 2003 and Previous
C18: Your Excel security settings must be changed to use FAST Tools. Using the Excel menu commands,
C19: perform the following steps to change your settings. These steps will only need to be performed once to
C20: run FAST tools.
C22: 1. Reset Security Settings, select
D23: Tools
D24: Macro
D25: Security
D26: Medium
C28: 2. Close this Excel workbook, select
D29: File
D30: Close
D31: Do not save changes
C33: 3. Reopen the Workbook via FAST menu or
D34: File
D35: Open
D36: "click on spreadsheet name"
C38: 4. Click on Enable Macros when you see the dialog box similar to the one below.
C60: Instructions for: Microsoft Excel 2007
C61: Microsoft Excel 2007 uses a different method to enable the content in a FAST Spreadsheet. When
C62: opening FAST Spreadsheets with Microsoft Excel 2007, a "Security Warning" box will appear
C63: just below the menu bar at the top left hand corner of the screen. The following steps need to be
C64: performed to run FAST programs.
C66: 1. Select the "Options…" button to open up Microsoft Office Security Options.
C72: 2. To allow the FAST Spreadsheet to run properly, you must enable Macros to run by
C73: selecting “Enable this content” in the list of security options.

Sheet Information
F4: 2022 Farm Bill What-If Tool | L4: Updated 1/10/2021
P13: =ISERR(Macros) -> TRUE
P16: =10000+10000+#REF! -> 
E17: For recent updates on this tool and other FAST tools, | K17: Support Provided By:
E18: visit us at www.farmdoc.uiuc.edu.
E27: =macroCheck(1)*P16 -> 
D42: Updated: 9/14/2004

Sheet 2018 what if
B1: ARC-CO PLC WHAT-IF COMPARISON | Q1: 2019 | W1: ARC-CO | BG1: 1 | BH1: 2 | BI1: 3 | BJ1: 4 | BK1: 5 | BL1: 6 | BM1: 7 | BN1: =CONCATENATE("fsa",C93) -> fsa2016 | BO1: =CONCATENATE("fsa",C94) -> fsa2017 | BP1: =CONCATENATE("fsa",C95) -> fsa2018 | BQ1: =CONCATENATE("fsa",C96) -> fsa2019 | BR1: =CONCATENATE("fsa",C97) -> fsa2020 | BS1: =CONCATENATE(D9, " taYield") -> 2022 taYield | BT1: =CONCATENATE("ty",C93) -> ty2016 | BU1: =CONCATENATE("ty",C94) -> ty2017 | BV1: =CONCATENATE("ty",C95) -> ty2018 | BW1: =CONCATENATE("ty",C96) -> ty2019 | BX1: =CONCATENATE("ty",C97) -> ty2020 | BY1: =CONCATENATE("ta",C93,"-",RIGHT(D9,2)) -> ta2016-22 | BZ1: =CONCATENATE("ta",C94,"-",RIGHT(D9,2)) -> ta2017-22 | CA1: =CONCATENATE("ta",C95,"-",RIGHT(D9,2)) -> ta2018-22 | CB1: =CONCATENATE("ta",C96,"-",RIGHT(D9,2)) -> ta2019-22 | CC1: =CONCATENATE("ta",C97,"-",RIGHT(D9,2)) -> ta2020-22 | CD1: =CONCATENATE("ta",D9,"-",RIGHT(D9,2)) -> ta2022-22 | CG1: =CH1-1 -> 2016 | CH1: =CI1-1 -> 2017 | CI1: =CJ1-1 -> 2018 | CJ1: =CK1-1 -> 2019 | CK1: =CL1-2 -> 2020 | CL1: =D9 -> 2022 | CN1: =D9 -> 2022 | CO1: Loan Rate | CP1: Unit | CQ1: Abreviation | CR1: Price Unit | CS1: Adj Factor
C2: Input | Q2: 2020 | U2: =VLOOKUP(D4,$T$6:$U$56,2,FALSE) -> 17 | W2: PLC | X2: =ROUND(AVERAGE(BN4:BR4)*0.85,) -> 55 | AK2: =VLOOKUP(D5,$AJ$6:$AK$208,2,FALSE) -> 17019 | AX2: =VLOOKUP(D6,$AW$6:$AX$14,2,FALSE) -> 2 | BA2: =AK2*100+AX2 -> 1701902 | BC2: =VLOOKUP(D7,$BB$18:$BC$20,2,FALSE) -> 2 | BF2: Lookup | BG2: =BA2*10+BC2 -> 17019022 | BH2: =VLOOKUP($BG$2,$BG$7:$CC$19097,BH1,FALSE) -> Illinois | BI2: Champaign | BJ2: 17 | BK2: 19 | BL2: 2 | BM2: 2 | BN2: =VLOOKUP($BG$2,FSAyields!$A:$R,MATCH(BN1,FSAyields!$A$1:$R$1,0),FALSE) -> 69.4 | BO2: =VLOOKUP($BG$2,FSAyields!$A:$R,MATCH(BO1,FSAyields!$A$1:$R$1,0),FALSE) -> 65.3 | BP2: =VLOOKUP($BG$2,FSAyields!$A:$R,MATCH(BP1,FSAyields!$A$1:$R$1,0),FALSE) ->  | BQ2: =VLOOKUP($BG$2,FSAyields!$A:$R,MATCH(BQ1,FSAyields!$A$1:$R$1,0),FALSE) -> 57.29 | BR2: =VLOOKUP($BG$2,FSAyields!$A:$R,MATCH(BR1,FSAyields!$A$1:$R$1,0),FALSE) -> 64.72 | BS2: =VLOOKUP($BG$2,TA!$A:$L,MATCH(BS1,TA!$A$1:$L$1,0),FALSE) -> 1.22 | BT2: =VLOOKUP($BG$2,Tyields!$A:$T,MATCH(BT1,Tyields!$A$1:$T$1,0),FALSE) -> 41.6 | BU2: =VLOOKUP($BG$2,Tyields!$A:$T,MATCH(BU1,Tyields!$A$1:$T$1,0),FALSE) -> 41.6 | BV2: =VLOOKUP($BG$2,Tyields!$A:$T,MATCH(BV1,Tyields!$A$1:$T$1,0),FALSE) -> 45.6 | BW2: =VLOOKUP($BG$2,Tyields!$A:$T,MATCH(BW1,Tyields!$A$1:$T$1,0),FALSE) -> 45.6 | BX2: =VLOOKUP($BG$2,Tyields!$A:$T,MATCH(BX1,Tyields!$A$1:$T$1,0),FALSE) -> 45.6 | BY2: =VLOOKUP($BG$2,coTAyields!$A:$AL,MATCH(BY1,coTAyields!$A$1:$AL$1,0),FALSE) -> 72.85 | BZ2: =VLOOKUP($BG$2,coTAyields!$A:$AL,MATCH(BZ1,coTAyields!$A$1:$AL$1,0),FALSE) -> 68.18 | CA2: =VLOOKUP($BG$2,coTAyields!$A:$AL,MATCH(CA1,coTAyields!$A$1:$AL$1,0),FALSE) -> 76.25 | CB2: =VLOOKUP($BG$2,coTAyields!$A:$AL,MATCH(CB1,coTAyields!$A$1:$AL$1,0),FALSE) -> 59 | CC2: =VLOOKUP($BG$2,coTAyields!$A:$AL,MATCH(CC1,coTAyields!$A$1:$AL$1,0),FALSE) -> 65.86 | CD2: =VLOOKUP($BG$2,coTAyields!$A:$AL,MATCH(CD1,coTAyields!$A$1:$AL$1,0),FALSE) -> 68.428 | CF2: =D6 -> Soybeans | CG2: =VLOOKUP($CF$2,MYAprices!$A$2:$R$24,MATCH(CG1,MYAprices!$A$1:$R$1,0),FALSE)*$CS$2 -> 9.47 | CH2: =VLOOKUP($CF$2,MYAprices!$A$2:$R$24,MATCH(CH1,MYAprices!$A$1:$R$1,0),FALSE)*$CS$2 -> 9.33 | CI2: =VLOOKUP($CF$2,MYAprices!$A$2:$R$24,MATCH(CI1,MYAprices!$A$1:$R$1,0),FALSE)*$CS$2 -> 8.48 | CJ2: =VLOOKUP($CF$2,MYAprices!$A$2:$R$24,MATCH(CJ1,MYAprices!$A$1:$R$1,0),FALSE)*$CS$2 -> 8.57 | CK2: =VLOOKUP($CF$2,MYAprices!$A$2:$R$24,MATCH(CK1,MYAprices!$A$1:$R$1,0),FALSE)*$CS$2 -> 10.8 | CL2: =VLOOKUP($CF$2,MYAprices!$A$2:$R$24,MATCH(CL1,MYAprices!$A$1:$R$1,0),FALSE)*$CS$2 -> 12 | CN2: =VLOOKUP($CF$2,Refprices!$A$2:$K$24,MATCH(CN1,Refprices!$A$1:$K$1,0),FALSE)*$CS$2 -> 8.4 | CO2: =VLOOKUP($CF$2,Refprices!$A$2:$K$24,MATCH(CO1,Refprices!$A$1:$K$1,0),FALSE)*$CS$2 -> 6.2 | CP2: =VLOOKUP($CF$2,Refprices!$A$2:$K$24,MATCH(CP1,Refprices!$A$1:$K$1,0),FALSE) -> Bushel | CQ2: =VLOOKUP($CF$2,Refprices!$A$2:$K$24,MATCH(CQ1,Refprices!$A$1:$K$1,0),FALSE) -> Bu | CR2: =VLOOKUP($CF$2,Refprices!$A$2:$K$24,MATCH(CR1,Refprices!$A$1:$K$1,0),FALSE) -> $/Bu | CS2: =IF(AND(CQ2="Pounds",CP2="Ton"),2000,IF(AND(CQ2="Pounds",CP2="Cwt."),100,1)) -> 1
Q3: 2021 | W3: PLC minus ARC-CO | BF3: TA Lookup | BG3: =BA2*10+3 -> 17019023 | BN3: fsa2013 | BO3: fsa2014 | BP3: fsa2015 | BQ3: fsa2016 | BR3: fsa2017 | CG3: MYA Prices | CN3: Eff. Ref Price
C4: State | D4: Illinois | Q4: 2022 | R4: Illinois | BN4: =VLOOKUP($BG$2,FSAyields!$A:$R,MATCH(BN3,FSAyields!$A$1:$R$1,0),FALSE) -> 55.6 | BO4: =VLOOKUP($BG$2,FSAyields!$A:$R,MATCH(BO3,FSAyields!$A$1:$R$1,0),FALSE) -> 65.2 | BP4: =VLOOKUP($BG$2,FSAyields!$A:$R,MATCH(BP3,FSAyields!$A$1:$R$1,0),FALSE) -> 67.4 | BQ4: =VLOOKUP($BG$2,FSAyields!$A:$R,MATCH(BQ3,FSAyields!$A$1:$R$1,0),FALSE) -> 69.4 | BR4: =VLOOKUP($BG$2,FSAyields!$A:$R,MATCH(BR3,FSAyields!$A$1:$R$1,0),FALSE) -> 65.3
C5: County | D5: Champaign | R5: Champaign | T5: stName | U5: stCode | Y5: stCode | Z5: ctyCode | AA5: fips | AB5: ctyName | AC5: stName | AQ5: 0
C6: Crop | D6: Soybeans | R6: Soybeans | T6: Alabama | U6: 1 | X6: =IF($U$2=Y6,1,0) -> 0 | Y6: 1 | Z6: 1 | AA6: =Y6*1000+Z6 -> 1001 | AB6: Autauga | AC6: AL | AE6: 1 | AF6: =VLOOKUP(AE6,$X$6:$AB$3239,5,FALSE) -> Adams | AG6: =VLOOKUP(AE6,$X$6:$AA$3239,4,FALSE) -> 17001 | AI6: 1 | AJ6: =IF(ISNA(AF6),"",AF6) -> Adams | AK6: =IF(ISNA(AG6),"",AG6) -> 17001 | AM6: Corn | AN6: 1 | AO6: =$AK$2*100+AN6 -> 1701901 | AP6: =VLOOKUP(AO6,$BF$7:$BF$19097,1,FALSE) -> 1701901 | AQ6: =IF(ISNA(AP6),AQ5,AQ5+1) -> 1 | AR6: =IF(AQ6=AQ5,0,AQ6) -> 1 | AS6: =IF(AR6>0,AM6,"") -> Corn | AT6: =IF(AR6>0,AN6,0) -> 1 | AV6: 1 | AW6: =IF(ISNA(AS31),"",AS31) -> Corn | AX6: =IF(ISNA(AT31),"",AT31) -> 1 | AZ6: Irrigated | BA6: =$BA$2*10+1 -> 17019021 | BB6: =VLOOKUP(BA6,$BG$7:$BG$19097,1,FALSE) -> 17019021 | BC6: =IF(ISNA(BB6),0,1) -> 1 | BD6: =IF(BC6>0,BC6,0) -> 1 | BE6: =AZ6 -> Irrigated | BH6: stateNm | BI6: countyNm | BJ6: fsaState | BK6: fsaCounty | BL6: fsaCrop | BM6: fsaType
C7: Practice | D7: =BB16 -> Non-irrigated | T7: Alaska | U7: 2 | X7: =IF($U$2=Y7,+X6+1,0) -> 0 | Y7: 1 | Z7: 3 | AA7: 1003 | AB7: Baldwin | AC7: AL | AE7: 2 | AF7: Alexander | AG7: 17003 | AI7: 2 | AJ7: =IF(ISNA(AF7),"",AF7) -> Alexander | AK7: =IF(ISNA(AG7),"",AG7) -> 17003 | AM7: Soybeans | AN7: 2 | AO7: 1701902 | AP7: 1701902 | AQ7: 2 | AR7: =IF(AQ7=AQ6,0,AQ7) -> 2 | AS7: =IF(AR7>0,AM7,"") -> Soybeans | AT7: =IF(AR7>0,AN7,0) -> 2 | AV7: 2 | AW7: Soybeans | AX7: 2 | AZ7: Non-irrigated | BA7: =$BA$2*10+2 -> 17019022 | BB7: =VLOOKUP(BA7,$BG$7:$BG$19097,1,FALSE) -> 17019022 | BC7: =IF(ISNA(BB7),BC6,BC6+1) -> 2 | BD7: =IF(BC7>BC6,BC7,0) -> 2 | BE7: =AZ7 -> Non-irrigated | BF7: =(BJ7*1000+BK7)*100+BL7 -> 100104 | BG7: =BF7*10+BM7 -> 1001043 | BH7: Alabama | BI7: Autauga | BJ7: 1 | BK7: 1 | BL7: 4 | BM7: 3
C8: PLC Yield | D8: =X2 -> 55 | R8: =VLOOKUP(BG2,FSAyields!$A$2:$N$19093,14,FALSE) -> 57.29 | T8: Arizona | U8: 4 | X8: 0 | Y8: 1 | Z8: 5 | AA8: 1005 | AB8: Barbour | AC8: AL | AE8: 3 | AF8: Bond | AG8: 17005 | AI8: 3 | AJ8: Bond | AK8: 17005 | AM8: Wheat | AN8: 3 | AO8: 1701903 | AP8: 1701903 | AQ8: 3 | AR8: 3 | AS8: Wheat | AT8: 3 | AV8: 3 | AW8: Wheat | AX8: 3 | AZ8: All | BA8: =$BA$2*10+3 -> 17019023 | BB8: =VLOOKUP(BA8,$BG$7:$BG$19097,1,FALSE) ->  | BC8: =IF(ISNA(BB8),BC7,BC7+1) -> 2 | BD8: =IF(BC8>BC7,BC8,0) -> 0 | BE8: =AZ8 -> All | BF8: 101504 | BG8: =BF8*10+BM8 -> 1015043 | BH8: Alabama | BI8: Calhoun | BJ8: 1 | BK8: 15 | BL8: 4 | BM8: 3
C9: Year | D9: 2022 | R9: =N99 -> 68.96 | T9: Arkansas | U9: 5 | X9: 0 | Y9: 1 | Z9: 7 | AA9: 1007 | AB9: Bibb | AC9: AL | AE9: 4 | AF9: Boone | AG9: 17007 | AI9: 4 | AJ9: Boone | AK9: 17007 | AM9: Barley | AN9: 4 | AO9: 1701904 | AP9: 1701904 | AQ9: 4 | AR9: =IF(AQ9=AQ8,0,AQ9) -> 4 | AS9: Barley | AT9: 4 | AV9: 4 | AW9: Barley | AX9: 4 | BF9: 101904 | BG9: 1019043 | BH9: Alabama | BI9: Cherokee | BJ9: 1 | BK9: 19 | BL9: 4 | BM9: 3
D10: Default PLC Yield | E10: =X2 -> 55 | R10: =IF(D9=2019,R8,R9) -> 68.96 | T10: California | U10: 6 | X10: 0 | Y10: 1 | Z10: 9 | AA10: 1009 | AB10: Blount | AC10: AL | AE10: 5 | AF10: Brown | AG10: 17009 | AI10: 5 | AJ10: Brown | AK10: 17009 | AM10: Canola | AN10: 5 | AO10: 1701905 | AQ10: 4 | AR10: 0 | AT10: 0 | AV10: 5 | AW10: Oats | AX10: 14 | BF10: 104304 | BG10: 1043043 | BH10: Alabama | BI10: Cullman | BJ10: 1 | BK10: 43 | BL10: 4 | BM10: 3
C11: Calculation of PLC and ARC-CO Payments | T11: Colorado | U11: 8 | X11: 0 | Y11: 1 | Z11: 10 | AA11: 1010 | AB11: Bullock | AC11: AL | AE11: 6 | AF11: Bureau | AG11: 17011 | AI11: 6 | AJ11: Bureau | AK11: 17011 | AM11: Chickpeas_Large | AN11: 6 | AO11: 1701906 | AQ11: 4 | AR11: =IF(AQ11=AQ10,0,AQ11) -> 0 | AT11: 0 | AV11: 6 | AW11: Sunflower Seed | AX11: 23 | BF11: 104904 | BG11: 1049043 | BH11: Alabama | BI11: DeKalb | BJ11: 1 | BK11: 49 | BL11: 4 | BM11: 3
J12: ARC-CO Calculations | T12: Connecticut | U12: 9 | X12: 0 | Y12: 1 | Z12: 13 | AA12: 1013 | AB12: Butler | AC12: AL | AE12: 7 | AF12: Calhoun | AG12: 17013 | AI12: 7 | AJ12: Calhoun | AK12: 17013 | AM12: Chickpeas_Small | AN12: 7 | AO12: 1701907 | AQ12: =IF(ISNA(AP12),AQ11,AQ11+1) -> 4 | AR12: 0 | AT12: 0 | AV12: 7 | BA12: 1 | BB12: =VLOOKUP(BA12,$BD$6:$BE$8,2,FALSE) -> Irrigated | BF12: 105504 | BG12: 1055043 | BH12: Alabama | BI12: Etowah | BJ12: 1 | BK12: 55 | BL12: 4 | BM12: 3
D13: County | E13: MYA | G13: Payment3,4 | K13: Benchmark | N13: County | T13: Delaware | U13: 10 | X13: 0 | Y13: 1 | Z13: 15 | AA13: 1015 | AB13: Calhoun | AC13: AL | AE13: 8 | AF13: Carroll | AG13: 17015 | AI13: 8 | AJ13: Carroll | AK13: 17015 | AM13: Crambe | AN13: 8 | AO13: 1701908 | AQ13: 4 | AR13: 0 | AT13: 0 | AV13: 8 | BA13: 2 | BB13: =VLOOKUP(BA13,$BD$6:$BE$8,2,FALSE) -> Non-irrigated | BF13: 105904 | BG13: 1059043 | BH13: Alabama | BI13: Franklin | BJ13: 1 | BK13: 59 | BL13: 4 | BM13: 3
C14: Year | D14: Yield1 | E14: Price2 | G14: PLC | H14: ARC-CO | K14: Yield5 | L14: Price6 | M14: Guarantee7 | N14: Revenue8 | T14: District Of Columbia | U14: 11 | X14: 0 | Y14: 1 | Z14: 17 | AA14: 1017 | AB14: Chambers | AC14: AL | AE14: 9 | AF14: Cass | AG14: 17017 | AI14: 9 | AJ14: Cass | AK14: 17017 | AM14: Dry Peas | AN14: 9 | AO14: 1701909 | AQ14: 4 | AR14: 0 | AT14: 0 | AV14: 9 | BA14: 3 | BB14: =VLOOKUP(BA14,$BD$6:$BE$8,2,FALSE) ->  | BF14: 107104 | BG14: 1071043 | BH14: Alabama | BI14: Jackson | BJ14: 1 | BK14: 71 | BL14: 4 | BM14: 3
D15: =K15 -> Bu | E15: =L15 -> $/Bu | G15: $/base acre | K15: =CQ2 -> Bu | L15: =CR2 -> $/Bu | M15: $ per base acre | T15: Florida | U15: 12 | X15: 0 | Y15: 1 | Z15: 19 | AA15: 1019 | AB15: Cherokee | AC15: AL | AE15: 10 | AF15: Champaign | AG15: 17019 | AI15: 10 | AJ15: Champaign | AK15: 17019 | AM15: Flaxseed | AN15: 10 | AO15: 1701910 | AQ15: 4 | AR15: 0 | AT15: 0 | AV15: 10 | BF15: 107704 | BG15: 1077043 | BH15: Alabama | BI15: Lauderdale | BJ15: 1 | BK15: 77 | BL15: 4 | BM15: 3
C16: =D9 -> 2022 | D16: =R10 -> 68.96 | E16: =CL2 -> 12 | G16: =H76 -> 0 | H16: =ROUND(0.85*MIN(MAX(0,M16-N16),0.1*K16*L16),2) -> 0 | K16: =N99 -> 68.96 | L16: =G123 -> 9.12 | M16: =ROUND(0.86*K16*L16,2)/CS2 -> 540.87 | N16: =ROUND(D16*E16,2)/CS2 -> 827.52 | T16: Georgia | U16: 13 | X16: 0 | Y16: 1 | Z16: 21 | AA16: 1021 | AB16: Chilton | AC16: AL | AE16: 11 | AF16: Christian | AG16: 17021 | AI16: 11 | AJ16: Christian | AK16: 17021 | AM16: Grain Sorghum | AN16: 11 | AO16: 1701911 | AQ16: 4 | AR16: 0 | AT16: 0 | AV16: 11 | AY16: =AZ6 -> Irrigated | AZ16: 1 | BB16: =IF(BB18=BC16,IF(BB19<>"",BB19,BB18),BB18) -> Non-irrigated | BC16: Irrigated | BF16: 107904 | BG16: 1079043 | BH16: Alabama | BI16: Lawrence | BJ16: 1 | BK16: 79 | BL16: 4 | BM16: 3
C17: Default | D17: =R10 -> 68.96 | E17: =CL2 -> 12 | T17: Hawaii | U17: 15 | X17: 0 | Y17: 1 | Z17: 23 | AA17: 1023 | AB17: Choctaw | AC17: AL | AE17: 12 | AF17: Clark | AG17: 17023 | AI17: 12 | AJ17: Clark | AK17: 17023 | AM17: Lentils | AN17: 12 | AO17: 1701912 | AQ17: 4 | AR17: 0 | AT17: 0 | AV17: 12 | AY17: =AZ7 -> Non-irrigated | AZ17: 2 | BF17: 108304 | BG17: 1083043 | BH17: Alabama | BI17: Limestone | BJ17: 1 | BK17: 83 | BL17: 4 | BM17: 3
B18: 1 | C18: County yields impact ARC-CO payments. 2018 yields enter into 2020 ARC-CO benchmark calculations. The 2018 yield is an estimate. | T18: Idaho | U18: 16 | X18: 0 | Y18: 1 | Z18: 25 | AA18: 1025 | AB18: Clarke | AC18: AL | AE18: 13 | AF18: Clay | AG18: 17025 | AI18: 13 | AJ18: Clay | AK18: 17025 | AM18: Mustard Seed | AN18: 13 | AO18: 1701913 | AQ18: 4 | AR18: 0 | AT18: 0 | AV18: 13 | AY18: =AZ8 -> All | AZ18: 3 | BA18: 1 | BB18: =IF(ISNA(BB12),"",BB12) -> Irrigated | BC18: =IF(BB18="","",VLOOKUP(BB18,$AY$16:$AZ$18,2,FALSE)) -> 1 | BF18: 108904 | BG18: 1089043 | BH18: Alabama | BI18: Madison | BJ18: 1 | BK18: 89 | BL18: 4 | BM18: 3
B19: 2 | C19: Market year average (MYA) prices impact both PLC and ARC-CO payments. | T19: Illinois | U19: 17 | X19: 0 | Y19: 1 | Z19: 27 | AA19: 1027 | AB19: Clay | AC19: AL | AE19: 14 | AF19: Clinton | AG19: 17027 | AI19: 14 | AJ19: Clinton | AK19: 17027 | AM19: Oats | AN19: 14 | AO19: 1701914 | AP19: 1701914 | AQ19: 5 | AR19: 5 | AS19: Oats | AT19: 14 | AV19: 14 | BA19: 2 | BB19: =IF(ISNA(BB13),"",BB13) -> Non-irrigated | BC19: =IF(BB19="","",VLOOKUP(BB19,$AY$16:$AZ$18,2,FALSE)) -> 2 | BF19: 109504 | BG19: 1095043 | BH19: Alabama | BI19: Marshall | BJ19: 1 | BK19: 95 | BL19: 4 | BM19: 3
B20: 3 | C20: PLC payments equal PLC yield x (effective reference price - higher of MYA price or loan rate) x .85. PLC payment calculations are shown in Table 1 below. | T20: Indiana | U20: 18 | X20: 0 | Y20: 1 | Z20: 29 | AA20: 1029 | AB20: Cleburne | AC20: AL | AE20: 15 | AF20: Coles | AG20: 17029 | AI20: 15 | AJ20: Coles | AK20: 17029 | AM20: Peanuts | AN20: 15 | AO20: 1701915 | AQ20: 5 | AR20: 0 | AT20: 0 | AV20: 15 | BA20: 3 | BB20: =IF(ISNA(BB14),"",BB14) ->  | BC20: =IF(BB20="","",VLOOKUP(BB20,$AY$16:$AZ$18,2,FALSE)) ->  | BF20: 110104 | BG20: 1101043 | BH20: Alabama | BI20: Montgomery | BJ20: 1 | BK20: 101 | BL20: 4 | BM20: 3
B21: 4 | C21: Equals .85 x minimum of (ARC guarantee - county revenue) or (10% of benchmark yield x benchmark price), when county revenue is less than ARC guarantee, zero otherwise. Guarantee and revenue calculations are shown in the green ARC-CO Calculations box. | T21: Iowa | U21: 19 | X21: 0 | Y21: 1 | Z21: 31 | AA21: 1031 | AB21: Coffee | AC21: AL | AE21: 16 | AF21: Cook | AG21: 17031 | AI21: 16 | AJ21: Cook | AK21: 17031 | AM21: Rapeseed | AN21: 16 | AO21: 1701916 | AQ21: 5 | AR21: 0 | AT21: 0 | AV21: 16 | BF21: 110304 | BG21: 1103043 | BH21: Alabama | BI21: Morgan | BJ21: 1 | BK21: 103 | BL21: 4 | BM21: 3
B22: 5 | C22: Benchmark yield calculations are shown in Table 2 and 3 below. | T22: Kansas | U22: 20 | X22: 0 | Y22: 1 | Z22: 33 | AA22: 1033 | AB22: Colbert | AC22: AL | AE22: 17 | AF22: Crawford | AG22: 17033 | AI22: 17 | AJ22: Crawford | AK22: 17033 | AM22: Rice_Long Grain | AN22: 17 | AO22: 1701917 | AQ22: 5 | AR22: 0 | AT22: 0 | AV22: 17 | BF22: 400304 | BG22: 4003043 | BH22: Arizona | BI22: Cochise | BJ22: 4 | BK22: 3 | BL22: 4 | BM22: 3
B23: 6 | C23: Benchmark price calculations are shown in Table 3 below. | T23: Kentucky | U23: 21 | X23: 0 | Y23: 1 | Z23: 35 | AA23: 1035 | AB23: Conecuh | AC23: AL | AE23: 18 | AF23: Cumberland | AG23: 17035 | AI23: 18 | AJ23: Cumberland | AK23: 17035 | AM23: Rice_Med/Short Grain | AN23: 18 | AO23: 1701918 | AQ23: 5 | AR23: 0 | AT23: 0 | AV23: 18 | BF23: 400904 | BG23: 4009043 | BH23: Arizona | BI23: Graham | BJ23: 4 | BK23: 9 | BL23: 4 | BM23: 3
B24: 7 | C24: Guarantee equals .86 x benchmark yield x benchmark price. | T24: Louisiana | U24: 22 | X24: 0 | Y24: 1 | Z24: 37 | AA24: 1037 | AB24: Coosa | AC24: AL | AE24: 19 | AF24: DeKalb | AG24: 17037 | AI24: 19 | AJ24: DeKalb | AK24: 17037 | AM24: Rice_Temperate Japonica | AN24: 19 | AO24: 1701919 | AQ24: 5 | AR24: 0 | AT24: 0 | AV24: 19 | BF24: 401204 | BG24: 4012043 | BH24: Arizona | BI24: La Paz | BJ24: 4 | BK24: 12 | BL24: 4 | BM24: 3
B25: 8 | C25: County revenue equals county yield x MYA price. | T25: Maine | U25: 23 | X25: 0 | Y25: 1 | Z25: 39 | AA25: 1039 | AB25: Covington | AC25: AL | AE25: 20 | AF25: De Witt | AG25: 17039 | AI25: 20 | AJ25: De Witt | AK25: 17039 | AM25: Safflower | AN25: 20 | AO25: 1701920 | AQ25: 5 | AR25: 0 | AT25: 0 | AV25: 20 | BF25: 401304 | BG25: 4013041 | BH25: Arizona | BI25: Maricopa | BJ25: 4 | BK25: 13 | BL25: 4 | BM25: 1
T26: Maryland | U26: 24 | X26: 0 | Y26: 1 | Z26: 41 | AA26: 1041 | AB26: Crenshaw | AC26: AL | AE26: 21 | AF26: Douglas | AG26: 17041 | AI26: 21 | AJ26: Douglas | AK26: 17041 | AM26: Seed Cotton | AN26: 21 | AO26: 1701921 | AQ26: 5 | AR26: 0 | AT26: 0 | AV26: 21 | BF26: 401304 | BG26: 4013042 | BH26: Arizona | BI26: Maricopa | BJ26: 4 | BK26: 13 | BL26: 4 | BM26: 2
E27: For estimates of expected values of ARC-CO and PLC payments see the Gardner Program Payment Calculator at: | T27: Massachusetts | U27: 25 | X27: 0 | Y27: 1 | Z27: 43 | AA27: 1043 | AB27: Cullman | AC27: AL | AE27: 22 | AF27: DuPage | AG27: 17043 | AI27: 22 | AJ27: DuPage | AK27: 17043 | AM27: Sesame Seed | AN27: 22 | AO27: 1701922 | AQ27: 5 | AR27: 0 | AT27: 0 | AV27: 22 | BF27: 401904 | BG27: 4019043 | BH27: Arizona | BI27: Pima | BJ27: 4 | BK27: 19 | BL27: 4 | BM27: 3
T28: Michigan | U28: 26 | X28: 0 | Y28: 1 | Z28: 45 | AA28: 1045 | AB28: Dale | AC28: AL | AE28: 23 | AF28: Edgar | AG28: 17045 | AI28: 23 | AJ28: Edgar | AK28: 17045 | AM28: Sunflower Seed | AN28: 23 | AO28: 1701923 | AP28: 1701923 | AQ28: 6 | AR28: 6 | AS28: Sunflower Seed | AT28: 23 | AV28: 23 | BF28: 402104 | BG28: 4021043 | BH28: Arizona | BI28: Pinal | BJ28: 4 | BK28: 21 | BL28: 4 | BM28: 3
E29: https://fd-tools.ncsa.illinois.edu | T29: Minnesota | U29: 27 | X29: 0 | Y29: 1 | Z29: 47 | AA29: 1047 | AB29: Dallas | AC29: AL | AE29: 24 | AF29: Edwards | AG29: 17047 | AI29: 24 | AJ29: Edwards | AK29: 17047 | BF29: 402704 | BG29: 4027043 | BH29: Arizona | BI29: Yuma | BJ29: 4 | BK29: 27 | BL29: 4 | BM29: 3
T30: Mississippi | U30: 28 | X30: 0 | Y30: 1 | Z30: 49 | AA30: =Y30*1000+Z30 -> 1049 | AB30: DeKalb | AC30: AL | AE30: 25 | AF30: Effingham | AG30: 17049 | AI30: 25 | AJ30: =IF(ISNA(AF30),"",AF30) -> Effingham | AK30: =IF(ISNA(AG30),"",AG30) -> 17049 | BF30: =(BJ30*1000+BK30)*100+BL30 -> 502104 | BG30: =BF30*10+BM30 -> 5021043 | BH30: Arkansas | BI30: Clay | BJ30: 5 | BK30: 21 | BL30: 4 | BM30: 3
B31: Support provided by: | T31: Missouri | U31: 29 | X31: 0 | Y31: 1 | Z31: 51 | AA31: 1051 | AB31: Elmore | AC31: AL | AE31: 26 | AF31: Fayette | AG31: 17051 | AI31: 26 | AJ31: Fayette | AK31: 17051 | AR31: 1 | AS31: =VLOOKUP(AR31,$AR$6:$AS$28,2,FALSE) -> Corn | AT31: =VLOOKUP(AR31,$AR$6:$AT$28,3,FALSE) -> 1 | BF31: 504904 | BG31: 5049043 | BH31: Arkansas | BI31: Fulton | BJ31: 5 | BK31: 49 | BL31: 4 | BM31: 3
G32: Gardner Agricultural | T32: Montana | U32: 30 | X32: 0 | Y32: 1 | Z32: 53 | AA32: 1053 | AB32: Escambia | AC32: AL | AE32: 27 | AF32: Ford | AG32: 17053 | AI32: 27 | AJ32: Ford | AK32: 17053 | AR32: 2 | AS32: Soybeans | AT32: 2 | BF32: 600104 | BG32: 6001043 | BH32: California | BI32: Alameda | BJ32: 6 | BK32: 1 | BL32: 4 | BM32: 3
G33: Policy Program | T33: Nebraska | U33: 31 | X33: 0 | Y33: 1 | Z33: 55 | AA33: 1055 | AB33: Etowah | AC33: AL | AE33: 28 | AF33: Franklin | AG33: 17055 | AI33: 28 | AJ33: Franklin | AK33: 17055 | AR33: 3 | AS33: Wheat | AT33: 3 | BF33: 600504 | BG33: 6005043 | BH33: California | BI33: Amador | BJ33: 6 | BK33: 5 | BL33: 4 | BM33: 3
T34: Nevada | U34: 32 | X34: 0 | Y34: 1 | Z34: 57 | AA34: 1057 | AB34: Fayette | AC34: AL | AE34: 29 | AF34: Fulton | AG34: 17057 | AI34: 29 | AJ34: Fulton | AK34: 17057 | AR34: 4 | AS34: Barley | AT34: 4 | BF34: 601104 | BG34: 6011043 | BH34: California | BI34: Colusa | BJ34: 6 | BK34: 11 | BL34: 4 | BM34: 3
T35: New Hampshire | U35: 33 | X35: 0 | Y35: 1 | Z35: 59 | AA35: 1059 | AB35: Franklin | AC35: AL | AE35: 30 | AF35: Gallatin | AG35: 17059 | AI35: 30 | AJ35: Gallatin | AK35: 17059 | AR35: 5 | AS35: Oats | AT35: 14 | BF35: 601304 | BG35: 6013043 | BH35: California | BI35: Contra Costa | BJ35: 6 | BK35: 13 | BL35: 4 | BM35: 3
B36: Table 1. Payments per Base Acre at Different Yields and Prices | T36: New Jersey | U36: 34 | X36: 0 | Y36: 1 | Z36: 61 | AA36: 1061 | AB36: Geneva | AC36: AL | AE36: 31 | AF36: Greene | AG36: 17061 | AI36: 31 | AJ36: Greene | AK36: 17061 | AR36: 6 | AS36: Sunflower Seed | AT36: 23 | BF36: 601904 | BG36: 6019041 | BH36: California | BI36: Fresno | BJ36: 6 | BK36: 19 | BL36: 4 | BM36: 1
C37: Program Selection | E37: PLC minus ARC-CO | H37: ="State = "&D4&", County = "&D5&", Crop = "&D6&", Year = "&D9 -> State = Illinois, County = Champaign, Crop = Soybeans, Year = 2022 | T37: New Mexico | U37: 35 | X37: 0 | Y37: 1 | Z37: 63 | AA37: 1063 | AB37: Greene | AC37: AL | AE37: 32 | AF37: Grundy | AG37: 17063 | AI37: 32 | AJ37: Grundy | AK37: 17063 | AR37: 7 | BF37: 601904 | BG37: 6019042 | BH37: California | BI37: Fresno | BJ37: 6 | BK37: 19 | BL37: 4 | BM37: 2
C38: Price Change | E38: 0.25 | H38: ="ARC-CO Benchmark Yield = "&TEXT(K16,"0.00")&", Benchmark Price = $"&TEXT(L16,"0.00")&", Guarantee $"&TEXT(M16,"0.00") -> ARC-CO Benchmark Yield = 68.96, Benchmark Price = $9.12, Guarantee $540.87 | T38: New York | U38: 36 | X38: 0 | Y38: 1 | Z38: 65 | AA38: 1065 | AB38: Hale | AC38: AL | AE38: 33 | AF38: Hamilton | AG38: 17065 | AI38: 33 | AJ38: Hamilton | AK38: 17065 | AR38: 8 | BF38: 602104 | BG38: 6021043 | BH38: California | BI38: Glenn | BJ38: 6 | BK38: 21 | BL38: 4 | BM38: 3
C39: Yield Change | E39: 5 | H39: ="PLC Yield = "&D8&", Effective Reference Price = $"&TEXT(H70,"0.00") -> PLC Yield = 55, Effective Reference Price = $8.40 | T39: North Carolina | U39: 37 | X39: 0 | Y39: 1 | Z39: 67 | AA39: 1067 | AB39: Henry | AC39: AL | AE39: 34 | AF39: Hancock | AG39: 17067 | AI39: 34 | AJ39: Hancock | AK39: 17067 | AR39: 9 | BF39: 602504 | BG39: 6025043 | BH39: California | BI39: Imperial | BJ39: 6 | BK39: 25 | BL39: 4 | BM39: 3
C40: =-C16 -> -2022 | T40: North Dakota | U40: 38 | X40: 0 | Y40: 1 | Z40: 69 | AA40: 1069 | AB40: Houston | AC40: AL | AE40: 35 | AF40: Hardin | AG40: 17069 | AI40: 35 | AJ40: Hardin | AK40: 17069 | AR40: 10 | BF40: 602904 | BG40: 6029043 | BH40: California | BI40: Kern | BJ40: 6 | BK40: 29 | BL40: 4 | BM40: 3
C41: County | D41: =C16&" Market Year Average Price" -> 2022 Market Year Average Price | E41: =IF('2018 what if'!$E$37='2018 what if'!$W$1,'2018 what if'!E148,IF('2018 what if'!$E$37='2018 what if'!$W$2,'2018 what if'!E133,'2018 what if'!E163)) -> 0 | F41: =IF('2018 what if'!$E$37='2018 what if'!$W$1,'2018 what if'!F148,IF('2018 what if'!$E$37='2018 what if'!$W$2,'2018 what if'!F133,'2018 what if'!F163)) -> 0 | G41: =IF('2018 what if'!$E$37='2018 what if'!$W$1,'2018 what if'!G148,IF('2018 what if'!$E$37='2018 what if'!$W$2,'2018 what if'!G133,'2018 what if'!G163)) -> 0 | H41: =IF('2018 what if'!$E$37='2018 what if'!$W$1,'2018 what if'!H148,IF('2018 what if'!$E$37='2018 what if'!$W$2,'2018 what if'!H133,'2018 what if'!H163)) -> 0 | I41: =IF('2018 what if'!$E$37='2018 what if'!$W$1,'2018 what if'!I148,IF('2018 what if'!$E$37='2018 what if'!$W$2,'2018 what if'!I133,'2018 what if'!I163)) -> 0 | J41: =IF('2018 what if'!$E$37='2018 what if'!$W$1,'2018 what if'!J148,IF('2018 what if'!$E$37='2018 what if'!$W$2,'2018 what if'!J133,'2018 what if'!J163)) -> 0 | K41: =IF('2018 what if'!$E$37='2018 what if'!$W$1,'2018 what if'!K148,IF('2018 what if'!$E$37='2018 what if'!$W$2,'2018 what if'!K133,'2018 what if'!K163)) -> 0 | L41: =IF('2018 what if'!$E$37='2018 what if'!$W$1,'2018 what if'!L148,IF('2018 what if'!$E$37='2018 what if'!$W$2,'2018 what if'!L133,'2018 what if'!L163)) -> 0 | M41: =IF('2018 what if'!$E$37='2018 what if'!$W$1,'2018 what if'!M148,IF('2018 what if'!$E$37='2018 what if'!$W$2,'2018 what if'!M133,'2018 what if'!M163)) -> 0 | N41: =IF('2018 what if'!$E$37='2018 what if'!$W$1,'2018 what if'!N148,IF('2018 what if'!$E$37='2018 what if'!$W$2,'2018 what if'!N133,'2018 what if'!N163)) -> 0 | T41: Ohio | U41: 39 | X41: 0 | Y41: 1 | Z41: 71 | AA41: 1071 | AB41: Jackson | AC41: AL | AE41: 36 | AF41: Henderson | AG41: 17071 | AI41: 36 | AJ41: Henderson | AK41: 17071 | AR41: 11 | BF41: 603104 | BG41: 6031041 | BH41: California | BI41: Kings | BJ41: 6 | BK41: 31 | BL41: 4 | BM41: 1
C42: Yield | D42: =E42-$E$38 -> 10.75 | E42: =F42-$E$38 -> 11 | F42: =G42-$E$38 -> 11.25 | G42: =H42-$E$38 -> 11.5 | H42: =I42-$E$38 -> 11.75 | I42: =$E$16 -> 12 | J42: =I42+$E$38 -> 12.25 | K42: =J42+$E$38 -> 12.5 | L42: =K42+$E$38 -> 12.75 | M42: =L42+$E$38 -> 13 | N42: =M42+$E$38 -> 13.25 | T42: Oklahoma | U42: 40 | X42: 0 | Y42: 1 | Z42: 73 | AA42: 1073 | AB42: Jefferson | AC42: AL | AE42: 37 | AF42: Henry | AG42: 17073 | AI42: 37 | AJ42: Henry | AK42: 17073 | AR42: 12 | BF42: 603104 | BG42: 6031042 | BH42: California | BI42: Kings | BJ42: 6 | BK42: 31 | BL42: 4 | BM42: 2
C43: =C44+$E$39 -> 93.96 | D43: =IF($E$37=$W$1,D150,IF($E$37=$W$2,D135,D165)) -> 0 | E43: 0 | F43: 0 | G43: 0 | H43: 0 | I43: 0 | J43: 0 | K43: 0 | L43: 0 | M43: 0 | N43: 0 | T43: Oregon | U43: 41 | X43: 0 | Y43: 1 | Z43: 75 | AA43: 1075 | AB43: Lamar | AC43: AL | AE43: 38 | AF43: Iroquois | AG43: 17075 | AI43: 38 | AJ43: Iroquois | AK43: 17075 | AR43: 13 | BF43: 603504 | BG43: 6035043 | BH43: California | BI43: Lassen | BJ43: 6 | BK43: 35 | BL43: 4 | BM43: 3
C44: =C45+$E$39 -> 88.96 | D44: =IF($E$37=$W$1,D151,IF($E$37=$W$2,D136,D166)) -> 0 | E44: 0 | F44: 0 | G44: 0 | H44: 0 | I44: 0 | J44: 0 | K44: 0 | L44: 0 | M44: 0 | N44: 0 | T44: Pennsylvania | U44: 42 | X44: 0 | Y44: 1 | Z44: 77 | AA44: 1077 | AB44: Lauderdale | AC44: AL | AE44: 39 | AF44: Jackson | AG44: 17077 | AI44: 39 | AJ44: Jackson | AK44: 17077 | AR44: 14 | BF44: 604704 | BG44: 6047043 | BH44: California | BI44: Merced | BJ44: 6 | BK44: 47 | BL44: 4 | BM44: 3
C45: =C46+$E$39 -> 83.96 | D45: =IF($E$37=$W$1,D152,IF($E$37=$W$2,D137,D167)) -> 0 | E45: 0 | F45: 0 | G45: 0 | H45: 0 | I45: 0 | J45: 0 | K45: 0 | L45: 0 | M45: 0 | N45: 0 | T45: Rhode Island | U45: 44 | X45: 0 | Y45: 1 | Z45: 79 | AA45: 1079 | AB45: Lawrence | AC45: AL | AE45: 40 | AF45: Jasper | AG45: 17079 | AI45: 40 | AJ45: Jasper | AK45: 17079 | AR45: 15 | BF45: 604904 | BG45: 6049043 | BH45: California | BI45: Modoc | BJ45: 6 | BK45: 49 | BL45: 4 | BM45: 3
C46: =C47+$E$39 -> 78.96 | D46: =IF($E$37=$W$1,D153,IF($E$37=$W$2,D138,D168)) -> 0 | E46: 0 | F46: 0 | G46: 0 | H46: 0 | I46: 0 | J46: 0 | K46: 0 | L46: 0 | M46: 0 | N46: 0 | T46: South Carolina | U46: 45 | X46: 0 | Y46: 1 | Z46: 81 | AA46: 1081 | AB46: Lee | AC46: AL | AE46: 41 | AF46: Jefferson | AG46: 17081 | AI46: 41 | AJ46: Jefferson | AK46: 17081 | AR46: 16 | BF46: 605304 | BG46: 6053043 | BH46: California | BI46: Monterey | BJ46: 6 | BK46: 53 | BL46: 4 | BM46: 3
C47: =C48+$E$39 -> 73.96 | D47: =IF($E$37=$W$1,D154,IF($E$37=$W$2,D139,D169)) -> 0 | E47: 0 | F47: 0 | G47: 0 | H47: 0 | I47: 0 | J47: 0 | K47: 0 | L47: 0 | M47: 0 | N47: 0 | T47: South Dakota | U47: 46 | X47: 0 | Y47: 1 | Z47: 83 | AA47: 1083 | AB47: Limestone | AC47: AL | AE47: 42 | AF47: Jersey | AG47: 17083 | AI47: 42 | AJ47: Jersey | AK47: 17083 | AR47: 17 | BF47: 606504 | BG47: 6065043 | BH47: California | BI47: Riverside | BJ47: 6 | BK47: 65 | BL47: 4 | BM47: 3
C48: =$D$16 -> 68.96 | D48: =IF($E$37=$W$1,D155,IF($E$37=$W$2,D140,D170)) -> 0 | E48: 0 | F48: 0 | G48: 0 | H48: 0 | I48: 0 | J48: 0 | K48: 0 | L48: 0 | M48: 0 | N48: 0 | T48: Tennessee | U48: 47 | X48: 0 | Y48: 1 | Z48: 85 | AA48: 1085 | AB48: Lowndes | AC48: AL | AE48: 43 | AF48: Jo Daviess | AG48: 17085 | AI48: 43 | AJ48: Jo Daviess | AK48: 17085 | AR48: 18 | BF48: 606704 | BG48: 6067043 | BH48: California | BI48: Sacramento | BJ48: 6 | BK48: 67 | BL48: 4 | BM48: 3
C49: =C48-$E$39 -> 63.96 | D49: =IF($E$37=$W$1,D156,IF($E$37=$W$2,D141,D171)) -> 0 | E49: 0 | F49: 0 | G49: 0 | H49: 0 | I49: 0 | J49: 0 | K49: 0 | L49: 0 | M49: 0 | N49: 0 | T49: Texas | U49: 48 | X49: 0 | Y49: 1 | Z49: 87 | AA49: 1087 | AB49: Macon | AC49: AL | AE49: 44 | AF49: Johnson | AG49: 17087 | AI49: 44 | AJ49: Johnson | AK49: 17087 | AR49: 19 | BF49: 606904 | BG49: 6069043 | BH49: California | BI49: San Benito | BJ49: 6 | BK49: 69 | BL49: 4 | BM49: 3
C50: =C49-$E$39 -> 58.96 | D50: =IF($E$37=$W$1,D157,IF($E$37=$W$2,D142,D172)) -> 0 | E50: 0 | F50: 0 | G50: 0 | H50: 0 | I50: 0 | J50: 0 | K50: 0 | L50: 0 | M50: 0 | N50: 0 | T50: Utah | U50: 49 | X50: 0 | Y50: 1 | Z50: 89 | AA50: 1089 | AB50: Madison | AC50: AL | AE50: 45 | AF50: Kane | AG50: 17089 | AI50: 45 | AJ50: Kane | AK50: 17089 | AR50: 20 | BF50: 607704 | BG50: 6077043 | BH50: California | BI50: San Joaquin | BJ50: 6 | BK50: 77 | BL50: 4 | BM50: 3
C51: =C50-$E$39 -> 53.96 | D51: =IF($E$37=$W$1,D158,IF($E$37=$W$2,D143,D173)) -> 0 | E51: 0 | F51: 0 | G51: 0 | H51: 0 | I51: 0 | J51: 0 | K51: 0 | L51: 0 | M51: 0 | N51: 0 | T51: Vermont | U51: 50 | X51: 0 | Y51: 1 | Z51: 91 | AA51: 1091 | AB51: Marengo | AC51: AL | AE51: 46 | AF51: Kankakee | AG51: 17091 | AI51: 46 | AJ51: Kankakee | AK51: 17091 | AR51: 21 | BF51: 607904 | BG51: 6079043 | BH51: California | BI51: San Luis Obispo | BJ51: 6 | BK51: 79 | BL51: 4 | BM51: 3
C52: =C51-$E$39 -> 48.96 | D52: =IF($E$37=$W$1,D159,IF($E$37=$W$2,D144,D174)) -> -12.37 | E52: -1.96 | F52: 0 | G52: 0 | H52: 0 | I52: 0 | J52: 0 | K52: 0 | L52: 0 | M52: 0 | N52: 0 | T52: Virginia | U52: 51 | X52: 0 | Y52: 1 | Z52: 93 | AA52: 1093 | AB52: Marion | AC52: AL | AE52: 47 | AF52: Kendall | AG52: 17093 | AI52: 47 | AJ52: Kendall | AK52: 17093 | AR52: 22 | BF52: 608904 | BG52: 6089043 | BH52: California | BI52: Shasta | BJ52: 6 | BK52: 89 | BL52: 4 | BM52: 3
C53: =C52-$E$39 -> 43.96 | D53: =IF($E$37=$W$1,D160,IF($E$37=$W$2,D145,D175)) -> -53.46 | E53: -48.71 | F53: -39.37 | G53: -30.03 | H53: -20.69 | I53: -11.35 | J53: -2.01 | K53: 0 | L53: 0 | M53: 0 | N53: 0 | T53: Washington | U53: 53 | X53: 0 | Y53: 1 | Z53: 95 | AA53: 1095 | AB53: Marshall | AC53: AL | AE53: 48 | AF53: Knox | AG53: 17095 | AI53: 48 | AJ53: Knox | AK53: 17095 | AR53: 23 | BF53: 609304 | BG53: 6093043 | BH53: California | BI53: Siskiyou | BJ53: 6 | BK53: 93 | BL53: 4 | BM53: 3
D54: =IF(E37=W3,"* A positive value indicates that PLC will pay more, a negative value indicates that ARC-CO will pay more.","") -> * A positive value indicates that PLC will pay more, a negative value indicates that ARC-CO will pay more. | T54: West Virginia | U54: 54 | X54: 0 | Y54: 1 | Z54: 97 | AA54: 1097 | AB54: Mobile | AC54: AL | AE54: 49 | AF54: Lake | AG54: 17097 | AI54: 49 | AJ54: Lake | AK54: 17097 | BF54: 609504 | BG54: 6095043 | BH54: California | BI54: Solano | BJ54: 6 | BK54: 95 | BL54: 4 | BM54: 3
T55: Wisconsin | U55: 55 | X55: 0 | Y55: 1 | Z55: 99 | AA55: 1099 | AB55: Monroe | AC55: AL | AE55: 50 | AF55: LaSalle | AG55: 17099 | AI55: 50 | AJ55: LaSalle | AK55: 17099 | BF55: 609904 | BG55: 6099043 | BH55: California | BI55: Stanislaus | BJ55: 6 | BK55: 99 | BL55: 4 | BM55: 3
B56: Table 2. Calculation of PLC Payments | T56: Wyoming | U56: 56 | X56: 0 | Y56: 1 | Z56: 101 | AA56: 1101 | AB56: Montgomery | AC56: AL | AE56: 51 | AF56: Lawrence | AG56: 17101 | AI56: 51 | AJ56: Lawrence | AK56: 17101 | BF56: 610104 | BG56: 6101043 | BH56: California | BI56: Sutter | BJ56: 6 | BK56: 101 | BL56: 4 | BM56: 3
X57: 0 | Y57: 1 | Z57: 103 | AA57: 1103 | AB57: Morgan | AC57: AL | AE57: 52 | AF57: Lee | AG57: 17103 | AI57: 52 | AJ57: Lee | AK57: 17103 | BF57: 610304 | BG57: 6103043 | BH57: California | BI57: Tehama | BJ57: 6 | BK57: 103 | BL57: 4 | BM57: 3
G58: =D9 -> 2022 | H58: Payment | X58: 0 | Y58: 1 | Z58: 105 | AA58: 1105 | AB58: Perry | AC58: AL | AE58: 53 | AF58: Livingston | AG58: 17105 | AI58: 53 | AJ58: Livingston | AK58: 17105 | BF58: 610704 | BG58: 6107041 | BH58: California | BI58: Tulare | BJ58: 6 | BK58: 107 | BL58: 4 | BM58: 1
H59: MYA | X59: 0 | Y59: 1 | Z59: 107 | AA59: 1107 | AB59: Pickens | AC59: AL | AE59: 54 | AF59: Logan | AG59: 17107 | AI59: 54 | AJ59: Logan | AK59: 17107 | BF59: 610704 | BG59: 6107042 | BH59: California | BI59: Tulare | BJ59: 6 | BK59: 107 | BL59: 4 | BM59: 2
G60: Year | H60: Price | X60: 0 | Y60: 1 | Z60: 109 | AA60: 1109 | AB60: Pike | AC60: AL | AE60: 55 | AF60: McDonough | AG60: 17109 | AI60: 55 | AJ60: McDonough | AK60: 17109 | BF60: 611304 | BG60: 6113043 | BH60: California | BI60: Yolo | BJ60: 6 | BK60: 113 | BL60: 4 | BM60: 3
H61: =CR2 -> $/Bu | X61: 0 | Y61: 1 | Z61: 111 | AA61: 1111 | AB61: Randolph | AC61: AL | AE61: 56 | AF61: McHenry | AG61: 17111 | AI61: 56 | AJ61: McHenry | AK61: 17111 | BF61: 611504 | BG61: 6115043 | BH61: California | BI61: Yuba | BJ61: 6 | BK61: 115 | BL61: 4 | BM61: 3
G62: =G63-1 -> 2016 | H62: =CG2 -> 9.47 | X62: 0 | Y62: 1 | Z62: 113 | AA62: 1113 | AB62: Russell | AC62: AL | AE62: 57 | AF62: McLean | AG62: 17113 | AI62: 57 | AJ62: McLean | AK62: 17113 | BF62: 800104 | BG62: 8001043 | BH62: Colorado | BI62: Adams | BJ62: 8 | BK62: 1 | BL62: 4 | BM62: 3
G63: =G64-1 -> 2017 | H63: =CH2 -> 9.33 | X63: 0 | Y63: 1 | Z63: 115 | AA63: 1115 | AB63: St. Clair | AC63: AL | AE63: 58 | AF63: Macon | AG63: 17115 | AI63: 58 | AJ63: Macon | AK63: 17115 | BF63: 800304 | BG63: 8003043 | BH63: Colorado | BI63: Alamosa | BJ63: 8 | BK63: 3 | BL63: 4 | BM63: 3
G64: =G65-1 -> 2018 | H64: =CI2 -> 8.48 | X64: 0 | Y64: 1 | Z64: 117 | AA64: 1117 | AB64: Shelby | AC64: AL | AE64: 59 | AF64: Macoupin | AG64: 17117 | AI64: 59 | AJ64: Macoupin | AK64: 17117 | BF64: 800504 | BG64: 8005043 | BH64: Colorado | BI64: Arapahoe | BJ64: 8 | BK64: 5 | BL64: 4 | BM64: 3
G65: =G66-1 -> 2019 | H65: =CJ2 -> 8.57 | X65: 0 | Y65: 1 | Z65: 119 | AA65: 1119 | AB65: Sumter | AC65: AL | AE65: 60 | AF65: Madison | AG65: 17119 | AI65: 60 | AJ65: Madison | AK65: 17119 | BF65: 800904 | BG65: 8009043 | BH65: Colorado | BI65: Baca | BJ65: 8 | BK65: 9 | BL65: 4 | BM65: 3
G66: =D9-2 -> 2020 | H66: =CK2 -> 10.8 | X66: 0 | Y66: 1 | Z66: 121 | AA66: 1121 | AB66: Talladega | AC66: AL | AE66: 61 | AF66: Marion | AG66: 17121 | AI66: 61 | AJ66: Marion | AK66: 17121 | BF66: 801104 | BG66: 8011043 | BH66: Colorado | BI66: Bent | BJ66: 8 | BK66: 11 | BL66: 4 | BM66: 3
X67: 0 | Y67: 1 | Z67: 123 | AA67: 1123 | AB67: Tallapoosa | AC67: AL | AE67: 62 | AF67: Marshall | AG67: 17123 | AI67: 62 | AJ67: Marshall | AK67: 17123 | BF67: 801304 | BG67: 8013043 | BH67: Colorado | BI67: Boulder | BJ67: 8 | BK67: 13 | BL67: 4 | BM67: 3
G68: 85% of Olympic average1 | H68: =ROUND(0.85*(SUM(H62:H66)-MAX(H62:H66)-MIN(H62:H66))/3,2) -> 7.75 | X68: 0 | Y68: 1 | Z68: 125 | AA68: 1125 | AB68: Tuscaloosa | AC68: AL | AE68: 63 | AF68: Mason | AG68: 17125 | AI68: 63 | AJ68: Mason | AK68: 17125 | BF68: 801704 | BG68: 8017043 | BH68: Colorado | BI68: Cheyenne | BJ68: 8 | BK68: 17 | BL68: 4 | BM68: 3
G69: Statutory reference price | H69: =CN2 -> 8.4 | X69: 0 | Y69: 1 | Z69: 127 | AA69: 1127 | AB69: Walker | AC69: AL | AE69: 64 | AF69: Massac | AG69: 17127 | AI69: 64 | AJ69: Massac | AK69: 17127 | BF69: 802104 | BG69: 8021043 | BH69: Colorado | BI69: Conejos | BJ69: 8 | BK69: 21 | BL69: 4 | BM69: 3
G70: Effective reference price2 | H70: =MIN(MAX(H69,H68),1.15*H69) -> 8.4 | X70: 0 | Y70: 1 | Z70: 129 | AA70: =Y70*1000+Z70 -> 1129 | AB70: Washington | AC70: AL | AE70: 65 | AF70: =VLOOKUP(AE70,$X$6:$AB$3239,5,FALSE) -> Menard | AG70: =VLOOKUP(AE70,$X$6:$AA$3239,4,FALSE) -> 17129 | AI70: 65 | AJ70: Menard | AK70: 17129 | BF70: 802304 | BG70: 8023043 | BH70: Colorado | BI70: Costilla | BJ70: 8 | BK70: 23 | BL70: 4 | BM70: 3
X71: =IF($U$2=Y71,+X70+1,0) -> 0 | Y71: 1 | Z71: 131 | AA71: 1131 | AB71: Wilcox | AC71: AL | AE71: 66 | AF71: Mercer | AG71: 17131 | AI71: 66 | AJ71: =IF(ISNA(AF71),"",AF71) -> Mercer | AK71: =IF(ISNA(AG71),"",AG71) -> 17131 | BF71: =(BJ71*1000+BK71)*100+BL71 -> 802504 | BG71: 8025043 | BH71: Colorado | BI71: Crowley | BJ71: 8 | BK71: 25 | BL71: 4 | BM71: 3
F72: =D9 -> 2022 | G72: MYA price | H72: =E16 -> 12 | X72: 0 | Y72: 1 | Z72: 133 | AA72: 1133 | AB72: Winston | AC72: AL | AE72: 67 | AF72: Monroe | AG72: 17133 | AI72: 67 | AJ72: Monroe | AK72: 17133 | BF72: 802704 | BG72: =BF72*10+BM72 -> 8027043 | BH72: Colorado | BI72: Custer | BJ72: 8 | BK72: 27 | BL72: 4 | BM72: 3
G73: Loan rate | H73: =CO2 -> 6.2 | X73: 0 | Y73: 2 | Z73: 13 | AA73: 2013 | AB73: Aleutians East | AC73: AK | AE73: 68 | AF73: Montgomery | AG73: 17135 | AI73: 68 | AJ73: Montgomery | AK73: 17135 | BF73: 802904 | BG73: 8029043 | BH73: Colorado | BI73: Delta | BJ73: 8 | BK73: 29 | BL73: 4 | BM73: 3
G74: Payment rate3 | H74: =MAX(0,H70-MAX(H72,H73)) -> 0 | X74: 0 | Y74: 2 | Z74: 16 | AA74: 2016 | AB74: Aleutians West | AC74: AK | AE74: 69 | AF74: Morgan | AG74: 17137 | AI74: 69 | AJ74: Morgan | AK74: 17137 | BF74: 803304 | BG74: 8033043 | BH74: Colorado | BI74: Dolores | BJ74: 8 | BK74: 33 | BL74: 4 | BM74: 3
X75: 0 | Y75: 2 | Z75: 20 | AA75: 2020 | AB75: Anchorage | AC75: AK | AE75: 70 | AF75: Moultrie | AG75: 17139 | AI75: 70 | AJ75: Moultrie | AK75: 17139 | BF75: 803504 | BG75: 8035043 | BH75: Colorado | BI75: Douglas | BJ75: 8 | BK75: 35 | BL75: 4 | BM75: 3
D76: =D9 -> 2022 | G76: payment per base acre4 | H76: =(H74*D8*0.85)/CS2 -> 0 | R76: =TRANSPOSE(BN2:BR2) -> 69.4 | X76: 0 | Y76: 2 | Z76: 50 | AA76: 2050 | AB76: Bethel | AC76: AK | AE76: 71 | AF76: Ogle | AG76: 17141 | AI76: 71 | AJ76: Ogle | AK76: 17141 | BF76: 803904 | BG76: 8039043 | BH76: Colorado | BI76: Elbert | BJ76: 8 | BK76: 39 | BL76: 4 | BM76: 3
R77: 65.3 | X77: 0 | Y77: 2 | Z77: 60 | AA77: 2060 | AB77: Bristol Bay | AC77: AK | AE77: 72 | AF77: Peoria | AG77: 17143 | AI77: 72 | AJ77: Peoria | AK77: 17143 | BF77: 804504 | BG77: 8045043 | BH77: Colorado | BI77: Garfield | BJ77: 8 | BK77: 45 | BL77: 4 | BM77: 3
B78: 1 | C78: Olympic average eliminates the high and low prices and averages the remaining three historical prices. Olympic average calculations are lagged by one year (e.g., the 2019 average does not include the 2018 price, but prices from 2013 to 2017). | X78: 0 | Y78: 2 | Z78: 68 | AA78: 2068 | AB78: Denali | AC78: AK | AE78: 73 | AF78: Perry | AG78: 17145 | AI78: 73 | AJ78: Perry | AK78: 17145 | BF78: 805504 | BG78: 8055043 | BH78: Colorado | BI78: Huerfano | BJ78: 8 | BK78: 55 | BL78: 4 | BM78: 3
B79: 2 | C79: The higher of 85% of the Olympic average or the statutory reference price, capped at 1.15 times the statutory reference price. | R79: 57.29 | X79: 0 | Y79: 2 | Z79: 70 | AA79: 2070 | AB79: Dillingham | AC79: AK | AE79: 74 | AF79: Piatt | AG79: 17147 | AI79: 74 | AJ79: Piatt | AK79: 17147 | BF79: 806104 | BG79: 8061043 | BH79: Colorado | BI79: Kiowa | BJ79: 8 | BK79: 61 | BL79: 4 | BM79: 3
B80: 3 | C80: Effective reference price minus the higher of the MYA price or loan rate when MYA price is below the effective reference price. | R80: 64.72 | X80: 0 | Y80: 2 | Z80: 90 | AA80: 2090 | AB80: Fairbanks North Star | AC80: AK | AE80: 75 | AF80: Pike | AG80: 17149 | AI80: 75 | AJ80: Pike | AK80: 17149 | BF80: 806304 | BG80: 8063043 | BH80: Colorado | BI80: Kit Carson | BJ80: 8 | BK80: 63 | BL80: 4 | BM80: 3
B81: 4 | C81: Equals .85 x PLC yield x payment rate. | X81: 0 | Y81: 2 | Z81: 100 | AA81: 2100 | AB81: Haines | AC81: AK | AE81: 76 | AF81: Pope | AG81: 17151 | AI81: 76 | AJ81: Pope | AK81: 17151 | BF81: 806704 | BG81: 8067043 | BH81: Colorado | BI81: La Plata | BJ81: 8 | BK81: 67 | BL81: 4 | BM81: 3
B82: For additional information on PLC see the following article on farmdocDaily | X82: 0 | Y82: 2 | Z82: 110 | AA82: 2110 | AB82: Juneau | AC82: AK | AE82: 77 | AF82: Pulaski | AG82: 17153 | AI82: 77 | AJ82: Pulaski | AK82: 17153 | BF82: 806904 | BG82: 8069043 | BH82: Colorado | BI82: Larimer | BJ82: 8 | BK82: 69 | BL82: 4 | BM82: 3
C83: farmdocDaily, September 24, 2019 | X83: 0 | Y83: 2 | Z83: 122 | AA83: 2122 | AB83: Kenai Peninsula | AC83: AK | AE83: 78 | AF83: Putnam | AG83: 17155 | AI83: 78 | AJ83: Putnam | AK83: 17155 | BF83: 807104 | BG83: 8071043 | BH83: Colorado | BI83: Las Animas | BJ83: 8 | BK83: 71 | BL83: 4 | BM83: 3
X84: 0 | Y84: 2 | Z84: 130 | AA84: 2130 | AB84: Ketchikan Gateway | AC84: AK | AE84: 79 | AF84: Randolph | AG84: 17157 | AI84: 79 | AJ84: Randolph | AK84: 17157 | BF84: 807304 | BG84: 8073043 | BH84: Colorado | BI84: Lincoln | BJ84: 8 | BK84: 73 | BL84: 4 | BM84: 3
B85: =CONCATENATE("Table 3. Calculation of ",D9," Benchmark Yield for ARC-CO") -> Table 3. Calculation of 2022 Benchmark Yield for ARC-CO | X85: 0 | Y85: 2 | Z85: 150 | AA85: 2150 | AB85: Kodiak Island | AC85: AK | AE85: 80 | AF85: Richland | AG85: 17159 | AI85: 80 | AJ85: Richland | AK85: 17159 | BF85: 807504 | BG85: 8075043 | BH85: Colorado | BI85: Logan | BJ85: 8 | BK85: 75 | BL85: 4 | BM85: 3
X86: 0 | Y86: 2 | Z86: 164 | AA86: 2164 | AB86: Lake and Peninsula | AC86: AK | AE86: 81 | AF86: Rock Island | AG86: 17161 | AI86: 81 | AJ86: Rock Island | AK86: 17161 | BF86: 807704 | BG86: 8077043 | BH86: Colorado | BI86: Mesa | BJ86: 8 | BK86: 77 | BL86: 4 | BM86: 3
G87: Higher | N87: Trend | X87: 0 | Y87: 2 | Z87: 170 | AA87: 2170 | AB87: Matanuska-Susitna | AC87: AK | AE87: 82 | AF87: St. Clair | AG87: 17163 | AI87: 82 | AJ87: St. Clair | AK87: 17163 | BF87: 808104 | BG87: 8081043 | BH87: Colorado | BI87: Moffat | BJ87: 8 | BK87: 81 | BL87: 4 | BM87: 3
G88: of Actual | K88: Number | L88: Trend | N88: Adjusted | X88: 0 | Y88: 2 | Z88: 180 | AA88: 2180 | AB88: Nome | AC88: AK | AE88: 83 | AF88: Saline | AG88: 17165 | AI88: 83 | AJ88: Saline | AK88: 17165 | BF88: 808304 | BG88: 8083043 | BH88: Colorado | BI88: Montezuma | BJ88: 8 | BK88: 83 | BL88: 4 | BM88: 3
D89: County | E89: 80% of | G89: or 80% | K89: of Years | L89: Yield | N89: ARC-CO | X89: 0 | Y89: 2 | Z89: 185 | AA89: 2185 | AB89: North Slope | AC89: AK | AE89: 84 | AF89: Sangamon | AG89: 17167 | AI89: 84 | AJ89: Sangamon | AK89: 17167 | BF89: 808504 | BG89: 8085043 | BH89: Colorado | BI89: Montrose | BJ89: 8 | BK89: 85 | BL89: 4 | BM89: 3
C90: Year | D90: Yield1 | E90: T-yield | G90: of T-yield2 | K90: to Trend | L90: Adjustment4 | N90: Yield5 | X90: 0 | Y90: 2 | Z90: 188 | AA90: 2188 | AB90: Northwest Arctic | AC90: AK | AE90: 85 | AF90: Schuyler | AG90: 17169 | AI90: 85 | AJ90: Schuyler | AK90: 17169 | BF90: 808704 | BG90: 8087043 | BH90: Colorado | BI90: Morgan | BJ90: 8 | BK90: 87 | BL90: 4 | BM90: 3
X91: 0 | Y91: 2 | Z91: 201 | AA91: 2201 | AB91: Prince of Wales-Outer Ketchikan | AC91: AK | AE91: 86 | AF91: Scott | AG91: 17171 | AI91: 86 | AJ91: Scott | AK91: 17171 | BF91: 808904 | BG91: 8089043 | BH91: Colorado | BI91: Otero | BJ91: 8 | BK91: 89 | BL91: 4 | BM91: 3
D92: =CQ2&"/acre" -> Bu/acre | E92: =D92 -> Bu/acre | G92: =E92 -> Bu/acre | L92: =G92 -> Bu/acre | N92: =L92 -> Bu/acre | X92: 0 | Y92: 2 | Z92: 220 | AA92: 2220 | AB92: Sitka | AC92: AK | AE92: 87 | AF92: Shelby | AG92: 17173 | AI92: 87 | AJ92: Shelby | AK92: 17173 | BF92: 809504 | BG92: 8095043 | BH92: Colorado | BI92: Phillips | BJ92: 8 | BK92: 95 | BL92: 4 | BM92: 3
C93: =C94-1 -> 2016 | D93: =MAX(E93,G93) -> 65.53 | E93: =BT2 -> 41.6 | G93: =N93-L93 -> 65.53 | K93: 6 | L93: =K93*$G$99 -> 7.32 | N93: =BY2 -> 72.85 | X93: 0 | Y93: 2 | Z93: 232 | AA93: 2232 | AB93: Skagway-Hoonah-Angoon | AC93: AK | AE93: 88 | AF93: Stark | AG93: 17175 | AI93: 88 | AJ93: Stark | AK93: 17175 | BF93: 809904 | BG93: 8099043 | BH93: Colorado | BI93: Prowers | BJ93: 8 | BK93: 99 | BL93: 4 | BM93: 3
C94: =C95-1 -> 2017 | D94: =MAX(E94,G94) -> 62.08 | E94: =BU2 -> 41.6 | G94: =N94-L94 -> 62.08 | K94: 5 | L94: =K94*$G$99 -> 6.1 | N94: =BZ2 -> 68.18 | X94: 0 | Y94: 2 | Z94: 240 | AA94: 2240 | AB94: Southeast Fairbanks | AC94: AK | AE94: 89 | AF94: Stephenson | AG94: 17177 | AI94: 89 | AJ94: Stephenson | AK94: 17177 | BF94: 810104 | BG94: 8101043 | BH94: Colorado | BI94: Pueblo | BJ94: 8 | BK94: 101 | BL94: 4 | BM94: 3
C95: =C96-1 -> 2018 | D95: =MAX(E95,G95) -> 71.37 | E95: =BV2 -> 45.6 | G95: =N95-L95 -> 71.37 | K95: 4 | L95: =K95*$G$99 -> 4.88 | N95: =CA2 -> 76.25 | X95: 0 | Y95: 2 | Z95: 261 | AA95: 2261 | AB95: Valdez-Cordova | AC95: AK | AE95: 90 | AF95: Tazewell | AG95: 17179 | AI95: 90 | AJ95: Tazewell | AK95: 17179 | BF95: 810304 | BG95: 8103043 | BH95: Colorado | BI95: Rio Blanco | BJ95: 8 | BK95: 103 | BL95: 4 | BM95: 3
C96: =C97-1 -> 2019 | D96: =MAX(E96,G96) -> 55.34 | E96: =BW2 -> 45.6 | G96: =N96-L96 -> 55.34 | K96: 3 | L96: =K96*$G$99 -> 3.66 | N96: =CB2 -> 59 | X96: 0 | Y96: 2 | Z96: 270 | AA96: 2270 | AB96: Wade Hampton | AC96: AK | AE96: 91 | AF96: Union | AG96: 17181 | AI96: 91 | AJ96: Union | AK96: 17181 | BF96: 810504 | BG96: 8105043 | BH96: Colorado | BI96: Rio Grande | BJ96: 8 | BK96: 105 | BL96: 4 | BM96: 3
C97: =D9-2 -> 2020 | D97: =MAX(E97,G97) -> 63.42 | E97: =BX2 -> 45.6 | G97: =N97-L97 -> 63.42 | K97: 2 | L97: =K97*$G$99 -> 2.44 | N97: =CC2 -> 65.86 | X97: 0 | Y97: 2 | Z97: 280 | AA97: 2280 | AB97: Wrangell-Petersburg | AC97: AK | AE97: 92 | AF97: Vermilion | AG97: 17183 | AI97: 92 | AJ97: Vermilion | AK97: 17183 | BF97: 810704 | BG97: 8107043 | BH97: Colorado | BI97: Routt | BJ97: 8 | BK97: 107 | BL97: 4 | BM97: 3
X98: 0 | Y98: 2 | Z98: 282 | AA98: 2282 | AB98: Yakutat | AC98: AK | AE98: 93 | AF98: Wabash | AG98: 17185 | AI98: 93 | AJ98: Wabash | AK98: 17185 | BF98: 810904 | BG98: 8109043 | BH98: Colorado | BI98: Saguache | BJ98: 8 | BK98: 109 | BL98: 4 | BM98: 3
E99: Trend Adjustment3 | G99: =BS2 -> 1.22 | K99: =D9 -> 2022 | M99: Benchmark Yield6 | N99: =ROUND((SUM(N93:N97)-MAX(N93:N97)-MIN(N93:N97))/3,2) -> 68.96 | X99: 0 | Y99: 2 | Z99: 290 | AA99: 2290 | AB99: Yukon-Koyukuk | AC99: AK | AE99: 94 | AF99: Warren | AG99: 17187 | AI99: 94 | AJ99: Warren | AK99: 17187 | BF99: 811504 | BG99: 8115043 | BH99: Colorado | BI99: Sedgwick | BJ99: 8 | BK99: 115 | BL99: 4 | BM99: 3
X100: 0 | Y100: 4 | Z100: 1 | AA100: 4001 | AB100: Apache | AC100: AZ | AE100: 95 | AF100: Washington | AG100: 17189 | AI100: 95 | AJ100: Washington | AK100: 17189 | BF100: 812104 | BG100: 8121043 | BH100: Colorado | BI100: Washington | BJ100: 8 | BK100: 121 | BL100: 4 | BM100: 3
B101: 1 | C101: Crop yields are from data provided by Risk Management Agency | X101: 0 | Y101: 4 | Z101: 3 | AA101: 4003 | AB101: Cochise | AC101: AZ | AE101: 96 | AF101: Wayne | AG101: 17191 | AI101: 96 | AJ101: Wayne | AK101: 17191 | BF101: 812304 | BG101: 8123043 | BH101: Colorado | BI101: Weld | BJ101: 8 | BK101: 123 | BL101: 4 | BM101: 3
B102: 2 | C102: The higher of county yield or 80% of T-yield | X102: 0 | Y102: 4 | Z102: 5 | AA102: 4005 | AB102: Coconino | AC102: AZ | AE102: 97 | AF102: White | AG102: 17193 | AI102: 97 | AJ102: White | AK102: 17193 | BF102: 812504 | BG102: 8125043 | BH102: Colorado | BI102: Yuma | BJ102: 8 | BK102: 125 | BL102: 4 | BM102: 3
B103: 3 | C103: In most cases, trend yield adjustments are the same as used for calculation Trend-Adjusted APH yields for crop insurance. | X103: 0 | Y103: 4 | Z103: 7 | AA103: 4007 | AB103: Gila | AC103: AZ | AE103: 98 | AF103: Whiteside | AG103: 17195 | AI103: 98 | AJ103: Whiteside | AK103: 17195 | BF103: 900504 | BG103: 9005043 | BH103: Connecticut | BI103: Litchfield | BJ103: 9 | BK103: 5 | BL103: 4 | BM103: 3
B104: 4 | C104: The trend adjustment times the number of years to trend. | X104: 0 | Y104: 4 | Z104: 9 | AA104: 4009 | AB104: Graham | AC104: AZ | AE104: 99 | AF104: Will | AG104: 17197 | AI104: 99 | AJ104: Will | AK104: 17197 | BF104: 1000104 | BG104: 10001041 | BH104: Delaware | BI104: Kent | BJ104: 10 | BK104: 1 | BL104: 4 | BM104: 1
B105: 5 | C105: Adds the trend adjustment to the "Higher of Actual or 80% of T-yield". | X105: 0 | Y105: 4 | Z105: 11 | AA105: 4011 | AB105: Greenlee | AC105: AZ | AE105: 100 | AF105: Williamson | AG105: 17199 | AI105: 100 | AJ105: Williamson | AK105: 17199 | BF105: 1000104 | BG105: 10001042 | BH105: Delaware | BI105: Kent | BJ105: 10 | BK105: 1 | BL105: 4 | BM105: 2
B106: 6 | C106: Olympic average of trend adjusted ARC-CO yields. An Olympic average eliminates the high and low values, and then averages the remaining values. | X106: 0 | Y106: 4 | Z106: 12 | AA106: 4012 | AB106: La Paz | AC106: AZ | AE106: 101 | AF106: Winnebago | AG106: 17201 | AI106: 101 | AJ106: Winnebago | AK106: 17201 | BF106: 1000304 | BG106: 10003043 | BH106: Delaware | BI106: New Castle | BJ106: 10 | BK106: 3 | BL106: 4 | BM106: 3
B107: For additional information on ARC-CO see the following article on farmdocDaily: | X107: 0 | Y107: 4 | Z107: 13 | AA107: 4013 | AB107: Maricopa | AC107: AZ | AE107: 102 | AF107: Woodford | AG107: 17203 | AI107: 102 | AJ107: Woodford | AK107: 17203 | BF107: 1000504 | BG107: 10005041 | BH107: Delaware | BI107: Sussex | BJ107: 10 | BK107: 5 | BL107: 4 | BM107: 1
C108: farmdocDaily, September 17, 2019 | X108: 0 | Y108: 4 | Z108: 15 | AA108: 4015 | AB108: Mohave | AC108: AZ | AE108: 103 | AI108: 103 | BF108: 1000504 | BG108: 10005042 | BH108: Delaware | BI108: Sussex | BJ108: 10 | BK108: 5 | BL108: 4 | BM108: 2
X109: 0 | Y109: 4 | Z109: 17 | AA109: 4017 | AB109: Navajo | AC109: AZ | AE109: 104 | AI109: 104 | BF109: 1204704 | BG109: 12047043 | BH109: Florida | BI109: Hamilton | BJ109: 12 | BK109: 47 | BL109: 4 | BM109: 3
B110: Table 4. Calculation of Benchmark Prices for ARC-CO | X110: 0 | Y110: 4 | Z110: 19 | AA110: 4019 | AB110: Pima | AC110: AZ | AE110: 105 | AI110: 105 | BF110: 1300304 | BG110: 13003043 | BH110: Georgia | BI110: Atkinson | BJ110: 13 | BK110: 3 | BL110: 4 | BM110: 3
X111: 0 | Y111: 4 | Z111: 21 | AA111: 4021 | AB111: Pinal | AC111: AZ | AE111: 106 | AI111: 106 | BF111: 1300504 | BG111: 13005043 | BH111: Georgia | BI111: Bacon | BJ111: 13 | BK111: 5 | BL111: 4 | BM111: 3
D112: =D9 -> 2022 | E112: Calculation | X112: 0 | Y112: 4 | Z112: 23 | AA112: 4023 | AB112: Santa Cruz | AC112: AZ | AE112: 107 | AI112: 107 | BF112: 1301304 | BG112: 13013043 | BH112: Georgia | BI112: Barrow | BJ112: 13 | BK112: 13 | BL112: 4 | BM112: 3
E113: Effective | X113: 0 | Y113: 4 | Z113: 25 | AA113: 4025 | AB113: Yavapai | AC113: AZ | AE113: 108 | AI113: 108 | BF113: 1301504 | BG113: 13015043 | BH113: Georgia | BI113: Bartow | BJ113: 13 | BK113: 15 | BL113: 4 | BM113: 3
D114: MYA | E114: Reference | G114: Used in | X114: 0 | Y114: 4 | Z114: 27 | AA114: 4027 | AB114: Yuma | AC114: AZ | AE114: 109 | AI114: 109 | BF114: 1301704 | BG114: 13017043 | BH114: Georgia | BI114: Ben Hill | BJ114: 13 | BK114: 17 | BL114: 4 | BM114: 3
C115: Year | D115: Price1 | E115: Price2 | G115: Benchmark3 | X115: 0 | Y115: 5 | Z115: 1 | AA115: 5001 | AB115: Arkansas | AC115: AR | AE115: 110 | AI115: 110 | BF115: 1301904 | BG115: 13019043 | BH115: Georgia | BI115: Berrien | BJ115: 13 | BK115: 19 | BL115: 4 | BM115: 3
D116: =H61 -> $/Bu | E116: =D116 -> $/Bu | G116: =E116 -> $/Bu | X116: 0 | Y116: 5 | Z116: 3 | AA116: 5003 | AB116: Ashley | AC116: AR | AE116: 111 | AI116: 111 | BF116: 1302104 | BG116: 13021043 | BH116: Georgia | BI116: Bibb | BJ116: 13 | BK116: 21 | BL116: 4 | BM116: 3
C117: =C118-1 -> 2016 | D117: 9.47 | E117: =H70 -> 8.4 | G117: =MAX(D117,E117) -> 9.47 | X117: 0 | Y117: 5 | Z117: 5 | AA117: 5005 | AB117: Baxter | AC117: AR | AE117: 112 | AI117: 112 | BF117: 1302304 | BG117: 13023043 | BH117: Georgia | BI117: Bleckley | BJ117: 13 | BK117: 23 | BL117: 4 | BM117: 3
C118: =C119-1 -> 2017 | D118: 9.33 | E118: =E117 -> 8.4 | G118: =MAX(D118,E118) -> 9.33 | X118: 0 | Y118: 5 | Z118: 7 | AA118: 5007 | AB118: Benton | AC118: AR | AE118: 113 | AI118: 113 | BF118: 1302704 | BG118: 13027043 | BH118: Georgia | BI118: Brooks | BJ118: 13 | BK118: 27 | BL118: 4 | BM118: 3
C119: =C120-1 -> 2018 | D119: 8.48 | E119: =E118 -> 8.4 | G119: =MAX(D119,E119) -> 8.48 | X119: 0 | Y119: 5 | Z119: 9 | AA119: 5009 | AB119: Boone | AC119: AR | AE119: 114 | AI119: 114 | BF119: 1303104 | BG119: 13031043 | BH119: Georgia | BI119: Bulloch | BJ119: 13 | BK119: 31 | BL119: 4 | BM119: 3
C120: =C121-1 -> 2019 | D120: 8.57 | E120: =E119 -> 8.4 | G120: =MAX(D120,E120) -> 8.57 | X120: 0 | Y120: 5 | Z120: 11 | AA120: 5011 | AB120: Bradley | AC120: AR | AE120: 115 | AI120: 115 | BF120: 1303304 | BG120: 13033043 | BH120: Georgia | BI120: Burke | BJ120: 13 | BK120: 33 | BL120: 4 | BM120: 3
C121: =D9-2 -> 2020 | D121: 10.8 | E121: =E120 -> 8.4 | G121: =MAX(D121,E121) -> 10.8 | X121: 0 | Y121: 5 | Z121: 13 | AA121: 5013 | AB121: Calhoun | AC121: AR | AE121: 116 | AI121: 116 | BF121: 1303504 | BG121: 13035043 | BH121: Georgia | BI121: Butts | BJ121: 13 | BK121: 35 | BL121: 4 | BM121: 3
X122: 0 | Y122: 5 | Z122: 15 | AA122: 5015 | AB122: Carroll | AC122: AR | AE122: 117 | AI122: 117 | BF122: 1304304 | BG122: 13043043 | BH122: Georgia | BI122: Candler | BJ122: 13 | BK122: 43 | BL122: 4 | BM122: 3
D123: =D9 -> 2022 | F123: Benchmark Price | G123: =ROUND((SUM(G117:G121)-MAX(G117:G121)-MIN(G117:G121))/3,2) -> 9.12 | X123: 0 | Y123: 5 | Z123: 17 | AA123: 5017 | AB123: Chicot | AC123: AR | AE123: 118 | AI123: 118 | BF123: 1305504 | BG123: 13055043 | BH123: Georgia | BI123: Chattooga | BJ123: 13 | BK123: 55 | BL123: 4 | BM123: 3
X124: 0 | Y124: 5 | Z124: 19 | AA124: 5019 | AB124: Clark | AC124: AR | AE124: 119 | AI124: 119 | BF124: 1305904 | BG124: 13059043 | BH124: Georgia | BI124: Clarke | BJ124: 13 | BK124: 59 | BL124: 4 | BM124: 3
B125: 1 | C125: Market Year Average (MYA) price. | X125: 0 | Y125: 5 | Z125: 21 | AA125: 5021 | AB125: Clay | AC125: AR | AE125: 120 | AI125: 120 | BF125: 1306904 | BG125: 13069043 | BH125: Georgia | BI125: Coffee | BJ125: 13 | BK125: 69 | BL125: 4 | BM125: 3
B126: 2 | C126: See Table 1 for the calculation of effective reference prices. | X126: 0 | Y126: 5 | Z126: 23 | AA126: 5023 | AB126: Cleburne | AC126: AR | AE126: 121 | AI126: 121 | BF126: 1307904 | BG126: 13079043 | BH126: Georgia | BI126: Crawford | BJ126: 13 | BK126: 79 | BL126: 4 | BM126: 3
B127: 3 | C127: Higher of MYA price or effective reference price. | X127: 0 | Y127: 5 | Z127: 25 | AA127: 5025 | AB127: Cleveland | AC127: AR | AE127: 122 | AI127: 122 | BF127: 1308104 | BG127: 13081043 | BH127: Georgia | BI127: Crisp | BJ127: 13 | BK127: 81 | BL127: 4 | BM127: 3
B128: 4 | C128: Olympic average of five previous years' prices, with a year lag. An Olympic average eliminates the high and low values, and then averages the remaining values. | X128: 0 | Y128: 5 | Z128: 27 | AA128: 5027 | AB128: Columbia | AC128: AR | AE128: 123 | AI128: 123 | BF128: 1308704 | BG128: 13087043 | BH128: Georgia | BI128: Decatur | BJ128: 13 | BK128: 87 | BL128: 4 | BM128: 3
B129: For additional information on ARC-CO see the following article on farmdocDaily: | X129: 0 | Y129: 5 | Z129: 29 | AA129: 5029 | AB129: Conway | AC129: AR | AE129: 124 | AI129: 124 | BF129: 1309104 | BG129: 13091043 | BH129: Georgia | BI129: Dodge | BJ129: 13 | BK129: 91 | BL129: 4 | BM129: 3
C130: farmdocDaily, September 17, 2019 | X130: 0 | Y130: 5 | Z130: 31 | AA130: 5031 | AB130: Craighead | AC130: AR | AE130: 125 | AI130: 125 | BF130: 1309304 | BG130: 13093043 | BH130: Georgia | BI130: Dooly | BJ130: 13 | BK130: 93 | BL130: 4 | BM130: 3
X131: 0 | Y131: 5 | Z131: 33 | AA131: 5033 | AB131: Crawford | AC131: AR | AE131: 126 | AI131: 126 | BF131: 1309504 | BG131: 13095043 | BH131: Georgia | BI131: Dougherty | BJ131: 13 | BK131: 95 | BL131: 4 | BM131: 3
X132: 0 | Y132: 5 | Z132: 35 | AA132: 5035 | AB132: Crittenden | AC132: AR | AE132: 127 | AI132: 127 | BF132: 1310704 | BG132: 13107043 | BH132: Georgia | BI132: Emanuel | BJ132: 13 | BK132: 107 | BL132: 4 | BM132: 3
D133: PLC Payments | X133: 0 | Y133: 5 | Z133: 37 | AA133: 5037 | AB133: Cross | AC133: AR | AE133: 128 | AI133: 128 | BF133: 1310904 | BG133: 13109043 | BH133: Georgia | BI133: Evans | BJ133: 13 | BK133: 109 | BL133: 4 | BM133: 3
D134: =E134-$E$38 -> 10.75 | E134: =F134-$E$38 -> 11 | F134: =G134-$E$38 -> 11.25 | G134: =H134-$E$38 -> 11.5 | H134: =I134-$E$38 -> 11.75 | I134: =$E$16 -> 12 | J134: =I134+$E$38 -> 12.25 | K134: =J134+$E$38 -> 12.5 | L134: =K134+$E$38 -> 12.75 | M134: =L134+$E$38 -> 13 | N134: =M134+$E$38 -> 13.25 | X134: 0 | Y134: 5 | Z134: 39 | AA134: =Y134*1000+Z134 -> 5039 | AB134: Dallas | AC134: AR | AE134: 129 | AF134: =VLOOKUP(AE134,$X$6:$AB$3239,5,FALSE) ->  | AG134: =VLOOKUP(AE134,$X$6:$AA$3239,4,FALSE) ->  | AI134: 129 | BF134: 1311504 | BG134: 13115043 | BH134: Georgia | BI134: Floyd | BJ134: 13 | BK134: 115 | BL134: 4 | BM134: 3
C135: =C136+$E$39 -> 93.96 | D135: =(MAX(0,$H$70-MAX(D$134,$H$73))*$D$8*0.85)/$CS$2 -> 0 | E135: 0 | F135: 0 | G135: 0 | H135: 0 | I135: 0 | J135: 0 | K135: 0 | L135: 0 | M135: 0 | N135: 0 | X135: =IF($U$2=Y135,+X134+1,0) -> 0 | Y135: 5 | Z135: 41 | AA135: 5041 | AB135: Desha | AC135: AR | AE135: 130 | AI135: 130 | AJ135: =IF(ISNA(AF135),"",AF135) ->  | AK135: =IF(ISNA(AG135),"",AG135) ->  | BF135: =(BJ135*1000+BK135)*100+BL135 -> 1311904 | BG135: 13119043 | BH135: Georgia | BI135: Franklin | BJ135: 13 | BK135: 119 | BL135: 4 | BM135: 3
C136: =C137+$E$39 -> 88.96 | D136: 0 | E136: 0 | F136: 0 | G136: 0 | H136: 0 | I136: 0 | J136: 0 | K136: 0 | L136: 0 | M136: 0 | N136: 0 | X136: 0 | Y136: 5 | Z136: 43 | AA136: 5043 | AB136: Drew | AC136: AR | AE136: 131 | AI136: 131 | BF136: 1312504 | BG136: =BF136*10+BM136 -> 13125043 | BH136: Georgia | BI136: Glascock | BJ136: 13 | BK136: 125 | BL136: 4 | BM136: 3
C137: =C138+$E$39 -> 83.96 | D137: 0 | E137: 0 | F137: 0 | G137: 0 | H137: 0 | I137: 0 | J137: 0 | K137: 0 | L137: 0 | M137: 0 | N137: 0 | X137: 0 | Y137: 5 | Z137: 45 | AA137: 5045 | AB137: Faulkner | AC137: AR | AE137: 132 | AI137: 132 | BF137: 1312904 | BG137: 13129043 | BH137: Georgia | BI137: Gordon | BJ137: 13 | BK137: 129 | BL137: 4 | BM137: 3
C138: =C139+$E$39 -> 78.96 | D138: 0 | E138: 0 | F138: 0 | G138: 0 | H138: 0 | I138: 0 | J138: 0 | K138: 0 | L138: 0 | M138: 0 | N138: 0 | X138: 0 | Y138: 5 | Z138: 47 | AA138: 5047 | AB138: Franklin | AC138: AR | AE138: 133 | AI138: 133 | BF138: 1314704 | BG138: 13147043 | BH138: Georgia | BI138: Hart | BJ138: 13 | BK138: 147 | BL138: 4 | BM138: 3
C139: =C140+$E$39 -> 73.96 | D139: 0 | E139: 0 | F139: 0 | G139: 0 | H139: 0 | I139: 0 | J139: 0 | K139: 0 | L139: 0 | M139: 0 | N139: 0 | X139: 0 | Y139: 5 | Z139: 49 | AA139: 5049 | AB139: Fulton | AC139: AR | AE139: 134 | AI139: 134 | BF139: 1315104 | BG139: 13151043 | BH139: Georgia | BI139: Henry | BJ139: 13 | BK139: 151 | BL139: 4 | BM139: 3
C140: =$D$16 -> 68.96 | D140: 0 | E140: 0 | F140: 0 | G140: 0 | H140: 0 | I140: 0 | J140: 0 | K140: 0 | L140: 0 | M140: 0 | N140: 0 | X140: 0 | Y140: 5 | Z140: 51 | AA140: 5051 | AB140: Garland | AC140: AR | AE140: 135 | AI140: 135 | BF140: 1315304 | BG140: 13153043 | BH140: Georgia | BI140: Houston | BJ140: 13 | BK140: 153 | BL140: 4 | BM140: 3
C141: =C140-$E$39 -> 63.96 | D141: 0 | E141: 0 | F141: 0 | G141: 0 | H141: 0 | I141: 0 | J141: 0 | K141: 0 | L141: 0 | M141: 0 | N141: 0 | X141: 0 | Y141: 5 | Z141: 53 | AA141: 5053 | AB141: Grant | AC141: AR | AE141: 136 | AI141: 136 | BF141: 1315504 | BG141: 13155043 | BH141: Georgia | BI141: Irwin | BJ141: 13 | BK141: 155 | BL141: 4 | BM141: 3
C142: =C141-$E$39 -> 58.96 | D142: 0 | E142: 0 | F142: 0 | G142: 0 | H142: 0 | I142: 0 | J142: 0 | K142: 0 | L142: 0 | M142: 0 | N142: 0 | X142: 0 | Y142: 5 | Z142: 55 | AA142: 5055 | AB142: Greene | AC142: AR | AE142: 137 | AI142: 137 | BF142: 1315704 | BG142: 13157043 | BH142: Georgia | BI142: Jackson | BJ142: 13 | BK142: 157 | BL142: 4 | BM142: 3
C143: =C142-$E$39 -> 53.96 | D143: 0 | E143: 0 | F143: 0 | G143: 0 | H143: 0 | I143: 0 | J143: 0 | K143: 0 | L143: 0 | M143: 0 | N143: 0 | X143: 0 | Y143: 5 | Z143: 57 | AA143: 5057 | AB143: Hempstead | AC143: AR | AE143: 138 | AI143: 138 | BF143: 1316304 | BG143: 13163043 | BH143: Georgia | BI143: Jefferson | BJ143: 13 | BK143: 163 | BL143: 4 | BM143: 3
C144: =C143-$E$39 -> 48.96 | D144: 0 | E144: 0 | F144: 0 | G144: 0 | H144: 0 | I144: 0 | J144: 0 | K144: 0 | L144: 0 | M144: 0 | N144: 0 | X144: 0 | Y144: 5 | Z144: 59 | AA144: 5059 | AB144: Hot Spring | AC144: AR | AE144: 139 | AI144: 139 | BF144: 1316504 | BG144: 13165043 | BH144: Georgia | BI144: Jenkins | BJ144: 13 | BK144: 165 | BL144: 4 | BM144: 3
C145: =C144-$E$39 -> 43.96 | D145: 0 | E145: 0 | F145: 0 | G145: 0 | H145: 0 | I145: 0 | J145: 0 | K145: 0 | L145: 0 | M145: 0 | N145: 0 | X145: 0 | Y145: 5 | Z145: 61 | AA145: 5061 | AB145: Howard | AC145: AR | AE145: 140 | AI145: 140 | BF145: 1316704 | BG145: 13167043 | BH145: Georgia | BI145: Johnson | BJ145: 13 | BK145: 167 | BL145: 4 | BM145: 3
X146: 0 | Y146: 5 | Z146: 63 | AA146: 5063 | AB146: Independence | AC146: AR | AE146: 141 | AI146: 141 | BF146: 1317104 | BG146: 13171043 | BH146: Georgia | BI146: Lamar | BJ146: 13 | BK146: 171 | BL146: 4 | BM146: 3
X147: 0 | Y147: 5 | Z147: 65 | AA147: 5065 | AB147: Izard | AC147: AR | AE147: 142 | AI147: 142 | BF147: 1317504 | BG147: 13175043 | BH147: Georgia | BI147: Laurens | BJ147: 13 | BK147: 175 | BL147: 4 | BM147: 3
D148: ARC-CO Payments | X148: 0 | Y148: 5 | Z148: 67 | AA148: 5067 | AB148: Jackson | AC148: AR | AE148: 143 | AI148: 143 | BF148: 1318104 | BG148: 13181043 | BH148: Georgia | BI148: Lincoln | BJ148: 13 | BK148: 181 | BL148: 4 | BM148: 3
D149: =E149-$E$38 -> 10.75 | E149: =F149-$E$38 -> 11 | F149: =G149-$E$38 -> 11.25 | G149: =H149-$E$38 -> 11.5 | H149: =I149-$E$38 -> 11.75 | I149: =$E$16 -> 12 | J149: =I149+$E$38 -> 12.25 | K149: =J149+$E$38 -> 12.5 | L149: =K149+$E$38 -> 12.75 | M149: =L149+$E$38 -> 13 | N149: =M149+$E$38 -> 13.25 | X149: 0 | Y149: 5 | Z149: 69 | AA149: 5069 | AB149: Jefferson | AC149: AR | AE149: 144 | AI149: 144 | BF149: 1318904 | BG149: 13189043 | BH149: Georgia | BI149: McDuffie | BJ149: 13 | BK149: 189 | BL149: 4 | BM149: 3
C150: =C151+$E$39 -> 93.96 | D150: =ROUND(0.85*MIN(MAX(0,ROUND(0.86*$K$16*$L$16,2)/$CS$2-ROUND($C150*D$149,2)/$CS$2),0.1*$K$16*$L$16),2) -> 0 | E150: 0 | F150: 0 | G150: 0 | H150: 0 | I150: 0 | J150: 0 | K150: 0 | L150: 0 | M150: 0 | N150: 0 | X150: 0 | Y150: 5 | Z150: 71 | AA150: 5071 | AB150: Johnson | AC150: AR | AE150: 145 | AI150: 145 | BF150: 1319304 | BG150: 13193043 | BH150: Georgia | BI150: Macon | BJ150: 13 | BK150: 193 | BL150: 4 | BM150: 3
C151: =C152+$E$39 -> 88.96 | D151: 0 | E151: 0 | F151: 0 | G151: 0 | H151: 0 | I151: 0 | J151: 0 | K151: 0 | L151: 0 | M151: 0 | N151: 0 | X151: 0 | Y151: 5 | Z151: 73 | AA151: 5073 | AB151: Lafayette | AC151: AR | AE151: 146 | AI151: 146 | BF151: 1319504 | BG151: 13195043 | BH151: Georgia | BI151: Madison | BJ151: 13 | BK151: 195 | BL151: 4 | BM151: 3
C152: =C153+$E$39 -> 83.96 | D152: 0 | E152: 0 | F152: 0 | G152: 0 | H152: 0 | I152: 0 | J152: 0 | K152: 0 | L152: 0 | M152: 0 | N152: 0 | X152: 0 | Y152: 5 | Z152: 75 | AA152: 5075 | AB152: Lawrence | AC152: AR | AE152: 147 | AI152: 147 | BF152: 1319704 | BG152: 13197043 | BH152: Georgia | BI152: Marion | BJ152: 13 | BK152: 197 | BL152: 4 | BM152: 3
C153: =C154+$E$39 -> 78.96 | D153: 0 | E153: 0 | F153: 0 | G153: 0 | H153: 0 | I153: 0 | J153: 0 | K153: 0 | L153: 0 | M153: 0 | N153: 0 | X153: 0 | Y153: 5 | Z153: 77 | AA153: 5077 | AB153: Lee | AC153: AR | AE153: 148 | AI153: 148 | BF153: 1320504 | BG153: 13205043 | BH153: Georgia | BI153: Mitchell | BJ153: 13 | BK153: 205 | BL153: 4 | BM153: 3
C154: =C155+$E$39 -> 73.96 | D154: 0 | E154: 0 | F154: 0 | G154: 0 | H154: 0 | I154: 0 | J154: 0 | K154: 0 | L154: 0 | M154: 0 | N154: 0 | X154: 0 | Y154: 5 | Z154: 79 | AA154: 5079 | AB154: Lincoln | AC154: AR | AE154: 149 | AI154: 149 | BF154: 1320704 | BG154: 13207043 | BH154: Georgia | BI154: Monroe | BJ154: 13 | BK154: 207 | BL154: 4 | BM154: 3
C155: =$D$16 -> 68.96 | D155: 0 | E155: 0 | F155: 0 | G155: 0 | H155: 0 | I155: 0 | J155: 0 | K155: 0 | L155: 0 | M155: 0 | N155: 0 | X155: 0 | Y155: 5 | Z155: 81 | AA155: 5081 | AB155: Little River | AC155: AR | AE155: 150 | AI155: 150 | BF155: 1320904 | BG155: 13209043 | BH155: Georgia | BI155: Montgomery | BJ155: 13 | BK155: 209 | BL155: 4 | BM155: 3
C156: =C155-$E$39 -> 63.96 | D156: 0 | E156: 0 | F156: 0 | G156: 0 | H156: 0 | I156: 0 | J156: 0 | K156: 0 | L156: 0 | M156: 0 | N156: 0 | X156: 0 | Y156: 5 | Z156: 83 | AA156: 5083 | AB156: Logan | AC156: AR | AE156: 151 | AI156: 151 | BF156: 1321104 | BG156: 13211043 | BH156: Georgia | BI156: Morgan | BJ156: 13 | BK156: 211 | BL156: 4 | BM156: 3
C157: =C156-$E$39 -> 58.96 | D157: 0 | E157: 0 | F157: 0 | G157: 0 | H157: 0 | I157: 0 | J157: 0 | K157: 0 | L157: 0 | M157: 0 | N157: 0 | X157: 0 | Y157: 5 | Z157: 85 | AA157: 5085 | AB157: Lonoke | AC157: AR | AE157: 152 | AI157: 152 | BF157: 1321704 | BG157: 13217043 | BH157: Georgia | BI157: Newton | BJ157: 13 | BK157: 217 | BL157: 4 | BM157: 3
C158: =C157-$E$39 -> 53.96 | D158: 0 | E158: 0 | F158: 0 | G158: 0 | H158: 0 | I158: 0 | J158: 0 | K158: 0 | L158: 0 | M158: 0 | N158: 0 | X158: 0 | Y158: 5 | Z158: 87 | AA158: 5087 | AB158: Madison | AC158: AR | AE158: 153 | AI158: 153 | BF158: 1321904 | BG158: 13219043 | BH158: Georgia | BI158: Oconee | BJ158: 13 | BK158: 219 | BL158: 4 | BM158: 3
C159: =C158-$E$39 -> 48.96 | D159: 12.37 | E159: 1.96 | F159: 0 | G159: 0 | H159: 0 | I159: 0 | J159: 0 | K159: 0 | L159: 0 | M159: 0 | N159: 0 | X159: 0 | Y159: 5 | Z159: 89 | AA159: 5089 | AB159: Marion | AC159: AR | AE159: 154 | AI159: 154 | BF159: 1322504 | BG159: 13225043 | BH159: Georgia | BI159: Peach | BJ159: 13 | BK159: 225 | BL159: 4 | BM159: 3
C160: =C159-$E$39 -> 43.96 | D160: 53.46 | E160: 48.71 | F160: 39.37 | G160: 30.03 | H160: 20.69 | I160: 11.35 | J160: 2.01 | K160: 0 | L160: 0 | M160: 0 | N160: 0 | X160: 0 | Y160: 5 | Z160: 91 | AA160: 5091 | AB160: Miller | AC160: AR | AE160: 155 | AI160: 155 | BF160: 1323104 | BG160: 13231043 | BH160: Georgia | BI160: Pike | BJ160: 13 | BK160: 231 | BL160: 4 | BM160: 3
X161: 0 | Y161: 5 | Z161: 93 | AA161: 5093 | AB161: Mississippi | AC161: AR | AE161: 156 | AI161: 156 | BF161: 1323504 | BG161: 13235043 | BH161: Georgia | BI161: Pulaski | BJ161: 13 | BK161: 235 | BL161: 4 | BM161: 3
X162: 0 | Y162: 5 | Z162: 95 | AA162: 5095 | AB162: Monroe | AC162: AR | AE162: 157 | AI162: 157 | BF162: 1323704 | BG162: 13237043 | BH162: Georgia | BI162: Putnam | BJ162: 13 | BK162: 237 | BL162: 4 | BM162: 3
D163: PLC minus ARC-CO Payments | X163: 0 | Y163: 5 | Z163: 97 | AA163: 5097 | AB163: Montgomery | AC163: AR | AE163: 158 | AI163: 158 | BF163: 1324304 | BG163: 13243043 | BH163: Georgia | BI163: Randolph | BJ163: 13 | BK163: 243 | BL163: 4 | BM163: 3
D164: =E164-$E$38 -> 10.75 | E164: =F164-$E$38 -> 11 | F164: =G164-$E$38 -> 11.25 | G164: =H164-$E$38 -> 11.5 | H164: =I164-$E$38 -> 11.75 | I164: =$E$16 -> 12 | J164: =I164+$E$38 -> 12.25 | K164: =J164+$E$38 -> 12.5 | L164: =K164+$E$38 -> 12.75 | M164: =L164+$E$38 -> 13 | N164: =M164+$E$38 -> 13.25 | X164: 0 | Y164: 5 | Z164: 99 | AA164: 5099 | AB164: Nevada | AC164: AR | AE164: 159 | AI164: 159 | BF164: 1324504 | BG164: 13245043 | BH164: Georgia | BI164: Richmond | BJ164: 13 | BK164: 245 | BL164: 4 | BM164: 3
C165: =C166+$E$39 -> 93.96 | D165: =D135-D150 -> 0 | E165: =E135-E150 -> 0 | F165: 0 | G165: 0 | H165: 0 | I165: 0 | J165: 0 | K165: 0 | L165: 0 | M165: 0 | N165: 0 | X165: 0 | Y165: 5 | Z165: 101 | AA165: 5101 | AB165: Newton | AC165: AR | AE165: 160 | AI165: 160 | BF165: 1324904 | BG165: 13249043 | BH165: Georgia | BI165: Schley | BJ165: 13 | BK165: 249 | BL165: 4 | BM165: 3
C166: =C167+$E$39 -> 88.96 | D166: =D136-D151 -> 0 | E166: 0 | F166: 0 | G166: 0 | H166: 0 | I166: 0 | J166: 0 | K166: 0 | L166: 0 | M166: 0 | N166: 0 | X166: 0 | Y166: 5 | Z166: 103 | AA166: 5103 | AB166: Ouachita | AC166: AR | AE166: 161 | AI166: 161 | BF166: 1325104 | BG166: 13251043 | BH166: Georgia | BI166: Screven | BJ166: 13 | BK166: 251 | BL166: 4 | BM166: 3
C167: =C168+$E$39 -> 83.96 | D167: =D137-D152 -> 0 | E167: 0 | F167: 0 | G167: 0 | H167: 0 | I167: 0 | J167: 0 | K167: 0 | L167: 0 | M167: 0 | N167: 0 | X167: 0 | Y167: 5 | Z167: 105 | AA167: 5105 | AB167: Perry | AC167: AR | AE167: 162 | AI167: 162 | BF167: 1325304 | BG167: 13253043 | BH167: Georgia | BI167: Seminole | BJ167: 13 | BK167: 253 | BL167: 4 | BM167: 3
C168: =C169+$E$39 -> 78.96 | D168: =D138-D153 -> 0 | E168: 0 | F168: 0 | G168: 0 | H168: 0 | I168: 0 | J168: 0 | K168: 0 | L168: 0 | M168: 0 | N168: 0 | X168: 0 | Y168: 5 | Z168: 107 | AA168: 5107 | AB168: Phillips | AC168: AR | AE168: 163 | AI168: 163 | BF168: 1325504 | BG168: 13255043 | BH168: Georgia | BI168: Spalding | BJ168: 13 | BK168: 255 | BL168: 4 | BM168: 3
C169: =C170+$E$39 -> 73.96 | D169: =D139-D154 -> 0 | E169: 0 | F169: 0 | G169: 0 | H169: 0 | I169: 0 | J169: 0 | K169: 0 | L169: 0 | M169: 0 | N169: 0 | X169: 0 | Y169: 5 | Z169: 109 | AA169: 5109 | AB169: Pike | AC169: AR | AE169: 164 | AI169: 164 | BF169: 1325904 | BG169: 13259043 | BH169: Georgia | BI169: Stewart | BJ169: 13 | BK169: 259 | BL169: 4 | BM169: 3
C170: =$D$16 -> 68.96 | D170: =D140-D155 -> 0 | E170: 0 | F170: 0 | G170: 0 | H170: 0 | I170: 0 | J170: 0 | K170: 0 | L170: 0 | M170: 0 | N170: 0 | X170: 0 | Y170: 5 | Z170: 111 | AA170: 5111 | AB170: Poinsett | AC170: AR | AE170: 165 | AI170: 165 | BF170: 1326104 | BG170: 13261043 | BH170: Georgia | BI170: Sumter | BJ170: 13 | BK170: 261 | BL170: 4 | BM170: 3
C171: =C170-$E$39 -> 63.96 | D171: =D141-D156 -> 0 | E171: 0 | F171: 0 | G171: 0 | H171: 0 | I171: 0 | J171: 0 | K171: 0 | L171: 0 | M171: 0 | N171: 0 | X171: 0 | Y171: 5 | Z171: 113 | AA171: 5113 | AB171: Polk | AC171: AR | AE171: 166 | AI171: 166 | BF171: 1326704 | BG171: 13267043 | BH171: Georgia | BI171: Tattnall | BJ171: 13 | BK171: 267 | BL171: 4 | BM171: 3
C172: =C171-$E$39 -> 58.96 | D172: =D142-D157 -> 0 | E172: 0 | F172: 0 | G172: 0 | H172: 0 | I172: 0 | J172: 0 | K172: 0 | L172: 0 | M172: 0 | N172: 0 | X172: 0 | Y172: 5 | Z172: 115 | AA172: 5115 | AB172: Pope | AC172: AR | AE172: 167 | AI172: 167 | BF172: 1326904 | BG172: 13269043 | BH172: Georgia | BI172: Taylor | BJ172: 13 | BK172: 269 | BL172: 4 | BM172: 3
C173: =C172-$E$39 -> 53.96 | D173: =D143-D158 -> 0 | E173: 0 | F173: 0 | G173: 0 | H173: 0 | I173: 0 | J173: 0 | K173: 0 | L173: 0 | M173: 0 | N173: 0 | X173: 0 | Y173: 5 | Z173: 117 | AA173: 5117 | AB173: Prairie | AC173: AR | AE173: 168 | AI173: 168 | BF173: 1327104 | BG173: 13271043 | BH173: Georgia | BI173: Telfair | BJ173: 13 | BK173: 271 | BL173: 4 | BM173: 3
C174: =C173-$E$39 -> 48.96 | D174: =D144-D159 -> -12.37 | E174: -1.96 | F174: 0 | G174: 0 | H174: 0 | I174: 0 | J174: 0 | K174: 0 | L174: 0 | M174: 0 | N174: 0 | X174: 0 | Y174: 5 | Z174: 119 | AA174: 5119 | AB174: Pulaski | AC174: AR | AE174: 169 | AI174: 169 | BF174: 1327904 | BG174: 13279043 | BH174: Georgia | BI174: Toombs | BJ174: 13 | BK174: 279 | BL174: 4 | BM174: 3
C175: =C174-$E$39 -> 43.96 | D175: =D145-D160 -> -53.46 | E175: -48.71 | F175: -39.37 | G175: -30.03 | H175: -20.69 | I175: -11.35 | J175: -2.01 | K175: 0 | L175: 0 | M175: 0 | N175: 0 | X175: 0 | Y175: 5 | Z175: 121 | AA175: 5121 | AB175: Randolph | AC175: AR | AE175: 170 | AI175: 170 | BF175: 1328304 | BG175: 13283043 | BH175: Georgia | BI175: Treutlen | BJ175: 13 | BK175: 283 | BL175: 4 | BM175: 3
X176: 0 | Y176: 5 | Z176: 123 | AA176: 5123 | AB176: St. Francis | AC176: AR | AE176: 171 | AI176: 171 | BF176: 1329304 | BG176: 13293043 | BH176: Georgia | BI176: Upson | BJ176: 13 | BK176: 293 | BL176: 4 | BM176: 3
X177: 0 | Y177: 5 | Z177: 125 | AA177: 5125 | AB177: Saline | AC177: AR | AE177: 172 | AI177: 172 | BF177: 1329504 | BG177: 13295043 | BH177: Georgia | BI177: Walker | BJ177: 13 | BK177: 295 | BL177: 4 | BM177: 3
X178: 0 | Y178: 5 | Z178: 127 | AA178: 5127 | AB178: Scott | AC178: AR | AE178: 173 | AI178: 173 | BF178: 1329704 | BG178: 13297043 | BH178: Georgia | BI178: Walton | BJ178: 13 | BK178: 297 | BL178: 4 | BM178: 3
X179: 0 | Y179: 5 | Z179: 129 | AA179: 5129 | AB179: Searcy | AC179: AR | AE179: 174 | AI179: 174 | BF179: 1330104 | BG179: 13301043 | BH179: Georgia | BI179: Warren | BJ179: 13 | BK179: 301 | BL179: 4 | BM179: 3
X180: 0 | Y180: 5 | Z180: 131 | AA180: 5131 | AB180: Sebastian | AC180: AR | AE180: 175 | AI180: 175 | BF180: 1330304 | BG180: 13303043 | BH180: Georgia | BI180: Washington | BJ180: 13 | BK180: 303 | BL180: 4 | BM180: 3
X181: 0 | Y181: 5 | Z181: 133 | AA181: 5133 | AB181: Sevier | AC181: AR | AE181: 176 | AI181: 176 | BF181: 1330704 | BG181: 13307043 | BH181: Georgia | BI181: Webster | BJ181: 13 | BK181: 307 | BL181: 4 | BM181: 3
X182: 0 | Y182: 5 | Z182: 135 | AA182: 5135 | AB182: Sharp | AC182: AR | AE182: 177 | AI182: 177 | BF182: 1330904 | BG182: 13309043 | BH182: Georgia | BI182: Wheeler | BJ182: 13 | BK182: 309 | BL182: 4 | BM182: 3
X183: 0 | Y183: 5 | Z183: 137 | AA183: 5137 | AB183: Stone | AC183: AR | AE183: 178 | AI183: 178 | BF183: 1331504 | BG183: 13315043 | BH183: Georgia | BI183: Wilcox | BJ183: 13 | BK183: 315 | BL183: 4 | BM183: 3
X184: 0 | Y184: 5 | Z184: 139 | AA184: 5139 | AB184: Union | AC184: AR | AE184: 179 | AI184: 179 | BF184: 1331704 | BG184: 13317043 | BH184: Georgia | BI184: Wilkes | BJ184: 13 | BK184: 317 | BL184: 4 | BM184: 3
X185: 0 | Y185: 5 | Z185: 141 | AA185: 5141 | AB185: Van Buren | AC185: AR | AE185: 180 | AI185: 180 | BF185: 1331904 | BG185: 13319043 | BH185: Georgia | BI185: Wilkinson | BJ185: 13 | BK185: 319 | BL185: 4 | BM185: 3
X186: 0 | Y186: 5 | Z186: 143 | AA186: 5143 | AB186: Washington | AC186: AR | AE186: 181 | AI186: 181 | BF186: 1600104 | BG186: 16001043 | BH186: Idaho | BI186: Ada | BJ186: 16 | BK186: 1 | BL186: 4 | BM186: 3
X187: 0 | Y187: 5 | Z187: 145 | AA187: 5145 | AB187: White | AC187: AR | AE187: 182 | AI187: 182 | BF187: 1600504 | BG187: 16005041 | BH187: Idaho | BI187: Bannock | BJ187: 16 | BK187: 5 | BL187: 4 | BM187: 1
X188: 0 | Y188: 5 | Z188: 147 | AA188: 5147 | AB188: Woodruff | AC188: AR | AE188: 183 | AI188: 183 | BF188: 1600504 | BG188: 16005042 | BH188: Idaho | BI188: Bannock | BJ188: 16 | BK188: 5 | BL188: 4 | BM188: 2
X189: 0 | Y189: 5 | Z189: 149 | AA189: 5149 | AB189: Yell | AC189: AR | AE189: 184 | AI189: 184 | BF189: 1600704 | BG189: 16007043 | BH189: Idaho | BI189: Bear Lake | BJ189: 16 | BK189: 7 | BL189: 4 | BM189: 3
X190: 0 | Y190: 6 | Z190: 1 | AA190: 6001 | AB190: Alameda | AC190: CA | AE190: 185 | AI190: 185 | BF190: 1600904 | BG190: 16009043 | BH190: Idaho | BI190: Benewah | BJ190: 16 | BK190: 9 | BL190: 4 | BM190: 3
X191: 0 | Y191: 6 | Z191: 3 | AA191: 6003 | AB191: Alpine | AC191: CA | AE191: 186 | AI191: 186 | BF191: 1601104 | BG191: 16011043 | BH191: Idaho | BI191: Bingham | BJ191: 16 | BK191: 11 | BL191: 4 | BM191: 3
X192: 0 | Y192: 6 | Z192: 5 | AA192: 6005 | AB192: Amador | AC192: CA | AE192: 187 | AI192: 187 | BF192: 1601304 | BG192: 16013043 | BH192: Idaho | BI192: Blaine | BJ192: 16 | BK192: 13 | BL192: 4 | BM192: 3
X193: 0 | Y193: 6 | Z193: 7 | AA193: 6007 | AB193: Butte | AC193: CA | AE193: 188 | AI193: 188 | BF193: 1601904 | BG193: 16019041 | BH193: Idaho | BI193: Bonneville | BJ193: 16 | BK193: 19 | BL193: 4 | BM193: 1
X194: 0 | Y194: 6 | Z194: 9 | AA194: 6009 | AB194: Calaveras | AC194: CA | AE194: 189 | AI194: 189 | BF194: 1601904 | BG194: 16019042 | BH194: Idaho | BI194: Bonneville | BJ194: 16 | BK194: 19 | BL194: 4 | BM194: 2
X195: 0 | Y195: 6 | Z195: 11 | AA195: 6011 | AB195: Colusa | AC195: CA | AE195: 190 | AI195: 190 | BF195: 1602104 | BG195: 16021043 | BH195: Idaho | BI195: Boundary | BJ195: 16 | BK195: 21 | BL195: 4 | BM195: 3
X196: 0 | Y196: 6 | Z196: 13 | AA196: 6013 | AB196: Contra Costa | AC196: CA | AE196: 191 | AI196: 191 | BF196: 1602304 | BG196: 16023043 | BH196: Idaho | BI196: Butte | BJ196: 16 | BK196: 23 | BL196: 4 | BM196: 3
X197: 0 | Y197: 6 | Z197: 15 | AA197: 6015 | AB197: Del Norte | AC197: CA | AE197: 192 | AI197: 192 | BF197: 1602504 | BG197: 16025041 | BH197: Idaho | BI197: Camas | BJ197: 16 | BK197: 25 | BL197: 4 | BM197: 1
X198: 0 | Y198: 6 | Z198: 17 | AA198: =Y198*1000+Z198 -> 6017 | AB198: El Dorado | AC198: CA | AE198: 193 | AF198: =VLOOKUP(AE198,$X$6:$AB$3239,5,FALSE) ->  | AG198: =VLOOKUP(AE198,$X$6:$AA$3239,4,FALSE) ->  | AI198: 193 | BF198: 1602504 | BG198: 16025042 | BH198: Idaho | BI198: Camas | BJ198: 16 | BK198: 25 | BL198: 4 | BM198: 2
X199: =IF($U$2=Y199,+X198+1,0) -> 0 | Y199: 6 | Z199: 19 | AA199: 6019 | AB199: Fresno | AC199: CA | AE199: 194 | AI199: 194 | AJ199: =IF(ISNA(AF199),"",AF199) ->  | AK199: =IF(ISNA(AG199),"",AG199) ->  | BF199: =(BJ199*1000+BK199)*100+BL199 -> 1602704 | BG199: 16027043 | BH199: Idaho | BI199: Canyon | BJ199: 16 | BK199: 27 | BL199: 4 | BM199: 3
X200: 0 | Y200: 6 | Z200: 21 | AA200: 6021 | AB200: Glenn | AC200: CA | AE200: 195 | AI200: 195 | BF200: 1602904 | BG200: =BF200*10+BM200 -> 16029041 | BH200: Idaho | BI200: Caribou | BJ200: 16 | BK200: 29 | BL200: 4 | BM200: 1
... 925 more rows

Sheet arc-ic
B1: ARC-IC Payment Calculator | P1: 2019
B2: (Calculates ARC-IC Payments for a single FSA farm) | P2: 2020
C3: Input | P3: 2021 | AB3: Yes | AC3: 1
P4: 2022 | R4: crop1 | S4: Crop2 | T4: Crop3 | U4: Crop4 | AB4: No | AC4: 2
D5: State | E5: Illinois | AC5: 3
D6: County | E6: Champaign | AC6: 4
D7: No of Crops | E7: 2 | R7: 3 | S7: 3 | T7: 3 | U7: 3
D8: Year | E8: 2022
C9: Number | D9: Crop | R9: 2
C11: 1 | D11: Corn | Q11: 1 | R11: Illinois | S11: Corn
C12: 2 | D12: Soybeans | P12: paul79 | Q12: 2 | R12: Champaign | S12: Soybeans
C13: 3 | D13: Corn | Q13: 3 | S13: Corn
C14: 4 | D14: Barley | Q14: 4 | S14: Barley
R16: 18 | S16: 19
C17: =D11&" Benchmark Calculation" -> Corn Benchmark Calculation
C18: Yield Calculation | K18: Price Calculation
E19: Farm | G19: 80% of | H19: County | I19: Used | K19: MYA | L19: Effective | M19: Used
C20: Year | D20: Planted | E20: Yield | G20: T-Yield | H20: Yield | I20: Yield1 | K20: Price | L20: Price | M20: Price2
E21: =AS129&"/acre" -> Bu/acre | K21: ="$ per "&AS129 -> $ per Bu
C22: =C23-1 -> 2016 | D22: No | G22: =TRANSPOSE(BC129:BG129) -> 140.8 | H22: =TRANSPOSE(AX129:BB129) -> 235.02 | I22: =IF(D22="yes",MAX(E22,G22),H22) -> 235.02 | K22: =TRANSPOSE(AK129:AO129) -> 3.36 | L22: =L37 -> 3.7 | M22: =MAX(K22,L22) -> 3.7
C23: =C24-1 -> 2017 | D23: No | G23: 145.6 | H23: 222.97 | I23: =IF(D23="yes",MAX(E23,G23),H23) -> 222.97 | K23: 3.36 | L23: =L22 -> 3.7 | M23: =MAX(K23,L23) -> 3.7
C24: =C25-1 -> 2018 | D24: No | G24: 145.6 | H24: 243 | I24: =IF(D24="yes",MAX(E24,G24),H24) -> 243 | K24: 3.61 | L24: =L23 -> 3.7 | M24: =MAX(K24,L24) -> 3.7
C25: =C26-1 -> 2019 | D25: No | G25: 145.6 | H25: 197.54 | I25: =IF(D25="yes",MAX(E25,G25),H25) -> 197.54 | K25: 3.56 | L25: =L24 -> 3.7 | M25: =MAX(K25,L25) -> 3.7
C26: =E8-2 -> 2020 | D26: No | G26: 155.2 | H26: 207.93 | I26: =IF(D26="yes",MAX(E26,G26),H26) -> 207.93 | K26: 4.53 | L26: =L25 -> 3.7 | M26: =MAX(K26,L26) -> 4.53
C28: Benchmark Revenue Calculation | H28: Effective | L28: MYA
D29: Used | E29: Used | H29: Reference | K29: Year | L29: Price | Q29: paul79
C30: Year | D30: Yield1 | E30: Price2 | G30: Revenue | H30: Price | K30: =C22 -> 2016 | L30: =K22 -> 3.36
C31: =C22 -> 2016 | D31: =I22 -> 235.02 | E31: =M22 -> 3.7 | G31: =E31*D31/IF($AS$129="Cwt",100,1) -> 869.574 | H31: Calculation | K31: =C23 -> 2017 | L31: =K23 -> 3.36
C32: =C23 -> 2017 | D32: =I23 -> 222.97 | E32: =M23 -> 3.7 | G32: =E32*D32/IF($AS$129="Cwt",100,1) -> 824.989 | K32: =C24 -> 2018 | L32: =K24 -> 3.61
C33: =C24 -> 2018 | D33: =I24 -> 243 | E33: =M24 -> 3.7 | G33: =E33*D33/IF($AS$129="Cwt",100,1) -> 899.1 | K33: =C25 -> 2019 | L33: =K25 -> 3.56
C34: =C25 -> 2019 | D34: =I25 -> 197.54 | E34: =M25 -> 3.7 | G34: =E34*D34/IF($AS$129="Cwt",100,1) -> 730.898 | K34: =C26 -> 2020 | L34: =K26 -> 4.53
C35: =C26 -> 2020 | D35: =I26 -> 207.93 | E35: =M26 -> 4.53 | G35: =E35*D35/IF($AS$129="Cwt",100,1) -> 941.9229 | K35: 85% of Olympic Average | L35: =ROUND(0.85*(SUM(L30:L34)-MAX(L30:L34)-MIN(L30:L34))/3,2) -> 2.98
G36: $ per acre | K36: Statutory Reference Price | L36: =AP129 -> 3.7
E37: Benchmark Revenue4 | G37: =ROUND((SUM(G31:G35)-MAX(G31:G35)-MIN(G31:G35))/3,2) -> 864.55 | K37: Effective Reference Price3 | L37: =MIN(L36*1.15,MAX(L36,L35)) -> 3.7
B38: 1 | C38: If the crop is planted, the higher of farm yield or 80% of T-yield. If not planted, the county yield is used. In the near future, T-yields will be updated.
B39: 2 | C39: The higher of the MYA price or effective reference price.
B40: 3 | C40: Higher of 85% of Olympic average or statutory reference price, capped at 1.15 time reference price
B41: 4 | C41: Olympic average of five previous revenues.
C43: =D12&" Benchmark Calculation" -> Soybeans Benchmark Calculation
C44: Yield Calculation | K44: Price Calculation
E45: Farm | G45: 80% of | H45: County | I45: Used | K45: MYA | L45: Effective | M45: Used
C46: Year | D46: Planted | E46: Yield | G46: T-Yield | H46: Yield | I46: Yield1 | K46: Price | L46: Price | M46: Price2
E47: =AS130&"/acre" -> Bu/acre | K47: ="$ per "&AS130 -> $ per Bu
C48: =C49-1 -> 2016 | D48: No | G48: =TRANSPOSE(BC130:BG130) -> 41.6 | H48: =TRANSPOSE(AX130:BB130) -> 72.79 | I48: =IF(D48="yes",MAX(E48,G48),H48) -> 72.79 | K48: =TRANSPOSE(AK130:AO130) -> 9.47 | L48: =L63 -> 8.4 | M48: =MAX(K48,L48) -> 9.47
C49: =C50-1 -> 2017 | D49: No | G49: 41.6 | H49: 68.22 | I49: =IF(D49="yes",MAX(E49,G49),H49) -> 68.22 | K49: 9.33 | L49: =L48 -> 8.4 | M49: =MAX(K49,L49) -> 9.33
C50: =C51-1 -> 2018 | D50: No | G50: 45.6 | H50: 76.22 | I50: =IF(D50="yes",MAX(E50,G50),H50) -> 76.22 | K50: 8.48 | L50: =L49 -> 8.4 | M50: =MAX(K50,L50) -> 8.48
C51: =C52-1 -> 2019 | D51: No | G51: 45.6 | H51: 59.03 | I51: =IF(D51="yes",MAX(E51,G51),H51) -> 59.03 | K51: 8.57 | L51: =L50 -> 8.4 | M51: =MAX(K51,L51) -> 8.57
C52: =E8-2 -> 2020 | D52: No | G52: 45.6 | H52: 65.89 | I52: =IF(D52="yes",MAX(E52,G52),H52) -> 65.89 | K52: 10.8 | L52: =L51 -> 8.4 | M52: =MAX(K52,L52) -> 10.8
C54: Benchmark Revenue Calculation | H54: Effective | L54: MYA
D55: Used | E55: Used | H55: Reference | K55: Year | L55: Price
C56: Year | D56: Yield1 | E56: Price2 | G56: Revenue | H56: Price | K56: =C48 -> 2016 | L56: =K48 -> 9.47
C57: =C48 -> 2016 | D57: =I48 -> 72.79 | E57: =M48 -> 9.47 | G57: =E57*D57/(IF($AS$130="cwt",100,1)) -> 689.3213 | H57: Calculation | K57: =C49 -> 2017 | L57: =K49 -> 9.33
C58: =C49 -> 2017 | D58: =I49 -> 68.22 | E58: =M49 -> 9.33 | G58: =E58*D58/(IF($AS$130="cwt",100,1)) -> 636.4926 | K58: =C50 -> 2018 | L58: =K50 -> 8.48
C59: =C50 -> 2018 | D59: =I50 -> 76.22 | E59: =M50 -> 8.48 | G59: =E59*D59/(IF($AS$130="cwt",100,1)) -> 646.3456 | K59: =C51 -> 2019 | L59: =K51 -> 8.57
C60: =C51 -> 2019 | D60: =I51 -> 59.03 | E60: =M51 -> 8.57 | G60: =E60*D60/(IF($AS$130="cwt",100,1)) -> 505.8871 | K60: =C52 -> 2020 | L60: =K52 -> 10.8
C61: =C52 -> 2020 | D61: =I52 -> 65.89 | E61: =M52 -> 10.8 | G61: =E61*D61/(IF($AS$130="cwt",100,1)) -> 711.612 | K61: 85% of Olympic Average | L61: =ROUND(0.85*(SUM(L56:L60)-MAX(L56:L60)-MIN(L56:L60))/3,2) -> 7.75
G62: $ per acre | K62: Statutory Reference Price | L62: =AP130 -> 8.4
E63: Benchmark Revenue4 | G63: =ROUND((SUM(G57:G61)-MAX(G57:G61)-MIN(G57:G61))/3,2) -> 657.39 | K63: Effective Reference Price3 | L63: =MIN(L62*1.15,MAX(L62,L61)) -> 8.4
C64: ="See footnotes on "&C17 -> See footnotes on Corn Benchmark Calculation
C66: =D13&" Benchmark Calculation" -> Corn Benchmark Calculation
C67: Yield Calculation | K67: Price Calculation
E68: Farm | G68: 80% of | H68: County | I68: Used | K68: MYA | L68: Effective | M68: Used
C69: Year | D69: Planted | E69: Yield | G69: T-Yield | H69: Yield | I69: Yield1 | K69: Price | L69: Price | M69: Price2
E70: =AS131&"/acre" -> Bu/acre | K70: ="$ per "&AS131 -> $ per Bu
C71: =C72-1 -> 2016 | D71: No | G71: =TRANSPOSE(BC131:BG131) -> 140.8 | H71: =TRANSPOSE(AX131:BB131) -> 235.02 | I71: =IF(D71="yes",MAX(E71,G71),H71) -> 235.02 | K71: =TRANSPOSE(AK131:AO131) -> 3.36 | L71: =L86 -> 3.7 | M71: =MAX(K71,L71) -> 3.7
C72: =C73-1 -> 2017 | D72: No | G72: 145.6 | H72: 222.97 | I72: =IF(D72="yes",MAX(E72,G72),H72) -> 222.97 | K72: 3.36 | L72: =L71 -> 3.7 | M72: =MAX(K72,L72) -> 3.7
C73: =C74-1 -> 2018 | D73: No | G73: 145.6 | H73: 243 | I73: =IF(D73="yes",MAX(E73,G73),H73) -> 243 | K73: 3.61 | L73: =L72 -> 3.7 | M73: =MAX(K73,L73) -> 3.7
C74: =C75-1 -> 2019 | D74: No | G74: 145.6 | H74: 197.54 | I74: =IF(D74="yes",MAX(E74,G74),H74) -> 197.54 | K74: 3.56 | L74: =L73 -> 3.7 | M74: =MAX(K74,L74) -> 3.7
C75: =E8-2 -> 2020 | D75: No | G75: 155.2 | H75: 207.93 | I75: =IF(D75="yes",MAX(E75,G75),H75) -> 207.93 | K75: 4.53 | L75: =L74 -> 3.7 | M75: =MAX(K75,L75) -> 4.53
C77: Benchmark Revenue Calculation | H77: Effective | L77: MYA
D78: Used | E78: Used | H78: Reference | K78: Year | L78: Price
C79: Year | D79: Yield1 | E79: Price2 | G79: Revenue | H79: Price | K79: =C71 -> 2016 | L79: =K71 -> 3.36
C80: =C71 -> 2016 | D80: =I71 -> 235.02 | E80: =M71 -> 3.7 | G80: =E80*D80/(IF($AR$131="Lbs",100,1)) -> 869.574 | H80: Calculation | K80: =C72 -> 2017 | L80: =K72 -> 3.36
C81: =C72 -> 2017 | D81: =I72 -> 222.97 | E81: =M72 -> 3.7 | G81: =E81*D81/(IF($AR$131="Lbs",100,1)) -> 824.989 | K81: =C73 -> 2018 | L81: =K73 -> 3.61
C82: =C73 -> 2018 | D82: =I73 -> 243 | E82: =M73 -> 3.7 | G82: =E82*D82/(IF($AR$131="Lbs",100,1)) -> 899.1 | K82: =C74 -> 2019 | L82: =K74 -> 3.56
C83: =C74 -> 2019 | D83: =I74 -> 197.54 | E83: =M74 -> 3.7 | G83: =E83*D83/(IF($AR$131="Lbs",100,1)) -> 730.898 | K83: =C75 -> 2020 | L83: =K75 -> 4.53
C84: =C75 -> 2020 | D84: =I75 -> 207.93 | E84: =M75 -> 4.53 | G84: =E84*D84/(IF($AR$131="Lbs",100,1)) -> 941.9229 | K84: 85% of Olympic Average | L84: =ROUND(0.85*(SUM(L79:L83)-MAX(L79:L83)-MIN(L79:L83))/3,2) -> 2.98
G85: $ per acre | K85: Statutory Reference Price | L85: =AP131 -> 3.7
E86: Benchmark Revenue4 | G86: =ROUND((SUM(G80:G84)-MAX(G80:G84)-MIN(G80:G84))/3,2) -> 864.55 | K86: Effective Reference Price3 | L86: =MIN(L85*1.15,MAX(L85,L84)) -> 3.7
C87: ="See footnotes on "&C17 -> See footnotes on Corn Benchmark Calculation
C89: =D14&" Benchmark Calculation" -> Barley Benchmark Calculation
C90: Yield Calculation | K90: Price Calculation
E91: Farm | G91: 80% of | H91: County | I91: Used | K91: MYA | L91: Effective | M91: Used
C92: Year | D92: Planted | E92: Yield | G92: T-Yield | H92: Yield | I92: Yield1 | K92: Price | L92: Price | M92: Price2
E93: =AS132&"/acre" -> Bu/acre | K93: ="$ per "&AS132 -> $ per Bu
C94: =C95-1 -> 2016 | D94: No | G94: =TRANSPOSE(BC132:BG132) -> 43.2 | H94: =TRANSPOSE(AX132:BB132) ->  | I94: =IF(D94="yes",MAX(E94,G94),H94) ->  | K94: =TRANSPOSE(AK132:AO132) -> 4.96 | L94: =L109 -> 4.95 | M94: =MAX(K94,L94) -> 4.96
C95: =C96-1 -> 2017 | D95: No | G95: 43.2 | I95: =IF(D95="yes",MAX(E95,G95),H95) ->  | K95: 4.47 | L95: =L94 -> 4.95 | M95: =MAX(K95,L95) -> 4.95
C96: =C97-1 -> 2018 | D96: No | G96: 43.2 | I96: =IF(D96="yes",MAX(E96,G96),H96) ->  | K96: 4.62 | L96: =L95 -> 4.95 | M96: =MAX(K96,L96) -> 4.95
C97: =C98-1 -> 2019 | D97: No | G97: 43.2 | I97: =IF(D97="yes",MAX(E97,G97),H97) ->  | K97: 4.69 | L97: =L96 -> 4.95 | M97: =MAX(K97,L97) -> 4.95
C98: =E8-2 -> 2020 | D98: No | G98: 43.2 | I98: =IF(D98="yes",MAX(E98,G98),H98) ->  | K98: 4.75 | L98: =L97 -> 4.95 | M98: =MAX(K98,L98) -> 4.95
C100: Benchmark Revenue Calculation | H100: Effective | L100: MYA
D101: Used | E101: Used | H101: Reference | K101: Year | L101: Price
C102: Year | D102: Yield1 | E102: Price2 | G102: Revenue | H102: Price | K102: =C94 -> 2016 | L102: =K94 -> 4.96
C103: =C94 -> 2016 | D103: =I94 ->  | E103: =M94 -> 4.96 | G103: =E103*D103/IF($AR$132="Lbs",100,1) ->  | H103: Calculation | K103: =C95 -> 2017 | L103: =K95 -> 4.47
C104: =C95 -> 2017 | D104: =I95 ->  | E104: =M95 -> 4.95 | G104: =E104*D104/IF($AR$132="Lbs",100,1) ->  | K104: =C96 -> 2018 | L104: =K96 -> 4.62
C105: =C96 -> 2018 | D105: =I96 ->  | E105: =M96 -> 4.95 | G105: =E105*D105/IF($AR$132="Lbs",100,1) ->  | K105: =C97 -> 2019 | L105: =K97 -> 4.69
C106: =C97 -> 2019 | D106: =I97 ->  | E106: =M97 -> 4.95 | G106: =E106*D106/IF($AR$132="Lbs",100,1) ->  | K106: =C98 -> 2020 | L106: =K98 -> 4.75
C107: =C98 -> 2020 | D107: =I98 ->  | E107: =M98 -> 4.95 | G107: =E107*D107/IF($AR$132="Lbs",100,1) ->  | K107: 85% of Olympic Average | L107: =ROUND(0.85*(SUM(L102:L106)-MAX(L102:L106)-MIN(L102:L106))/3,2) -> 3.98
K108: Statutory Reference Price | L108: =AP132 -> 4.95
E109: Benchmark Revenue4 | G109: =ROUND((SUM(G103:G107)-MAX(G103:G107)-MIN(G103:G107))/3,2) ->  | K109: Effective Reference Price3 | L109: =MIN(L108*1.15,MAX(L108,L107)) -> 4.95
C110: ="See footnotes on "&C17 -> See footnotes on Corn Benchmark Calculation
C112: =E8 -> 2022 | D112: ARC-IC Payment (Payment Assumes One FSA Farm Enrolled in ARC)
D113: =CONCATENATE(E8," Acres") -> 2022 Acres | G113: =E8 -> 2022
E114: Prevent | G114: Farm | H114: MYA | I114: Loan | L114: Benchmark
C115: Crop | D115: Planted | E115: Plant | G115: Yield | H115: Price | I115: Rate | K115: Revenue1 | L115: Revenue
D116: acres | E116: acres
B117: =IF(K21="$ per cwt",1,0) -> 0 | C117: =D11 -> Corn | F117: =IF(B117=1,"**","") ->  | I117: =AQ129 -> 2.2 | K117: =(G117*MAX(H117,I117))/IF($AS$129="cwt",100,1) -> 0 | L117: =IF(ISNA(G37),"",G37) -> 864.55 | Q117: =IF($D$121>0,D117,E117) -> 0 | R117: =Q117/$Q$121 ->  | S117: =K117*(D117/IF($D$121>0,$D$121,1)) -> 0 | T117: =IF(L117="",0,L117*R117) -> 
B118: =IF(K47="$ per cwt",1,0) -> 0 | C118: =D12 -> Soybeans | F118: =IF(B118=1,"**","") ->  | I118: =AQ130 -> 6.2 | K118: =G118*MAX(H118,I118)/IF(AS130="cwt",100,1) -> 0 | L118: =IF(ISNA(G63),"",G63) -> 657.39 | Q118: =IF($D$121>0,D118,E118) -> 0 | R118: =Q118/$Q$121 ->  | S118: =K118*(D118/IF($D$121>0,$D$121,1)) -> 0 | T118: =IF(L118="",0,L118*R118) -> 
B119: =IF(K70="$ per cwt",1,0) -> 0 | C119: =D13 -> Corn | F119: =IF(B119=1,"**","") ->  | I119: =AQ131 -> 2.2 | K119: =G119*MAX(H119,I119)/IF(AR131="lbs",100,1) -> 0 | L119: =IF(ISNA(G86),"",G86) -> 864.55 | Q119: =IF($D$121>0,D119,E119) -> 0 | R119: =Q119/$Q$121 ->  | S119: =K119*(D119/IF($D$121>0,$D$121,1)) -> 0 | T119: =IF(L119="",0,L119*R119) -> 
B120: =IF(K93="$ per cwt",1,0) -> 0 | C120: =D14 -> Barley | F120: =IF(B120=1,"**","") ->  | I120: =AQ132 -> 2.5 | K120: =G120*MAX(H120,I120)/IF(AR132="Lbs",100,1) -> 0 | L120: =IF(ISNA(G109),"",G109) ->  | Q120: =IF($D$121>0,D120,E120) -> 0 | R120: =Q120/$Q$121 ->  | S120: =K120*(D120/IF($D$121>0,$D$121,1)) -> 0 | T120: =IF(L120="",0,L120*R120) -> 0
C121: Total | D121: =SUM(D117:D120) -> 0 | E121: =SUM(E117:E120) -> 0 | Q121: =SUM(Q117:Q120) -> 0 | S121: =SUM(S117:S120) -> 0 | T121: =SUM(T117:T120) -> 
C122: =IF(SUM(B117:B120)>0," ** Enter farm yield as poudns per acre and price as $ per cwt. For this crop.","") -> 
G123: Benchmark Revenue2 | H123: =IF(ISERR(T121),"",ROUND(T121,2)) ->  | I123: ($ per base acre)
G124: Guarantee3 | H124: =IF(H123="","",ROUND(H123*0.86,2)) ->  | I124: ($ per base acre)
G126: Farm Revenue4 | H126: =IF(H124="","",IF(E121>0,IF(D121=0,0,S121),S121)) ->  | I126: ($ per base acre)
G127: ARC-IC Payment5 | H127: =IF(H123="","",(ROUND(MIN(MAX(0,H124-H126),0.1*H123),2)*0.65)) ->  | I127: ($ per base acre) | AK127: MYA | AP127: Ref | AU127: fips | AV127: code | AX127: =CONCATENATE("ta",$E$8-6,"-",RIGHT($E$8,2)) -> ta2016-22 | AY127: =CONCATENATE("ta",$E$8-5,"-",RIGHT($E$8,2)) -> ta2017-22 | AZ127: =CONCATENATE("ta",$E$8-4,"-",RIGHT($E$8,2)) -> ta2018-22 | BA127: =CONCATENATE("ta",$E$8-3,"-",RIGHT($E$8,2)) -> ta2019-22 | BB127: =CONCATENATE("ta",$E$8-2,"-",RIGHT($E$8,2)) -> ta2020-22 | BC127: =CONCATENATE("ty",$E$8-6) -> ty2016 | BD127: =CONCATENATE("ty",$E$8-5) -> ty2017 | BE127: =CONCATENATE("ty",$E$8-4) -> ty2018 | BF127: =CONCATENATE("ty",$E$8-3) -> ty2019 | BG127: =CONCATENATE("ty",$E$8-2) -> ty2020
B128: 1 | C128: Equals yield times higher of MYA price or loan rate. | AI128: Name | AJ128: Crop Number | AK128: =AL128-1 -> 2016 | AL128: =AM128-1 -> 2017 | AM128: =AN128-1 -> 2018 | AN128: =AO128-1 -> 2019 | AO128: =E8-2 -> 2020 | AP128: =E8 -> 2022 | AQ128: Loan Rate | AR128: Unit | AS128: Abreviation | AT128: Adj Factor | AX128: 8 | AY128: 9 | AZ128: 10 | BA128: 11 | BB128: 12 | BC128: 13 | BD128: 14 | BE128: 15 | BF128: 16 | BG128: 17
B129: 2 | C129: Equals the average of benchmark revenues, weighted by acres planted, unless all prevent plant acres. In this case, weighted by prevent plant acres. | AH129: 1 | AI129: =D11 -> Corn | AJ129: =VLOOKUP($AI129,$AI$135:$AS$157,2,FALSE) -> 1 | AK129: =VLOOKUP($AI129,MYAprices!$A$2:$R$24,MATCH(AK$128,MYAprices!$A$1:$R$1,0),FALSE)*$AT129 -> 3.36 | AL129: =VLOOKUP($AI129,MYAprices!$A$2:$R$24,MATCH(AL$128,MYAprices!$A$1:$R$1,0),FALSE)*$AT129 -> 3.36 | AM129: =VLOOKUP($AI129,MYAprices!$A$2:$R$24,MATCH(AM$128,MYAprices!$A$1:$R$1,0),FALSE)*$AT129 -> 3.61 | AN129: =VLOOKUP($AI129,MYAprices!$A$2:$R$24,MATCH(AN$128,MYAprices!$A$1:$R$1,0),FALSE)*$AT129 -> 3.56 | AO129: =VLOOKUP($AI129,MYAprices!$A$2:$R$24,MATCH(AO$128,MYAprices!$A$1:$R$1,0),FALSE)*$AT129 -> 4.53 | AP129: =VLOOKUP($AI129,Refprices!$A$2:$K$24,MATCH(AP$128,Refprices!$A$1:$K$1,0),FALSE)*$AT129 -> 3.7 | AQ129: =VLOOKUP($AI129,Refprices!$A$2:$K$24,MATCH(AQ$128,Refprices!$A$1:$K$1,0),FALSE)*$AT129 -> 2.2 | AR129: =VLOOKUP($AI129,Refprices!$A$2:$K$24,MATCH(AR$128,Refprices!$A$1:$K$1,0),FALSE) -> Bushel | AS129: =VLOOKUP($AI129,Refprices!$A$2:$K$24,MATCH(AS$128,Refprices!$A$1:$K$1,0),FALSE) -> Bu | AT129: =IF(AND($AR129="Pounds",$AR129="Ton"),2000,IF(AND($AR129="Pounds",$AR129="Cwt."),100,1)) -> 1 | AV129: =($AG$133*100+$AJ129)*10+R7 -> 17019013 | AX129: =VLOOKUP($AV129,icTAYield!$A:$AL,MATCH(AX$127,icTAYield!$A$1:$AL$1,0),FALSE) -> 235.02 | AY129: =VLOOKUP($AV129,icTAYield!$A:$AL,MATCH(AY$127,icTAYield!$A$1:$AL$1,0),FALSE) -> 222.97 | AZ129: =VLOOKUP($AV129,icTAYield!$A:$AL,MATCH(AZ$127,icTAYield!$A$1:$AL$1,0),FALSE) -> 243 | BA129: =VLOOKUP($AV129,icTAYield!$A:$AL,MATCH(BA$127,icTAYield!$A$1:$AL$1,0),FALSE) -> 197.54 | BB129: =VLOOKUP($AV129,icTAYield!$A:$AL,MATCH(BB$127,icTAYield!$A$1:$AL$1,0),FALSE) -> 207.93 | BC129: =VLOOKUP($AV129,Tyields!$A:$T,MATCH(BC$127,Tyields!$A$1:$T$1,0),FALSE) -> 140.8 | BD129: =VLOOKUP($AV129,Tyields!$A:$T,MATCH(BD$127,Tyields!$A$1:$T$1,0),FALSE) -> 145.6 | BE129: =VLOOKUP($AV129,Tyields!$A:$T,MATCH(BE$127,Tyields!$A$1:$T$1,0),FALSE) -> 145.6 | BF129: =VLOOKUP($AV129,Tyields!$A:$T,MATCH(BF$127,Tyields!$A$1:$T$1,0),FALSE) -> 145.6 | BG129: =VLOOKUP($AV129,Tyields!$A:$T,MATCH(BG$127,Tyields!$A$1:$T$1,0),FALSE) -> 155.2
B130: 3 | C130: Equals 86% of benchmark revenue. | AH130: 2 | AI130: =D12 -> Soybeans | AJ130: =VLOOKUP($AI130,$AI$135:$AS$157,2,FALSE) -> 2 | AK130: =VLOOKUP($AI130,MYAprices!$A$2:$R$24,MATCH(AK$128,MYAprices!$A$1:$R$1,0),FALSE)*$AT130 -> 9.47 | AL130: =VLOOKUP($AI130,MYAprices!$A$2:$R$24,MATCH(AL$128,MYAprices!$A$1:$R$1,0),FALSE)*$AT130 -> 9.33 | AM130: =VLOOKUP($AI130,MYAprices!$A$2:$R$24,MATCH(AM$128,MYAprices!$A$1:$R$1,0),FALSE)*$AT130 -> 8.48 | AN130: =VLOOKUP($AI130,MYAprices!$A$2:$R$24,MATCH(AN$128,MYAprices!$A$1:$R$1,0),FALSE)*$AT130 -> 8.57 | AO130: =VLOOKUP($AI130,MYAprices!$A$2:$R$24,MATCH(AO$128,MYAprices!$A$1:$R$1,0),FALSE)*$AT130 -> 10.8 | AP130: =VLOOKUP($AI130,Refprices!$A$2:$K$24,MATCH(AP$128,Refprices!$A$1:$K$1,0),FALSE)*$AT130 -> 8.4 | AQ130: =VLOOKUP($AI130,Refprices!$A$2:$K$24,MATCH(AQ$128,Refprices!$A$1:$K$1,0),FALSE)*$AT130 -> 6.2 | AR130: =VLOOKUP($AI130,Refprices!$A$2:$K$24,MATCH(AR$128,Refprices!$A$1:$K$1,0),FALSE) -> Bushel | AS130: =VLOOKUP($AI130,Refprices!$A$2:$K$24,MATCH(AS$128,Refprices!$A$1:$K$1,0),FALSE) -> Bu | AT130: =IF(AND($AR130="Pounds",$AR130="Ton"),2000,IF(AND($AR130="Pounds",$AR130="Cwt."),100,1)) -> 1 | AV130: =($AG$133*100+$AJ130)*10+S7 -> 17019023 | AX130: =VLOOKUP($AV130,icTAYield!$A:$AL,MATCH(AX$127,icTAYield!$A$1:$AL$1,0),FALSE) -> 72.79 | AY130: =VLOOKUP($AV130,icTAYield!$A:$AL,MATCH(AY$127,icTAYield!$A$1:$AL$1,0),FALSE) -> 68.22 | AZ130: =VLOOKUP($AV130,icTAYield!$A:$AL,MATCH(AZ$127,icTAYield!$A$1:$AL$1,0),FALSE) -> 76.22 | BA130: =VLOOKUP($AV130,icTAYield!$A:$AL,MATCH(BA$127,icTAYield!$A$1:$AL$1,0),FALSE) -> 59.03 | BB130: =VLOOKUP($AV130,icTAYield!$A:$AL,MATCH(BB$127,icTAYield!$A$1:$AL$1,0),FALSE) -> 65.89 | BC130: =VLOOKUP($AV130,Tyields!$A:$T,MATCH(BC$127,Tyields!$A$1:$T$1,0),FALSE) -> 41.6 | BD130: =VLOOKUP($AV130,Tyields!$A:$T,MATCH(BD$127,Tyields!$A$1:$T$1,0),FALSE) -> 41.6 | BE130: =VLOOKUP($AV130,Tyields!$A:$T,MATCH(BE$127,Tyields!$A$1:$T$1,0),FALSE) -> 45.6 | BF130: =VLOOKUP($AV130,Tyields!$A:$T,MATCH(BF$127,Tyields!$A$1:$T$1,0),FALSE) -> 45.6 | BG130: =VLOOKUP($AV130,Tyields!$A:$T,MATCH(BG$127,Tyields!$A$1:$T$1,0),FALSE) -> 45.6
B131: 4 | C131: Equals the crop revenue for each crop, weighted by acres. If no planted acres and all prevent plant acres, farm revenue is $0. | AH131: 3 | AI131: =D13 -> Corn | AJ131: =VLOOKUP($AI131,$AI$135:$AS$157,2,FALSE) -> 1 | AK131: =VLOOKUP($AI131,MYAprices!$A$2:$R$24,MATCH(AK$128,MYAprices!$A$1:$R$1,0),FALSE)*$AT131 -> 3.36 | AL131: =VLOOKUP($AI131,MYAprices!$A$2:$R$24,MATCH(AL$128,MYAprices!$A$1:$R$1,0),FALSE)*$AT131 -> 3.36 | AM131: =VLOOKUP($AI131,MYAprices!$A$2:$R$24,MATCH(AM$128,MYAprices!$A$1:$R$1,0),FALSE)*$AT131 -> 3.61 | AN131: =VLOOKUP($AI131,MYAprices!$A$2:$R$24,MATCH(AN$128,MYAprices!$A$1:$R$1,0),FALSE)*$AT131 -> 3.56 | AO131: =VLOOKUP($AI131,MYAprices!$A$2:$R$24,MATCH(AO$128,MYAprices!$A$1:$R$1,0),FALSE)*$AT131 -> 4.53 | AP131: =VLOOKUP($AI131,Refprices!$A$2:$K$24,MATCH(AP$128,Refprices!$A$1:$K$1,0),FALSE)*$AT131 -> 3.7 | AQ131: =VLOOKUP($AI131,Refprices!$A$2:$K$24,MATCH(AQ$128,Refprices!$A$1:$K$1,0),FALSE)*$AT131 -> 2.2 | AR131: =VLOOKUP($AI131,Refprices!$A$2:$K$24,MATCH(AR$128,Refprices!$A$1:$K$1,0),FALSE) -> Bushel | AS131: =VLOOKUP($AI131,Refprices!$A$2:$K$24,MATCH(AS$128,Refprices!$A$1:$K$1,0),FALSE) -> Bu | AT131: =IF(AND($AR131="Pounds",$AR131="Ton"),2000,IF(AND($AR131="Pounds",$AR131="Cwt."),100,1)) -> 1 | AV131: =($AG$133*100+$AJ131)*10+T7 -> 17019013 | AX131: =VLOOKUP($AV131,icTAYield!$A:$AL,MATCH(AX$127,icTAYield!$A$1:$AL$1,0),FALSE) -> 235.02 | AY131: =VLOOKUP($AV131,icTAYield!$A:$AL,MATCH(AY$127,icTAYield!$A$1:$AL$1,0),FALSE) -> 222.97 | AZ131: =VLOOKUP($AV131,icTAYield!$A:$AL,MATCH(AZ$127,icTAYield!$A$1:$AL$1,0),FALSE) -> 243 | BA131: =VLOOKUP($AV131,icTAYield!$A:$AL,MATCH(BA$127,icTAYield!$A$1:$AL$1,0),FALSE) -> 197.54 | BB131: =VLOOKUP($AV131,icTAYield!$A:$AL,MATCH(BB$127,icTAYield!$A$1:$AL$1,0),FALSE) -> 207.93 | BC131: =VLOOKUP($AV131,Tyields!$A:$T,MATCH(BC$127,Tyields!$A$1:$T$1,0),FALSE) -> 140.8 | BD131: =VLOOKUP($AV131,Tyields!$A:$T,MATCH(BD$127,Tyields!$A$1:$T$1,0),FALSE) -> 145.6 | BE131: =VLOOKUP($AV131,Tyields!$A:$T,MATCH(BE$127,Tyields!$A$1:$T$1,0),FALSE) -> 145.6 | BF131: =VLOOKUP($AV131,Tyields!$A:$T,MATCH(BF$127,Tyields!$A$1:$T$1,0),FALSE) -> 145.6 | BG131: =VLOOKUP($AV131,Tyields!$A:$T,MATCH(BG$127,Tyields!$A$1:$T$1,0),FALSE) -> 155.2
B132: 5 | C132: When guarantee is greater than farm revenue, payment equals higher of guarantee minus farm revenue or 10% of benchmark revenue, times .65. | Q132: =E5 -> Illinois | R132: =VLOOKUP(Q132,$Q$135:$R$185,2,FALSE) -> 17 | AH132: 4 | AI132: =D14 -> Barley | AJ132: =VLOOKUP($AI132,$AI$135:$AS$157,2,FALSE) -> 4 | AK132: =VLOOKUP($AI132,MYAprices!$A$2:$R$24,MATCH(AK$128,MYAprices!$A$1:$R$1,0),FALSE)*$AT132 -> 4.96 | AL132: =VLOOKUP($AI132,MYAprices!$A$2:$R$24,MATCH(AL$128,MYAprices!$A$1:$R$1,0),FALSE)*$AT132 -> 4.47 | AM132: =VLOOKUP($AI132,MYAprices!$A$2:$R$24,MATCH(AM$128,MYAprices!$A$1:$R$1,0),FALSE)*$AT132 -> 4.62 | AN132: =VLOOKUP($AI132,MYAprices!$A$2:$R$24,MATCH(AN$128,MYAprices!$A$1:$R$1,0),FALSE)*$AT132 -> 4.69 | AO132: =VLOOKUP($AI132,MYAprices!$A$2:$R$24,MATCH(AO$128,MYAprices!$A$1:$R$1,0),FALSE)*$AT132 -> 4.75 | AP132: =VLOOKUP($AI132,Refprices!$A$2:$K$24,MATCH(AP$128,Refprices!$A$1:$K$1,0),FALSE)*$AT132 -> 4.95 | AQ132: =VLOOKUP($AI132,Refprices!$A$2:$K$24,MATCH(AQ$128,Refprices!$A$1:$K$1,0),FALSE)*$AT132 -> 2.5 | AR132: =VLOOKUP($AI132,Refprices!$A$2:$K$24,MATCH(AR$128,Refprices!$A$1:$K$1,0),FALSE) -> Bushel | AS132: =VLOOKUP($AI132,Refprices!$A$2:$K$24,MATCH(AS$128,Refprices!$A$1:$K$1,0),FALSE) -> Bu | AT132: =IF(AND($AR132="Pounds",$AR132="Ton"),2000,IF(AND($AR132="Pounds",$AR132="Cwt."),100,1)) -> 1 | AV132: =($AG$133*100+$AJ132)*10+U7 -> 17019043 | AX132: =VLOOKUP($AV132,icTAYield!$A:$AL,MATCH(AX$127,icTAYield!$A$1:$AL$1,0),FALSE) ->  | AY132: =VLOOKUP($AV132,icTAYield!$A:$AL,MATCH(AY$127,icTAYield!$A$1:$AL$1,0),FALSE) ->  | AZ132: =VLOOKUP($AV132,icTAYield!$A:$AL,MATCH(AZ$127,icTAYield!$A$1:$AL$1,0),FALSE) ->  | BA132: =VLOOKUP($AV132,icTAYield!$A:$AL,MATCH(BA$127,icTAYield!$A$1:$AL$1,0),FALSE) ->  | BB132: =VLOOKUP($AV132,icTAYield!$A:$AL,MATCH(BB$127,icTAYield!$A$1:$AL$1,0),FALSE) ->  | BC132: =VLOOKUP($AV132,Tyields!$A:$T,MATCH(BC$127,Tyields!$A$1:$T$1,0),FALSE) -> 43.2 | BD132: =VLOOKUP($AV132,Tyields!$A:$T,MATCH(BD$127,Tyields!$A$1:$T$1,0),FALSE) -> 43.2 | BE132: =VLOOKUP($AV132,Tyields!$A:$T,MATCH(BE$127,Tyields!$A$1:$T$1,0),FALSE) -> 43.2 | BF132: =VLOOKUP($AV132,Tyields!$A:$T,MATCH(BF$127,Tyields!$A$1:$T$1,0),FALSE) -> 43.2 | BG132: =VLOOKUP($AV132,Tyields!$A:$T,MATCH(BG$127,Tyields!$A$1:$T$1,0),FALSE) -> 43.2
AF133: =E6 -> Champaign | AG133: =VLOOKUP(AF133,$AF$135:$AG$337,2,FALSE) -> 17019
Q134: stName | R134: stCode | U134: stCode | V134: ctyCode | W134: fips | X134: ctyName | Y134: stName | AI134: No Crop | AJ134: nam
Q135: Alabama | R135: 1 | T135: =IF($R$132=U135,1,0) -> 0 | U135: 1 | V135: 1 | W135: =U135*1000+V135 -> 1001 | X135: Autauga | Y135: AL | AA135: 1 | AB135: =VLOOKUP(AA135,$T$135:$X$3368,5,FALSE) -> Adams | AC135: =VLOOKUP(AA135,$T$135:$W$3368,4,FALSE) -> 17001 | AE135: 1 | AF135: =IF(ISNA(AB135),"",AB135) -> Adams | AG135: =IF(ISNA(AC135),"",AC135) -> 17001 | AI135: Corn | AJ135: 1
Q136: Alaska | R136: 2 | T136: =IF(U136=$R$132,1+T135,0) -> 0 | U136: 1 | V136: 3 | W136: 1003 | X136: Baldwin | Y136: AL | AA136: 2 | AB136: =VLOOKUP(AA136,$T$135:$X$3368,5,FALSE) -> Alexander | AC136: =VLOOKUP(AA136,$T$135:$W$3368,4,FALSE) -> 17003 | AE136: 1 | AF136: =IF(ISNA(AB136),"",AB136) -> Alexander | AG136: 17003 | AI136: Soybeans | AJ136: 2
Q137: Arizona | R137: 4 | T137: =IF(U137=$R$132,1+T136,0) -> 0 | U137: 1 | V137: 5 | W137: 1005 | X137: Barbour | Y137: AL | AA137: 3 | AB137: Bond | AC137: 17005 | AE137: 1 | AF137: Bond | AG137: 17005 | AI137: Wheat | AJ137: 3
Q138: Arkansas | R138: 5 | T138: 0 | U138: 1 | V138: 7 | W138: 1007 | X138: Bibb | Y138: AL | AA138: 4 | AB138: Boone | AC138: 17007 | AE138: 1 | AF138: Boone | AG138: 17007 | AI138: Barley | AJ138: 4
Q139: California | R139: 6 | T139: 0 | U139: 1 | V139: 9 | W139: 1009 | X139: Blount | Y139: AL | AA139: 5 | AB139: Brown | AC139: 17009 | AE139: 1 | AF139: Brown | AG139: 17009 | AI139: Canola | AJ139: 5
Q140: Colorado | R140: 8 | T140: 0 | U140: 1 | V140: 10 | W140: 1010 | X140: Bullock | Y140: AL | AA140: 6 | AB140: Bureau | AC140: 17011 | AE140: 1 | AF140: Bureau | AG140: 17011 | AI140: Chickpeas_Large | AJ140: 6
Q141: Connecticut | R141: 9 | T141: 0 | U141: 1 | V141: 13 | W141: 1013 | X141: Butler | Y141: AL | AA141: 7 | AB141: Calhoun | AC141: 17013 | AE141: 1 | AF141: Calhoun | AG141: 17013 | AI141: Chickpeas_Small | AJ141: 7
Q142: Delaware | R142: 10 | T142: 0 | U142: 1 | V142: 15 | W142: 1015 | X142: Calhoun | Y142: AL | AA142: 8 | AB142: Carroll | AC142: 17015 | AE142: 1 | AF142: Carroll | AG142: 17015 | AI142: Crambe | AJ142: 8
Q143: District Of Columbia | R143: 11 | T143: 0 | U143: 1 | V143: 17 | W143: 1017 | X143: Chambers | Y143: AL | AA143: 9 | AB143: Cass | AC143: 17017 | AE143: 1 | AF143: Cass | AG143: 17017 | AI143: Dry Peas | AJ143: 9
Q144: Florida | R144: 12 | T144: 0 | U144: 1 | V144: 19 | W144: 1019 | X144: Cherokee | Y144: AL | AA144: 10 | AB144: Champaign | AC144: 17019 | AE144: 1 | AF144: Champaign | AG144: 17019 | AI144: Flaxseed | AJ144: 10
Q145: Georgia | R145: 13 | T145: 0 | U145: 1 | V145: 21 | W145: 1021 | X145: Chilton | Y145: AL | AA145: 11 | AB145: Christian | AC145: 17021 | AE145: 1 | AF145: Christian | AG145: 17021 | AI145: Grain Sorghum | AJ145: 11
Q146: Hawaii | R146: 15 | T146: 0 | U146: 1 | V146: 23 | W146: 1023 | X146: Choctaw | Y146: AL | AA146: 12 | AB146: Clark | AC146: 17023 | AE146: 1 | AF146: Clark | AG146: 17023 | AI146: Lentils | AJ146: 12
Q147: Idaho | R147: 16 | T147: 0 | U147: 1 | V147: 25 | W147: 1025 | X147: Clarke | Y147: AL | AA147: 13 | AB147: Clay | AC147: 17025 | AE147: 1 | AF147: Clay | AG147: 17025 | AI147: Mustard Seed | AJ147: 13
Q148: Illinois | R148: 17 | T148: 0 | U148: 1 | V148: 27 | W148: 1027 | X148: Clay | Y148: AL | AA148: 14 | AB148: Clinton | AC148: 17027 | AE148: 1 | AF148: Clinton | AG148: 17027 | AI148: Oats | AJ148: 14
Q149: Indiana | R149: 18 | T149: 0 | U149: 1 | V149: 29 | W149: 1029 | X149: Cleburne | Y149: AL | AA149: 15 | AB149: Coles | AC149: 17029 | AE149: 1 | AF149: Coles | AG149: 17029 | AI149: Peanuts | AJ149: 15
Q150: Iowa | R150: 19 | T150: 0 | U150: 1 | V150: 31 | W150: 1031 | X150: Coffee | Y150: AL | AA150: 16 | AB150: Cook | AC150: 17031 | AE150: 1 | AF150: Cook | AG150: 17031 | AI150: Rapeseed | AJ150: 16
Q151: Kansas | R151: 20 | T151: 0 | U151: 1 | V151: 33 | W151: 1033 | X151: Colbert | Y151: AL | AA151: 17 | AB151: Crawford | AC151: 17033 | AE151: 1 | AF151: Crawford | AG151: 17033 | AI151: Rice_Long Grain | AJ151: 17
Q152: Kentucky | R152: 21 | T152: 0 | U152: 1 | V152: 35 | W152: 1035 | X152: Conecuh | Y152: AL | AA152: 18 | AB152: Cumberland | AC152: 17035 | AE152: 1 | AF152: Cumberland | AG152: 17035 | AI152: Rice_Med/Short Grain | AJ152: 18
Q153: Louisiana | R153: 22 | T153: 0 | U153: 1 | V153: 37 | W153: 1037 | X153: Coosa | Y153: AL | AA153: 19 | AB153: DeKalb | AC153: 17037 | AE153: 1 | AF153: DeKalb | AG153: 17037 | AI153: Rice_Temperate Japonica | AJ153: 19
Q154: Maine | R154: 23 | T154: 0 | U154: 1 | V154: 39 | W154: 1039 | X154: Covington | Y154: AL | AA154: 20 | AB154: De Witt | AC154: 17039 | AE154: 1 | AF154: De Witt | AG154: 17039 | AI154: Safflower | AJ154: 20
Q155: Maryland | R155: 24 | T155: 0 | U155: 1 | V155: 41 | W155: 1041 | X155: Crenshaw | Y155: AL | AA155: 21 | AB155: Douglas | AC155: 17041 | AE155: 1 | AF155: Douglas | AG155: 17041 | AI155: Seed Cotton | AJ155: 21
Q156: Massachusetts | R156: 25 | T156: 0 | U156: 1 | V156: 43 | W156: 1043 | X156: Cullman | Y156: AL | AA156: 22 | AB156: DuPage | AC156: 17043 | AE156: 1 | AF156: DuPage | AG156: 17043 | AI156: Sesame Seed | AJ156: 22
Q157: Michigan | R157: 26 | T157: 0 | U157: 1 | V157: 45 | W157: 1045 | X157: Dale | Y157: AL | AA157: 23 | AB157: Edgar | AC157: 17045 | AE157: 1 | AF157: Edgar | AG157: 17045 | AI157: Sunflower Seed | AJ157: 23
Q158: Minnesota | R158: 27 | T158: 0 | U158: 1 | V158: 47 | W158: 1047 | X158: Dallas | Y158: AL | AA158: 24 | AB158: Edwards | AC158: 17047 | AE158: 1 | AF158: Edwards | AG158: 17047
Q159: Mississippi | R159: 28 | T159: 0 | U159: 1 | V159: 49 | W159: 1049 | X159: DeKalb | Y159: AL | AA159: 25 | AB159: Effingham | AC159: 17049 | AE159: 1 | AF159: Effingham | AG159: 17049
Q160: Missouri | R160: 29 | T160: 0 | U160: 1 | V160: 51 | W160: 1051 | X160: Elmore | Y160: AL | AA160: 26 | AB160: Fayette | AC160: 17051 | AE160: 1 | AF160: Fayette | AG160: 17051
Q161: Montana | R161: 30 | T161: 0 | U161: 1 | V161: 53 | W161: 1053 | X161: Escambia | Y161: AL | AA161: 27 | AB161: Ford | AC161: 17053 | AE161: 1 | AF161: Ford | AG161: 17053
Q162: Nebraska | R162: 31 | T162: 0 | U162: 1 | V162: 55 | W162: 1055 | X162: Etowah | Y162: AL | AA162: 28 | AB162: Franklin | AC162: 17055 | AE162: 1 | AF162: Franklin | AG162: 17055
Q163: Nevada | R163: 32 | T163: 0 | U163: 1 | V163: 57 | W163: 1057 | X163: Fayette | Y163: AL | AA163: 29 | AB163: Fulton | AC163: 17057 | AE163: 1 | AF163: Fulton | AG163: 17057
Q164: New Hampshire | R164: 33 | T164: 0 | U164: 1 | V164: 59 | W164: 1059 | X164: Franklin | Y164: AL | AA164: 30 | AB164: Gallatin | AC164: 17059 | AE164: 1 | AF164: Gallatin | AG164: 17059
Q165: New Jersey | R165: 34 | T165: 0 | U165: 1 | V165: 61 | W165: 1061 | X165: Geneva | Y165: AL | AA165: 31 | AB165: Greene | AC165: 17061 | AE165: 1 | AF165: Greene | AG165: 17061
Q166: New Mexico | R166: 35 | T166: 0 | U166: 1 | V166: 63 | W166: 1063 | X166: Greene | Y166: AL | AA166: 32 | AB166: Grundy | AC166: 17063 | AE166: 1 | AF166: Grundy | AG166: 17063
Q167: New York | R167: 36 | T167: 0 | U167: 1 | V167: 65 | W167: 1065 | X167: Hale | Y167: AL | AA167: 33 | AB167: Hamilton | AC167: 17065 | AE167: 1 | AF167: Hamilton | AG167: 17065
Q168: North Carolina | R168: 37 | T168: 0 | U168: 1 | V168: 67 | W168: 1067 | X168: Henry | Y168: AL | AA168: 34 | AB168: Hancock | AC168: 17067 | AE168: 1 | AF168: Hancock | AG168: 17067
Q169: North Dakota | R169: 38 | T169: 0 | U169: 1 | V169: 69 | W169: 1069 | X169: Houston | Y169: AL | AA169: 35 | AB169: Hardin | AC169: 17069 | AE169: 1 | AF169: Hardin | AG169: 17069
Q170: Ohio | R170: 39 | T170: 0 | U170: 1 | V170: 71 | W170: 1071 | X170: Jackson | Y170: AL | AA170: 36 | AB170: Henderson | AC170: 17071 | AE170: 1 | AF170: Henderson | AG170: 17071
Q171: Oklahoma | R171: 40 | T171: 0 | U171: 1 | V171: 73 | W171: 1073 | X171: Jefferson | Y171: AL | AA171: 37 | AB171: Henry | AC171: 17073 | AE171: 1 | AF171: Henry | AG171: 17073
Q172: Oregon | R172: 41 | T172: 0 | U172: 1 | V172: 75 | W172: 1075 | X172: Lamar | Y172: AL | AA172: 38 | AB172: Iroquois | AC172: 17075 | AE172: 1 | AF172: Iroquois | AG172: 17075
Q173: Pennsylvania | R173: 42 | T173: 0 | U173: 1 | V173: 77 | W173: 1077 | X173: Lauderdale | Y173: AL | AA173: 39 | AB173: Jackson | AC173: 17077 | AE173: 1 | AF173: Jackson | AG173: 17077
Q174: Rhode Island | R174: 44 | T174: 0 | U174: 1 | V174: 79 | W174: 1079 | X174: Lawrence | Y174: AL | AA174: 40 | AB174: Jasper | AC174: 17079 | AE174: 1 | AF174: Jasper | AG174: 17079
Q175: South Carolina | R175: 45 | T175: 0 | U175: 1 | V175: 81 | W175: 1081 | X175: Lee | Y175: AL | AA175: 41 | AB175: Jefferson | AC175: 17081 | AE175: 1 | AF175: Jefferson | AG175: 17081
Q176: South Dakota | R176: 46 | T176: 0 | U176: 1 | V176: 83 | W176: 1083 | X176: Limestone | Y176: AL | AA176: 42 | AB176: Jersey | AC176: 17083 | AE176: 1 | AF176: Jersey | AG176: 17083
Q177: Tennessee | R177: 47 | T177: 0 | U177: 1 | V177: 85 | W177: 1085 | X177: Lowndes | Y177: AL | AA177: 43 | AB177: Jo Daviess | AC177: 17085 | AE177: 1 | AF177: Jo Daviess | AG177: 17085
Q178: Texas | R178: 48 | T178: 0 | U178: 1 | V178: 87 | W178: 1087 | X178: Macon | Y178: AL | AA178: 44 | AB178: Johnson | AC178: 17087 | AE178: 1 | AF178: Johnson | AG178: 17087
Q179: Utah | R179: 49 | T179: 0 | U179: 1 | V179: 89 | W179: 1089 | X179: Madison | Y179: AL | AA179: 45 | AB179: Kane | AC179: 17089 | AE179: 1 | AF179: Kane | AG179: 17089
Q180: Vermont | R180: 50 | T180: 0 | U180: 1 | V180: 91 | W180: 1091 | X180: Marengo | Y180: AL | AA180: 46 | AB180: Kankakee | AC180: 17091 | AE180: 1 | AF180: Kankakee | AG180: 17091
Q181: Virginia | R181: 51 | T181: 0 | U181: 1 | V181: 93 | W181: 1093 | X181: Marion | Y181: AL | AA181: 47 | AB181: Kendall | AC181: 17093 | AE181: 1 | AF181: Kendall | AG181: 17093
Q182: Washington | R182: 53 | T182: 0 | U182: 1 | V182: 95 | W182: 1095 | X182: Marshall | Y182: AL | AA182: 48 | AB182: Knox | AC182: 17095 | AE182: 1 | AF182: Knox | AG182: 17095
Q183: West Virginia | R183: 54 | T183: 0 | U183: 1 | V183: 97 | W183: 1097 | X183: Mobile | Y183: AL | AA183: 49 | AB183: Lake | AC183: 17097 | AE183: 1 | AF183: Lake | AG183: 17097
Q184: Wisconsin | R184: 55 | T184: 0 | U184: 1 | V184: 99 | W184: 1099 | X184: Monroe | Y184: AL | AA184: 50 | AB184: LaSalle | AC184: 17099 | AE184: 1 | AF184: LaSalle | AG184: 17099
Q185: Wyoming | R185: 56 | T185: 0 | U185: 1 | V185: 101 | W185: 1101 | X185: Montgomery | Y185: AL | AA185: 51 | AB185: Lawrence | AC185: 17101 | AE185: 1 | AF185: Lawrence | AG185: 17101
T186: 0 | U186: 1 | V186: 103 | W186: 1103 | X186: Morgan | Y186: AL | AA186: 52 | AB186: Lee | AC186: 17103 | AE186: 1 | AF186: Lee | AG186: 17103
T187: 0 | U187: 1 | V187: 105 | W187: 1105 | X187: Perry | Y187: AL | AA187: 53 | AB187: Livingston | AC187: 17105 | AE187: 1 | AF187: Livingston | AG187: 17105
T188: 0 | U188: 1 | V188: 107 | W188: 1107 | X188: Pickens | Y188: AL | AA188: 54 | AB188: Logan | AC188: 17107 | AE188: 1 | AF188: Logan | AG188: 17107
T189: 0 | U189: 1 | V189: 109 | W189: 1109 | X189: Pike | Y189: AL | AA189: 55 | AB189: McDonough | AC189: 17109 | AE189: 1 | AF189: McDonough | AG189: 17109
T190: 0 | U190: 1 | V190: 111 | W190: 1111 | X190: Randolph | Y190: AL | AA190: 56 | AB190: McHenry | AC190: 17111 | AE190: 1 | AF190: McHenry | AG190: 17111
T191: 0 | U191: 1 | V191: 113 | W191: 1113 | X191: Russell | Y191: AL | AA191: 57 | AB191: McLean | AC191: 17113 | AE191: 1 | AF191: McLean | AG191: 17113
T192: 0 | U192: 1 | V192: 115 | W192: 1115 | X192: St. Clair | Y192: AL | AA192: 58 | AB192: Macon | AC192: 17115 | AE192: 1 | AF192: Macon | AG192: 17115
T193: 0 | U193: 1 | V193: 117 | W193: 1117 | X193: Shelby | Y193: AL | AA193: 59 | AB193: Macoupin | AC193: 17117 | AE193: 1 | AF193: Macoupin | AG193: 17117
T194: 0 | U194: 1 | V194: 119 | W194: 1119 | X194: Sumter | Y194: AL | AA194: 60 | AB194: Madison | AC194: 17119 | AE194: 1 | AF194: Madison | AG194: 17119
T195: 0 | U195: 1 | V195: 121 | W195: 1121 | X195: Talladega | Y195: AL | AA195: 61 | AB195: Marion | AC195: 17121 | AE195: 1 | AF195: Marion | AG195: 17121
T196: 0 | U196: 1 | V196: 123 | W196: 1123 | X196: Tallapoosa | Y196: AL | AA196: 62 | AB196: Marshall | AC196: 17123 | AE196: 1 | AF196: Marshall | AG196: 17123
T197: 0 | U197: 1 | V197: 125 | W197: 1125 | X197: Tuscaloosa | Y197: AL | AA197: 63 | AB197: Mason | AC197: 17125 | AE197: 1 | AF197: Mason | AG197: 17125
T198: 0 | U198: 1 | V198: 127 | W198: 1127 | X198: Walker | Y198: AL | AA198: 64 | AB198: Massac | AC198: 17127 | AE198: 1 | AF198: Massac | AG198: 17127
T199: 0 | U199: 1 | V199: 129 | W199: =U199*1000+V199 -> 1129 | X199: Washington | Y199: AL | AA199: 65 | AB199: Menard | AC199: 17129 | AE199: 1 | AF199: Menard | AG199: 17129
T200: 0 | U200: 1 | V200: 131 | W200: 1131 | X200: Wilcox | Y200: AL | AA200: 66 | AB200: =VLOOKUP(AA200,$T$135:$X$3368,5,FALSE) -> Mercer | AC200: =VLOOKUP(AA200,$T$135:$W$3368,4,FALSE) -> 17131 | AE200: 1 | AF200: =IF(ISNA(AB200),"",AB200) -> Mercer | AG200: 17131
T201: =IF(U201=$R$132,1+T200,0) -> 0 | U201: 1 | V201: 133 | W201: 1133 | X201: Winston | Y201: AL | AA201: 67 | AB201: Monroe | AC201: 17133 | AE201: 1 | AF201: Monroe | AG201: 17133
T202: 0 | U202: 2 | V202: 13 | W202: 2013 | X202: Aleutians East | Y202: AK | AA202: 68 | AB202: Montgomery | AC202: 17135 | AE202: 1 | AF202: Montgomery | AG202: 17135
T203: 0 | U203: 2 | V203: 16 | W203: 2016 | X203: Aleutians West | Y203: AK | AA203: 69 | AB203: Morgan | AC203: 17137 | AE203: 1 | AF203: Morgan | AG203: 17137
T204: 0 | U204: 2 | V204: 20 | W204: 2020 | X204: Anchorage | Y204: AK | AA204: 70 | AB204: Moultrie | AC204: 17139 | AE204: 1 | AF204: Moultrie | AG204: 17139
T205: 0 | U205: 2 | V205: 50 | W205: 2050 | X205: Bethel | Y205: AK | AA205: 71 | AB205: Ogle | AC205: 17141 | AE205: 1 | AF205: Ogle | AG205: 17141
T206: 0 | U206: 2 | V206: 60 | W206: 2060 | X206: Bristol Bay | Y206: AK | AA206: 72 | AB206: Peoria | AC206: 17143 | AE206: 1 | AF206: Peoria | AG206: 17143
T207: 0 | U207: 2 | V207: 68 | W207: 2068 | X207: Denali | Y207: AK | AA207: 73 | AB207: Perry | AC207: 17145 | AE207: 1 | AF207: Perry | AG207: 17145
T208: 0 | U208: 2 | V208: 70 | W208: 2070 | X208: Dillingham | Y208: AK | AA208: 74 | AB208: Piatt | AC208: 17147 | AE208: 1 | AF208: Piatt | AG208: 17147
T209: 0 | U209: 2 | V209: 90 | W209: 2090 | X209: Fairbanks North Star | Y209: AK | AA209: 75 | AB209: Pike | AC209: 17149 | AE209: 1 | AF209: Pike | AG209: 17149
T210: 0 | U210: 2 | V210: 100 | W210: 2100 | X210: Haines | Y210: AK | AA210: 76 | AB210: Pope | AC210: 17151 | AE210: 1 | AF210: Pope | AG210: 17151
T211: 0 | U211: 2 | V211: 110 | W211: 2110 | X211: Juneau | Y211: AK | AA211: 77 | AB211: Pulaski | AC211: 17153 | AE211: 1 | AF211: Pulaski | AG211: 17153
... 3157 more rows

Sheet arc-ic-multi
B1: ARC-IC Payment Calculator
B2: (Calculates ARC-IC Payments for Multiple FSA Farms)
AF3: 2 | AG3: 2019 | AH3: 0
AF4: 3 | AG4: 2020 | AH4: 1
AF5: 4 | AG5: 2021 | AH5: 2
C6: State | D6: Illinois | R6: Illinois | S6: State Lookup | U6: =VLOOKUP(D6,'arc-ic'!Q135:R185,2,FALSE) -> 17 | AF6: 5 | AG6: 2022 | AH6: 3
C7: Year | D7: 2022 | AH7: 4
C8: No of farms | D8: 2 | R8: 2 | AH8: 5
C9: No of crops | D9: 2 | R9: 2 | AH9: 6
G10: Higher of MYA or Effective Reference Price | M10: =CONCATENATE(D7," MYA Price") -> 2022 MYA Price | O10: =CONCATENATE(D7," MYA Price Default") -> 2022 MYA Price Default | AH10: 7
C11: Crop | G11: =H11-1 -> 2016 | H11: =I11-1 -> 2017 | I11: =J11-1 -> 2018 | J11: =K11-1 -> 2019 | K11: =D7-2 -> 2020 | S11: 2 | T11: MYA Prices | AA11: Eff. Ref. Price | AH11: 8
S12: name | T12: =U12-1 -> 2016 | U12: 2017 | V12: 2018 | W12: 2019 | X12: 2020 | Y12: 2021 | Z12: =D7 -> 2022 | AA12: =D7 -> 2022 | AB12: Loan Rate | AC12: unit | AD12: Abreviation | AE12: Price Unit | AF12: Adj Factor | AH12: 9
A13: 1 | C13: Corn | F13: =IF(C13="","","Price/"&AD13) -> Price/Bu | G13: =IF($C13="","",MAX(T13,$AA13)) -> 3.7 | H13: 3.7 | I13: 3.7 | J13: 3.7 | K13: 4.53 | L13: =AE13 -> $/Bu | M13: =Z13 -> 5 | O13: =IF(C13<>"",Z13,"") -> 5 | S13: =VLOOKUP($C13,'2018 what if'!$AM$6:$AN$28,S$11,FALSE) -> 1 | T13: =VLOOKUP($C13,MYAprices!$A$2:$R$24,MATCH(T$12,MYAprices!$A$1:$R$1,0),FALSE)*$AF13 -> 3.36 | U13: =VLOOKUP($C13,MYAprices!$A$2:$R$24,MATCH(U$12,MYAprices!$A$1:$R$1,0),FALSE)*$AF13 -> 3.36 | V13: =VLOOKUP($C13,MYAprices!$A$2:$R$24,MATCH(V$12,MYAprices!$A$1:$R$1,0),FALSE)*$AF13 -> 3.61 | W13: =VLOOKUP($C13,MYAprices!$A$2:$R$24,MATCH(W$12,MYAprices!$A$1:$R$1,0),FALSE)*$AF13 -> 3.56 | X13: =VLOOKUP($C13,MYAprices!$A$2:$R$24,MATCH(X$12,MYAprices!$A$1:$R$1,0),FALSE)*$AF13 -> 4.53 | Y13: =VLOOKUP($C13,MYAprices!$A$2:$R$24,MATCH(Y$12,MYAprices!$A$1:$R$1,0),FALSE)*$AF13 -> 5.45 | Z13: =VLOOKUP($C13,MYAprices!$A$2:$R$24,MATCH(Z$12,MYAprices!$A$1:$R$1,0),FALSE)*$AF13 -> 5 | AA13: =VLOOKUP($C13,Refprices!$A$2:$K$24,MATCH(AA$12,Refprices!$A$1:$K$1,0),FALSE)*$AF13 -> 3.7 | AB13: =VLOOKUP($C13,Refprices!$A$2:$K$24,MATCH(AB$12,Refprices!$A$1:$K$1,0),FALSE)*$AF13 -> 2.2 | AC13: =VLOOKUP($C13,Refprices!$A$2:$K$24,MATCH(AC$12,Refprices!$A$1:$K$1,0),FALSE) -> Bushel | AD13: =VLOOKUP($C13,Refprices!$A$2:$K$24,MATCH(AD$12,Refprices!$A$1:$K$1,0),FALSE) -> Bu | AE13: =VLOOKUP($C13,Refprices!$A$2:$K$24,MATCH(AE$12,Refprices!$A$1:$K$1,0),FALSE) -> $/Bu | AF13: =IF(AND(AD13="Pounds",AC13="Ton"),2000,IF(AND(AD13="Pounds",AC13="Cwt."),100,1)) -> 1 | AH13: 10
A14: 1 | C14: Soybeans | F14: =IF(C14="","","Price/"&AD14) -> Price/Bu | G14: 9.47 | H14: 9.33 | I14: 8.48 | J14: 8.57 | K14: 10.8 | M14: =Z14 -> 12 | O14: =IF(C14<>"",Z14,"") -> 12 | S14: =VLOOKUP($C14,'2018 what if'!$AM$6:$AN$28,S$11,FALSE) -> 2 | T14: =VLOOKUP($C14,MYAprices!$A$2:$R$24,MATCH(T$12,MYAprices!$A$1:$R$1,0),FALSE)*$AF14 -> 9.47 | U14: =VLOOKUP($C14,MYAprices!$A$2:$R$24,MATCH(U$12,MYAprices!$A$1:$R$1,0),FALSE)*$AF14 -> 9.33 | V14: =VLOOKUP($C14,MYAprices!$A$2:$R$24,MATCH(V$12,MYAprices!$A$1:$R$1,0),FALSE)*$AF14 -> 8.48 | W14: =VLOOKUP($C14,MYAprices!$A$2:$R$24,MATCH(W$12,MYAprices!$A$1:$R$1,0),FALSE)*$AF14 -> 8.57 | X14: =VLOOKUP($C14,MYAprices!$A$2:$R$24,MATCH(X$12,MYAprices!$A$1:$R$1,0),FALSE)*$AF14 -> 10.8 | Y14: =VLOOKUP($C14,MYAprices!$A$2:$R$24,MATCH(Y$12,MYAprices!$A$1:$R$1,0),FALSE)*$AF14 -> 12.1 | Z14: =VLOOKUP($C14,MYAprices!$A$2:$R$24,MATCH(Z$12,MYAprices!$A$1:$R$1,0),FALSE)*$AF14 -> 12 | AA14: =VLOOKUP($C14,Refprices!$A$2:$K$24,MATCH(AA$12,Refprices!$A$1:$K$1,0),FALSE)*$AF14 -> 8.4 | AB14: =VLOOKUP($C14,Refprices!$A$2:$K$24,MATCH(AB$12,Refprices!$A$1:$K$1,0),FALSE)*$AF14 -> 6.2 | AC14: =VLOOKUP($C14,Refprices!$A$2:$K$24,MATCH(AC$12,Refprices!$A$1:$K$1,0),FALSE) -> Bushel | AD14: =VLOOKUP($C14,Refprices!$A$2:$K$24,MATCH(AD$12,Refprices!$A$1:$K$1,0),FALSE) -> Bu | AE14: =VLOOKUP($C14,Refprices!$A$2:$K$24,MATCH(AE$12,Refprices!$A$1:$K$1,0),FALSE) -> $/Bu | AF14: =IF(AND(AD14="Pounds",AC14="Ton"),2000,IF(AND(AD14="Pounds",AC14="Cwt."),100,1)) -> 1 | AH14: 11
A15: =IF($D$9>=3,1,0) -> 0 | F15: =IF(C15="","","Price/"&AD15) ->  | O15: =IF(C15<>"",Z15,"") ->  | S15: =VLOOKUP($C15,'2018 what if'!$AM$6:$AN$28,S$11,FALSE) ->  | T15: =VLOOKUP($C15,MYAprices!$A$2:$R$24,MATCH(T$12,MYAprices!$A$1:$R$1,0),FALSE)*$AF15 ->  | U15: =VLOOKUP($C15,MYAprices!$A$2:$R$24,MATCH(U$12,MYAprices!$A$1:$R$1,0),FALSE)*$AF15 ->  | V15: =VLOOKUP($C15,MYAprices!$A$2:$R$24,MATCH(V$12,MYAprices!$A$1:$R$1,0),FALSE)*$AF15 ->  | W15: =VLOOKUP($C15,MYAprices!$A$2:$R$24,MATCH(W$12,MYAprices!$A$1:$R$1,0),FALSE)*$AF15 ->  | X15: =VLOOKUP($C15,MYAprices!$A$2:$R$24,MATCH(X$12,MYAprices!$A$1:$R$1,0),FALSE)*$AF15 ->  | Y15: =VLOOKUP($C15,MYAprices!$A$2:$R$24,MATCH(Y$12,MYAprices!$A$1:$R$1,0),FALSE)*$AF15 ->  | Z15: =VLOOKUP($C15,MYAprices!$A$2:$R$24,MATCH(Z$12,MYAprices!$A$1:$R$1,0),FALSE)*$AF15 ->  | AA15: =VLOOKUP($C15,Refprices!$A$2:$K$24,MATCH(AA$12,Refprices!$A$1:$K$1,0),FALSE)*$AF15 ->  | AB15: =VLOOKUP($C15,Refprices!$A$2:$K$24,MATCH(AB$12,Refprices!$A$1:$K$1,0),FALSE)*$AF15 ->  | AC15: =VLOOKUP($C15,Refprices!$A$2:$K$24,MATCH(AC$12,Refprices!$A$1:$K$1,0),FALSE) ->  | AD15: =VLOOKUP($C15,Refprices!$A$2:$K$24,MATCH(AD$12,Refprices!$A$1:$K$1,0),FALSE) ->  | AE15: =VLOOKUP($C15,Refprices!$A$2:$K$24,MATCH(AE$12,Refprices!$A$1:$K$1,0),FALSE) ->  | AF15: =IF(AND(AD15="Pounds",AC15="Ton"),2000,IF(AND(AD15="Pounds",AC15="Cwt."),100,1)) ->  | AH15: 12
A16: =IF($D$9>=4,1,0) -> 0 | F16: =IF(C16="","","Price/"&AD16) ->  | O16: =IF(C16<>"",Z16,"") ->  | S16: =VLOOKUP($C16,'2018 what if'!$AM$6:$AN$28,S$11,FALSE) ->  | T16: =VLOOKUP($C16,MYAprices!$A$2:$R$24,MATCH(T$12,MYAprices!$A$1:$R$1,0),FALSE)*$AF16 ->  | U16: =VLOOKUP($C16,MYAprices!$A$2:$R$24,MATCH(U$12,MYAprices!$A$1:$R$1,0),FALSE)*$AF16 ->  | V16: =VLOOKUP($C16,MYAprices!$A$2:$R$24,MATCH(V$12,MYAprices!$A$1:$R$1,0),FALSE)*$AF16 ->  | W16: =VLOOKUP($C16,MYAprices!$A$2:$R$24,MATCH(W$12,MYAprices!$A$1:$R$1,0),FALSE)*$AF16 ->  | X16: =VLOOKUP($C16,MYAprices!$A$2:$R$24,MATCH(X$12,MYAprices!$A$1:$R$1,0),FALSE)*$AF16 ->  | Y16: =VLOOKUP($C16,MYAprices!$A$2:$R$24,MATCH(Y$12,MYAprices!$A$1:$R$1,0),FALSE)*$AF16 ->  | Z16: =VLOOKUP($C16,MYAprices!$A$2:$R$24,MATCH(Z$12,MYAprices!$A$1:$R$1,0),FALSE)*$AF16 ->  | AA16: =VLOOKUP($C16,Refprices!$A$2:$K$24,MATCH(AA$12,Refprices!$A$1:$K$1,0),FALSE)*$AF16 ->  | AB16: =VLOOKUP($C16,Refprices!$A$2:$K$24,MATCH(AB$12,Refprices!$A$1:$K$1,0),FALSE)*$AF16 ->  | AC16: =VLOOKUP($C16,Refprices!$A$2:$K$24,MATCH(AC$12,Refprices!$A$1:$K$1,0),FALSE) ->  | AD16: =VLOOKUP($C16,Refprices!$A$2:$K$24,MATCH(AD$12,Refprices!$A$1:$K$1,0),FALSE) ->  | AE16: =VLOOKUP($C16,Refprices!$A$2:$K$24,MATCH(AE$12,Refprices!$A$1:$K$1,0),FALSE) ->  | AF16: =IF(AND(AD16="Pounds",AC16="Ton"),2000,IF(AND(AD16="Pounds",AC16="Cwt."),100,1)) ->  | AH16: 13
A17: =IF($D$9>=5,1,0) -> 0 | F17: =IF(C17="","","Price/"&AD17) ->  | G17: =IF($C17="","",IF($AD17="Cwt",MAX(T17*100,$AA17),MAX(T17,$AA17))) ->  | H17: =IF($C17="","",IF($AD17="Cwt",MAX(U17*100,$AA17),MAX(U17,$AA17))) ->  | I17: =IF($C17="","",IF($AD17="Cwt",MAX(V17*100,$AA17),MAX(V17,$AA17))) ->  | J17: =IF($C17="","",IF($AD17="Cwt",MAX(W17*100,$AA17),MAX(W17,$AA17))) ->  | K17: =IF($C17="","",IF($AD17="Cwt",MAX(X17*100,$AA17),MAX(X17,$AA17))) ->  | O17: =IF(C17<>"",Z17,"") ->  | S17: =VLOOKUP($C17,'2018 what if'!$AM$6:$AN$28,S$11,FALSE) ->  | T17: =VLOOKUP($C17,MYAprices!$A$2:$R$24,MATCH(T$12,MYAprices!$A$1:$R$1,0),FALSE)*$AF17 ->  | U17: =VLOOKUP($C17,MYAprices!$A$2:$R$24,MATCH(U$12,MYAprices!$A$1:$R$1,0),FALSE)*$AF17 ->  | V17: =VLOOKUP($C17,MYAprices!$A$2:$R$24,MATCH(V$12,MYAprices!$A$1:$R$1,0),FALSE)*$AF17 ->  | W17: =VLOOKUP($C17,MYAprices!$A$2:$R$24,MATCH(W$12,MYAprices!$A$1:$R$1,0),FALSE)*$AF17 ->  | X17: =VLOOKUP($C17,MYAprices!$A$2:$R$24,MATCH(X$12,MYAprices!$A$1:$R$1,0),FALSE)*$AF17 ->  | Y17: =VLOOKUP($C17,MYAprices!$A$2:$R$24,MATCH(Y$12,MYAprices!$A$1:$R$1,0),FALSE)*$AF17 ->  | Z17: =VLOOKUP($C17,MYAprices!$A$2:$R$24,MATCH(Z$12,MYAprices!$A$1:$R$1,0),FALSE)*$AF17 ->  | AA17: =VLOOKUP($C17,Refprices!$A$2:$K$24,MATCH(AA$12,Refprices!$A$1:$K$1,0),FALSE)*$AF17 ->  | AB17: =VLOOKUP($C17,Refprices!$A$2:$K$24,MATCH(AB$12,Refprices!$A$1:$K$1,0),FALSE)*$AF17 ->  | AC17: =VLOOKUP($C17,Refprices!$A$2:$K$24,MATCH(AC$12,Refprices!$A$1:$K$1,0),FALSE) ->  | AD17: =VLOOKUP($C17,Refprices!$A$2:$K$24,MATCH(AD$12,Refprices!$A$1:$K$1,0),FALSE) ->  | AE17: =VLOOKUP($C17,Refprices!$A$2:$K$24,MATCH(AE$12,Refprices!$A$1:$K$1,0),FALSE) ->  | AF17: =IF(AND(AD17="Pounds",AC17="Ton"),2000,IF(AND(AD17="Pounds",AC17="Cwt."),100,1)) ->  | AH17: 14
A18: 1 | AH18: 15
A19: 1 | AH19: 16
A20: 1 | C20: FSA FARM 1 | AH20: 17
A21: 1 | AH21: 18
A22: 1 | C22: FSA farm number | F22: Farm 1 | J22: Enter 100% of base acres and yield for the | AH22: 19
A23: 1 | J23: FSA farm, even if share is less than 100%. | AH23: 20
A24: 1 | C24: County of farm | F24: =AF716 -> Adams | S24: =VLOOKUP(F24,$AF$716:$AG$918,2,FALSE) -> 17001
A25: 1
A26: 1 | C26: Base acres in farm | F26: 0
O27: Crop
A28: 1 | G28: Yield | O28: Benchmark | T28: County Trend Adjusted Yields | Z28: T Yields | AF28: Used Yields | AL28: Used Prices | AR28: Revenue
A29: 1 | G29: =$G$11 -> 2016 | H29: =$H$11 -> 2017 | I29: =$I$11 -> 2018 | J29: =$J$11 -> 2019 | K29: =$K$11 -> 2020 | M29: =$D$7 -> 2022 | O29: Revenue | T29: =CONCATENATE("ta",$D$7-6,"-",RIGHT($D$7,2)) -> ta2016-22 | U29: =CONCATENATE("ta",$D$7-5,"-",RIGHT($D$7,2)) -> ta2017-22 | V29: =CONCATENATE("ta",$D$7-4,"-",RIGHT($D$7,2)) -> ta2018-22 | W29: =CONCATENATE("ta",$D$7-3,"-",RIGHT($D$7,2)) -> ta2019-22 | X29: =CONCATENATE("ta",$D$7-2,"-",RIGHT($D$7,2)) -> ta2020-22 | Z29: =CONCATENATE("ty",G$29) -> ty2016 | AA29: =CONCATENATE("ty",H$29) -> ty2017 | AB29: =CONCATENATE("ty",I$29) -> ty2018 | AC29: =CONCATENATE("ty",J$29) -> ty2019 | AD29: =CONCATENATE("ty",K$29) -> ty2020 | AF29: =G29 -> 2016 | AG29: =H29 -> 2017 | AH29: =I29 -> 2018 | AI29: =J29 -> 2019 | AJ29: =K29 -> 2020 | AL29: =G29 -> 2016 | AM29: =H29 -> 2017 | AN29: =I29 -> 2018 | AO29: =J29 -> 2019 | AP29: =K29 -> 2020 | AR29: =G29 -> 2016 | AS29: =H29 -> 2017 | AT29: =I29 -> 2018 | AU29: =J29 -> 2019 | AV29: =K29 -> 2020
A30: 1
A31: 1 | C31: =IF(C13="","",C13) -> Corn | F31: =IF(ISNA(AD13),"",AD13) -> Bu | G31: 1 | M31: 1 | O31: =IF(ISNA(T31),"",ROUND((SUM(AR31:AV31)-MAX(AR31:AV31)-MIN(AR31:AV31))/3,0)/IF(F31="lbs",100,1)) -> 743 | R31: =VLOOKUP(C31,'arc-ic'!$AI$135:$AJ$157,2,FALSE) -> 1 | S31: =($S$24*100+R31)*10+3 -> 17001013 | T31: =VLOOKUP($S31,icTAYield!$A:$AL,MATCH(T$29,icTAYield!$A$1:$AL$1,0),FALSE) -> 211.08 | U31: =VLOOKUP($S31,icTAYield!$A:$AL,MATCH(U$29,icTAYield!$A$1:$AL$1,0),FALSE) -> 208.78 | V31: =VLOOKUP($S31,icTAYield!$A:$AL,MATCH(V$29,icTAYield!$A$1:$AL$1,0),FALSE) -> 211.91 | W31: =VLOOKUP($S31,icTAYield!$A:$AL,MATCH(W$29,icTAYield!$A$1:$AL$1,0),FALSE) -> 181.58 | X31: =VLOOKUP($S31,icTAYield!$A:$AL,MATCH(X$29,icTAYield!$A$1:$AL$1,0),FALSE) -> 192.41 | Z31: =VLOOKUP($S31,Tyields!$A:$T,MATCH(Z$29,Tyields!$A$1:$T$1,0),FALSE) -> 128 | AA31: =VLOOKUP($S31,Tyields!$A:$T,MATCH(AA$29,Tyields!$A$1:$T$1,0),FALSE) -> 118.4 | AB31: =VLOOKUP($S31,Tyields!$A:$T,MATCH(AB$29,Tyields!$A$1:$T$1,0),FALSE) -> 118.4 | AC31: =VLOOKUP($S31,Tyields!$A:$T,MATCH(AC$29,Tyields!$A$1:$T$1,0),FALSE) -> 118.4 | AD31: =VLOOKUP($S31,Tyields!$A:$T,MATCH(AD$29,Tyields!$A$1:$T$1,0),FALSE) -> 129.6 | AF31: =IF(G31="",T31,IF(G31>Z31,G31,Z31)) -> 128 | AG31: 208.78 | AH31: 211.91 | AI31: 181.58 | AJ31: 192.41 | AL31: =$G$13 -> 3.7 | AM31: =$H$13 -> 3.7 | AN31: =$I$13 -> 3.7 | AO31: =$J$13 -> 3.7 | AP31: =$K$13 -> 4.53 | AR31: =(AF31*AL31)/$AF$13 -> 473.6 | AS31: =(AG31*AM31)/$AF$13 -> 772.486 | AT31: =(AH31*AN31)/$AF$13 -> 784.067 | AU31: =(AI31*AO31)/$AF$13 -> 671.846 | AV31: =(AJ31*AP31)/$AF$13 -> 871.6173
A32: 1 | C32: =IF(C14="","",C14) -> Soybeans | F32: =IF(ISNA(AD14),"",AD14) -> Bu | O32: =IF(ISNA(T32),"",ROUND((SUM(AR32:AV32)-MAX(AR32:AV32)-MIN(AR32:AV32))/3,0)/IF(F32="lbs",100,1)) -> 579 | R32: =VLOOKUP(C32,'arc-ic'!$AI$135:$AJ$157,2,FALSE) -> 2 | S32: =($S$24*100+R32)*10+3 -> 17001023 | T32: =VLOOKUP($S32,icTAYield!$A:$AL,MATCH(T$29,icTAYield!$A$1:$AL$1,0),FALSE) -> 64.03 | U32: =VLOOKUP($S32,icTAYield!$A:$AL,MATCH(U$29,icTAYield!$A$1:$AL$1,0),FALSE) -> 61.89 | V32: =VLOOKUP($S32,icTAYield!$A:$AL,MATCH(V$29,icTAYield!$A$1:$AL$1,0),FALSE) -> 65.29 | W32: =VLOOKUP($S32,icTAYield!$A:$AL,MATCH(W$29,icTAYield!$A$1:$AL$1,0),FALSE) -> 57.1 | X32: =VLOOKUP($S32,icTAYield!$A:$AL,MATCH(X$29,icTAYield!$A$1:$AL$1,0),FALSE) -> 59.89 | Z32: =VLOOKUP($S32,Tyields!$A:$T,MATCH(Z$29,Tyields!$A$1:$T$1,0),FALSE) ->  | AA32: =VLOOKUP($S32,Tyields!$A:$T,MATCH(AA$29,Tyields!$A$1:$T$1,0),FALSE) ->  | AB32: =VLOOKUP($S32,Tyields!$A:$T,MATCH(AB$29,Tyields!$A$1:$T$1,0),FALSE) ->  | AC32: =VLOOKUP($S32,Tyields!$A:$T,MATCH(AC$29,Tyields!$A$1:$T$1,0),FALSE) ->  | AD32: =VLOOKUP($S32,Tyields!$A:$T,MATCH(AD$29,Tyields!$A$1:$T$1,0),FALSE) ->  | AF32: 64.03 | AG32: 61.89 | AH32: 65.29 | AI32: 57.1 | AJ32: 59.89 | AL32: =$G$14 -> 9.47 | AM32: =$H$14 -> 9.33 | AN32: =$I$14 -> 8.48 | AO32: =$J$14 -> 8.57 | AP32: =$K$14 -> 10.8 | AR32: =(AF32*AL32)/$AF$14 -> 606.3641 | AS32: =(AG32*AM32)/$AF$14 -> 577.4337 | AT32: =(AH32*AN32)/$AF$14 -> 553.6592 | AU32: =(AI32*AO32)/$AF$14 -> 489.347 | AV32: =(AJ32*AP32)/$AF$14 -> 646.812
A33: =IF($D$9>=3,1,0) -> 0 | C33: =IF(C15="","",C15) ->  | F33: =IF(ISNA(AD15),"",AD15) ->  | O33: =IF(ISNA(T33),"",ROUND((SUM(AR33:AV33)-MAX(AR33:AV33)-MIN(AR33:AV33))/3,0)/IF(F33="lbs",100,1)) ->  | R33: =VLOOKUP(C33,'arc-ic'!$AI$135:$AJ$157,2,FALSE) ->  | S33: =($S$24*100+R33)*10+3 ->  | T33: =VLOOKUP($S33,icTAYield!$A:$AL,MATCH(T$29,icTAYield!$A$1:$AL$1,0),FALSE) ->  | U33: =VLOOKUP($S33,icTAYield!$A:$AL,MATCH(U$29,icTAYield!$A$1:$AL$1,0),FALSE) ->  | V33: =VLOOKUP($S33,icTAYield!$A:$AL,MATCH(V$29,icTAYield!$A$1:$AL$1,0),FALSE) ->  | W33: =VLOOKUP($S33,icTAYield!$A:$AL,MATCH(W$29,icTAYield!$A$1:$AL$1,0),FALSE) ->  | X33: =VLOOKUP($S33,icTAYield!$A:$AL,MATCH(X$29,icTAYield!$A$1:$AL$1,0),FALSE) ->  | Z33: =VLOOKUP($S33,Tyields!$A:$T,MATCH(Z$29,Tyields!$A$1:$T$1,0),FALSE) ->  | AA33: =VLOOKUP($S33,Tyields!$A:$T,MATCH(AA$29,Tyields!$A$1:$T$1,0),FALSE) ->  | AB33: =VLOOKUP($S33,Tyields!$A:$T,MATCH(AB$29,Tyields!$A$1:$T$1,0),FALSE) ->  | AC33: =VLOOKUP($S33,Tyields!$A:$T,MATCH(AC$29,Tyields!$A$1:$T$1,0),FALSE) ->  | AD33: =VLOOKUP($S33,Tyields!$A:$T,MATCH(AD$29,Tyields!$A$1:$T$1,0),FALSE) ->  | AL33: =$G$15 ->  | AM33: =$H$15 ->  | AN33: =$I$15 ->  | AO33: =$J$15 ->  | AP33: =$K$15 ->  | AR33: =(AF33*AL33)/$AF$15 ->  | AS33: =(AG33*AM33)/$AF$15 ->  | AT33: =(AH33*AN33)/$AF$15 ->  | AU33: =(AI33*AO33)/$AF$15 ->  | AV33: =(AJ33*AP33)/$AF$15 -> 
A34: =IF($D$9>=4,1,0) -> 0 | C34: =IF(C16="","",C16) ->  | F34: =IF(ISNA(AD16),"",AD16) ->  | O34: =IF(ISNA(T34),"",ROUND((SUM(AR34:AV34)-MAX(AR34:AV34)-MIN(AR34:AV34))/3,0)/IF(F34="lbs",100,1)) ->  | R34: =VLOOKUP(C34,'arc-ic'!$AI$135:$AJ$157,2,FALSE) ->  | S34: =($S$24*100+R34)*10+3 ->  | T34: =VLOOKUP($S34,icTAYield!$A:$AL,MATCH(T$29,icTAYield!$A$1:$AL$1,0),FALSE) ->  | U34: =VLOOKUP($S34,icTAYield!$A:$AL,MATCH(U$29,icTAYield!$A$1:$AL$1,0),FALSE) ->  | V34: =VLOOKUP($S34,icTAYield!$A:$AL,MATCH(V$29,icTAYield!$A$1:$AL$1,0),FALSE) ->  | W34: =VLOOKUP($S34,icTAYield!$A:$AL,MATCH(W$29,icTAYield!$A$1:$AL$1,0),FALSE) ->  | X34: =VLOOKUP($S34,icTAYield!$A:$AL,MATCH(X$29,icTAYield!$A$1:$AL$1,0),FALSE) ->  | Z34: =VLOOKUP($S34,Tyields!$A:$T,MATCH(Z$29,Tyields!$A$1:$T$1,0),FALSE) ->  | AA34: =VLOOKUP($S34,Tyields!$A:$T,MATCH(AA$29,Tyields!$A$1:$T$1,0),FALSE) ->  | AB34: =VLOOKUP($S34,Tyields!$A:$T,MATCH(AB$29,Tyields!$A$1:$T$1,0),FALSE) ->  | AC34: =VLOOKUP($S34,Tyields!$A:$T,MATCH(AC$29,Tyields!$A$1:$T$1,0),FALSE) ->  | AD34: =VLOOKUP($S34,Tyields!$A:$T,MATCH(AD$29,Tyields!$A$1:$T$1,0),FALSE) ->  | AL34: =$G$16 ->  | AM34: =$H$16 ->  | AN34: =$I$16 ->  | AO34: =$J$16 ->  | AP34: =$K$16 ->  | AR34: =(AF34*AL34)/$AF$16 ->  | AS34: =(AG34*AM34)/$AF$16 ->  | AT34: =(AH34*AN34)/$AF$16 ->  | AU34: =(AI34*AO34)/$AF$16 ->  | AV34: =(AJ34*AP34)/$AF$16 -> 
A35: =IF($D$9>=5,1,0) -> 0 | C35: =IF(C17="","",C17) ->  | F35: =IF(ISNA(AD17),"",AD17) ->  | O35: =IF(ISNA(T35),"",ROUND((SUM(AR35:AV35)-MAX(AR35:AV35)-MIN(AR35:AV35))/3,0)/IF(F35="lbs",100,1)) ->  | R35: =VLOOKUP(C35,'arc-ic'!$AI$135:$AJ$157,2,FALSE) ->  | S35: =($S$24*100+R35)*10+3 ->  | T35: =VLOOKUP($S35,icTAYield!$A:$AL,MATCH(T$29,icTAYield!$A$1:$AL$1,0),FALSE) ->  | U35: =VLOOKUP($S35,icTAYield!$A:$AL,MATCH(U$29,icTAYield!$A$1:$AL$1,0),FALSE) ->  | V35: =VLOOKUP($S35,icTAYield!$A:$AL,MATCH(V$29,icTAYield!$A$1:$AL$1,0),FALSE) ->  | W35: =VLOOKUP($S35,icTAYield!$A:$AL,MATCH(W$29,icTAYield!$A$1:$AL$1,0),FALSE) ->  | X35: =VLOOKUP($S35,icTAYield!$A:$AL,MATCH(X$29,icTAYield!$A$1:$AL$1,0),FALSE) ->  | Z35: =VLOOKUP($S35,Tyields!$A:$T,MATCH(Z$29,Tyields!$A$1:$T$1,0),FALSE) ->  | AA35: =VLOOKUP($S35,Tyields!$A:$T,MATCH(AA$29,Tyields!$A$1:$T$1,0),FALSE) ->  | AB35: =VLOOKUP($S35,Tyields!$A:$T,MATCH(AB$29,Tyields!$A$1:$T$1,0),FALSE) ->  | AC35: =VLOOKUP($S35,Tyields!$A:$T,MATCH(AC$29,Tyields!$A$1:$T$1,0),FALSE) ->  | AD35: =VLOOKUP($S35,Tyields!$A:$T,MATCH(AD$29,Tyields!$A$1:$T$1,0),FALSE) ->  | AL35: =$G$17 ->  | AM35: =$H$17 ->  | AN35: =$I$17 ->  | AO35: =$J$17 ->  | AP35: =$K$17 ->  | AR35: =(AF35*AL35)/$AF$17 ->  | AS35: =(AG35*AM35)/$AF$17 ->  | AT35: =(AH35*AN35)/$AF$17 ->  | AU35: =(AI35*AO35)/$AF$17 ->  | AV35: =(AJ35*AP35)/$AF$17 -> 
A36: 1 | G36: (blanks indicate not planted, any entry indicates planted that year)
A37: 1 | G37: =$D$7 -> 2022
A38: 1 | F38: =$D$7 -> 2022 | G38: Prevent
A39: 1 | F39: Planted | G39: Plant
A40: 1 | F40: Acre | G40: Acres | H40: Single Farm ARC-IC Payment | R40: 1
A41: 1 | R41: =IF($D$8>=$R$40,IF($D$9>=1,1,0),0) -> 1
A42: 1 | C42: =C31 -> Corn | F42: 1 | G42: 1 | J42: Benchmark Revenue | K42: =IF(ISERR(V47),"",V47) -> 743 | M42: per base acre | R42: =IF($D$8>=$R$40,IF($D$9>=2,1,0),0) -> 1 | S42: =IF($F$47>0,F42,G42) -> 1 | T42: =S42/$S$47 -> 1 | U42: =IF($F$47=0,0,M31*M13/IF(F31="Lbs",100,1)) -> 5 | V42: =IF(O31="","",O31*T42) -> 743 | W42: =IF($F$47=0,0,U42*T42) -> 5
A43: 1 | C43: =C32 -> Soybeans | J43: Guarantee | K43: =IF(K42="","",K42*0.86) -> 638.98 | M43: per base acre | R43: =IF($D$8>=$R$40,IF($D$9>=3,1,0),0) -> 0 | S43: =IF($F$47>0,F43,G43) -> 0 | T43: =S43/$S$47 -> 0 | U43: =IF($F$47=0,0,M32*M14/IF(F32="Lbs",100,1)) -> 0 | V43: =IF(O32="","",O32*T43) -> 0 | W43: =IF($F$47=0,0,U43*T43) -> 0
A44: 1 | C44: =C33 ->  | R44: =IF($D$8>=$R$40,IF($D$9>=4,1,0),0) -> 0 | S44: =IF($F$47>0,F44,G44) -> 0 | T44: =S44/$S$47 -> 0 | U44: =IF($F$47=0,0,M33*M15/IF(F33="Lbs",100,1)) -> 0 | V44: =IF(O33="","",O33*T44) ->  | W44: =IF(ISERR(U44),"",IF($F$47=0,0,U44*T44)) -> 0
A45: 1 | C45: =C34 ->  | J45: Farm Revenue | K45: =IF(K43="","",IF(F47>0,W47,0)) -> 5 | M45: per base acre | R45: =IF($D$8>=$R$40,IF($D$9>=5,1,0),0) -> 0 | S45: =IF($F$47>0,F45,G45) -> 0 | T45: =S45/$S$47 -> 0 | U45: =IF($F$47=0,0,M34*M16/IF(F34="Lbs",100,1)) -> 0 | V45: =IF(O34="","",O34*T45) ->  | W45: =IF(ISERR(U45),"",IF($F$47=0,0,U45*T45)) -> 0
A46: 1 | C46: =C35 ->  | J46: ARC-IC Payment | K46: =IF(K43="","",(MAX(MIN(K42*0.1,K43-K45),0))*0.65) -> 48.295 | M46: per base acre | R46: =IF(K42="",10000,K42*0.1*0.65) -> 48.295 | S46: =IF($F$47>0,F46,G46) -> 0 | T46: =S46/$S$47 -> 0 | U46: =IF($F$47=0,0,M35*M17/IF(F35="Lbs",100,1)) -> 0 | V46: =IF(O35="","",O35*T46) ->  | W46: =IF(ISERR(U46),"",IF($F$47=0,0,U46*T46)) -> 0
A47: 1 | F47: =SUM(F42:F46) -> 1 | G47: =SUM(G42:G46) -> 1 | J47: ARC-IC Payment | K47: =IF(K43="","",K46*F26) -> 0 | M47: per farm | S47: =SUM(S42:S46) -> 1 | V47: =SUM(V42:V46) -> 743 | W47: =SUM(W42:W46) -> 5
A48: 1 | H48: =IF(K46=R46," ARC-IC is capped at max payment","") -> ARC-IC is capped at max payment
A49: 1 | C49: * See ARC-IC calculator (one farm) for notes on calculation methods
A50: 1
A51: 1 | C51: FSA FARM 2
A52: 1
A53: 1 | C53: FSA farm number | F53: Farm 2 | J53: Enter 100% of base acres and yield for the
A54: 1 | J54: FSA farm, even if share is less than 100%.
A55: 1 | C55: County of farm | F55: =F24 -> Adams | S55: =VLOOKUP(F55,$AF$716:$AG$918,2,FALSE) -> 17001
A56: 1
A57: 1 | C57: Base acres in farm | F57: 0
A58: 1 | O58: Crop
A59: 1 | G59: Yield | O59: Benchmark | T59: =$T$28 -> County Trend Adjusted Yields | Z59: T Yields | AF59: Used Yields | AL59: Used Prices | AR59: Revenue
A60: 1 | G60: =$G$11 -> 2016 | H60: =$H$11 -> 2017 | I60: =$I$11 -> 2018 | J60: =$J$11 -> 2019 | K60: =$K$11 -> 2020 | M60: =$D$7 -> 2022 | O60: Revenue | T60: =T$29 -> ta2016-22 | U60: =U$29 -> ta2017-22 | V60: =V$29 -> ta2018-22 | W60: =W$29 -> ta2019-22 | X60: =X$29 -> ta2020-22 | Z60: =Z29 -> ty2016 | AA60: =AA29 -> ty2017 | AB60: =AB29 -> ty2018 | AC60: =AC29 -> ty2019 | AD60: =AD29 -> ty2020 | AF60: =AF29 -> 2016 | AG60: =AG29 -> 2017 | AH60: =AH29 -> 2018 | AI60: =AI29 -> 2019 | AJ60: =AJ29 -> 2020 | AL60: =AL29 -> 2016 | AM60: =AM29 -> 2017 | AN60: =AN29 -> 2018 | AO60: =AO29 -> 2019 | AP60: =AP29 -> 2020 | AR60: =AR29 -> 2016 | AS60: =AS29 -> 2017 | AT60: =AT29 -> 2018 | AU60: =AU29 -> 2019 | AV60: =AV29 -> 2020
A61: 1
A62: 1 | C62: =C31 -> Corn | F62: =F31 -> Bu | O62: =IF(ISNA(T62),"",ROUND((SUM(AR62:AV62)-MAX(AR62:AV62)-MIN(AR62:AV62))/3,0)/IF(F62="lbs",100,1)) -> 779 | R62: =VLOOKUP(C62,'arc-ic'!$AI$135:$AJ$157,2,FALSE) -> 1 | S62: =($S$24*100+R62)*10+3 -> 17001013 | T62: =VLOOKUP($S62,icTAYield!$A:$AL,MATCH(T$29,icTAYield!$A$1:$AL$1,0),FALSE) -> 211.08 | U62: =VLOOKUP($S62,icTAYield!$A:$AL,MATCH(U$29,icTAYield!$A$1:$AL$1,0),FALSE) -> 208.78 | V62: =VLOOKUP($S62,icTAYield!$A:$AL,MATCH(V$29,icTAYield!$A$1:$AL$1,0),FALSE) -> 211.91 | W62: =VLOOKUP($S62,icTAYield!$A:$AL,MATCH(W$29,icTAYield!$A$1:$AL$1,0),FALSE) -> 181.58 | X62: =VLOOKUP($S62,icTAYield!$A:$AL,MATCH(X$29,icTAYield!$A$1:$AL$1,0),FALSE) -> 192.41 | Z62: =VLOOKUP($S62,Tyields!$A:$T,MATCH(Z$29,Tyields!$A$1:$T$1,0),FALSE) -> 128 | AA62: =VLOOKUP($S62,Tyields!$A:$T,MATCH(AA$29,Tyields!$A$1:$T$1,0),FALSE) -> 118.4 | AB62: =VLOOKUP($S62,Tyields!$A:$T,MATCH(AB$29,Tyields!$A$1:$T$1,0),FALSE) -> 118.4 | AC62: =VLOOKUP($S62,Tyields!$A:$T,MATCH(AC$29,Tyields!$A$1:$T$1,0),FALSE) -> 118.4 | AD62: =VLOOKUP($S62,Tyields!$A:$T,MATCH(AD$29,Tyields!$A$1:$T$1,0),FALSE) -> 129.6 | AF62: =IF(G62="",T62,IF(G62>Z62,G62,Z62)) -> 211.08 | AG62: 208.78 | AH62: 211.91 | AI62: 181.58 | AJ62: 192.41 | AL62: =$G$13 -> 3.7 | AM62: =$H$13 -> 3.7 | AN62: =$I$13 -> 3.7 | AO62: =$J$13 -> 3.7 | AP62: =$K$13 -> 4.53 | AR62: =(AF62*AL62)/$AF$13 -> 780.996 | AS62: =(AG62*AM62)/$AF$13 -> 772.486 | AT62: =(AH62*AN62)/$AF$13 -> 784.067 | AU62: =(AI62*AO62)/$AF$13 -> 671.846 | AV62: =(AJ62*AP62)/$AF$13 -> 871.6173
A63: 1 | C63: =C32 -> Soybeans | F63: =F32 -> Bu | O63: =IF(ISNA(T63),"",ROUND((SUM(AR63:AV63)-MAX(AR63:AV63)-MIN(AR63:AV63))/3,0)/IF(F63="lbs",100,1)) -> 579 | R63: =VLOOKUP(C63,'arc-ic'!$AI$135:$AJ$157,2,FALSE) -> 2 | S63: =($S$24*100+R63)*10+3 -> 17001023 | T63: =VLOOKUP($S63,icTAYield!$A:$AL,MATCH(T$29,icTAYield!$A$1:$AL$1,0),FALSE) -> 64.03 | U63: =VLOOKUP($S63,icTAYield!$A:$AL,MATCH(U$29,icTAYield!$A$1:$AL$1,0),FALSE) -> 61.89 | V63: =VLOOKUP($S63,icTAYield!$A:$AL,MATCH(V$29,icTAYield!$A$1:$AL$1,0),FALSE) -> 65.29 | W63: =VLOOKUP($S63,icTAYield!$A:$AL,MATCH(W$29,icTAYield!$A$1:$AL$1,0),FALSE) -> 57.1 | X63: =VLOOKUP($S63,icTAYield!$A:$AL,MATCH(X$29,icTAYield!$A$1:$AL$1,0),FALSE) -> 59.89 | Z63: =VLOOKUP($S63,Tyields!$A:$T,MATCH(Z$29,Tyields!$A$1:$T$1,0),FALSE) ->  | AA63: =VLOOKUP($S63,Tyields!$A:$T,MATCH(AA$29,Tyields!$A$1:$T$1,0),FALSE) ->  | AB63: =VLOOKUP($S63,Tyields!$A:$T,MATCH(AB$29,Tyields!$A$1:$T$1,0),FALSE) ->  | AC63: =VLOOKUP($S63,Tyields!$A:$T,MATCH(AC$29,Tyields!$A$1:$T$1,0),FALSE) ->  | AD63: =VLOOKUP($S63,Tyields!$A:$T,MATCH(AD$29,Tyields!$A$1:$T$1,0),FALSE) ->  | AF63: 64.03 | AG63: 61.89 | AH63: 65.29 | AI63: 57.1 | AJ63: 59.89 | AL63: =$G$14 -> 9.47 | AM63: =$H$14 -> 9.33 | AN63: =$I$14 -> 8.48 | AO63: =$J$14 -> 8.57 | AP63: =$K$14 -> 10.8 | AR63: =(AF63*AL63)/$AF$14 -> 606.3641 | AS63: =(AG63*AM63)/$AF$14 -> 577.4337 | AT63: =(AH63*AN63)/$AF$14 -> 553.6592 | AU63: =(AI63*AO63)/$AF$14 -> 489.347 | AV63: =(AJ63*AP63)/$AF$14 -> 646.812
A64: =IF($D$9>=3,1,0) -> 0 | C64: =C33 ->  | F64: =F33 ->  | O64: =IF(ISNA(T64),"",ROUND((SUM(AR64:AV64)-MAX(AR64:AV64)-MIN(AR64:AV64))/3,0)/IF(F64="lbs",100,1)) ->  | R64: =VLOOKUP(C64,'arc-ic'!$AI$135:$AJ$157,2,FALSE) ->  | S64: =($S$24*100+R64)*10+3 ->  | T64: =VLOOKUP($S64,icTAYield!$A:$AL,MATCH(T$29,icTAYield!$A$1:$AL$1,0),FALSE) ->  | U64: =VLOOKUP($S64,icTAYield!$A:$AL,MATCH(U$29,icTAYield!$A$1:$AL$1,0),FALSE) ->  | V64: =VLOOKUP($S64,icTAYield!$A:$AL,MATCH(V$29,icTAYield!$A$1:$AL$1,0),FALSE) ->  | W64: =VLOOKUP($S64,icTAYield!$A:$AL,MATCH(W$29,icTAYield!$A$1:$AL$1,0),FALSE) ->  | X64: =VLOOKUP($S64,icTAYield!$A:$AL,MATCH(X$29,icTAYield!$A$1:$AL$1,0),FALSE) ->  | Z64: =VLOOKUP($S64,Tyields!$A:$T,MATCH(Z$29,Tyields!$A$1:$T$1,0),FALSE) ->  | AA64: =VLOOKUP($S64,Tyields!$A:$T,MATCH(AA$29,Tyields!$A$1:$T$1,0),FALSE) ->  | AB64: =VLOOKUP($S64,Tyields!$A:$T,MATCH(AB$29,Tyields!$A$1:$T$1,0),FALSE) ->  | AC64: =VLOOKUP($S64,Tyields!$A:$T,MATCH(AC$29,Tyields!$A$1:$T$1,0),FALSE) ->  | AD64: =VLOOKUP($S64,Tyields!$A:$T,MATCH(AD$29,Tyields!$A$1:$T$1,0),FALSE) ->  | AL64: =$G$15 ->  | AM64: =$H$15 ->  | AN64: =$I$15 ->  | AO64: =$J$15 ->  | AP64: =$K$15 ->  | AR64: =(AF64*AL64)/$AF$15 ->  | AS64: =(AG64*AM64)/$AF$15 ->  | AT64: =(AH64*AN64)/$AF$15 ->  | AU64: =(AI64*AO64)/$AF$15 ->  | AV64: =(AJ64*AP64)/$AF$15 -> 
A65: =IF($D$9>=4,1,0) -> 0 | C65: =C34 ->  | F65: =F34 ->  | O65: =IF(ISNA(T65),"",ROUND((SUM(AR65:AV65)-MAX(AR65:AV65)-MIN(AR65:AV65))/3,0)/IF(F65="lbs",100,1)) ->  | R65: =VLOOKUP(C65,'arc-ic'!$AI$135:$AJ$157,2,FALSE) ->  | S65: =($S$24*100+R65)*10+3 ->  | T65: =VLOOKUP($S65,icTAYield!$A:$AL,MATCH(T$29,icTAYield!$A$1:$AL$1,0),FALSE) ->  | U65: =VLOOKUP($S65,icTAYield!$A:$AL,MATCH(U$29,icTAYield!$A$1:$AL$1,0),FALSE) ->  | V65: =VLOOKUP($S65,icTAYield!$A:$AL,MATCH(V$29,icTAYield!$A$1:$AL$1,0),FALSE) ->  | W65: =VLOOKUP($S65,icTAYield!$A:$AL,MATCH(W$29,icTAYield!$A$1:$AL$1,0),FALSE) ->  | X65: =VLOOKUP($S65,icTAYield!$A:$AL,MATCH(X$29,icTAYield!$A$1:$AL$1,0),FALSE) ->  | Z65: =VLOOKUP($S65,Tyields!$A:$T,MATCH(Z$29,Tyields!$A$1:$T$1,0),FALSE) ->  | AA65: =VLOOKUP($S65,Tyields!$A:$T,MATCH(AA$29,Tyields!$A$1:$T$1,0),FALSE) ->  | AB65: =VLOOKUP($S65,Tyields!$A:$T,MATCH(AB$29,Tyields!$A$1:$T$1,0),FALSE) ->  | AC65: =VLOOKUP($S65,Tyields!$A:$T,MATCH(AC$29,Tyields!$A$1:$T$1,0),FALSE) ->  | AD65: =VLOOKUP($S65,Tyields!$A:$T,MATCH(AD$29,Tyields!$A$1:$T$1,0),FALSE) ->  | AL65: =$G$16 ->  | AM65: =$H$16 ->  | AN65: =$I$16 ->  | AO65: =$J$16 ->  | AP65: =$K$16 ->  | AR65: =(AF65*AL65)/$AF$16 ->  | AS65: =(AG65*AM65)/$AF$16 ->  | AT65: =(AH65*AN65)/$AF$16 ->  | AU65: =(AI65*AO65)/$AF$16 ->  | AV65: =(AJ65*AP65)/$AF$16 -> 
A66: =IF($D$9>=5,1,0) -> 0 | C66: =C35 ->  | F66: =F35 ->  | O66: =IF(ISNA(T66),"",ROUND((SUM(AR66:AV66)-MAX(AR66:AV66)-MIN(AR66:AV66))/3,0)/IF(F66="lbs",100,1)) ->  | R66: =VLOOKUP(C66,'arc-ic'!$AI$135:$AJ$157,2,FALSE) ->  | S66: =($S$24*100+R66)*10+3 ->  | T66: =VLOOKUP($S66,icTAYield!$A:$AL,MATCH(T$29,icTAYield!$A$1:$AL$1,0),FALSE) ->  | U66: =VLOOKUP($S66,icTAYield!$A:$AL,MATCH(U$29,icTAYield!$A$1:$AL$1,0),FALSE) ->  | V66: =VLOOKUP($S66,icTAYield!$A:$AL,MATCH(V$29,icTAYield!$A$1:$AL$1,0),FALSE) ->  | W66: =VLOOKUP($S66,icTAYield!$A:$AL,MATCH(W$29,icTAYield!$A$1:$AL$1,0),FALSE) ->  | X66: =VLOOKUP($S66,icTAYield!$A:$AL,MATCH(X$29,icTAYield!$A$1:$AL$1,0),FALSE) ->  | Z66: =VLOOKUP($S66,Tyields!$A:$T,MATCH(Z$29,Tyields!$A$1:$T$1,0),FALSE) ->  | AA66: =VLOOKUP($S66,Tyields!$A:$T,MATCH(AA$29,Tyields!$A$1:$T$1,0),FALSE) ->  | AB66: =VLOOKUP($S66,Tyields!$A:$T,MATCH(AB$29,Tyields!$A$1:$T$1,0),FALSE) ->  | AC66: =VLOOKUP($S66,Tyields!$A:$T,MATCH(AC$29,Tyields!$A$1:$T$1,0),FALSE) ->  | AD66: =VLOOKUP($S66,Tyields!$A:$T,MATCH(AD$29,Tyields!$A$1:$T$1,0),FALSE) ->  | AL66: =$G$17 ->  | AM66: =$H$17 ->  | AN66: =$I$17 ->  | AO66: =$J$17 ->  | AP66: =$K$17 ->  | AR66: =(AF66*AL66)/$AF$17 ->  | AS66: =(AG66*AM66)/$AF$17 ->  | AT66: =(AH66*AN66)/$AF$17 ->  | AU66: =(AI66*AO66)/$AF$17 ->  | AV66: =(AJ66*AP66)/$AF$17 -> 
A67: 1 | G67: (blanks indicate not planted, any entry indicates planted that year)
A68: 1 | G68: =$D$7 -> 2022
A69: 1 | F69: =$D$7 -> 2022 | G69: Prevent
A70: 1 | F70: Planted | G70: Plant
A71: 1 | F71: Acre | G71: Acres | H71: Single Farm ARC-IC Payment | R71: 2
A72: 1 | R72: =IF($D$8>=$R$40,IF($D$9>=1,1,0),0) -> 1
A73: 1 | C73: =C62 -> Corn | J73: Benchmark Revenue | K73: =IF(ISERR(V78),"",V78) ->  | M73: per base acre | R73: =IF($D$8>=$R$71,IF($D$9>=2,1,0),0) -> 1 | S73: =IF($F$78>0,F73,G73) -> 0 | T73: =S73/$S$78 ->  | U73: =IF($F$78=0,0,M62*M13/IF(F62="Lbs",100,1)) -> 0 | V73: =IF(O62="","",O62*T73) ->  | W73: =IF($F$78=0,0,U73*T73) -> 0
A74: 1 | C74: =C63 -> Soybeans | J74: Guarantee | K74: =IF(K73="","",K73*0.86) ->  | M74: per base acre | R74: =IF($D$8>=$R$71,IF($D$9>=3,1,0),0) -> 0 | S74: =IF($F$78>0,F74,G74) -> 0 | T74: =S74/$S$78 ->  | U74: =IF($F$78=0,0,M63*M14/IF(F63="Lbs",100,1)) -> 0 | V74: =IF(O63="","",O63*T74) ->  | W74: =IF($F$78=0,0,U74*T74) -> 0
A75: 1 | C75: =C64 ->  | R75: =IF($D$8>=$R$71,IF($D$9>=4,1,0),0) -> 0 | S75: =IF($F$78>0,F75,G75) -> 0 | T75: =S75/$S$78 ->  | U75: =IF($F$78=0,0,M64*M15/IF(F64="Lbs",100,1)) -> 0 | V75: =IF(O64="","",O64*T75) ->  | W75: =IF(ISERR(U75),"",IF($F$78=0,0,U75*T75)) -> 0
A76: 1 | C76: =C65 ->  | J76: Farm Revenue | K76: =IF(K73="","",IF(F78>0,W78,0)) ->  | M76: per base acre | R76: =IF($D$8>=$R$71,IF($D$9>=5,1,0),0) -> 0 | S76: =IF($F$78>0,F76,G76) -> 0 | T76: =S76/$S$78 ->  | U76: =IF($F$78=0,0,M65*M16/IF(F65="Lbs",100,1)) -> 0 | V76: =IF(O65="","",O65*T76) ->  | W76: =IF(ISERR(U76),"",IF($F$78=0,0,U76*T76)) -> 0
A77: 1 | C77: =C66 ->  | J77: ARC-IC Payment | K77: =IF(K73="","",(MAX(MIN(K73*0.1,K74-K76),0))*0.65) ->  | M77: per base acre | R77: =IF(K73="",10000,K73*0.1*0.65) -> 10000 | S77: =IF($F$78>0,F77,G77) -> 0 | T77: =S77/$S$78 ->  | U77: =IF($F$78=0,0,M66*M17/IF(F66="Lbs",100,1)) -> 0 | V77: =IF(O66="","",O66*T77) ->  | W77: =IF(ISERR(U77),"",IF($F$78=0,0,U77*T77)) -> 0
A78: 1 | F78: =SUM(F73:F77) -> 0 | G78: =SUM(G73:G77) -> 0 | J78: ARC-IC Payment | K78: =IF(K73="","",K77*F57) ->  | M78: per farm | S78: =SUM(S73:S77) -> 0 | V78: =SUM(V73:V77) ->  | W78: =SUM(W73:W77) -> 0
A79: 1 | H79: =IF(K77=R77," ARC-IC is capped at max payment","") -> 
A80: 1 | C80: * See ARC-IC calculator (one farm) for notes on calculation methods
A81: 1
A82: =IF($D$8>=3,1,0) -> 0 | C82: FSA FARM 3
A83: 0
A84: 0 | C84: FSA farm number | F84: Farm 3 | J84: Enter 100% of base acres and yield for the
A85: 0 | J85: FSA farm, even if share is less than 100%
A86: 0 | C86: County of farm | F86: =F24 -> Adams | S86: =VLOOKUP(F86,$AF$716:$AG$918,2,FALSE) -> 17001
A87: 0
A88: 0 | C88: Base acres in farm | F88: 0
A89: 0 | O89: Crop
A90: 0 | G90: Yield | O90: Benchmark | T90: =$T$28 -> County Trend Adjusted Yields | Z90: T Yields | AF90: Used Yields | AL90: Used Prices | AR90: Revenue
A91: 0 | G91: =$G$11 -> 2016 | H91: =$H$11 -> 2017 | I91: =$I$11 -> 2018 | J91: =$J$11 -> 2019 | K91: =$K$11 -> 2020 | M91: =$D$7 -> 2022 | O91: Revenue | T91: =T$29 -> ta2016-22 | U91: =U$29 -> ta2017-22 | V91: =V$29 -> ta2018-22 | W91: =W$29 -> ta2019-22 | X91: =X$29 -> ta2020-22 | Z91: =Z60 -> ty2016 | AA91: =AA60 -> ty2017 | AB91: =AB60 -> ty2018 | AC91: =AC60 -> ty2019 | AD91: =AD60 -> ty2020 | AF91: =AF60 -> 2016 | AG91: =AG60 -> 2017 | AH91: =AH60 -> 2018 | AI91: =AI60 -> 2019 | AJ91: =AJ60 -> 2020 | AL91: =AL60 -> 2016 | AM91: =AM60 -> 2017 | AN91: =AN60 -> 2018 | AO91: =AO60 -> 2019 | AP91: =AP60 -> 2020 | AR91: =AR60 -> 2016 | AS91: =AS60 -> 2017 | AT91: =AT60 -> 2018 | AU91: =AU60 -> 2019 | AV91: =AV60 -> 2020
A92: 0
A93: 0 | C93: =C62 -> Corn | F93: =F62 -> Bu | L93: 200 | O93: =IF(ISNA(T93),"",ROUND((SUM(AR93:AV93)-MAX(AR93:AV93)-MIN(AR93:AV93))/3,0)/IF(F93="lbs",100,1)) -> 779 | R93: =VLOOKUP(C93,'arc-ic'!$AI$135:$AJ$157,2,FALSE) -> 1 | S93: =($S$24*100+R93)*10+3 -> 17001013 | T93: =VLOOKUP($S93,icTAYield!$A:$AL,MATCH(T$29,icTAYield!$A$1:$AL$1,0),FALSE) -> 211.08 | U93: =VLOOKUP($S93,icTAYield!$A:$AL,MATCH(U$29,icTAYield!$A$1:$AL$1,0),FALSE) -> 208.78 | V93: =VLOOKUP($S93,icTAYield!$A:$AL,MATCH(V$29,icTAYield!$A$1:$AL$1,0),FALSE) -> 211.91 | W93: =VLOOKUP($S93,icTAYield!$A:$AL,MATCH(W$29,icTAYield!$A$1:$AL$1,0),FALSE) -> 181.58 | X93: =VLOOKUP($S93,icTAYield!$A:$AL,MATCH(X$29,icTAYield!$A$1:$AL$1,0),FALSE) -> 192.41 | Z93: =VLOOKUP($S93,Tyields!$A:$T,MATCH(Z$29,Tyields!$A$1:$T$1,0),FALSE) -> 128 | AA93: =VLOOKUP($S93,Tyields!$A:$T,MATCH(AA$29,Tyields!$A$1:$T$1,0),FALSE) -> 118.4 | AB93: =VLOOKUP($S93,Tyields!$A:$T,MATCH(AB$29,Tyields!$A$1:$T$1,0),FALSE) -> 118.4 | AC93: =VLOOKUP($S93,Tyields!$A:$T,MATCH(AC$29,Tyields!$A$1:$T$1,0),FALSE) -> 118.4 | AD93: =VLOOKUP($S93,Tyields!$A:$T,MATCH(AD$29,Tyields!$A$1:$T$1,0),FALSE) -> 129.6 | AF93: =IF(G93="",T93,IF(G93>Z93,G93,Z93)) -> 211.08 | AG93: 208.78 | AH93: 211.91 | AI93: 181.58 | AJ93: 192.41 | AL93: =$G$13 -> 3.7 | AM93: =$H$13 -> 3.7 | AN93: =$I$13 -> 3.7 | AO93: =$J$13 -> 3.7 | AP93: =$K$13 -> 4.53 | AR93: =(AF93*AL93)/$AF$13 -> 780.996 | AS93: =(AG93*AM93)/$AF$13 -> 772.486 | AT93: =(AH93*AN93)/$AF$13 -> 784.067 | AU93: =(AI93*AO93)/$AF$13 -> 671.846 | AV93: =(AJ93*AP93)/$AF$13 -> 871.6173
A94: =IF($D$8>=3,IF($D$9>=2,1,0),0) -> 0 | C94: =C63 -> Soybeans | F94: =F63 -> Bu | O94: =IF(ISNA(T94),"",ROUND((SUM(AR94:AV94)-MAX(AR94:AV94)-MIN(AR94:AV94))/3,0)/IF(F94="lbs",100,1)) -> 579 | R94: =VLOOKUP(C94,'arc-ic'!$AI$135:$AJ$157,2,FALSE) -> 2 | S94: =($S$24*100+R94)*10+3 -> 17001023 | T94: =VLOOKUP($S94,icTAYield!$A:$AL,MATCH(T$29,icTAYield!$A$1:$AL$1,0),FALSE) -> 64.03 | U94: =VLOOKUP($S94,icTAYield!$A:$AL,MATCH(U$29,icTAYield!$A$1:$AL$1,0),FALSE) -> 61.89 | V94: =VLOOKUP($S94,icTAYield!$A:$AL,MATCH(V$29,icTAYield!$A$1:$AL$1,0),FALSE) -> 65.29 | W94: =VLOOKUP($S94,icTAYield!$A:$AL,MATCH(W$29,icTAYield!$A$1:$AL$1,0),FALSE) -> 57.1 | X94: =VLOOKUP($S94,icTAYield!$A:$AL,MATCH(X$29,icTAYield!$A$1:$AL$1,0),FALSE) -> 59.89 | Z94: =VLOOKUP($S94,Tyields!$A:$T,MATCH(Z$29,Tyields!$A$1:$T$1,0),FALSE) ->  | AA94: =VLOOKUP($S94,Tyields!$A:$T,MATCH(AA$29,Tyields!$A$1:$T$1,0),FALSE) ->  | AB94: =VLOOKUP($S94,Tyields!$A:$T,MATCH(AB$29,Tyields!$A$1:$T$1,0),FALSE) ->  | AC94: =VLOOKUP($S94,Tyields!$A:$T,MATCH(AC$29,Tyields!$A$1:$T$1,0),FALSE) ->  | AD94: =VLOOKUP($S94,Tyields!$A:$T,MATCH(AD$29,Tyields!$A$1:$T$1,0),FALSE) ->  | AF94: 64.03 | AG94: 61.89 | AH94: 65.29 | AI94: 57.1 | AJ94: 59.89 | AL94: =$G$14 -> 9.47 | AM94: =$H$14 -> 9.33 | AN94: =$I$14 -> 8.48 | AO94: =$J$14 -> 8.57 | AP94: =$K$14 -> 10.8 | AR94: =(AF94*AL94)/$AF$14 -> 606.3641 | AS94: =(AG94*AM94)/$AF$14 -> 577.4337 | AT94: =(AH94*AN94)/$AF$14 -> 553.6592 | AU94: =(AI94*AO94)/$AF$14 -> 489.347 | AV94: =(AJ94*AP94)/$AF$14 -> 646.812
A95: =IF($D$8>=3,IF($D$9>=3,1,0),0) -> 0 | C95: =C64 ->  | F95: =F64 ->  | O95: =IF(ISNA(T95),"",ROUND((SUM(AR95:AV95)-MAX(AR95:AV95)-MIN(AR95:AV95))/3,0)/IF(F95="lbs",100,1)) ->  | R95: =VLOOKUP(C95,'arc-ic'!$AI$135:$AJ$157,2,FALSE) ->  | S95: =($S$24*100+R95)*10+3 ->  | T95: =VLOOKUP($S95,icTAYield!$A:$AL,MATCH(T$29,icTAYield!$A$1:$AL$1,0),FALSE) ->  | U95: =VLOOKUP($S95,icTAYield!$A:$AL,MATCH(U$29,icTAYield!$A$1:$AL$1,0),FALSE) ->  | V95: =VLOOKUP($S95,icTAYield!$A:$AL,MATCH(V$29,icTAYield!$A$1:$AL$1,0),FALSE) ->  | W95: =VLOOKUP($S95,icTAYield!$A:$AL,MATCH(W$29,icTAYield!$A$1:$AL$1,0),FALSE) ->  | X95: =VLOOKUP($S95,icTAYield!$A:$AL,MATCH(X$29,icTAYield!$A$1:$AL$1,0),FALSE) ->  | Z95: =VLOOKUP($S95,Tyields!$A:$T,MATCH(Z$29,Tyields!$A$1:$T$1,0),FALSE) ->  | AA95: =VLOOKUP($S95,Tyields!$A:$T,MATCH(AA$29,Tyields!$A$1:$T$1,0),FALSE) ->  | AB95: =VLOOKUP($S95,Tyields!$A:$T,MATCH(AB$29,Tyields!$A$1:$T$1,0),FALSE) ->  | AC95: =VLOOKUP($S95,Tyields!$A:$T,MATCH(AC$29,Tyields!$A$1:$T$1,0),FALSE) ->  | AD95: =VLOOKUP($S95,Tyields!$A:$T,MATCH(AD$29,Tyields!$A$1:$T$1,0),FALSE) ->  | AL95: =$G$15 ->  | AM95: =$H$15 ->  | AN95: =$I$15 ->  | AO95: =$J$15 ->  | AP95: =$K$15 ->  | AR95: =(AF95*AL95)/$AF$15 ->  | AS95: =(AG95*AM95)/$AF$15 ->  | AT95: =(AH95*AN95)/$AF$15 ->  | AU95: =(AI95*AO95)/$AF$15 ->  | AV95: =(AJ95*AP95)/$AF$15 -> 
A96: =IF($D$8>=3,IF($D$9>=4,1,0),0) -> 0 | C96: =C65 ->  | F96: =F65 ->  | O96: =IF(ISNA(T96),"",ROUND((SUM(AR96:AV96)-MAX(AR96:AV96)-MIN(AR96:AV96))/3,0)/IF(F96="lbs",100,1)) ->  | R96: =VLOOKUP(C96,'arc-ic'!$AI$135:$AJ$157,2,FALSE) ->  | S96: =($S$24*100+R96)*10+3 ->  | T96: =VLOOKUP($S96,icTAYield!$A:$AL,MATCH(T$29,icTAYield!$A$1:$AL$1,0),FALSE) ->  | U96: =VLOOKUP($S96,icTAYield!$A:$AL,MATCH(U$29,icTAYield!$A$1:$AL$1,0),FALSE) ->  | V96: =VLOOKUP($S96,icTAYield!$A:$AL,MATCH(V$29,icTAYield!$A$1:$AL$1,0),FALSE) ->  | W96: =VLOOKUP($S96,icTAYield!$A:$AL,MATCH(W$29,icTAYield!$A$1:$AL$1,0),FALSE) ->  | X96: =VLOOKUP($S96,icTAYield!$A:$AL,MATCH(X$29,icTAYield!$A$1:$AL$1,0),FALSE) ->  | Z96: =VLOOKUP($S96,Tyields!$A:$T,MATCH(Z$29,Tyields!$A$1:$T$1,0),FALSE) ->  | AA96: =VLOOKUP($S96,Tyields!$A:$T,MATCH(AA$29,Tyields!$A$1:$T$1,0),FALSE) ->  | AB96: =VLOOKUP($S96,Tyields!$A:$T,MATCH(AB$29,Tyields!$A$1:$T$1,0),FALSE) ->  | AC96: =VLOOKUP($S96,Tyields!$A:$T,MATCH(AC$29,Tyields!$A$1:$T$1,0),FALSE) ->  | AD96: =VLOOKUP($S96,Tyields!$A:$T,MATCH(AD$29,Tyields!$A$1:$T$1,0),FALSE) ->  | AL96: =$G$16 ->  | AM96: =$H$16 ->  | AN96: =$I$16 ->  | AO96: =$J$16 ->  | AP96: =$K$16 ->  | AR96: =(AF96*AL96)/$AF$16 ->  | AS96: =(AG96*AM96)/$AF$16 ->  | AT96: =(AH96*AN96)/$AF$16 ->  | AU96: =(AI96*AO96)/$AF$16 ->  | AV96: =(AJ96*AP96)/$AF$16 -> 
A97: =IF($D$8>=3,IF($D$9>=5,1,0),0) -> 0 | C97: =C66 ->  | F97: =F66 ->  | O97: =IF(ISNA(T97),"",ROUND((SUM(AR97:AV97)-MAX(AR97:AV97)-MIN(AR97:AV97))/3,0)/IF(F97="lbs",100,1)) ->  | R97: =VLOOKUP(C97,'arc-ic'!$AI$135:$AJ$157,2,FALSE) ->  | S97: =($S$24*100+R97)*10+3 ->  | T97: =VLOOKUP($S97,icTAYield!$A:$AL,MATCH(T$29,icTAYield!$A$1:$AL$1,0),FALSE) ->  | U97: =VLOOKUP($S97,icTAYield!$A:$AL,MATCH(U$29,icTAYield!$A$1:$AL$1,0),FALSE) ->  | V97: =VLOOKUP($S97,icTAYield!$A:$AL,MATCH(V$29,icTAYield!$A$1:$AL$1,0),FALSE) ->  | W97: =VLOOKUP($S97,icTAYield!$A:$AL,MATCH(W$29,icTAYield!$A$1:$AL$1,0),FALSE) ->  | X97: =VLOOKUP($S97,icTAYield!$A:$AL,MATCH(X$29,icTAYield!$A$1:$AL$1,0),FALSE) ->  | Z97: =VLOOKUP($S97,Tyields!$A:$T,MATCH(Z$29,Tyields!$A$1:$T$1,0),FALSE) ->  | AA97: =VLOOKUP($S97,Tyields!$A:$T,MATCH(AA$29,Tyields!$A$1:$T$1,0),FALSE) ->  | AB97: =VLOOKUP($S97,Tyields!$A:$T,MATCH(AB$29,Tyields!$A$1:$T$1,0),FALSE) ->  | AC97: =VLOOKUP($S97,Tyields!$A:$T,MATCH(AC$29,Tyields!$A$1:$T$1,0),FALSE) ->  | AD97: =VLOOKUP($S97,Tyields!$A:$T,MATCH(AD$29,Tyields!$A$1:$T$1,0),FALSE) ->  | AL97: =$G$17 ->  | AM97: =$H$17 ->  | AN97: =$I$17 ->  | AO97: =$J$17 ->  | AP97: =$K$17 ->  | AR97: =(AF97*AL97)/$AF$17 ->  | AS97: =(AG97*AM97)/$AF$17 ->  | AT97: =(AH97*AN97)/$AF$17 ->  | AU97: =(AI97*AO97)/$AF$17 ->  | AV97: =(AJ97*AP97)/$AF$17 -> 
A98: 0 | G98: (blanks indicate not planted, any entry indicates planted that year)
A99: 0 | G99: =$D$7 -> 2022
A100: 0 | F100: =$D$7 -> 2022 | G100: Prevent
A101: 0 | F101: Planted | G101: Plant
A102: 0 | F102: Acre | G102: Acres | H102: Single Farm ARC-IC Payment | R102: 3
A103: 0 | R103: =IF($D$8>=$R$102,IF($D$9>=1,1,0),0) -> 0
A104: 0 | C104: =C93 -> Corn | J104: Benchmark Revenue | K104: =IF(ISERR(V109),"",V109) ->  | M104: per base acre | R104: =IF($D$8>=$R$102,IF($D$9>=2,1,0),0) -> 0 | S104: =IF($F$109>0,F104,G104) -> 0 | T104: =S104/$S$109 ->  | U104: =IF($F$109=0,0,M93*$M13/IF(F93="Lbs",100,1)) -> 0 | V104: =IF(O93="","",O93*T104) ->  | W104: =IF($F$109=0,0,U104*T104) -> 0
A105: 0 | C105: =C94 -> Soybeans | J105: Guarantee | K105: =IF(K104="","",K104*0.86) ->  | M105: per base acre | R105: =IF($D$8>=$R$102,IF($D$9>=3,1,0),0) -> 0 | S105: =IF($F$109>0,F105,G105) -> 0 | T105: =S105/$S$109 ->  | U105: =IF($F$109=0,0,M94*$M14/IF(F94="Lbs",100,1)) -> 0 | V105: =IF(O94="","",O94*T105) ->  | W105: =IF($F$109=0,0,U105*T105) -> 0
A106: 0 | C106: =C95 ->  | R106: =IF($D$8>=$R$102,IF($D$9>=4,1,0),0) -> 0 | S106: =IF($F$109>0,F106,G106) -> 0 | T106: =S106/$S$109 ->  | U106: =IF($F$109=0,0,M95*$M15/IF(F95="Lbs",100,1)) -> 0 | V106: =IF(O95="","",O95*T106) ->  | W106: =IF(ISERR(U106),"",IF($F$109=0,0,U106*T106)) -> 0
A107: 0 | C107: =C96 ->  | J107: Farm Revenue | K107: =IF(K104="","",IF(F109>0,W109,0)) ->  | M107: per base acre | R107: =IF($D$8>=$R$102,IF($D$9>=5,1,0),0) -> 0 | S107: =IF($F$109>0,F107,G107) -> 0 | T107: =S107/$S$109 ->  | U107: =IF($F$109=0,0,M96*$M16/IF(F96="Lbs",100,1)) -> 0 | V107: =IF(O96="","",O96*T107) ->  | W107: =IF(ISERR(U107),"",IF($F$109=0,0,U107*T107)) -> 0
A108: 0 | C108: =C97 ->  | J108: ARC-IC Payment | K108: =IF(K104="","",(MAX(MIN(K104*0.1,K105-K107),0))*0.65) ->  | M108: per base acre | R108: =IF(K104="",10000,K104*0.1*0.65) -> 10000 | S108: =IF($F$109>0,F108,G108) -> 0 | T108: =S108/$S$109 ->  | U108: =IF($F$109=0,0,M97*$M17/IF(F97="Lbs",100,1)) -> 0 | V108: =IF(O97="","",O97*T108) ->  | W108: =IF(ISERR(U108),"",IF($F$109=0,0,U108*T108)) -> 0
A109: 0 | F109: =SUM(F104:F108) -> 0 | G109: =SUM(G104:G108) -> 0 | J109: ARC-IC Payment | K109: =IF(K104="","",K108*F88) ->  | M109: per farm | S109: =SUM(S104:S108) -> 0 | V109: =SUM(V104:V108) ->  | W109: =SUM(W104:W108) -> 0
A110: 0 | H110: =IF(K108=R108," ARC-IC is capped at max payment","") -> 
A111: 0 | C111: * See ARC-IC calculator (one farm) for notes on calculation methods
A112: 0
A113: =IF($D$8>=4,1,0) -> 0 | C113: FSA FARM 4
A114: =IF($D$8>=4,1,0) -> 0
A115: 0 | C115: FSA farm number | F115: Farm 4 | J115: Enter 100% of base acres and yield for the
A116: 0 | J116: FSA farm, even if share is less than 100%.
A117: 0 | C117: County of farm | F117: =F24 -> Adams | S117: =VLOOKUP(F117,$AF$716:$AG$918,2,FALSE) -> 17001
A118: 0
A119: 0 | C119: Base acres in farm | F119: 0
A120: 0 | O120: Crop
A121: 0 | G121: Yield | O121: Benchmark | T121: =$T$28 -> County Trend Adjusted Yields | Z121: T Yields | AF121: Used Yields | AL121: Used Prices | AR121: Revenue
A122: 0 | G122: =$G$11 -> 2016 | H122: =$H$11 -> 2017 | I122: =$I$11 -> 2018 | J122: =$J$11 -> 2019 | K122: =$K$11 -> 2020 | M122: =$D$7 -> 2022 | O122: Revenue | T122: =T$29 -> ta2016-22 | U122: =U$29 -> ta2017-22 | V122: =V$29 -> ta2018-22 | W122: =W$29 -> ta2019-22 | X122: =X$29 -> ta2020-22 | Z122: =Z91 -> ty2016 | AA122: =AA91 -> ty2017 | AB122: =AB91 -> ty2018 | AC122: =AC91 -> ty2019 | AD122: =AD91 -> ty2020 | AF122: =AF91 -> 2016 | AG122: =AG91 -> 2017 | AH122: =AH91 -> 2018 | AI122: =AI91 -> 2019 | AJ122: =AJ91 -> 2020 | AL122: =AL91 -> 2016 | AM122: =AM91 -> 2017 | AN122: =AN91 -> 2018 | AO122: =AO91 -> 2019 | AP122: =AP91 -> 2020 | AR122: =AR91 -> 2016 | AS122: =AS91 -> 2017 | AT122: =AT91 -> 2018 | AU122: =AU91 -> 2019 | AV122: =AV91 -> 2020
A123: 0
A124: 0 | C124: =C93 -> Corn | F124: =F93 -> Bu | O124: =IF(ISNA(T124),"",ROUND((SUM(AR124:AV124)-MAX(AR124:AV124)-MIN(AR124:AV124))/3,0)/IF(F124="lbs",100,1)) -> 779 | R124: =VLOOKUP(C124,'arc-ic'!$AI$135:$AJ$157,2,FALSE) -> 1 | S124: =($S$24*100+R124)*10+3 -> 17001013 | T124: =VLOOKUP($S124,icTAYield!$A:$AL,MATCH(T$29,icTAYield!$A$1:$AL$1,0),FALSE) -> 211.08 | U124: =VLOOKUP($S124,icTAYield!$A:$AL,MATCH(U$29,icTAYield!$A$1:$AL$1,0),FALSE) -> 208.78 | V124: =VLOOKUP($S124,icTAYield!$A:$AL,MATCH(V$29,icTAYield!$A$1:$AL$1,0),FALSE) -> 211.91 | W124: =VLOOKUP($S124,icTAYield!$A:$AL,MATCH(W$29,icTAYield!$A$1:$AL$1,0),FALSE) -> 181.58 | X124: =VLOOKUP($S124,icTAYield!$A:$AL,MATCH(X$29,icTAYield!$A$1:$AL$1,0),FALSE) -> 192.41 | Z124: =VLOOKUP($S124,Tyields!$A:$T,MATCH(Z$29,Tyields!$A$1:$T$1,0),FALSE) -> 128 | AA124: =VLOOKUP($S124,Tyields!$A:$T,MATCH(AA$29,Tyields!$A$1:$T$1,0),FALSE) -> 118.4 | AB124: =VLOOKUP($S124,Tyields!$A:$T,MATCH(AB$29,Tyields!$A$1:$T$1,0),FALSE) -> 118.4 | AC124: =VLOOKUP($S124,Tyields!$A:$T,MATCH(AC$29,Tyields!$A$1:$T$1,0),FALSE) -> 118.4 | AD124: =VLOOKUP($S124,Tyields!$A:$T,MATCH(AD$29,Tyields!$A$1:$T$1,0),FALSE) -> 129.6 | AF124: =IF(G124="",T124,IF(G124>Z124,G124,Z124)) -> 211.08 | AG124: 208.78 | AH124: 211.91 | AI124: 181.58 | AJ124: 192.41 | AL124: =$G$13 -> 3.7 | AM124: =$H$13 -> 3.7 | AN124: =$I$13 -> 3.7 | AO124: =$J$13 -> 3.7 | AP124: =$K$13 -> 4.53 | AR124: =(AF124*AL124)/$AF$13 -> 780.996 | AS124: =(AG124*AM124)/$AF$13 -> 772.486 | AT124: =(AH124*AN124)/$AF$13 -> 784.067 | AU124: =(AI124*AO124)/$AF$13 -> 671.846 | AV124: =(AJ124*AP124)/$AF$13 -> 871.6173
A125: =IF($D$8>=4,IF($D$9>=2,1,0),0) -> 0 | C125: =C94 -> Soybeans | F125: =F94 -> Bu | O125: =IF(ISNA(T125),"",ROUND((SUM(AR125:AV125)-MAX(AR125:AV125)-MIN(AR125:AV125))/3,0)/IF(F125="lbs",100,1)) -> 579 | R125: =VLOOKUP(C125,'arc-ic'!$AI$135:$AJ$157,2,FALSE) -> 2 | S125: =($S$24*100+R125)*10+3 -> 17001023 | T125: =VLOOKUP($S125,icTAYield!$A:$AL,MATCH(T$29,icTAYield!$A$1:$AL$1,0),FALSE) -> 64.03 | U125: =VLOOKUP($S125,icTAYield!$A:$AL,MATCH(U$29,icTAYield!$A$1:$AL$1,0),FALSE) -> 61.89 | V125: =VLOOKUP($S125,icTAYield!$A:$AL,MATCH(V$29,icTAYield!$A$1:$AL$1,0),FALSE) -> 65.29 | W125: =VLOOKUP($S125,icTAYield!$A:$AL,MATCH(W$29,icTAYield!$A$1:$AL$1,0),FALSE) -> 57.1 | X125: =VLOOKUP($S125,icTAYield!$A:$AL,MATCH(X$29,icTAYield!$A$1:$AL$1,0),FALSE) -> 59.89 | Z125: =VLOOKUP($S125,Tyields!$A:$T,MATCH(Z$29,Tyields!$A$1:$T$1,0),FALSE) ->  | AA125: =VLOOKUP($S125,Tyields!$A:$T,MATCH(AA$29,Tyields!$A$1:$T$1,0),FALSE) ->  | AB125: =VLOOKUP($S125,Tyields!$A:$T,MATCH(AB$29,Tyields!$A$1:$T$1,0),FALSE) ->  | AC125: =VLOOKUP($S125,Tyields!$A:$T,MATCH(AC$29,Tyields!$A$1:$T$1,0),FALSE) ->  | AD125: =VLOOKUP($S125,Tyields!$A:$T,MATCH(AD$29,Tyields!$A$1:$T$1,0),FALSE) ->  | AF125: 64.03 | AG125: 61.89 | AH125: 65.29 | AI125: 57.1 | AJ125: 59.89 | AL125: =$G$14 -> 9.47 | AM125: =$H$14 -> 9.33 | AN125: =$I$14 -> 8.48 | AO125: =$J$14 -> 8.57 | AP125: =$K$14 -> 10.8 | AR125: =(AF125*AL125)/$AF$14 -> 606.3641 | AS125: =(AG125*AM125)/$AF$14 -> 577.4337 | AT125: =(AH125*AN125)/$AF$14 -> 553.6592 | AU125: =(AI125*AO125)/$AF$14 -> 489.347 | AV125: =(AJ125*AP125)/$AF$14 -> 646.812
A126: =IF($D$8>=4,IF($D$9>=3,1,0),0) -> 0 | C126: =C95 ->  | F126: =F95 ->  | O126: =IF(ISNA(T126),"",ROUND((SUM(AR126:AV126)-MAX(AR126:AV126)-MIN(AR126:AV126))/3,0)/IF(F126="lbs",100,1)) ->  | R126: =VLOOKUP(C126,'arc-ic'!$AI$135:$AJ$157,2,FALSE) ->  | S126: =($S$24*100+R126)*10+3 ->  | T126: =VLOOKUP($S126,icTAYield!$A:$AL,MATCH(T$29,icTAYield!$A$1:$AL$1,0),FALSE) ->  | U126: =VLOOKUP($S126,icTAYield!$A:$AL,MATCH(U$29,icTAYield!$A$1:$AL$1,0),FALSE) ->  | V126: =VLOOKUP($S126,icTAYield!$A:$AL,MATCH(V$29,icTAYield!$A$1:$AL$1,0),FALSE) ->  | W126: =VLOOKUP($S126,icTAYield!$A:$AL,MATCH(W$29,icTAYield!$A$1:$AL$1,0),FALSE) ->  | X126: =VLOOKUP($S126,icTAYield!$A:$AL,MATCH(X$29,icTAYield!$A$1:$AL$1,0),FALSE) ->  | Z126: =VLOOKUP($S126,Tyields!$A:$T,MATCH(Z$29,Tyields!$A$1:$T$1,0),FALSE) ->  | AA126: =VLOOKUP($S126,Tyields!$A:$T,MATCH(AA$29,Tyields!$A$1:$T$1,0),FALSE) ->  | AB126: =VLOOKUP($S126,Tyields!$A:$T,MATCH(AB$29,Tyields!$A$1:$T$1,0),FALSE) ->  | AC126: =VLOOKUP($S126,Tyields!$A:$T,MATCH(AC$29,Tyields!$A$1:$T$1,0),FALSE) ->  | AD126: =VLOOKUP($S126,Tyields!$A:$T,MATCH(AD$29,Tyields!$A$1:$T$1,0),FALSE) ->  | AL126: =$G$15 ->  | AM126: =$H$15 ->  | AN126: =$I$15 ->  | AO126: =$J$15 ->  | AP126: =$K$15 ->  | AR126: =(AF126*AL126)/$AF$15 ->  | AS126: =(AG126*AM126)/$AF$15 ->  | AT126: =(AH126*AN126)/$AF$15 ->  | AU126: =(AI126*AO126)/$AF$15 ->  | AV126: =(AJ126*AP126)/$AF$15 -> 
A127: =IF($D$8>=4,IF($D$9>=4,1,0),0) -> 0 | C127: =C96 ->  | F127: =F96 ->  | O127: =IF(ISNA(T127),"",ROUND((SUM(AR127:AV127)-MAX(AR127:AV127)-MIN(AR127:AV127))/3,0)/IF(F127="lbs",100,1)) ->  | R127: =VLOOKUP(C127,'arc-ic'!$AI$135:$AJ$157,2,FALSE) ->  | S127: =($S$24*100+R127)*10+3 ->  | T127: =VLOOKUP($S127,icTAYield!$A:$AL,MATCH(T$29,icTAYield!$A$1:$AL$1,0),FALSE) ->  | U127: =VLOOKUP($S127,icTAYield!$A:$AL,MATCH(U$29,icTAYield!$A$1:$AL$1,0),FALSE) ->  | V127: =VLOOKUP($S127,icTAYield!$A:$AL,MATCH(V$29,icTAYield!$A$1:$AL$1,0),FALSE) ->  | W127: =VLOOKUP($S127,icTAYield!$A:$AL,MATCH(W$29,icTAYield!$A$1:$AL$1,0),FALSE) ->  | X127: =VLOOKUP($S127,icTAYield!$A:$AL,MATCH(X$29,icTAYield!$A$1:$AL$1,0),FALSE) ->  | Z127: =VLOOKUP($S127,Tyields!$A:$T,MATCH(Z$29,Tyields!$A$1:$T$1,0),FALSE) ->  | AA127: =VLOOKUP($S127,Tyields!$A:$T,MATCH(AA$29,Tyields!$A$1:$T$1,0),FALSE) ->  | AB127: =VLOOKUP($S127,Tyields!$A:$T,MATCH(AB$29,Tyields!$A$1:$T$1,0),FALSE) ->  | AC127: =VLOOKUP($S127,Tyields!$A:$T,MATCH(AC$29,Tyields!$A$1:$T$1,0),FALSE) ->  | AD127: =VLOOKUP($S127,Tyields!$A:$T,MATCH(AD$29,Tyields!$A$1:$T$1,0),FALSE) ->  | AL127: =$G$16 ->  | AM127: =$H$16 ->  | AN127: =$I$16 ->  | AO127: =$J$16 ->  | AP127: =$K$16 ->  | AR127: =(AF127*AL127)/$AF$16 ->  | AS127: =(AG127*AM127)/$AF$16 ->  | AT127: =(AH127*AN127)/$AF$16 ->  | AU127: =(AI127*AO127)/$AF$16 ->  | AV127: =(AJ127*AP127)/$AF$16 -> 
A128: =IF($D$8>=4,IF($D$9>=5,1,0),0) -> 0 | C128: =C97 ->  | F128: =F97 ->  | O128: =IF(ISNA(T128),"",ROUND((SUM(AR128:AV128)-MAX(AR128:AV128)-MIN(AR128:AV128))/3,0)/IF(F128="lbs",100,1)) ->  | R128: =VLOOKUP(C128,'arc-ic'!$AI$135:$AJ$157,2,FALSE) ->  | S128: =($S$24*100+R128)*10+3 ->  | T128: =VLOOKUP($S128,icTAYield!$A:$AL,MATCH(T$29,icTAYield!$A$1:$AL$1,0),FALSE) ->  | U128: =VLOOKUP($S128,icTAYield!$A:$AL,MATCH(U$29,icTAYield!$A$1:$AL$1,0),FALSE) ->  | V128: =VLOOKUP($S128,icTAYield!$A:$AL,MATCH(V$29,icTAYield!$A$1:$AL$1,0),FALSE) ->  | W128: =VLOOKUP($S128,icTAYield!$A:$AL,MATCH(W$29,icTAYield!$A$1:$AL$1,0),FALSE) ->  | X128: =VLOOKUP($S128,icTAYield!$A:$AL,MATCH(X$29,icTAYield!$A$1:$AL$1,0),FALSE) ->  | Z128: =VLOOKUP($S128,Tyields!$A:$T,MATCH(Z$29,Tyields!$A$1:$T$1,0),FALSE) ->  | AA128: =VLOOKUP($S128,Tyields!$A:$T,MATCH(AA$29,Tyields!$A$1:$T$1,0),FALSE) ->  | AB128: =VLOOKUP($S128,Tyields!$A:$T,MATCH(AB$29,Tyields!$A$1:$T$1,0),FALSE) ->  | AC128: =VLOOKUP($S128,Tyields!$A:$T,MATCH(AC$29,Tyields!$A$1:$T$1,0),FALSE) ->  | AD128: =VLOOKUP($S128,Tyields!$A:$T,MATCH(AD$29,Tyields!$A$1:$T$1,0),FALSE) ->  | AL128: =$G$17 ->  | AM128: =$H$17 ->  | AN128: =$I$17 ->  | AO128: =$J$17 ->  | AP128: =$K$17 ->  | AR128: =(AF128*AL128)/$AF$17 ->  | AS128: =(AG128*AM128)/$AF$17 ->  | AT128: =(AH128*AN128)/$AF$17 ->  | AU128: =(AI128*AO128)/$AF$17 ->  | AV128: =(AJ128*AP128)/$AF$17 -> 
A129: 0 | G129: (blanks indicate not planted, any entry indicates planted that year)
A130: 0 | G130: =$D$7 -> 2022
A131: 0 | F131: =$D$7 -> 2022 | G131: Prevent
A132: 0 | F132: Planted | G132: Plant
A133: 0 | F133: Acre | G133: Acres | H133: Single Farm ARC-IC Payment | R133: 4
A134: 0 | R134: =IF($D$8>=$R$133,IF($D$9>=1,1,0),0) -> 0
A135: 0 | C135: =C124 -> Corn | J135: Benchmark Revenue | K135: =IF(ISERR(V140),"",V140) ->  | M135: per base acre | R135: =IF($D$8>=$R$133,IF($D$9>=2,1,0),0) -> 0 | S135: =IF($F$140>0,F135,G135) -> 0 | T135: =S135/$S$140 ->  | U135: =IF($F$140=0,0,M124*$M13/IF(F124="Lbs",100,1)) -> 0 | V135: =IF(O124="","",O124*T135) ->  | W135: =IF($F$140=0,0,U135*T135) -> 0
A136: 0 | C136: =C125 -> Soybeans | J136: Guarantee | K136: =IF(K135="","",K135*0.86) ->  | M136: per base acre | R136: =IF($D$8>=$R$133,IF($D$9>=3,1,0),0) -> 0 | S136: =IF($F$140>0,F136,G136) -> 0 | T136: =S136/$S$140 ->  | U136: =IF($F$140=0,0,M125*$M14/IF(F125="Lbs",100,1)) -> 0 | V136: =IF(O125="","",O125*T136) ->  | W136: =IF($F$140=0,0,U136*T136) -> 0
A137: 0 | C137: =C126 ->  | R137: =IF($D$8>=$R$133,IF($D$9>=4,1,0),0) -> 0 | S137: =IF($F$140>0,F137,G137) -> 0 | T137: =S137/$S$140 ->  | U137: =IF($F$140=0,0,M126*$M15/IF(F126="Lbs",100,1)) -> 0 | V137: =IF(O126="","",O126*T137) ->  | W137: =IF(ISERR(U137),"",IF($F$140=0,0,U137*T137)) -> 0
A138: 0 | C138: =C127 ->  | J138: Farm Revenue | K138: =IF(K135="","",IF(F140>0,W140,0)) ->  | M138: per base acre | R138: =IF($D$8>=$R$133,IF($D$9>=5,1,0),0) -> 0 | S138: =IF($F$140>0,F138,G138) -> 0 | T138: =S138/$S$140 ->  | U138: =IF($F$140=0,0,M127*$M16/IF(F127="Lbs",100,1)) -> 0 | V138: =IF(O127="","",O127*T138) ->  | W138: =IF(ISERR(U138),"",IF($F$140=0,0,U138*T138)) -> 0
A139: 0 | C139: =C128 ->  | J139: ARC-IC Payment | K139: =IF(K135="","",(MAX(MIN(K135*0.1,K136-K138),0))*0.65) ->  | M139: per base acre | R139: =IF(K135="",10000,K135*0.1*0.65) -> 10000 | S139: =IF($F$140>0,F139,G139) -> 0 | T139: =S139/$S$140 ->  | U139: =IF($F$140=0,0,M128*$M17/IF(F128="Lbs",100,1)) -> 0 | V139: =IF(O128="","",O128*T139) ->  | W139: =IF(ISERR(U139),"",IF($F$140=0,0,U139*T139)) -> 0
A140: 0 | F140: =SUM(F135:F139) -> 0 | G140: =SUM(G135:G139) -> 0 | J140: ARC-IC Payment | K140: =IF(K135="","",K139*F119) ->  | M140: per farm | S140: =SUM(S135:S139) -> 0 | V140: =SUM(V135:V139) ->  | W140: =SUM(W135:W139) -> 0
A141: 0 | H141: =IF(K139=R139," ARC-IC is capped at max payment","") -> 
A142: 0 | C142: * See ARC-IC calculator (one farm) for notes on calculation methods
A143: 0
A144: =IF($D$8>=5,1,0) -> 0 | C144: FSA FARM 5
A145: =IF($D$8>=5,1,0) -> 0
A146: 0 | C146: FSA farm number | F146: Farm 5 | J146: Enter 100% of base acres and yield for the
A147: 0 | J147: FSA farm, even if share is less than 100%.
A148: 0 | C148: County of farm | F148: =F24 -> Adams | S148: =VLOOKUP(F148,$AF$716:$AG$918,2,FALSE) -> 17001
A149: 0
A150: 0 | C150: Base acres in farm | F150: 0
A151: 0 | O151: Crop
A152: 0 | G152: Yield | O152: Benchmark | T152: =$T$28 -> County Trend Adjusted Yields | Z152: T Yields | AF152: Used Yields | AL152: Used Prices | AR152: Revenue
A153: 0 | G153: =$G$11 -> 2016 | H153: =$H$11 -> 2017 | I153: =$I$11 -> 2018 | J153: =$J$11 -> 2019 | K153: =$K$11 -> 2020 | M153: =$D$7 -> 2022 | O153: Revenue | T153: =T$29 -> ta2016-22 | U153: =U$29 -> ta2017-22 | V153: =V$29 -> ta2018-22 | W153: =W$29 -> ta2019-22 | X153: =X$29 -> ta2020-22 | Z153: =Z122 -> ty2016 | AA153: =AA122 -> ty2017 | AB153: =AB122 -> ty2018 | AC153: =AC122 -> ty2019 | AD153: =AD122 -> ty2020 | AF153: =AF122 -> 2016 | AG153: =AG122 -> 2017 | AH153: =AH122 -> 2018 | AI153: =AI122 -> 2019 | AJ153: =AJ122 -> 2020 | AL153: =AL122 -> 2016 | AM153: =AM122 -> 2017 | AN153: =AN122 -> 2018 | AO153: =AO122 -> 2019 | AP153: =AP122 -> 2020 | AR153: =AR122 -> 2016 | AS153: =AS122 -> 2017 | AT153: =AT122 -> 2018 | AU153: =AU122 -> 2019 | AV153: =AV122 -> 2020
A154: 0
A155: 0 | C155: =C124 -> Corn | F155: =F124 -> Bu | O155: =IF(ISNA(T155),"",ROUND((SUM(AR155:AV155)-MAX(AR155:AV155)-MIN(AR155:AV155))/3,0)/IF(F155="lbs",100,1)) -> 779 | R155: =VLOOKUP(C155,'arc-ic'!$AI$135:$AJ$157,2,FALSE) -> 1 | S155: =($S$24*100+R155)*10+3 -> 17001013 | T155: =VLOOKUP($S155,icTAYield!$A:$AL,MATCH(T$29,icTAYield!$A$1:$AL$1,0),FALSE) -> 211.08 | U155: =VLOOKUP($S155,icTAYield!$A:$AL,MATCH(U$29,icTAYield!$A$1:$AL$1,0),FALSE) -> 208.78 | V155: =VLOOKUP($S155,icTAYield!$A:$AL,MATCH(V$29,icTAYield!$A$1:$AL$1,0),FALSE) -> 211.91 | W155: =VLOOKUP($S155,icTAYield!$A:$AL,MATCH(W$29,icTAYield!$A$1:$AL$1,0),FALSE) -> 181.58 | X155: =VLOOKUP($S155,icTAYield!$A:$AL,MATCH(X$29,icTAYield!$A$1:$AL$1,0),FALSE) -> 192.41 | Z155: =VLOOKUP($S155,Tyields!$A:$T,MATCH(Z$29,Tyields!$A$1:$T$1,0),FALSE) -> 128 | AA155: =VLOOKUP($S155,Tyields!$A:$T,MATCH(AA$29,Tyields!$A$1:$T$1,0),FALSE) -> 118.4 | AB155: =VLOOKUP($S155,Tyields!$A:$T,MATCH(AB$29,Tyields!$A$1:$T$1,0),FALSE) -> 118.4 | AC155: =VLOOKUP($S155,Tyields!$A:$T,MATCH(AC$29,Tyields!$A$1:$T$1,0),FALSE) -> 118.4 | AD155: =VLOOKUP($S155,Tyields!$A:$T,MATCH(AD$29,Tyields!$A$1:$T$1,0),FALSE) -> 129.6 | AF155: =IF(G155="",T155,IF(G155>Z155,G155,Z155)) -> 211.08 | AG155: 208.78 | AH155: 211.91 | AI155: 181.58 | AJ155: 192.41 | AL155: =$G$13 -> 3.7 | AM155: =$H$13 -> 3.7 | AN155: =$I$13 -> 3.7 | AO155: =$J$13 -> 3.7 | AP155: =$K$13 -> 4.53 | AR155: =(AF155*AL155)/$AF$13 -> 780.996 | AS155: =(AG155*AM155)/$AF$13 -> 772.486 | AT155: =(AH155*AN155)/$AF$13 -> 784.067 | AU155: =(AI155*AO155)/$AF$13 -> 671.846 | AV155: =(AJ155*AP155)/$AF$13 -> 871.6173
A156: =IF($D$8>=5,IF($D$9>=2,1,0),0) -> 0 | C156: =C125 -> Soybeans | F156: =F125 -> Bu | O156: =IF(ISNA(T156),"",ROUND((SUM(AR156:AV156)-MAX(AR156:AV156)-MIN(AR156:AV156))/3,0)/IF(F156="lbs",100,1)) -> 579 | R156: =VLOOKUP(C156,'arc-ic'!$AI$135:$AJ$157,2,FALSE) -> 2 | S156: =($S$24*100+R156)*10+3 -> 17001023 | T156: =VLOOKUP($S156,icTAYield!$A:$AL,MATCH(T$29,icTAYield!$A$1:$AL$1,0),FALSE) -> 64.03 | U156: =VLOOKUP($S156,icTAYield!$A:$AL,MATCH(U$29,icTAYield!$A$1:$AL$1,0),FALSE) -> 61.89 | V156: =VLOOKUP($S156,icTAYield!$A:$AL,MATCH(V$29,icTAYield!$A$1:$AL$1,0),FALSE) -> 65.29 | W156: =VLOOKUP($S156,icTAYield!$A:$AL,MATCH(W$29,icTAYield!$A$1:$AL$1,0),FALSE) -> 57.1 | X156: =VLOOKUP($S156,icTAYield!$A:$AL,MATCH(X$29,icTAYield!$A$1:$AL$1,0),FALSE) -> 59.89 | Z156: =VLOOKUP($S156,Tyields!$A:$T,MATCH(Z$29,Tyields!$A$1:$T$1,0),FALSE) ->  | AA156: =VLOOKUP($S156,Tyields!$A:$T,MATCH(AA$29,Tyields!$A$1:$T$1,0),FALSE) ->  | AB156: =VLOOKUP($S156,Tyields!$A:$T,MATCH(AB$29,Tyields!$A$1:$T$1,0),FALSE) ->  | AC156: =VLOOKUP($S156,Tyields!$A:$T,MATCH(AC$29,Tyields!$A$1:$T$1,0),FALSE) ->  | AD156: =VLOOKUP($S156,Tyields!$A:$T,MATCH(AD$29,Tyields!$A$1:$T$1,0),FALSE) ->  | AF156: 64.03 | AG156: 61.89 | AH156: 65.29 | AI156: 57.1 | AJ156: 59.89 | AL156: =$G$14 -> 9.47 | AM156: =$H$14 -> 9.33 | AN156: =$I$14 -> 8.48 | AO156: =$J$14 -> 8.57 | AP156: =$K$14 -> 10.8 | AR156: =(AF156*AL156)/$AF$14 -> 606.3641 | AS156: =(AG156*AM156)/$AF$14 -> 577.4337 | AT156: =(AH156*AN156)/$AF$14 -> 553.6592 | AU156: =(AI156*AO156)/$AF$14 -> 489.347 | AV156: =(AJ156*AP156)/$AF$14 -> 646.812
A157: =IF($D$8>=5,IF($D$9>=3,1,0),0) -> 0 | C157: =C126 ->  | F157: =F126 ->  | O157: =IF(ISNA(T157),"",ROUND((SUM(AR157:AV157)-MAX(AR157:AV157)-MIN(AR157:AV157))/3,0)/IF(F157="lbs",100,1)) ->  | R157: =VLOOKUP(C157,'arc-ic'!$AI$135:$AJ$157,2,FALSE) ->  | S157: =($S$24*100+R157)*10+3 ->  | T157: =VLOOKUP($S157,icTAYield!$A:$AL,MATCH(T$29,icTAYield!$A$1:$AL$1,0),FALSE) ->  | U157: =VLOOKUP($S157,icTAYield!$A:$AL,MATCH(U$29,icTAYield!$A$1:$AL$1,0),FALSE) ->  | V157: =VLOOKUP($S157,icTAYield!$A:$AL,MATCH(V$29,icTAYield!$A$1:$AL$1,0),FALSE) ->  | W157: =VLOOKUP($S157,icTAYield!$A:$AL,MATCH(W$29,icTAYield!$A$1:$AL$1,0),FALSE) ->  | X157: =VLOOKUP($S157,icTAYield!$A:$AL,MATCH(X$29,icTAYield!$A$1:$AL$1,0),FALSE) ->  | Z157: =VLOOKUP($S157,Tyields!$A:$T,MATCH(Z$29,Tyields!$A$1:$T$1,0),FALSE) ->  | AA157: =VLOOKUP($S157,Tyields!$A:$T,MATCH(AA$29,Tyields!$A$1:$T$1,0),FALSE) ->  | AB157: =VLOOKUP($S157,Tyields!$A:$T,MATCH(AB$29,Tyields!$A$1:$T$1,0),FALSE) ->  | AC157: =VLOOKUP($S157,Tyields!$A:$T,MATCH(AC$29,Tyields!$A$1:$T$1,0),FALSE) ->  | AD157: =VLOOKUP($S157,Tyields!$A:$T,MATCH(AD$29,Tyields!$A$1:$T$1,0),FALSE) ->  | AL157: =$G$15 ->  | AM157: =$H$15 ->  | AN157: =$I$15 ->  | AO157: =$J$15 ->  | AP157: =$K$15 ->  | AR157: =(AF157*AL157)/$AF$15 ->  | AS157: =(AG157*AM157)/$AF$15 ->  | AT157: =(AH157*AN157)/$AF$15 ->  | AU157: =(AI157*AO157)/$AF$15 ->  | AV157: =(AJ157*AP157)/$AF$15 -> 
A158: =IF($D$8>=5,IF($D$9>=4,1,0),0) -> 0 | C158: =C127 ->  | F158: =F127 ->  | O158: =IF(ISNA(T158),"",ROUND((SUM(AR158:AV158)-MAX(AR158:AV158)-MIN(AR158:AV158))/3,0)/IF(F158="lbs",100,1)) ->  | R158: =VLOOKUP(C158,'arc-ic'!$AI$135:$AJ$157,2,FALSE) ->  | S158: =($S$24*100+R158)*10+3 ->  | T158: =VLOOKUP($S158,icTAYield!$A:$AL,MATCH(T$29,icTAYield!$A$1:$AL$1,0),FALSE) ->  | U158: =VLOOKUP($S158,icTAYield!$A:$AL,MATCH(U$29,icTAYield!$A$1:$AL$1,0),FALSE) ->  | V158: =VLOOKUP($S158,icTAYield!$A:$AL,MATCH(V$29,icTAYield!$A$1:$AL$1,0),FALSE) ->  | W158: =VLOOKUP($S158,icTAYield!$A:$AL,MATCH(W$29,icTAYield!$A$1:$AL$1,0),FALSE) ->  | X158: =VLOOKUP($S158,icTAYield!$A:$AL,MATCH(X$29,icTAYield!$A$1:$AL$1,0),FALSE) ->  | Z158: =VLOOKUP($S158,Tyields!$A:$T,MATCH(Z$29,Tyields!$A$1:$T$1,0),FALSE) ->  | AA158: =VLOOKUP($S158,Tyields!$A:$T,MATCH(AA$29,Tyields!$A$1:$T$1,0),FALSE) ->  | AB158: =VLOOKUP($S158,Tyields!$A:$T,MATCH(AB$29,Tyields!$A$1:$T$1,0),FALSE) ->  | AC158: =VLOOKUP($S158,Tyields!$A:$T,MATCH(AC$29,Tyields!$A$1:$T$1,0),FALSE) ->  | AD158: =VLOOKUP($S158,Tyields!$A:$T,MATCH(AD$29,Tyields!$A$1:$T$1,0),FALSE) ->  | AL158: =$G$16 ->  | AM158: =$H$16 ->  | AN158: =$I$16 ->  | AO158: =$J$16 ->  | AP158: =$K$16 ->  | AR158: =(AF158*AL158)/$AF$16 ->  | AS158: =(AG158*AM158)/$AF$16 ->  | AT158: =(AH158*AN158)/$AF$16 ->  | AU158: =(AI158*AO158)/$AF$16 ->  | AV158: =(AJ158*AP158)/$AF$16 -> 
A159: =IF($D$8>=5,IF($D$9>=5,1,0),0) -> 0 | C159: =C128 ->  | F159: =F128 ->  | O159: =IF(ISNA(T159),"",ROUND((SUM(AR159:AV159)-MAX(AR159:AV159)-MIN(AR159:AV159))/3,0)/IF(F159="lbs",100,1)) ->  | R159: =VLOOKUP(C159,'arc-ic'!$AI$135:$AJ$157,2,FALSE) ->  | S159: =($S$24*100+R159)*10+3 ->  | T159: =VLOOKUP($S159,icTAYield!$A:$AL,MATCH(T$29,icTAYield!$A$1:$AL$1,0),FALSE) ->  | U159: =VLOOKUP($S159,icTAYield!$A:$AL,MATCH(U$29,icTAYield!$A$1:$AL$1,0),FALSE) ->  | V159: =VLOOKUP($S159,icTAYield!$A:$AL,MATCH(V$29,icTAYield!$A$1:$AL$1,0),FALSE) ->  | W159: =VLOOKUP($S159,icTAYield!$A:$AL,MATCH(W$29,icTAYield!$A$1:$AL$1,0),FALSE) ->  | X159: =VLOOKUP($S159,icTAYield!$A:$AL,MATCH(X$29,icTAYield!$A$1:$AL$1,0),FALSE) ->  | Z159: =VLOOKUP($S159,Tyields!$A:$T,MATCH(Z$29,Tyields!$A$1:$T$1,0),FALSE) ->  | AA159: =VLOOKUP($S159,Tyields!$A:$T,MATCH(AA$29,Tyields!$A$1:$T$1,0),FALSE) ->  | AB159: =VLOOKUP($S159,Tyields!$A:$T,MATCH(AB$29,Tyields!$A$1:$T$1,0),FALSE) ->  | AC159: =VLOOKUP($S159,Tyields!$A:$T,MATCH(AC$29,Tyields!$A$1:$T$1,0),FALSE) ->  | AD159: =VLOOKUP($S159,Tyields!$A:$T,MATCH(AD$29,Tyields!$A$1:$T$1,0),FALSE) ->  | AL159: =$G$17 ->  | AM159: =$H$17 ->  | AN159: =$I$17 ->  | AO159: =$J$17 ->  | AP159: =$K$17 ->  | AR159: =(AF159*AL159)/$AF$17 ->  | AS159: =(AG159*AM159)/$AF$17 ->  | AT159: =(AH159*AN159)/$AF$17 ->  | AU159: =(AI159*AO159)/$AF$17 ->  | AV159: =(AJ159*AP159)/$AF$17 -> 
A160: =IF($D$8>=5,1,0) -> 0 | G160: (blanks indicate not planted, any entry indicates planted that year)
A161: 0 | G161: =$D$7 -> 2022
A162: 0 | F162: =$D$7 -> 2022 | G162: Prevent
A163: 0 | F163: Planted | G163: Plant
A164: 0 | F164: Acre | G164: Acres | H164: Single Farm ARC-IC Payment | R164: 5
A165: 0 | R165: =IF($D$8>=$R$164,IF($D$9>=1,1,0),0) -> 0
A166: 0 | C166: =C155 -> Corn | J166: Benchmark Revenue | K166: =IF(ISERR(V171),"",V171) ->  | M166: per base acre | R166: =IF($D$8>=$R$164,IF($D$9>=2,1,0),0) -> 0 | S166: =IF($F$171>0,F166,G166) -> 0 | T166: =S166/$S$171 ->  | U166: =IF($F$171=0,0,M155*$M13/IF(F155="Lbs",100,1)) -> 0 | V166: =IF(O155="","",O155*T166) ->  | W166: =IF($F$171=0,0,U166*T166) -> 0
A167: 0 | C167: =C156 -> Soybeans | J167: Guarantee | K167: =IF(K166="","",K166*0.86) ->  | M167: per base acre | R167: =IF($D$8>=$R$164,IF($D$9>=3,1,0),0) -> 0 | S167: =IF($F$171>0,F167,G167) -> 0 | T167: =S167/$S$171 ->  | U167: =IF($F$171=0,0,M156*$M14/IF(F156="Lbs",100,1)) -> 0 | V167: =IF(O156="","",O156*T167) ->  | W167: =IF($F$171=0,0,U167*T167) -> 0
A168: 0 | C168: =C157 ->  | R168: =IF($D$8>=$R$164,IF($D$9>=4,1,0),0) -> 0 | S168: =IF($F$171>0,F168,G168) -> 0 | T168: =S168/$S$171 ->  | U168: =IF($F$171=0,0,M157*$M15/IF(F157="Lbs",100,1)) -> 0 | V168: =IF(O157="","",O157*T168) ->  | W168: =IF(ISERR(U168),"",IF($F$171=0,0,U168*T168)) -> 0
A169: 0 | C169: =C158 ->  | J169: Farm Revenue | K169: =IF(K166="","",IF(F171>0,W171,0)) ->  | M169: per base acre | R169: =IF($D$8>=$R$164,IF($D$9>=5,1,0),0) -> 0 | S169: =IF($F$171>0,F169,G169) -> 0 | T169: =S169/$S$171 ->  | U169: =IF($F$171=0,0,M158*$M16/IF(F158="Lbs",100,1)) -> 0 | V169: =IF(O158="","",O158*T169) ->  | W169: =IF(ISERR(U169),"",IF($F$171=0,0,U169*T169)) -> 0
A170: 0 | C170: =C159 ->  | J170: ARC-IC Payment | K170: =IF(K166="","",(MAX(MIN(K166*0.1,K167-K169),0))*0.65) ->  | M170: per base acre | R170: =IF(K166="",10000,K166*0.1*0.65) -> 10000 | S170: =IF($F$171>0,F170,G170) -> 0 | T170: =S170/$S$171 ->  | U170: =IF($F$171=0,0,M159*$M17/IF(F159="Lbs",100,1)) -> 0 | V170: =IF(O159="","",O159*T170) ->  | W170: =IF(ISERR(U170),"",IF($F$171=0,0,U170*T170)) -> 0
A171: 0 | F171: =SUM(F166:F170) -> 0 | G171: =SUM(G166:G170) -> 0 | J171: ARC-IC Payment | K171: =IF(K166="","",K170*F150) ->  | M171: per farm | S171: =SUM(S166:S170) -> 0 | V171: =SUM(V166:V170) ->  | W171: =SUM(W166:W170) -> 0
A172: 0 | H172: =IF(K170=R170," ARC-IC is capped at max payment","") -> 
A173: 0 | C173: * See ARC-IC calculator (one farm) for notes on calculation methods
A174: 0
A175: =IF($D$8>=6,1,0) -> 0 | C175: FSA FARM 6
A176: =IF($D$8>=6,1,0) -> 0
A177: 0 | C177: FSA farm number | F177: Farm 6 | J177: Enter 100% of base acres and yield for the
A178: 0 | J178: FSA farm, even if share is less than 100%.
A179: 0 | C179: County of farm | F179: =F24 -> Adams | S179: =VLOOKUP(F179,$AF$716:$AG$918,2,FALSE) -> 17001
A180: 0
A181: 0 | C181: Base acres in farm | F181: 0
A182: 0 | O182: Crop
A183: 0 | G183: Yield | O183: Benchmark | T183: =$T$28 -> County Trend Adjusted Yields | Z183: T Yields | AF183: Used Yields | AL183: Used Prices | AR183: Revenue
A184: 0 | G184: =$G$11 -> 2016 | H184: =$H$11 -> 2017 | I184: =$I$11 -> 2018 | J184: =$J$11 -> 2019 | K184: =$K$11 -> 2020 | M184: =$D$7 -> 2022 | O184: Revenue | T184: =T$29 -> ta2016-22 | U184: =U$29 -> ta2017-22 | V184: =V$29 -> ta2018-22 | W184: =W$29 -> ta2019-22 | X184: =X$29 -> ta2020-22 | Z184: =Z153 -> ty2016 | AA184: =AA153 -> ty2017 | AB184: =AB153 -> ty2018 | AC184: =AC153 -> ty2019 | AD184: =AD153 -> ty2020 | AF184: =AF153 -> 2016 | AG184: =AG153 -> 2017 | AH184: =AH153 -> 2018 | AI184: =AI153 -> 2019 | AJ184: =AJ153 -> 2020 | AL184: =AL153 -> 2016 | AM184: =AM153 -> 2017 | AN184: =AN153 -> 2018 | AO184: =AO153 -> 2019 | AP184: =AP153 -> 2020 | AR184: =AR153 -> 2016 | AS184: =AS153 -> 2017 | AT184: =AT153 -> 2018 | AU184: =AU153 -> 2019 | AV184: =AV153 -> 2020
A185: 0
A186: 0 | C186: =C155 -> Corn | F186: =F155 -> Bu | O186: =IF(ISNA(T186),"",ROUND((SUM(AR186:AV186)-MAX(AR186:AV186)-MIN(AR186:AV186))/3,0)/IF(F186="lbs",100,1)) -> 779 | R186: =VLOOKUP(C186,'arc-ic'!$AI$135:$AJ$157,2,FALSE) -> 1 | S186: =($S$24*100+R186)*10+3 -> 17001013 | T186: =VLOOKUP($S186,icTAYield!$A:$AL,MATCH(T$29,icTAYield!$A$1:$AL$1,0),FALSE) -> 211.08 | U186: =VLOOKUP($S186,icTAYield!$A:$AL,MATCH(U$29,icTAYield!$A$1:$AL$1,0),FALSE) -> 208.78 | V186: =VLOOKUP($S186,icTAYield!$A:$AL,MATCH(V$29,icTAYield!$A$1:$AL$1,0),FALSE) -> 211.91 | W186: =VLOOKUP($S186,icTAYield!$A:$AL,MATCH(W$29,icTAYield!$A$1:$AL$1,0),FALSE) -> 181.58 | X186: =VLOOKUP($S186,icTAYield!$A:$AL,MATCH(X$29,icTAYield!$A$1:$AL$1,0),FALSE) -> 192.41 | Z186: =VLOOKUP($S186,Tyields!$A:$T,MATCH(Z$29,Tyields!$A$1:$T$1,0),FALSE) -> 128 | AA186: =VLOOKUP($S186,Tyields!$A:$T,MATCH(AA$29,Tyields!$A$1:$T$1,0),FALSE) -> 118.4 | AB186: =VLOOKUP($S186,Tyields!$A:$T,MATCH(AB$29,Tyields!$A$1:$T$1,0),FALSE) -> 118.4 | AC186: =VLOOKUP($S186,Tyields!$A:$T,MATCH(AC$29,Tyields!$A$1:$T$1,0),FALSE) -> 118.4 | AD186: =VLOOKUP($S186,Tyields!$A:$T,MATCH(AD$29,Tyields!$A$1:$T$1,0),FALSE) -> 129.6 | AF186: =IF(G186="",T186,IF(G186>Z186,G186,Z186)) -> 211.08 | AG186: 208.78 | AH186: 211.91 | AI186: 181.58 | AJ186: 192.41 | AL186: =$G$13 -> 3.7 | AM186: =$H$13 -> 3.7 | AN186: =$I$13 -> 3.7 | AO186: =$J$13 -> 3.7 | AP186: =$K$13 -> 4.53 | AR186: =(AF186*AL186)/$AF$13 -> 780.996 | AS186: =(AG186*AM186)/$AF$13 -> 772.486 | AT186: =(AH186*AN186)/$AF$13 -> 784.067 | AU186: =(AI186*AO186)/$AF$13 -> 671.846 | AV186: =(AJ186*AP186)/$AF$13 -> 871.6173
A187: =IF($D$8>=6,IF($D$9>=2,1,0),0) -> 0 | C187: =C156 -> Soybeans | F187: =F156 -> Bu | O187: =IF(ISNA(T187),"",ROUND((SUM(AR187:AV187)-MAX(AR187:AV187)-MIN(AR187:AV187))/3,0)/IF(F187="lbs",100,1)) -> 579 | R187: =VLOOKUP(C187,'arc-ic'!$AI$135:$AJ$157,2,FALSE) -> 2 | S187: =($S$24*100+R187)*10+3 -> 17001023 | T187: =VLOOKUP($S187,icTAYield!$A:$AL,MATCH(T$29,icTAYield!$A$1:$AL$1,0),FALSE) -> 64.03 | U187: =VLOOKUP($S187,icTAYield!$A:$AL,MATCH(U$29,icTAYield!$A$1:$AL$1,0),FALSE) -> 61.89 | V187: =VLOOKUP($S187,icTAYield!$A:$AL,MATCH(V$29,icTAYield!$A$1:$AL$1,0),FALSE) -> 65.29 | W187: =VLOOKUP($S187,icTAYield!$A:$AL,MATCH(W$29,icTAYield!$A$1:$AL$1,0),FALSE) -> 57.1 | X187: =VLOOKUP($S187,icTAYield!$A:$AL,MATCH(X$29,icTAYield!$A$1:$AL$1,0),FALSE) -> 59.89 | Z187: =VLOOKUP($S187,Tyields!$A:$T,MATCH(Z$29,Tyields!$A$1:$T$1,0),FALSE) ->  | AA187: =VLOOKUP($S187,Tyields!$A:$T,MATCH(AA$29,Tyields!$A$1:$T$1,0),FALSE) ->  | AB187: =VLOOKUP($S187,Tyields!$A:$T,MATCH(AB$29,Tyields!$A$1:$T$1,0),FALSE) ->  | AC187: =VLOOKUP($S187,Tyields!$A:$T,MATCH(AC$29,Tyields!$A$1:$T$1,0),FALSE) ->  | AD187: =VLOOKUP($S187,Tyields!$A:$T,MATCH(AD$29,Tyields!$A$1:$T$1,0),FALSE) ->  | AF187: 64.03 | AG187: 61.89 | AH187: 65.29 | AI187: 57.1 | AJ187: 59.89 | AL187: =$G$14 -> 9.47 | AM187: =$H$14 -> 9.33 | AN187: =$I$14 -> 8.48 | AO187: =$J$14 -> 8.57 | AP187: =$K$14 -> 10.8 | AR187: =(AF187*AL187)/$AF$14 -> 606.3641 | AS187: =(AG187*AM187)/$AF$14 -> 577.4337 | AT187: =(AH187*AN187)/$AF$14 -> 553.6592 | AU187: =(AI187*AO187)/$AF$14 -> 489.347 | AV187: =(AJ187*AP187)/$AF$14 -> 646.812
A188: =IF($D$8>=6,IF($D$9>=3,1,0),0) -> 0 | C188: =C157 ->  | F188: =F157 ->  | O188: =IF(ISNA(T188),"",ROUND((SUM(AR188:AV188)-MAX(AR188:AV188)-MIN(AR188:AV188))/3,0)/IF(F188="lbs",100,1)) ->  | R188: =VLOOKUP(C188,'arc-ic'!$AI$135:$AJ$157,2,FALSE) ->  | S188: =($S$24*100+R188)*10+3 ->  | T188: =VLOOKUP($S188,icTAYield!$A:$AL,MATCH(T$29,icTAYield!$A$1:$AL$1,0),FALSE) ->  | U188: =VLOOKUP($S188,icTAYield!$A:$AL,MATCH(U$29,icTAYield!$A$1:$AL$1,0),FALSE) ->  | V188: =VLOOKUP($S188,icTAYield!$A:$AL,MATCH(V$29,icTAYield!$A$1:$AL$1,0),FALSE) ->  | W188: =VLOOKUP($S188,icTAYield!$A:$AL,MATCH(W$29,icTAYield!$A$1:$AL$1,0),FALSE) ->  | X188: =VLOOKUP($S188,icTAYield!$A:$AL,MATCH(X$29,icTAYield!$A$1:$AL$1,0),FALSE) ->  | Z188: =VLOOKUP($S188,Tyields!$A:$T,MATCH(Z$29,Tyields!$A$1:$T$1,0),FALSE) ->  | AA188: =VLOOKUP($S188,Tyields!$A:$T,MATCH(AA$29,Tyields!$A$1:$T$1,0),FALSE) ->  | AB188: =VLOOKUP($S188,Tyields!$A:$T,MATCH(AB$29,Tyields!$A$1:$T$1,0),FALSE) ->  | AC188: =VLOOKUP($S188,Tyields!$A:$T,MATCH(AC$29,Tyields!$A$1:$T$1,0),FALSE) ->  | AD188: =VLOOKUP($S188,Tyields!$A:$T,MATCH(AD$29,Tyields!$A$1:$T$1,0),FALSE) ->  | AL188: =$G$15 ->  | AM188: =$H$15 ->  | AN188: =$I$15 ->  | AO188: =$J$15 ->  | AP188: =$K$15 ->  | AR188: =(AF188*AL188)/$AF$15 ->  | AS188: =(AG188*AM188)/$AF$15 ->  | AT188: =(AH188*AN188)/$AF$15 ->  | AU188: =(AI188*AO188)/$AF$15 ->  | AV188: =(AJ188*AP188)/$AF$15 -> 
A189: =IF($D$8>=6,IF($D$9>=4,1,0),0) -> 0 | C189: =C158 ->  | F189: =F158 ->  | O189: =IF(ISNA(T189),"",ROUND((SUM(AR189:AV189)-MAX(AR189:AV189)-MIN(AR189:AV189))/3,0)/IF(F189="lbs",100,1)) ->  | R189: =VLOOKUP(C189,'arc-ic'!$AI$135:$AJ$157,2,FALSE) ->  | S189: =($S$24*100+R189)*10+3 ->  | T189: =VLOOKUP($S189,icTAYield!$A:$AL,MATCH(T$29,icTAYield!$A$1:$AL$1,0),FALSE) ->  | U189: =VLOOKUP($S189,icTAYield!$A:$AL,MATCH(U$29,icTAYield!$A$1:$AL$1,0),FALSE) ->  | V189: =VLOOKUP($S189,icTAYield!$A:$AL,MATCH(V$29,icTAYield!$A$1:$AL$1,0),FALSE) ->  | W189: =VLOOKUP($S189,icTAYield!$A:$AL,MATCH(W$29,icTAYield!$A$1:$AL$1,0),FALSE) ->  | X189: =VLOOKUP($S189,icTAYield!$A:$AL,MATCH(X$29,icTAYield!$A$1:$AL$1,0),FALSE) ->  | Z189: =VLOOKUP($S189,Tyields!$A:$T,MATCH(Z$29,Tyields!$A$1:$T$1,0),FALSE) ->  | AA189: =VLOOKUP($S189,Tyields!$A:$T,MATCH(AA$29,Tyields!$A$1:$T$1,0),FALSE) ->  | AB189: =VLOOKUP($S189,Tyields!$A:$T,MATCH(AB$29,Tyields!$A$1:$T$1,0),FALSE) ->  | AC189: =VLOOKUP($S189,Tyields!$A:$T,MATCH(AC$29,Tyields!$A$1:$T$1,0),FALSE) ->  | AD189: =VLOOKUP($S189,Tyields!$A:$T,MATCH(AD$29,Tyields!$A$1:$T$1,0),FALSE) ->  | AL189: =$G$16 ->  | AM189: =$H$16 ->  | AN189: =$I$16 ->  | AO189: =$J$16 ->  | AP189: =$K$16 ->  | AR189: =(AF189*AL189)/$AF$16 ->  | AS189: =(AG189*AM189)/$AF$16 ->  | AT189: =(AH189*AN189)/$AF$16 ->  | AU189: =(AI189*AO189)/$AF$16 ->  | AV189: =(AJ189*AP189)/$AF$16 -> 
A190: =IF($D$8>=6,IF($D$9>=5,1,0),0) -> 0 | C190: =C159 ->  | F190: =F159 ->  | O190: =IF(ISNA(T190),"",ROUND((SUM(AR190:AV190)-MAX(AR190:AV190)-MIN(AR190:AV190))/3,0)/IF(F190="lbs",100,1)) ->  | R190: =VLOOKUP(C190,'arc-ic'!$AI$135:$AJ$157,2,FALSE) ->  | S190: =($S$24*100+R190)*10+3 ->  | T190: =VLOOKUP($S190,icTAYield!$A:$AL,MATCH(T$29,icTAYield!$A$1:$AL$1,0),FALSE) ->  | U190: =VLOOKUP($S190,icTAYield!$A:$AL,MATCH(U$29,icTAYield!$A$1:$AL$1,0),FALSE) ->  | V190: =VLOOKUP($S190,icTAYield!$A:$AL,MATCH(V$29,icTAYield!$A$1:$AL$1,0),FALSE) ->  | W190: =VLOOKUP($S190,icTAYield!$A:$AL,MATCH(W$29,icTAYield!$A$1:$AL$1,0),FALSE) ->  | X190: =VLOOKUP($S190,icTAYield!$A:$AL,MATCH(X$29,icTAYield!$A$1:$AL$1,0),FALSE) ->  | Z190: =VLOOKUP($S190,Tyields!$A:$T,MATCH(Z$29,Tyields!$A$1:$T$1,0),FALSE) ->  | AA190: =VLOOKUP($S190,Tyields!$A:$T,MATCH(AA$29,Tyields!$A$1:$T$1,0),FALSE) ->  | AB190: =VLOOKUP($S190,Tyields!$A:$T,MATCH(AB$29,Tyields!$A$1:$T$1,0),FALSE) ->  | AC190: =VLOOKUP($S190,Tyields!$A:$T,MATCH(AC$29,Tyields!$A$1:$T$1,0),FALSE) ->  | AD190: =VLOOKUP($S190,Tyields!$A:$T,MATCH(AD$29,Tyields!$A$1:$T$1,0),FALSE) ->  | AL190: =$G$17 ->  | AM190: =$H$17 ->  | AN190: =$I$17 ->  | AO190: =$J$17 ->  | AP190: =$K$17 ->  | AR190: =(AF190*AL190)/$AF$17 ->  | AS190: =(AG190*AM190)/$AF$17 ->  | AT190: =(AH190*AN190)/$AF$17 ->  | AU190: =(AI190*AO190)/$AF$17 ->  | AV190: =(AJ190*AP190)/$AF$17 -> 
A191: =IF($D$8>=6,1,0) -> 0 | G191: (blanks indicate not planted, any entry indicates planted that year)
A192: 0 | G192: =$D$7 -> 2022
A193: 0 | F193: =$D$7 -> 2022 | G193: Prevent
A194: 0 | F194: Planted | G194: Plant
A195: 0 | F195: Acre | G195: Acres | H195: Single Farm ARC-IC Payment | R195: 6
A196: 0 | R196: =IF($D$8>=$R$195,IF($D$9>=1,1,0),0) -> 0
A197: 0 | C197: =C186 -> Corn | J197: Benchmark Revenue | K197: =IF(ISERR(V202),"",V202) ->  | M197: per base acre | R197: =IF($D$8>=$R$195,IF($D$9>=2,1,0),0) -> 0 | S197: =IF($F$202>0,F197,G197) -> 0 | T197: =S197/$S$202 ->  | U197: =IF($F$202=0,0,M186*$M13/IF(F186="Lbs",100,1)) -> 0 | V197: =IF(O186="","",O186*T197) ->  | W197: =IF($F$202=0,0,U197*T197) -> 0
A198: 0 | C198: =C187 -> Soybeans | J198: Guarantee | K198: =IF(K197="","",K197*0.86) ->  | M198: per base acre | R198: =IF($D$8>=$R$195,IF($D$9>=3,1,0),0) -> 0 | S198: =IF($F$202>0,F198,G198) -> 0 | T198: =S198/$S$202 ->  | U198: =IF($F$202=0,0,M187*$M14/IF(F187="Lbs",100,1)) -> 0 | V198: =IF(O187="","",O187*T198) ->  | W198: =IF($F$202=0,0,U198*T198) -> 0
A199: 0 | C199: =C188 ->  | R199: =IF($D$8>=$R$195,IF($D$9>=4,1,0),0) -> 0 | S199: =IF($F$202>0,F199,G199) -> 0 | T199: =S199/$S$202 ->  | U199: =IF($F$202=0,0,M188*$M15/IF(F188="Lbs",100,1)) -> 0 | V199: =IF(O188="","",O188*T199) ->  | W199: =IF(ISERR(U199),"",IF($F$202=0,0,U199*T199)) -> 0
A200: 0 | C200: =C189 ->  | J200: Farm Revenue | K200: =IF(K197="","",IF(F202>0,W202,0)) ->  | M200: per base acre | R200: =IF($D$8>=$R$195,IF($D$9>=5,1,0),0) -> 0 | S200: =IF($F$202>0,F200,G200) -> 0 | T200: =S200/$S$202 ->  | U200: =IF($F$202=0,0,M189*$M16/IF(F189="Lbs",100,1)) -> 0 | V200: =IF(O189="","",O189*T200) ->  | W200: =IF(ISERR(U200),"",IF($F$202=0,0,U200*T200)) -> 0
... 3719 more rows

Sheet icTAYield (hidden)
B1: ST_Cty | C1: State Name | D1: County Name | E1: Crop Name | F1: Unit | G1: Crop Number | H1: Type | I1: ta2013-19 | J1: ta2014-19 | K1: ta2015-19 | L1: ta2016-19 | M1: ta2017-19 | N1: ta2019-19 | O1: ta2014-20 | P1: ta2015-20 | Q1: ta2016-20 | R1: ta2017-20 | S1: ta2018-20 | T1: ta2020-20 | U1: ta2015-21 | V1: ta2016-21 | W1: ta2017-21 | X1: ta2018-21 | Y1: ta2019-21 | Z1: ta2021-21 | AA1: ta2016-22 | AB1: ta2017-22 | AC1: ta2018-22 | AD1: ta2019-22 | AE1: ta2020-22 | AF1: ta2022-22 | AG1: ta2017-23 | AH1: ta2018-23 | AI1: ta2019-23 | AJ1: ta2020-23 | AK1: ta2021-23 | AL1: ta2023-23
A2: 1001043 | B2: 01001 | C2: Alabama | D2: Autauga | E2: Barley | F2: Bushel | G2: 4 | H2: 3 | I2: 45.5 | J2: 59 | K2: 64 | L2: 40 | M2: 37.6
A3: 1001013 | B3: 01001 | C3: Alabama | D3: Autauga | E3: Corn | F3: Bushel | G3: 1 | H3: 3 | I3: 119.64 | J3: 138.07 | K3: 144.72 | L3: 81.24 | M3: 161.16 | O3: 140.95 | P3: 147.4 | Q3: 83.72 | R3: 163.44 | S3: 173.97 | U3: 150.96 | V3: 87 | W3: 166.44 | X3: 176.69 | Y3: 141.59 | AA3: 89.88 | AB3: 169.2 | AC3: 179.33 | AD3: 144.11 | AE3: 180.77 | AG3: 152.23 | AH3: 88.23 | AI3: 168.23 | AJ3: 178.23 | AK3: 143.23
A4: 1001113 | B4: 01001 | C4: Alabama | D4: Autauga | E4: Grain Sorghum | F4: Bushel | G4: 11 | H4: 3 | I4: 50 | J4: 50 | K4: 53 | L4: 37.6 | M4: 39 | O4: 50 | P4: 53 | Q4: 37.6 | R4: 39 | S4: 44 | AA4: 37.6 | AB4: 39 | AC4: 44 | AD4: 49 | AE4: 44
A5: 1001143 | B5: 01001 | C5: Alabama | D5: Autauga | E5: Oats | F5: Bushel | G5: 14 | H5: 3 | I5: 60 | J5: 55 | K5: 50 | L5: 43 | M5: 40 | O5: 55 | P5: 50 | Q5: 43 | R5: 40 | S5: 47 | AA5: 43 | AB5: 40 | AC5: 47 | AD5: 47 | AE5: 50
A6: 1001153 | B6: 01001 | C6: Alabama | D6: Autauga | E6: Peanuts | F6: Pound | G6: 15 | H6: 3 | I6: 3911 | J6: 3194 | K6: 3524 | L6: 2944 | M6: 2135.2 | O6: 3194 | P6: 3524 | Q6: 2944 | R6: 2135.2 | S6: 2949 | U6: 3524 | V6: 2944 | W6: 2135.2 | X6: 2949 | Y6: 2949 | AA6: 2944 | AB6: 2135.2 | AC6: 2949 | AD6: 2949 | AE6: 3386 | AG6: 3525.23 | AH6: 2945.23 | AI6: 2137.23 | AJ6: 2950.23 | AK6: 2950.23
A7: 1001213 | B7: 01001 | C7: Alabama | D7: Autauga | E7: Seed Cotton | F7: Pound of seed | G7: 21 | H7: 3 | I7: 2134.01 | J7: 2109.31 | K7: 2570.26 | L7: 2180.02 | M7: 1921.66 | U7: 2614.42 | V7: 2220.55 | W7: 1958.57 | X7: 2478.5 | Y7: 1798.75 | AA7: 2248.78 | AB7: 1984.56 | AC7: 2502.26 | AD7: 1820.28 | AE7: 1836.62 | AG7: 2616.23 | AH7: 2222.23 | AI7: 1960.23 | AJ7: 2480.23 | AK7: 1800.23
A8: 1001223 | B8: 01001 | C8: Alabama | D8: Autauga | E8: Sesame Seed | F8: Pound | G8: 22 | H8: 3 | I8: 450 | J8: 410.4 | K8: 427 | L8: 513 | M8: 870
A9: 1001023 | B9: 01001 | C9: Alabama | D9: Autauga | E9: Soybeans | F9: Bushel | G9: 2 | H9: 3 | I9: 40.69 | J9: 42.14 | K9: 43.41 | L9: 32.57 | M9: 40.52 | O9: 42.14 | P9: 43.41 | Q9: 32.57 | R9: 40.52 | S9: 28.69
A10: 1001233 | B10: 01001 | C10: Alabama | D10: Autauga | E10: Sunflower Seed | F10: Pound | G10: 23 | H10: 3 | I10: 1450 | J10: 1113 | K10: 1302 | L10: 1200 | M10: 964 | O10: 1113 | P10: 1302 | Q10: 1200 | R10: 964 | S10: 1085 | AA10: 1200 | AB10: 964 | AC10: 1085 | AD10: 1085 | AE10: 1133
A11: 1001033 | B11: 01001 | C11: Alabama | D11: Autauga | E11: Wheat | F11: Bushel | G11: 3 | H11: 3 | I11: 56.55 | J11: 47.6 | K11: 68 | L11: 39 | M11: 45 | O11: 47.6 | P11: 68 | Q11: 39 | R11: 45 | S11: 49 | U11: 68 | V11: 39 | W11: 45 | X11: 49 | Y11: 49.8 | AA11: 39 | AB11: 45 | AC11: 49 | AD11: 49.8 | AE11: 39.7 | AG11: 69.23 | AH11: 40.23 | AI11: 46.23 | AJ11: 50.23 | AK11: 51.23
A12: 1003113 | B12: 01003 | C12: Alabama | D12: Baldwin | E12: Grain Sorghum | F12: Bushel | G12: 11 | H12: 3 | I12: 35.79 | J12: 50 | K12: 53 | L12: 42 | M12: 42 | O12: 50 | P12: 53 | Q12: 42 | R12: 42 | S12: 57 | U12: 53 | V12: 42 | W12: 42 | X12: 57 | Y12: 46.75 | AA12: 42 | AB12: 42 | AC12: 57 | AD12: 46.75 | AE12: 50
A13: 1003143 | B13: 01003 | C13: Alabama | D13: Baldwin | E13: Oats | F13: Bushel | G13: 14 | H13: 3 | I13: 90.93 | J13: 55 | K13: 58.32 | L13: 39.2 | M13: 49 | O13: 55 | P13: 58.32 | Q13: 39.2 | R13: 49 | S13: 50 | U13: 58.32 | V13: 39.2 | W13: 49 | X13: 50 | Y13: 53.08 | AA13: 39.2 | AB13: 49 | AC13: 50 | AD13: 53.08 | AE13: 50
A14: 1003153 | B14: 01003 | C14: Alabama | D14: Baldwin | E14: Peanuts | F14: Pound | G14: 15 | H14: 3 | I14: 4022.34 | J14: 4086.11 | K14: 4428.56 | L14: 4623.24 | M14: 4111.96 | U14: 4428.56 | V14: 4623.24 | W14: 4111.96 | X14: 4049.26 | Y14: 4373.14 | AA14: 4623.24 | AB14: 4111.96 | AC14: 4049.26 | AD14: 4373.14 | AE14: 3477.03 | AG14: 4388.23 | AH14: 4611.23 | AI14: 4089.23 | AJ14: 4018.23 | AK14: 4359.23
A15: 1003213 | B15: 01003 | C15: Alabama | D15: Baldwin | E15: Seed Cotton | F15: Pound of seed | G15: 21 | H15: 3 | I15: 1913.88 | J15: 2499.7 | K15: 2585.88 | L15: 2254.15 | M15: 2282.23 | U15: 2622.41 | V15: 2292.38 | W15: 2322.17 | X15: 1547.26 | Y15: 2217.48 | AA15: 2313.91 | AB15: 2343.72 | AC15: 1568.83 | AD15: 2239.08 | AE15: 1681.06 | AG15: 2624.23 | AH15: 2294.23 | AI15: 2324.23 | AJ15: 1549.23 | AK15: 2219.23
A16: 1003023 | B16: 01003 | C16: Alabama | D16: Baldwin | E16: Soybeans | F16: Bushel | G16: 2 | H16: 3 | I16: 38.19 | J16: 44.62 | K16: 43.27 | L16: 41.03 | M16: 44.73 | O16: 45.12 | P16: 43.75 | Q16: 41.49 | R16: 45.17 | S16: 41.95 | U16: 43.91 | V16: 41.69 | W16: 45.41 | X16: 42.23 | Y16: 35.38 | AA16: 42.35 | AB16: 46.02 | AC16: 42.79 | AD16: 35.89 | AE16: 31.33
A17: 1003233 | B17: 01003 | C17: Alabama | D17: Baldwin | E17: Sunflower Seed | F17: Pound | G17: 23 | H17: 3 | I17: 1450 | J17: 1113 | K17: 1302 | L17: 1200 | M17: 964 | O17: 1113 | P17: 1302 | Q17: 1200 | R17: 964 | S17: 1085 | U17: 1302 | V17: 1200 | W17: 964 | X17: 1085 | Y17: 1175 | AA17: 1200 | AB17: 964 | AC17: 1085 | AD17: 1175 | AE17: 1133
A18: 1003033 | B18: 01003 | C18: Alabama | D18: Baldwin | E18: Wheat | F18: Bushel | G18: 3 | H18: 3 | I18: 56.94 | J18: 41.42 | K18: 36.8 | L18: 47 | M18: 50.98 | O18: 41.42 | P18: 36.8 | Q18: 47 | R18: 50.98 | S18: 59.05 | U18: 36.8 | V18: 47 | W18: 50.98 | X18: 59.05 | Y18: 44.4 | AA18: 47 | AB18: 50.98 | AC18: 59.05 | AD18: 44.4 | AE18: 47.5 | AG18: 38.23 | AH18: 48.23 | AI18: 52.23 | AJ18: 61.23 | AK18: 46.23
A19: 1005013 | B19: 01005 | C19: Alabama | D19: Barbour | E19: Corn | F19: Bushel | G19: 1 | H19: 3 | I19: 171.47 | J19: 125.85 | K19: 186.1 | L19: 141.96 | M19: 216.53 | O19: 128.91 | P19: 188.92 | Q19: 144.54 | R19: 218.87 | S19: 186.47 | U19: 191.14 | V19: 146.7 | W19: 220.97 | X19: 188.51 | Y19: 186.3 | AA19: 150.36 | AB19: 224.34 | AC19: 191.59 | AD19: 189.09 | AE19: 182.01 | AG19: 91.23 | AH19: 115.23 | AI19: 150.23 | AJ19: 102.23 | AK19: 139.23
A20: 1005113 | B20: 01005 | C20: Alabama | D20: Barbour | E20: Grain Sorghum | F20: Bushel | G20: 11 | H20: 3 | I20: 68.76 | J20: 28 | K20: 53 | L20: 45 | M20: 32 | O20: 28 | P20: 53 | Q20: 45 | R20: 32 | S20: 39 | U20: 53 | V20: 45 | W20: 32 | X20: 39 | Y20: 39.2 | AA20: 45 | AB20: 32 | AC20: 39 | AD20: 39.2 | AE20: 39 | AG20: 54.23 | AH20: 46.23 | AI20: 33.23 | AJ20: 40.23 | AK20: 41.23
A21: 1005143 | B21: 01005 | C21: Alabama | D21: Barbour | E21: Oats | F21: Bushel | G21: 14 | H21: 3 | I21: 60 | J21: 55 | K21: 50 | L21: 38.4 | M21: 48 | O21: 55 | P21: 50 | Q21: 38.4 | R21: 48 | S21: 45 | U21: 50 | V21: 38.4 | W21: 48 | X21: 45 | Y21: 44.8 | AA21: 38.4 | AB21: 48 | AC21: 45 | AD21: 44.8 | AE21: 42.4 | AG21: 51.23 | AH21: 40.23 | AI21: 49.23 | AJ21: 46.23 | AK21: 46.23
A22: 1005153 | B22: 01005 | C22: Alabama | D22: Barbour | E22: Peanuts | F22: Pound | G22: 15 | H22: 3 | I22: 2915.49 | J22: 2851.16 | K22: 3690.15 | L22: 2316.97 | M22: 4988.73 | U22: 3741.07 | V22: 2363.72 | W22: 5031.31 | X22: 4691.14 | Y22: 3048.41 | AA22: 2396.26 | AB22: 5061.28 | AC22: 4718.54 | AD22: 3073.24 | AE22: 4621.22 | AG22: 3743.23 | AH22: 2365.23 | AI22: 5033.23 | AJ22: 4693.23 | AK22: 3050.23
A23: 1005223 | B23: 01005 | C23: Alabama | D23: Barbour | E23: Sesame Seed | F23: Pound | G23: 22 | H23: 3 | I23: 484 | J23: 421.6 | K23: 456 | L23: 527 | M23: 863
A24: 1005023 | B24: 01005 | C24: Alabama | D24: Barbour | E24: Soybeans | F24: Bushel | G24: 2 | H24: 3 | I24: 52.32 | J24: 50.92 | K24: 34.45 | L24: 33 | M24: 23 | O24: 50.92 | P24: 34.45 | Q24: 33 | R24: 23 | S24: 40
A25: 1005033 | B25: 01005 | C25: Alabama | D25: Barbour | E25: Wheat | F25: Bushel | G25: 3 | H25: 3 | I25: 61.07 | J25: 49.18 | K25: 68 | L25: 61 | M25: 42 | O25: 49.18 | P25: 68 | Q25: 61 | R25: 42 | S25: 55 | U25: 68 | V25: 61 | W25: 42 | X25: 55 | Y25: 55 | AA25: 61 | AB25: 42 | AC25: 55 | AD25: 55 | AE25: 36.2 | AG25: 69.23 | AH25: 62.23 | AI25: 43.23 | AJ25: 56.23 | AK25: 56.23
A26: 1005213 | B26: 01005 | C26: Alabama | D26: Barbour | E26: Seed Cotton | F26: Pound of seed | G26: 21 | H26: 3 | I26: 1734.36 | J26: 2232.98 | K26: 2443.85 | L26: 2325.5 | M26: 2302.66 | U26: 2518.39 | V26: 2394.84 | W26: 2366.78 | X26: 2199.82 | Y26: 2477.69 | AA26: 2421.84 | AB26: 2393.76 | AC26: 2226.77 | AD26: 2504.62 | AE26: 1723.39 | AG26: 2232.23 | AH26: 1880.23 | AI26: 2158.23 | AJ26: 2242.23 | AK26: 2212.23
A27: 1007013 | B27: 01007 | C27: Alabama | D27: Bibb | E27: Corn | F27: Bushel | G27: 1 | H27: 3 | I27: 122 | J27: 133 | K27: 126 | L27: 106 | M27: 134
A28: 1007213 | B28: 01007 | C28: Alabama | D28: Bibb | E28: Seed Cotton | F28: Pound of seed | G28: 21 | H28: 3 | I28: 2217.6 | J28: 2202.24 | K28: 1956 | L28: 2234.4 | M28: 2085.6 | U28: 1956 | V28: 2234.4 | W28: 2085.6 | X28: 2416.8 | Y28: 2122.99 | AA28: 2234.4 | AB28: 2085.6 | AC28: 2416.8 | AD28: 2122.99 | AE28: 1924.99
A29: 1009013 | B29: 01009 | C29: Alabama | D29: Blount | E29: Corn | F29: Bushel | G29: 1 | H29: 3 | I29: 164.69 | J29: 163.68 | K29: 139.67 | L29: 106.65 | M29: 159.1 | O29: 167.11 | P29: 142.83 | Q29: 109.54 | R29: 161.72 | S29: 184.02 | U29: 145.09 | V29: 111.77 | W29: 163.92 | X29: 186.19 | Y29: 159 | AA29: 114.24 | AB29: 166.33 | AC29: 188.54 | AD29: 161.29 | AE29: 174.52 | AG29: 147.23 | AH29: 113.23 | AI29: 165.23 | AJ29: 188.23 | AK29: 160.23
A30: 1009113 | B30: 01009 | C30: Alabama | D30: Blount | E30: Grain Sorghum | F30: Bushel | G30: 11 | H30: 3 | I30: 50 | J30: 50 | K30: 53 | L30: 38 | M30: 37.6 | O30: 50 | P30: 53 | Q30: 38 | R30: 37.6 | S30: 45 | AA30: 38 | AB30: 37.6 | AC30: 45 | AD30: 44.6 | AE30: 44
A31: 1009143 | B31: 01009 | C31: Alabama | D31: Blount | E31: Oats | F31: Bushel | G31: 14 | H31: 3 | I31: 60 | J31: 55 | K31: 50 | L31: 90 | M31: 44
A32: 1009153 | B32: 01009 | C32: Alabama | D32: Blount | E32: Peanuts | F32: Pound | G32: 15 | H32: 3 | I32: 3817 | J32: 3133 | K32: 3350 | L32: 3600 | M32: 2688.8 | O32: 3133 | P32: 3350 | Q32: 3600 | R32: 2688.8 | S32: 2736 | AA32: 3600 | AB32: 2688.8 | AC32: 2736 | AD32: 5276 | AE32: 3073
A33: 1009213 | B33: 01009 | C33: Alabama | D33: Blount | E33: Seed Cotton | F33: Pound of seed | G33: 21 | H33: 3 | I33: 2209.44 | J33: 2745.05 | K33: 2971.75 | L33: 2789.35 | M33: 3234.05 | O33: 2769.05 | P33: 2997.19 | Q33: 2816.23 | R33: 3262.37 | S33: 3232.87 | U33: 3030.12 | V33: 2848.87 | W33: 3294.72 | X33: 3264.94 | Y33: 3146.54 | AA33: 2880.22 | AB33: 3326.09 | AC33: 3296.33 | AD33: 3177.96 | AE33: 3263.23 | AG33: 3032.23 | AH33: 2850.23 | AI33: 3296.23 | AJ33: 3266.23 | AK33: 3148.23
A34: 1009023 | B34: 01009 | C34: Alabama | D34: Blount | E34: Soybeans | F34: Bushel | G34: 2 | H34: 3 | I34: 47.78 | J34: 39.81 | K34: 48.47 | L34: 28.87 | M34: 49.01 | O34: 40.26 | P34: 48.9 | Q34: 29.28 | R34: 49.4 | S34: 46.11 | U34: 49.07 | V34: 29.48 | W34: 49.63 | X34: 46.37 | Y34: 43.09 | AA34: 30.1 | AB34: 50.2 | AC34: 46.89 | AD34: 43.56 | AE34: 55.34 | AG34: 51.23 | AH34: 31.23 | AI34: 51.23 | AJ34: 48.23 | AK34: 45.23
A35: 1009033 | B35: 01009 | C35: Alabama | D35: Blount | E35: Wheat | F35: Bushel | G35: 3 | H35: 3 | I35: 63.57 | J35: 55.9 | K35: 68 | L35: 80 | M35: 50 | O35: 55.9 | P35: 68 | Q35: 80 | R35: 50 | S35: 76 | U35: 68 | V35: 80 | W35: 50 | X35: 76 | Y35: 66 | AA35: 80 | AB35: 50 | AC35: 76 | AD35: 66 | AE35: 74.9 | AG35: 69.23 | AH35: 81.23 | AI35: 51.23 | AJ35: 77.23 | AK35: 67.23
A36: 1011013 | B36: 01011 | C36: Alabama | D36: Bullock | E36: Corn | F36: Bushel | G36: 1 | H36: 3 | I36: 121.59 | J36: 155.14 | K36: 139.69 | L36: 80 | M36: 135 | O36: 155.14 | P36: 139.69 | Q36: 80 | R36: 135 | S36: 130.94 | U36: 139.69 | V36: 80 | W36: 135 | X36: 130.94 | Y36: 124.82 | AA36: 80 | AB36: 135 | AC36: 130.94 | AD36: 124.82 | AE36: 157 | AG36: 141.23 | AH36: 81.23 | AI36: 136.23 | AJ36: 132.23 | AK36: 126.23
A37: 1011113 | B37: 01011 | C37: Alabama | D37: Bullock | E37: Grain Sorghum | F37: Bushel | G37: 11 | H37: 3 | I37: 50 | J37: 50 | K37: 53 | L37: 35 | M37: 32 | O37: 50 | P37: 53 | Q37: 35 | R37: 32 | S37: 43 | U37: 53 | V37: 35 | W37: 32 | X37: 43 | Y37: 45.25 | AA37: 35 | AB37: 32 | AC37: 43 | AD37: 45.25 | AE37: 43
A38: 1011143 | B38: 01011 | C38: Alabama | D38: Bullock | E38: Oats | F38: Bushel | G38: 14 | H38: 3 | I38: 59 | J38: 55 | K38: 49 | L38: 46 | M38: 49 | O38: 55 | P38: 49 | Q38: 46 | R38: 49 | S38: 52 | U38: 49 | V38: 46 | W38: 49 | X38: 52 | Y38: 52 | AA38: 46 | AB38: 49 | AC38: 52 | AD38: 52 | AE38: 50
A39: 1011153 | B39: 01011 | C39: Alabama | D39: Bullock | E39: Peanuts | F39: Pound | G39: 15 | H39: 3 | I39: 3097 | J39: 2960 | K39: 3041 | L39: 2697 | M39: 3644
A40: 1011213 | B40: 01011 | C40: Alabama | D40: Bullock | E40: Seed Cotton | F40: Pound of seed | G40: 21 | H40: 3 | I40: 2508.86 | J40: 2893.22 | K40: 1924.8 | L40: 2059.2 | M40: 2347.2 | U40: 1924.8 | V40: 2059.2 | W40: 2347.2 | X40: 1762.01 | Y40: 3030.86 | AA40: 2059.2 | AB40: 2347.2 | AC40: 1762.01 | AD40: 3030.86 | AE40: 2454.1 | AG40: 1926.23 | AH40: 2061.23 | AI40: 2349.23 | AJ40: 1764.23 | AK40: 3032.23
A41: 1011023 | B41: 01011 | C41: Alabama | D41: Bullock | E41: Soybeans | F41: Bushel | G41: 2 | H41: 3 | I41: 43.8 | J41: 31.35 | K41: 34.5 | L41: 23.19 | M41: 28 | O41: 31.35 | P41: 34.5 | Q41: 23.19 | R41: 28 | S41: 32 | U41: 34.5 | V41: 23.19 | W41: 28 | X41: 32 | Y41: 32 | AA41: 23.19 | AB41: 28 | AC41: 32 | AD41: 32 | AE41: 44
A42: 1011033 | B42: 01011 | C42: Alabama | D42: Bullock | E42: Wheat | F42: Bushel | G42: 3 | H42: 3 | I42: 69 | J42: 56 | K42: 68 | L42: 61 | M42: 37 | O42: 56 | P42: 68 | Q42: 61 | R42: 37 | S42: 56 | U42: 68 | V42: 61 | W42: 37 | X42: 56 | Y42: 60 | AA42: 61 | AB42: 37 | AC42: 56 | AD42: 60 | AE42: 36.1
A43: 1013013 | B43: 01013 | C43: Alabama | D43: Butler | E43: Corn | F43: Bushel | G43: 1 | H43: 3 | I43: 122.75 | J43: 97.99 | K43: 134.84 | L43: 91.63 | M43: 66.42 | O43: 100.28 | P43: 136.95 | Q43: 93.56 | R43: 68.17 | S43: 114.05 | U43: 139.6 | V43: 96 | W43: 70.4 | X43: 116.07 | Y43: 54.4 | AA43: 98.98 | AB43: 73.15 | AC43: 118.59 | AD43: 56.69 | AE43: 101.02 | AG43: 141.23 | AH43: 97.23 | AI43: 72.23 | AJ43: 118.23 | AK43: 56.23
A44: 1013113 | B44: 01013 | C44: Alabama | D44: Butler | E44: Grain Sorghum | F44: Bushel | G44: 11 | H44: 3 | I44: 50 | J44: 50 | K44: 53 | L44: 41 | M44: 45 | O44: 50 | P44: 53 | Q44: 41 | R44: 45 | S44: 47 | AA44: 41 | AB44: 45 | AC44: 47 | AD44: 47.2 | AE44: 47
A45: 1013143 | B45: 01013 | C45: Alabama | D45: Butler | E45: Oats | F45: Bushel | G45: 14 | H45: 3 | I45: 60 | J45: 55 | K45: 50 | L45: 55 | M45: 50
A46: 1013153 | B46: 01013 | C46: Alabama | D46: Butler | E46: Peanuts | F46: Pound | G46: 15 | H46: 3 | I46: 3817 | J46: 2901 | K46: 2928.51 | L46: 2749 | M46: 3053.87 | O46: 2901 | P46: 2928.51 | Q46: 2749 | R46: 3053.87 | S46: 2212.87
A47: 1013213 | B47: 01013 | C47: Alabama | D47: Butler | E47: Seed Cotton | F47: Pound of seed | G47: 21 | H47: 3 | I47: 1908 | J47: 1785.6 | K47: 2217.6 | L47: 2140.8 | M47: 2013.6 | O47: 1785.6 | P47: 2217.6 | Q47: 2140.8 | R47: 2013.6 | S47: 1740
A48: 1013023 | B48: 01013 | C48: Alabama | D48: Butler | E48: Soybeans | F48: Bushel | G48: 2 | H48: 3 | I48: 32.06 | J48: 42 | K48: 39 | L48: 30 | M48: 23 | O48: 42 | P48: 39 | Q48: 30 | R48: 23 | S48: 41
A49: 1013033 | B49: 01013 | C49: Alabama | D49: Butler | E49: Wheat | F49: Bushel | G49: 3 | H49: 3 | I49: 69 | J49: 56 | K49: 68 | L49: 48 | M49: 39 | O49: 56 | P49: 68 | Q49: 48 | R49: 39 | S49: 53 | U49: 68 | V49: 48 | W49: 39 | X49: 53 | Y49: 52.8 | AA49: 48 | AB49: 39 | AC49: 53 | AD49: 52.8 | AE49: 42.8 | AG49: 69.23 | AH49: 49.23 | AI49: 40.23 | AJ49: 54.23 | AK49: 54.23
A50: 1015043 | B50: 01015 | C50: Alabama | D50: Calhoun | E50: Barley | F50: Bushel | G50: 4 | H50: 3 | I50: 69 | J50: 59 | K50: 59 | L50: 66 | M50: 53
A51: 1015013 | B51: 01015 | C51: Alabama | D51: Calhoun | E51: Corn | F51: Bushel | G51: 1 | H51: 3 | I51: 128.6 | J51: 144.45 | K51: 147.6 | L51: 92.95 | M51: 174.39 | O51: 147.55 | P51: 150.5 | Q51: 95.6 | R51: 176.79 | S51: 177.06 | U51: 152.4 | V51: 97.5 | W51: 178.69 | X51: 178.96 | Y51: 154.84 | AA51: 101.14 | AB51: 182.04 | AC51: 182.02 | AD51: 157.61 | AE51: 149.08 | AG51: 154.23 | AH51: 99.23 | AI51: 180.23 | AJ51: 180.23 | AK51: 156.23
A52: 1015113 | B52: 01015 | C52: Alabama | D52: Calhoun | E52: Grain Sorghum | F52: Bushel | G52: 11 | H52: 3 | I52: 50 | J52: 50 | K52: 53 | L52: 38 | M52: 38 | O52: 50 | P52: 53 | Q52: 38 | R52: 38 | S52: 45 | U52: 53 | V52: 38 | W52: 38 | X52: 45 | Y52: 46 | AA52: 38 | AB52: 38 | AC52: 45 | AD52: 46 | AE52: 44
A53: 1015143 | B53: 01015 | C53: Alabama | D53: Calhoun | E53: Oats | F53: Bushel | G53: 14 | H53: 3 | I53: 60 | J53: 55 | K53: 50 | L53: 90 | M53: 44
A54: 1015213 | B54: 01015 | C54: Alabama | D54: Calhoun | E54: Seed Cotton | F54: Pound of seed | G54: 21 | H54: 3 | I54: 2565.17 | J54: 2281.44 | K54: 3191.3 | L54: 2845.54 | M54: 2448.84 | U54: 3249.67 | V54: 2905.06 | W54: 2509.51 | X54: 3117.26 | Y54: 2681.74 | AA54: 2936.4 | AB54: 2540.88 | AC54: 3148.66 | AD54: 2713.15 | AE54: 2317.56 | AG54: 3251.23 | AH54: 2907.23 | AI54: 2511.23 | AJ54: 3119.23 | AK54: 2683.23
A55: 1015023 | B55: 01015 | C55: Alabama | D55: Calhoun | E55: Soybeans | F55: Bushel | G55: 2 | H55: 3 | I55: 44.11 | J55: 35.2 | K55: 37.91 | L55: 26.06 | M55: 41.94 | O55: 35.63 | P55: 38.32 | Q55: 26.45 | R55: 42.31 | S55: 36.22 | U55: 38.47 | V55: 26.63 | W55: 42.52 | X55: 36.46 | Y55: 29.47 | AA55: 26.93 | AB55: 42.82 | AC55: 36.76 | AD55: 29.77 | AE55: 37.14 | AG55: 40.23 | AH55: 28.23 | AI55: 44.23 | AJ55: 38.23 | AK55: 31.23
A56: 1015033 | B56: 01015 | C56: Alabama | D56: Calhoun | E56: Wheat | F56: Bushel | G56: 3 | H56: 3 | I56: 65.63 | J56: 68.54 | K56: 66.43 | L56: 54.73 | M56: 52 | O56: 68.54 | P56: 66.43 | Q56: 54.73 | R56: 52 | S56: 65.5 | U56: 66.43 | V56: 54.73 | W56: 52 | X56: 65.5 | Y56: 60.19 | AA56: 54.73 | AB56: 52 | AC56: 65.5 | AD56: 60.19 | AE56: 71.73 | AG56: 68.23 | AH56: 56.23 | AI56: 53.23 | AJ56: 67.23 | AK56: 62.23
A57: 1017013 | B57: 01017 | C57: Alabama | D57: Chambers | E57: Corn | F57: Bushel | G57: 1 | H57: 3 | I57: 138 | J57: 150 | K57: 129.07 | L57: 87 | M57: 98 | O57: 150 | P57: 129.07 | Q57: 87 | R57: 98 | S57: 144 | U57: 129.07 | V57: 87 | W57: 98 | X57: 144 | Y57: 115.66 | AA57: 87 | AB57: 98 | AC57: 144 | AD57: 115.66 | AE57: 133.95 | AG57: 131.23 | AH57: 88.23 | AI57: 99.23 | AJ57: 145.23 | AK57: 117.23
A58: 1017113 | B58: 01017 | C58: Alabama | D58: Chambers | E58: Grain Sorghum | F58: Bushel | G58: 11 | H58: 3 | I58: 49 | J58: 50 | K58: 53 | L58: 38.4 | M58: 43 | O58: 50 | P58: 53 | Q58: 38.4 | R58: 43 | S58: 46 | U58: 53 | V58: 38.4 | W58: 43 | X58: 46 | Y58: 47 | AA58: 38.4 | AB58: 43 | AC58: 46 | AD58: 47 | AE58: 46
A59: 1017143 | B59: 01017 | C59: Alabama | D59: Chambers | E59: Oats | F59: Bushel | G59: 14 | H59: 3 | I59: 60 | J59: 55 | K59: 50 | L59: 60 | M59: 44 | O59: 55 | P59: 50 | Q59: 60 | R59: 44 | S59: 50 | AA59: 60 | AB59: 44 | AC59: 50 | AD59: 50.2 | AE59: 50
A60: 1017153 | B60: 01017 | C60: Alabama | D60: Chambers | E60: Peanuts | F60: Pound | G60: 15 | H60: 3 | I60: 3817 | J60: 3133 | K60: 3948 | L60: 2862.4 | M60: 3785
A61: 1017213 | B61: 01017 | C61: Alabama | D61: Chambers | E61: Seed Cotton | F61: Pound of seed | G61: 21 | H61: 3 | I61: 1581.6 | J61: 2229.6 | K61: 2232 | L61: 1720.8 | M61: 1941.6 | U61: 2232 | V61: 1720.8 | W61: 1941.6 | X61: 2416.8 | Y61: 2031 | AA61: 1720.8 | AB61: 1941.6 | AC61: 2416.8 | AD61: 2031 | AE61: 1894.01
A62: 1017023 | B62: 01017 | C62: Alabama | D62: Chambers | E62: Soybeans | F62: Bushel | G62: 2 | H62: 3 | I62: 39 | J62: 39 | K62: 41 | L62: 39 | M62: 31.2 | O62: 39 | P62: 41 | Q62: 39 | R62: 31.2 | S62: 35
A63: 1017233 | B63: 01017 | C63: Alabama | D63: Chambers | E63: Sunflower Seed | F63: Pound | G63: 23 | H63: 3 | I63: 1450 | J63: 1113 | K63: 1302 | L63: 1200 | M63: 964 | O63: 1113 | P63: 1302 | Q63: 1200 | R63: 964 | S63: 1085 | U63: 1302 | V63: 1200 | W63: 964 | X63: 1085 | Y63: 1175 | AA63: 1200 | AB63: 964 | AC63: 1085 | AD63: 1175 | AE63: 1133
A64: 1017033 | B64: 01017 | C64: Alabama | D64: Chambers | E64: Wheat | F64: Bushel | G64: 3 | H64: 3 | I64: 69 | J64: 56 | K64: 68 | L64: 55 | M64: 42 | O64: 56 | P64: 68 | Q64: 55 | R64: 42 | S64: 55 | AA64: 55 | AB64: 42 | AC64: 55 | AD64: 55.2 | AE64: 55
A65: 1019043 | B65: 01019 | C65: Alabama | D65: Cherokee | E65: Barley | F65: Bushel | G65: 4 | H65: 3 | I65: 69 | J65: 59 | K65: 66 | L65: 61 | M65: 41
A66: 1019053 | B66: 01019 | C66: Alabama | D66: Cherokee | E66: Canola | F66: Pound | G66: 5 | H66: 3 | I66: 1592 | J66: 1563 | K66: 1578 | L66: 1578 | M66: 1578
A67: 1019013 | B67: 01019 | C67: Alabama | D67: Cherokee | E67: Corn | F67: Bushel | G67: 1 | H67: 3 | I67: 166.72 | J67: 137.32 | K67: 118.19 | L67: 117.91 | M67: 136.18 | O67: 140.59 | P67: 121.2 | Q67: 120.66 | R67: 138.67 | S67: 154.28 | U67: 123.17 | V67: 122.63 | W67: 140.64 | X67: 156.25 | Y67: 124.37 | AA67: 124.96 | AB67: 142.91 | AC67: 158.46 | AD67: 126.52 | AE67: 99.4 | AG67: 125.23 | AH67: 124.23 | AI67: 142.23 | AJ67: 158.23 | AK67: 126.23
A68: 1019113 | B68: 01019 | C68: Alabama | D68: Cherokee | E68: Grain Sorghum | F68: Bushel | G68: 11 | H68: 3 | I68: 50 | J68: 50 | K68: 53 | L68: 38 | M68: 38 | O68: 50 | P68: 53 | Q68: 38 | R68: 38 | S68: 45 | U68: 53 | V68: 38 | W68: 38 | X68: 45 | Y68: 46 | AA68: 38 | AB68: 38 | AC68: 45 | AD68: 46 | AE68: 44
A69: 1019143 | B69: 01019 | C69: Alabama | D69: Cherokee | E69: Oats | F69: Bushel | G69: 14 | H69: 3 | I69: 60 | J69: 55 | K69: 50 | L69: 90 | M69: 47 | O69: 55 | P69: 50 | Q69: 90 | R69: 47 | S69: 61 | U69: 50 | V69: 90 | W69: 47 | X69: 61 | Y69: 56 | AA69: 90 | AB69: 47 | AC69: 61 | AD69: 56 | AE69: 50
A70: 1019213 | B70: 01019 | C70: Alabama | D70: Cherokee | E70: Seed Cotton | F70: Pound of seed | G70: 21 | H70: 3 | I70: 2362.7 | J70: 2741.62 | K70: 1984.22 | L70: 2500.03 | M70: 2247.02 | U70: 2042.59 | V70: 2559.55 | W70: 2307.7 | X70: 2816.42 | Y70: 2167.9 | AA70: 2590.9 | AB70: 2339.06 | AC70: 2847.82 | AD70: 2199.31 | AE70: 2396.18 | AG70: 2044.23 | AH70: 2561.23 | AI70: 2309.23 | AJ70: 2818.23 | AK70: 2169.23
A71: 1019023 | B71: 01019 | C71: Alabama | D71: Cherokee | E71: Soybeans | F71: Bushel | G71: 2 | H71: 3 | I71: 46.84 | J71: 42.18 | K71: 31.23 | L71: 23.36 | M71: 42.73 | O71: 42.62 | P71: 31.65 | Q71: 23.76 | R71: 43.11 | S71: 40.07 | U71: 31.87 | V71: 24 | W71: 43.37 | X71: 40.35 | Y71: 26.55 | AA71: 24.26 | AB71: 43.64 | AC71: 40.63 | AD71: 26.84 | AE71: 30.22 | AG71: 33.23 | AH71: 25.23 | AI71: 45.23 | AJ71: 42.23 | AK71: 28.23
A72: 1019233 | B72: 01019 | C72: Alabama | D72: Cherokee | E72: Sunflower Seed | F72: Pound | G72: 23 | H72: 3 | I72: 1178 | J72: 1113 | K72: 1200 | L72: 999 | M72: 999
A73: 1019033 | B73: 01019 | C73: Alabama | D73: Cherokee | E73: Wheat | F73: Bushel | G73: 3 | H73: 3 | I73: 61.75 | J73: 71.13 | K73: 67.72 | L73: 53.41 | M73: 54 | O73: 71.13 | P73: 67.72 | Q73: 53.41 | R73: 54 | S73: 68.29 | U73: 67.72 | V73: 53.41 | W73: 54 | X73: 68.29 | Y73: 62.8 | AA73: 53.41 | AB73: 54 | AC73: 68.29 | AD73: 62.8 | AE73: 68 | AG73: 69.23 | AH73: 55.23 | AI73: 55.23 | AJ73: 70.23 | AK73: 64.23
A74: 1021013 | B74: 01021 | C74: Alabama | D74: Chilton | E74: Corn | F74: Bushel | G74: 1 | H74: 3 | I74: 76.8 | J74: 150 | K74: 133 | L74: 93 | M74: 86 | O74: 150 | P74: 133 | Q74: 93 | R74: 86 | S74: 144
A75: 1021113 | B75: 01021 | C75: Alabama | D75: Chilton | E75: Grain Sorghum | F75: Bushel | G75: 11 | H75: 3 | I75: 50 | J75: 50 | K75: 53 | L75: 36 | M75: 37
A76: 1021143 | B76: 01021 | C76: Alabama | D76: Chilton | E76: Oats | F76: Bushel | G76: 14 | H76: 3 | I76: 60 | J76: 55 | K76: 50 | L76: 41 | M76: 43
A77: 1021213 | B77: 01021 | C77: Alabama | D77: Chilton | E77: Seed Cotton | F77: Pound of seed | G77: 21 | H77: 3 | I77: 2174.4 | J77: 1929.6 | K77: 2229.6 | L77: 2150.4 | M77: 2121.6 | U77: 2229.6 | V77: 2150.4 | W77: 2121.6 | X77: 2416.8 | Y77: 2167.99 | AA77: 2150.4 | AB77: 2121.6 | AC77: 2416.8 | AD77: 2167.99 | AE77: 1884
A78: 1021023 | B78: 01021 | C78: Alabama | D78: Chilton | E78: Soybeans | F78: Bushel | G78: 2 | H78: 3 | I78: 41.2 | J78: 22.4 | K78: 36.37 | L78: 39 | M78: 28 | O78: 22.4 | P78: 36.37 | Q78: 39 | R78: 28 | S78: 33
A79: 1021033 | B79: 01021 | C79: Alabama | D79: Chilton | E79: Wheat | F79: Bushel | G79: 3 | H79: 3 | I79: 36.53 | J79: 56 | K79: 68 | L79: 39 | M79: 40 | O79: 56 | P79: 68 | Q79: 39 | R79: 40 | S79: 49 | U79: 68 | V79: 39 | W79: 40 | X79: 49 | Y79: 50.4 | AA79: 39 | AB79: 40 | AC79: 49 | AD79: 50.4 | AE79: 43.5 | AG79: 69.23 | AH79: 40.23 | AI79: 41.23 | AJ79: 50.23 | AK79: 52.23
A80: 1023013 | B80: 01023 | C80: Alabama | D80: Choctaw | E80: Corn | F80: Bushel | G80: 1 | H80: 3 | I80: 135 | J80: 135 | K80: 130 | L80: 108 | M80: 71 | O80: 135 | P80: 130 | Q80: 108 | R80: 71 | S80: 145 | U80: 130 | V80: 108 | W80: 71 | X80: 145 | Y80: 127 | AA80: 108 | AB80: 71 | AC80: 145 | AD80: 127 | AE80: 154
A81: 1023213 | B81: 01023 | C81: Alabama | D81: Choctaw | E81: Seed Cotton | F81: Pound of seed | G81: 21 | H81: 3 | I81: 1843.2 | J81: 1423.2 | K81: 1764 | L81: 2148 | M81: 1795.2 | U81: 1764 | V81: 2148 | W81: 1795.2 | X81: 1740 | Y81: 1786.01 | AA81: 2148 | AB81: 1795.2 | AC81: 1740 | AD81: 1786.01 | AE81: 1704
A82: 1025013 | B82: 01025 | C82: Alabama | D82: Clarke | E82: Corn | F82: Bushel | G82: 1 | H82: 3 | I82: 135 | J82: 135 | K82: 130 | L82: 106 | M82: 71 | O82: 135 | P82: 130 | Q82: 106 | R82: 71 | S82: 145 | U82: 130 | V82: 106 | W82: 71 | X82: 145 | Y82: 129 | AA82: 106 | AB82: 71 | AC82: 145 | AD82: 129 | AE82: 150
A83: 1025113 | B83: 01025 | C83: Alabama | D83: Clarke | E83: Grain Sorghum | F83: Bushel | G83: 11 | H83: 3 | I83: 36 | J83: 50 | K83: 53 | L83: 40 | M83: 38
A84: 1025143 | B84: 01025 | C84: Alabama | D84: Clarke | E84: Oats | F84: Bushel | G84: 14 | H84: 3 | I84: 60 | J84: 55 | K84: 50 | L84: 44 | M84: 55 | O84: 55 | P84: 50 | Q84: 44 | R84: 55 | S84: 52 | U84: 50 | V84: 44 | W84: 55 | X84: 52 | Y84: 53 | AA84: 44 | AB84: 55 | AC84: 52 | AD84: 53 | AE84: 46.8
A85: 1025153 | B85: 01025 | C85: Alabama | D85: Clarke | E85: Peanuts | F85: Pound | G85: 15 | H85: 3 | I85: 4162 | J85: 4032 | K85: 3001 | L85: 4264 | M85: 4236
A86: 1025213 | B86: 01025 | C86: Alabama | D86: Clarke | E86: Seed Cotton | F86: Pound of seed | G86: 21 | H86: 3 | I86: 1701.6 | J86: 1416 | K86: 1773.6 | L86: 2148 | M86: 1795.2 | U86: 1773.6 | V86: 2148 | W86: 1795.2 | X86: 1740 | Y86: 1753.01 | AA86: 2148 | AB86: 1795.2 | AC86: 1740 | AD86: 1753.01 | AE86: 1699.01
A87: 1025033 | B87: 01025 | C87: Alabama | D87: Clarke | E87: Wheat | F87: Bushel | G87: 3 | H87: 3 | I87: 69 | J87: 56 | K87: 68 | L87: 47 | M87: 45 | O87: 56 | P87: 68 | Q87: 47 | R87: 45 | S87: 59 | U87: 68 | V87: 47 | W87: 45 | X87: 59 | Y87: 58 | AA87: 47 | AB87: 45 | AC87: 59 | AD87: 58 | AE87: 47.5
A88: 1027013 | B88: 01027 | C88: Alabama | D88: Clay | E88: Corn | F88: Bushel | G88: 1 | H88: 3 | I88: 138 | J88: 150 | K88: 133 | L88: 83 | M88: 106 | O88: 150 | P88: 133 | Q88: 83 | R88: 106 | S88: 144 | U88: 133 | V88: 83 | W88: 106 | X88: 144 | Y88: 130 | AA88: 83 | AB88: 106 | AC88: 144 | AD88: 130 | AE88: 104
A89: 1027113 | B89: 01027 | C89: Alabama | D89: Clay | E89: Grain Sorghum | F89: Bushel | G89: 11 | H89: 3 | I89: 50 | J89: 50 | K89: 53 | L89: 38 | M89: 39
A90: 1027143 | B90: 01027 | C90: Alabama | D90: Clay | E90: Oats | F90: Bushel | G90: 14 | H90: 3 | I90: 60 | J90: 55 | K90: 49 | L90: 76 | M90: 47
A91: 1027213 | B91: 01027 | C91: Alabama | D91: Clay | E91: Seed Cotton | F91: Pound of seed | G91: 21 | H91: 3 | I91: 2210.4 | J91: 2359.2 | K91: 2397.6 | L91: 2484 | M91: 2364
A92: 1027023 | B92: 01027 | C92: Alabama | D92: Clay | E92: Soybeans | F92: Bushel | G92: 2 | H92: 3 | I92: 39 | J92: 39 | K92: 41 | L92: 39 | M92: 28 | O92: 39 | P92: 41 | Q92: 39 | R92: 28 | S92: 39
A93: 1027033 | B93: 01027 | C93: Alabama | D93: Clay | E93: Wheat | F93: Bushel | G93: 3 | H93: 3 | I93: 69 | J93: 56 | K93: 68 | L93: 55 | M93: 50 | O93: 56 | P93: 68 | Q93: 55 | R93: 50 | S93: 57 | U93: 68 | V93: 55 | W93: 50 | X93: 57 | Y93: 59 | AA93: 55 | AB93: 50 | AC93: 57 | AD93: 59 | AE93: 76
A94: 1029013 | B94: 01029 | C94: Alabama | D94: Cleburne | E94: Corn | F94: Bushel | G94: 1 | H94: 3 | I94: 132 | J94: 144 | K94: 129 | L94: 125 | M94: 111.1 | O94: 144 | P94: 129 | Q94: 125 | R94: 111.11 | S94: 142.82 | U94: 129 | V94: 125 | W94: 111.11 | X94: 142.82 | Y94: 132 | AA94: 125 | AB94: 111.11 | AC94: 142.82 | AD94: 132 | AE94: 119
A95: 1029113 | B95: 01029 | C95: Alabama | D95: Cleburne | E95: Grain Sorghum | F95: Bushel | G95: 11 | H95: 3 | I95: 50 | J95: 50 | K95: 53 | L95: 38 | M95: 38 | O95: 50 | P95: 53 | Q95: 38 | R95: 38 | S95: 45 | U95: 53 | V95: 38 | W95: 38 | X95: 45 | Y95: 46 | AA95: 38 | AB95: 38 | AC95: 45 | AD95: 46 | AE95: 44
A96: 1029143 | B96: 01029 | C96: Alabama | D96: Cleburne | E96: Oats | F96: Bushel | G96: 14 | H96: 3 | I96: 60 | J96: 55 | K96: 50 | L96: 90 | M96: 47
A97: 1029023 | B97: 01029 | C97: Alabama | D97: Cleburne | E97: Soybeans | F97: Bushel | G97: 2 | H97: 3 | I97: 43 | J97: 40 | K97: 38 | L97: 24 | M97: 28 | O97: 40 | P97: 38 | Q97: 24 | R97: 28 | S97: 42
A98: 1029033 | B98: 01029 | C98: Alabama | D98: Cleburne | E98: Wheat | F98: Bushel | G98: 3 | H98: 3 | I98: 69 | J98: 56 | K98: 68 | L98: 60 | M98: 50 | O98: 56 | P98: 68 | Q98: 60 | R98: 50 | S98: 66 | U98: 68 | V98: 60 | W98: 50 | X98: 66 | Y98: 63 | AA98: 60 | AB98: 50 | AC98: 66 | AD98: 63 | AE98: 69.3
A99: 1031053 | B99: 01031 | C99: Alabama | D99: Coffee | E99: Canola | F99: Pound | G99: 5 | H99: 3 | I99: 1604 | J99: 1563 | K99: 1645 | L99: 1824 | M99: 990.4
A100: 1031013 | B100: 01031 | C100: Alabama | D100: Coffee | E100: Corn | F100: Bushel | G100: 1 | H100: 3 | I100: 157.1 | J100: 111.66 | K100: 109.71 | L100: 101.61 | M100: 113.35 | O100: 113.81 | P100: 111.69 | Q100: 103.42 | R100: 114.99 | S100: 98.83 | U100: 113.95 | V100: 105.52 | W100: 116.93 | X100: 100.61 | Y100: 66.88 | AA100: 107.28 | AB100: 118.64 | AC100: 102.27 | AD100: 68.49 | AE100: 121.45 | AG100: 98.23 | AH100: 95.23 | AI100: 107.23 | AJ100: 94.23 | AK100: 60.23
A101: 1031113 | B101: 01031 | C101: Alabama | D101: Coffee | E101: Grain Sorghum | F101: Bushel | G101: 11 | H101: 3 | I101: 50 | J101: 50 | K101: 28 | L101: 42 | M101: 32 | O101: 50 | P101: 28 | Q101: 42 | R101: 32 | S101: 25.6 | U101: 28 | V101: 42 | W101: 32 | X101: 25.6 | Y101: 32.2 | AA101: 42 | AB101: 32 | AC101: 25.6 | AD101: 32.2 | AE101: 33 | AG101: 29.23 | AH101: 43.23 | AI101: 33.23 | AJ101: 27.23 | AK101: 34.23
A102: 1031143 | B102: 01031 | C102: Alabama | D102: Coffee | E102: Oats | F102: Bushel | G102: 14 | H102: 3 | I102: 61.76 | J102: 55 | K102: 50 | L102: 38.4 | M102: 48 | O102: 55 | P102: 50 | Q102: 38.4 | R102: 48 | S102: 44 | U102: 50 | V102: 38.4 | W102: 48 | X102: 44 | Y102: 45.2 | AA102: 38.4 | AB102: 48 | AC102: 44 | AD102: 45.2 | AE102: 34.4 | AG102: 51.23 | AH102: 40.23 | AI102: 49.23 | AJ102: 45.23 | AK102: 47.23
A103: 1031153 | B103: 01031 | C103: Alabama | D103: Coffee | E103: Peanuts | F103: Pound | G103: 15 | H103: 3 | I103: 3291.43 | J103: 2840.97 | K103: 2740.68 | L103: 3216.73 | M103: 2934.53 | U103: 2751.46 | V103: 3226.63 | W103: 2943.55 | X103: 3109.01 | Y103: 2108.79 | AA103: 3233.5 | AB103: 2949.88 | AC103: 3114.8 | AD103: 2114.04 | AE103: 2731.07 | AG103: 2560.23 | AH103: 3149.23 | AI103: 2911.23 | AJ103: 3035.23 | AK103: 1825.23
A104: 1031213 | B104: 01031 | C104: Alabama | D104: Coffee | E104: Seed Cotton | F104: Pound of seed | G104: 21 | H104: 3 | I104: 1674.31 | J104: 1661.06 | K104: 2020.99 | L104: 2267.74 | M104: 1787.69 | U104: 2065.49 | V104: 2311.58 | W104: 1830.89 | X104: 1526.3 | Y104: 1505.62 | AA104: 2332.25 | AB104: 1851.6 | AC104: 1547.06 | AD104: 1526.42 | AE104: 1182.29 | AG104: 2067.23 | AH104: 2313.23 | AI104: 1832.23 | AJ104: 1528.23 | AK104: 1507.23
A105: 1031023 | B105: 01031 | C105: Alabama | D105: Coffee | E105: Soybeans | F105: Bushel | G105: 2 | H105: 3 | I105: 40.03 | J105: 25.38 | K105: 33.92 | L105: 43.95 | M105: 46.29 | O105: 25.38 | P105: 33.92 | Q105: 43.95 | R105: 46.29 | S105: 22.56 | U105: 33.92 | V105: 43.95 | W105: 46.29 | X105: 22.56 | Y105: 33.43 | AA105: 43.95 | AB105: 46.29 | AC105: 22.56 | AD105: 33.43 | AE105: 41.93 | AG105: 35.23 | AH105: 45.23 | AI105: 48.23 | AJ105: 24.23 | AK105: 35.23
A106: 1031033 | B106: 01031 | C106: Alabama | D106: Coffee | E106: Wheat | F106: Bushel | G106: 3 | H106: 3 | I106: 44.01 | J106: 39.53 | K106: 68 | L106: 33.6 | M106: 33.6 | O106: 39.53 | P106: 68 | Q106: 33.6 | R106: 33.6 | S106: 43 | U106: 68 | V106: 33.6 | W106: 33.6 | X106: 43 | Y106: 37.2 | AA106: 33.6 | AB106: 33.6 | AC106: 43 | AD106: 37.2 | AE106: 37 | AG106: 69.23 | AH106: 35.23 | AI106: 35.23 | AJ106: 44.23 | AK106: 39.23
A107: 1033053 | B107: 01033 | C107: Alabama | D107: Colbert | E107: Canola | F107: Pound | G107: 5 | H107: 3 | I107: 1879 | J107: 1563 | K107: 1645 | L107: 1824 | M107: 1152
A108: 1033013 | B108: 01033 | C108: Alabama | D108: Colbert | E108: Corn | F108: Bushel | G108: 1 | H108: 3 | I108: 204.08 | J108: 199 | K108: 167.41 | L108: 128.01 | M108: 201.26 | O108: 203.86 | P108: 171.92 | Q108: 132.17 | R108: 205.07 | S108: 171.7 | U108: 172.99 | V108: 133.58 | W108: 206.82 | X108: 173.79 | Y108: 177.56 | AA108: 137.97 | AB108: 210.94 | AC108: 177.64 | AD108: 181.14 | AE108: 179.52 | AG108: 169.23 | AH108: 129.23 | AI108: 203.23 | AJ108: 173.23 | AK108: 175.23
A109: 1033113 | B109: 01033 | C109: Alabama | D109: Colbert | E109: Grain Sorghum | F109: Bushel | G109: 11 | H109: 3 | I109: 56 | J109: 50 | K109: 53 | L109: 47 | M109: 58 | O109: 50 | P109: 53 | Q109: 47 | R109: 58 | S109: 52 | U109: 53 | V109: 47 | W109: 58 | X109: 52 | Y109: 52 | AA109: 47 | AB109: 58 | AC109: 52 | AD109: 52 | AE109: 53
A110: 1033143 | B110: 01033 | C110: Alabama | D110: Colbert | E110: Oats | F110: Bushel | G110: 14 | H110: 3 | I110: 60 | J110: 55 | K110: 50 | L110: 40.8 | M110: 47
A111: 1033223 | B111: 01033 | C111: Alabama | D111: Colbert | E111: Sesame Seed | F111: Pound | G111: 22 | H111: 3 | I111: 450 | J111: 410.4 | K111: 427 | L111: 513 | M111: 870
A112: 1033023 | B112: 01033 | C112: Alabama | D112: Colbert | E112: Soybeans | F112: Bushel | G112: 2 | H112: 3 | I112: 49.55 | J112: 45.2 | K112: 46.93 | L112: 36.41 | M112: 49.62 | O112: 45.62 | P112: 47.35 | Q112: 36.83 | R112: 50.04 | S112: 36.56 | U112: 47.77 | V112: 37.25 | W112: 50.46 | X112: 36.98 | Y112: 43.88 | AA112: 37.91 | AB112: 51.08 | AC112: 37.56 | AD112: 44.42 | AE112: 44.47 | AG112: 49.23 | AH112: 39.23 | AI112: 52.23 | AJ112: 38.23 | AK112: 45.23
A113: 1033233 | B113: 01033 | C113: Alabama | D113: Colbert | E113: Sunflower Seed | F113: Pound | G113: 23 | H113: 3 | I113: 1419 | J113: 1113 | K113: 1302 | L113: 1200 | M113: 964
A114: 1033033 | B114: 01033 | C114: Alabama | D114: Colbert | E114: Wheat | F114: Bushel | G114: 3 | H114: 3 | I114: 79.03 | J114: 87.39 | K114: 74.6 | L114: 81.87 | M114: 79.46 | O114: 87.39 | P114: 74.6 | Q114: 81.87 | R114: 79.46 | S114: 71.02 | U114: 74.6 | V114: 81.87 | W114: 79.46 | X114: 71.02 | Y114: 63.02 | AA114: 81.87 | AB114: 79.46 | AC114: 71.02 | AD114: 63.02 | AE114: 69.34 | AG114: 76.23 | AH114: 83.23 | AI114: 81.23 | AJ114: 73.23 | AK114: 65.23
A115: 1033213 | B115: 01033 | C115: Alabama | D115: Colbert | E115: Seed Cotton | F115: Pound of seed | G115: 21 | H115: 3 | I115: 2790.79 | J115: 2361.72 | K115: 2301.46 | L115: 2753.78 | M115: 2329.94 | U115: 2358.53 | V115: 2809.66 | W115: 2384.62 | X115: 2393.06 | Y115: 2905.39 | AA115: 2835.65 | AB115: 2410.63 | AC115: 2419.1 | AD115: 2931.46 | AE115: 1917.46 | AG115: 2338.23 | AH115: 2588.23 | AI115: 2340.23 | AJ115: 2300.23 | AK115: 2808.23
A116: 1035053 | B116: 01035 | C116: Alabama | D116: Conecuh | E116: Canola | F116: Pound | G116: 5 | H116: 3 | I116: 1473 | J116: 1563 | K116: 1645 | L116: 1824 | M116: 990.4 | O116: 1563 | P116: 1645 | Q116: 1824 | R116: 990.4 | S116: 1473 | U116: 1645 | V116: 1824 | W116: 990.4 | X116: 1473 | Y116: 1539 | AA116: 1824 | AB116: 990.4 | AC116: 1473 | AD116: 1539 | AE116: 1473
A117: 1035013 | B117: 01035 | C117: Alabama | D117: Conecuh | E117: Corn | F117: Bushel | G117: 1 | H117: 3 | I117: 103.72 | J117: 120.8 | K117: 94.22 | L117: 117.57 | M117: 117.05 | O117: 122.75 | P117: 95.99 | Q117: 119.19 | R117: 118.52 | S117: 91.23 | U117: 98.24 | V117: 121.26 | W117: 120.41 | X117: 92.94 | Y117: 84.69 | AA117: 123.81 | AB117: 122.76 | AC117: 95.09 | AD117: 86.64 | AE117: 110.64 | AG117: 100.23 | AH117: 123.23 | AI117: 122.23 | AJ117: 94.23 | AK117: 86.23
A118: 1035113 | B118: 01035 | C118: Alabama | D118: Conecuh | E118: Grain Sorghum | F118: Bushel | G118: 11 | H118: 3 | I118: 50 | J118: 50 | K118: 53 | L118: 43 | M118: 42 | O118: 50 | P118: 53 | Q118: 43 | R118: 42 | S118: 47 | AA118: 43 | AB118: 42 | AC118: 47 | AD118: 47 | AE118: 47
A119: 1035143 | B119: 01035 | C119: Alabama | D119: Conecuh | E119: Oats | F119: Bushel | G119: 14 | H119: 3 | I119: 60 | J119: 55 | K119: 50 | L119: 44 | M119: 55 | O119: 55 | P119: 50 | Q119: 44 | R119: 55 | S119: 50 | U119: 50 | V119: 44 | W119: 55 | X119: 50 | Y119: 43.6 | AA119: 44 | AB119: 55 | AC119: 50 | AD119: 43.6 | AE119: 46.8 | AG119: 51.23 | AH119: 45.23 | AI119: 56.23 | AJ119: 51.23 | AK119: 45.23
A120: 1035153 | B120: 01035 | C120: Alabama | D120: Conecuh | E120: Peanuts | F120: Pound | G120: 15 | H120: 3 | I120: 3748.69 | J120: 3094.83 | K120: 2296.57 | L120: 3491.75 | M120: 3074.99 | U120: 2296.57 | V120: 3491.75 | W120: 3074.99 | X120: 2888.39 | Y120: 3921.28 | AA120: 3491.75 | AB120: 3074.99 | AC120: 2888.39 | AD120: 3921.28 | AE120: 3927.02 | AG120: 2298.23 | AH120: 3493.23 | AI120: 3076.23 | AJ120: 2890.23 | AK120: 3923.23
A121: 1035213 | B121: 01035 | C121: Alabama | D121: Conecuh | E121: Seed Cotton | F121: Pound of seed | G121: 21 | H121: 3 | I121: 2222.06 | J121: 2187.7 | K121: 2130.17 | L121: 2332.2 | M121: 1978.13 | O121: 2200.73 | P121: 2144.47 | Q121: 2347.78 | R121: 1994.88 | S121: 1583.74 | U121: 2164.01 | V121: 2367.29 | W121: 2014.37 | X121: 1603.2 | Y121: 2157.46 | AA121: 2386.56 | AB121: 2033.66 | AC121: 1622.52 | AD121: 2176.8 | AE121: 1701.7 | AG121: 2166.23 | AH121: 2369.23 | AI121: 2016.23 | AJ121: 1605.23 | AK121: 2159.23
A122: 1035023 | B122: 01035 | C122: Alabama | D122: Conecuh | E122: Soybeans | F122: Bushel | G122: 2 | H122: 3 | I122: 36.1 | J122: 43 | K122: 39.8 | L122: 23.1 | M122: 23.4 | O122: 43.38 | P122: 40.15 | Q122: 23.42 | R122: 23.69 | S122: 41.46
A123: 1035033 | B123: 01035 | C123: Alabama | D123: Conecuh | E123: Wheat | F123: Bushel | G123: 3 | H123: 3 | I123: 51.48 | J123: 56 | K123: 68 | L123: 53 | M123: 45 | O123: 56 | P123: 68 | Q123: 53 | R123: 45 | S123: 56 | U123: 68 | V123: 53 | W123: 45 | X123: 56 | Y123: 55.6 | AA123: 53 | AB123: 45 | AC123: 56 | AD123: 55.6 | AE123: 55 | AG123: 69.23 | AH123: 54.23 | AI123: 46.23 | AJ123: 57.23 | AK123: 57.23
A124: 1039013 | B124: 01039 | C124: Alabama | D124: Covington | E124: Corn | F124: Bushel | G124: 1 | H124: 3 | I124: 130.14 | J124: 92.5 | K124: 91.36 | L124: 87.42 | M124: 130.2 | O124: 94.24 | P124: 92.96 | Q124: 88.88 | R124: 131.52 | S124: 95.69 | U124: 94.6 | V124: 90.42 | W124: 132.96 | X124: 97.03 | Y124: 58.28 | AA124: 92.58 | AB124: 134.95 | AC124: 98.85 | AD124: 59.93 | AE124: 90.56 | AG124: 96.23 | AH124: 92.23 | AI124: 134.23 | AJ124: 99.23 | AK124: 60.23
A125: 1039113 | B125: 01039 | C125: Alabama | D125: Covington | E125: Grain Sorghum | F125: Bushel | G125: 11 | H125: 3 | I125: 50 | J125: 50 | K125: 53 | L125: 45 | M125: 33 | O125: 50 | P125: 53 | Q125: 45 | R125: 33 | S125: 43 | U125: 53 | V125: 45 | W125: 33 | X125: 43 | Y125: 44.8 | AA125: 45 | AB125: 33 | AC125: 43 | AD125: 44.8 | AE125: 46 | AG125: 54.23 | AH125: 46.23 | AI125: 34.23 | AJ125: 44.23 | AK125: 46.23
A126: 1039143 | B126: 01039 | C126: Alabama | D126: Covington | E126: Oats | F126: Bushel | G126: 14 | H126: 3 | I126: 60 | J126: 55 | K126: 50 | L126: 38.4 | M126: 48 | O126: 55 | P126: 50 | Q126: 38.4 | R126: 48 | S126: 56 | U126: 50 | V126: 38.4 | W126: 48 | X126: 56 | Y126: 46 | AA126: 38.4 | AB126: 48 | AC126: 56 | AD126: 46 | AE126: 42.4 | AG126: 51.23 | AH126: 40.23 | AI126: 49.23 | AJ126: 57.23 | AK126: 47.23
A127: 1039153 | B127: 01039 | C127: Alabama | D127: Covington | E127: Peanuts | F127: Pound | G127: 15 | H127: 3 | I127: 3706.68 | J127: 2410.93 | K127: 3121.08 | L127: 3040.95 | M127: 3721.24 | U127: 3172.02 | V127: 3087.89 | W127: 3764.18 | X127: 3700.55 | Y127: 2780.55 | AA127: 3108.66 | AB127: 3784.4 | AC127: 3720.22 | AD127: 2799.67 | AE127: 3959.3 | AG127: 3174.23 | AH127: 3089.23 | AI127: 3766.23 | AJ127: 3702.23 | AK127: 2782.23
A128: 1039213 | B128: 01039 | C128: Alabama | D128: Covington | E128: Seed Cotton | F128: Pound of seed | G128: 21 | H128: 3 | I128: 1961.83 | J128: 2266.94 | K128: 2122.06 | L128: 2495.33 | M128: 2075.38 | U128: 2178.17 | V128: 2549.54 | W128: 2127.7 | X128: 1825.63 | Y128: 1886.76 | AA128: 2573.81 | AB128: 2151.96 | AC128: 1849.9 | AD128: 1911.02 | AE128: 1599.89 | AG128: 2180.23 | AH128: 2551.23 | AI128: 2129.23 | AJ128: 1827.23 | AK128: 1888.23
A129: 1039023 | B129: 01039 | C129: Alabama | D129: Covington | E129: Soybeans | F129: Bushel | G129: 2 | H129: 3 | I129: 42.09 | J129: 26.71 | K129: 32.02 | L129: 33.54 | M129: 35.69 | O129: 26.72 | P129: 32.07 | Q129: 33.63 | R129: 35.82 | S129: 34.7 | U129: 32.1 | V129: 33.69 | W129: 35.91 | X129: 34.82 | Y129: 20.36 | AA129: 34.05 | AB129: 36.24 | AC129: 35.12 | AD129: 20.63 | AE129: 37.8 | AG129: 34.23 | AH129: 35.23 | AI129: 37.23 | AJ129: 36.23 | AK129: 22.23
A130: 1039033 | B130: 01039 | C130: Alabama | D130: Covington | E130: Wheat | F130: Bushel | G130: 3 | H130: 3 | I130: 41.41 | J130: 39.45 | K130: 68 | L130: 46 | M130: 42 | O130: 39.45 | P130: 68 | Q130: 46 | R130: 42 | S130: 49 | U130: 68 | V130: 46 | W130: 42 | X130: 49 | Y130: 48.8 | AA130: 46 | AB130: 42 | AC130: 49 | AD130: 48.8 | AE130: 36.8 | AG130: 69.23 | AH130: 47.23 | AI130: 43.23 | AJ130: 50.23 | AK130: 50.23
A131: 1041013 | B131: 01041 | C131: Alabama | D131: Crenshaw | E131: Corn | F131: Bushel | G131: 1 | H131: 3 | I131: 130.58 | J131: 99.23 | K131: 109 | L131: 106.72 | M131: 161.8 | O131: 101.39 | P131: 111 | Q131: 108.56 | R131: 163.48 | S131: 126.4 | U131: 113.56 | V131: 110.92 | W131: 165.64 | X131: 128.36 | Y131: 71.92 | AA131: 111.28 | AB131: 166.2 | AC131: 129.12 | AD131: 72.88 | AE131: 108.06 | AG131: 115.23 | AH131: 112.23 | AI131: 167.23 | AJ131: 130.23 | AK131: 73.23
A132: 1041113 | B132: 01041 | C132: Alabama | D132: Crenshaw | E132: Grain Sorghum | F132: Bushel | G132: 11 | H132: 3 | I132: 50 | J132: 50 | K132: 53 | L132: 42 | M132: 32 | O132: 50 | P132: 53 | Q132: 42 | R132: 32 | S132: 44 | U132: 53 | V132: 42 | W132: 32 | X132: 44 | Y132: 44.2 | AA132: 42 | AB132: 32 | AC132: 44 | AD132: 44.2 | AE132: 45 | AG132: 54.23 | AH132: 43.23 | AI132: 33.23 | AJ132: 45.23 | AK132: 46.23
A133: 1041143 | B133: 01041 | C133: Alabama | D133: Crenshaw | E133: Oats | F133: Bushel | G133: 14 | H133: 3 | I133: 60 | J133: 55 | K133: 50 | L133: 55 | M133: 47 | O133: 55 | P133: 50 | Q133: 55 | R133: 47 | S133: 52 | AA133: 55 | AB133: 47 | AC133: 52 | AD133: 51.8 | AE133: 52
A134: 1041153 | B134: 01041 | C134: Alabama | D134: Crenshaw | E134: Peanuts | F134: Pound | G134: 15 | H134: 3 | I134: 2588.62 | J134: 2742.83 | K134: 2037.48 | L134: 2096.57 | M134: 2174.79 | U134: 2037.48 | V134: 2096.57 | W134: 2174.79 | X134: 2223.84 | Y134: 1820 | AA134: 2096.57 | AB134: 2174.79 | AC134: 2223.84 | AD134: 1820 | AE134: 2984.29 | AG134: 2039.23 | AH134: 2098.23 | AI134: 2176.23 | AJ134: 2225.23 | AK134: 1821.23
A135: 1041213 | B135: 01041 | C135: Alabama | D135: Crenshaw | E135: Seed Cotton | F135: Pound of seed | G135: 21 | H135: 3 | I135: 1744.8 | J135: 1572.86 | K135: 2408.76 | L135: 1974.1 | M135: 1924.8 | O135: 1572.86 | P135: 2408.76 | Q135: 1974.1 | R135: 1924.8 | S135: 1565.76 | U135: 2408.76 | V135: 1974.1 | W135: 1924.8 | X135: 1565.76 | Y135: 1496.66 | AA135: 1974.1 | AB135: 1924.8 | AC135: 1565.76 | AD135: 1496.66 | AE135: 1965.12 | AG135: 2410.23 | AH135: 1976.23 | AI135: 1926.23 | AJ135: 1567.23 | AK135: 1498.23
A136: 1041023 | B136: 01041 | C136: Alabama | D136: Crenshaw | E136: Soybeans | F136: Bushel | G136: 2 | H136: 3 | I136: 34.46 | J136: 35 | K136: 21.69 | L136: 33 | M136: 23 | O136: 35 | P136: 21.69 | Q136: 33 | R136: 23 | S136: 30
A137: 1041033 | B137: 01041 | C137: Alabama | D137: Crenshaw | E137: Wheat | F137: Bushel | G137: 3 | H137: 3 | I137: 69 | J137: 35.51 | K137: 33.6 | L137: 41 | M137: 42 | O137: 35.51 | P137: 33.6 | Q137: 41 | R137: 42 | S137: 37 | U137: 33.6 | V137: 41 | W137: 42 | X137: 37 | Y137: 36.6 | AA137: 41 | AB137: 42 | AC137: 37 | AD137: 36.6 | AE137: 32.8 | AG137: 35.23 | AH137: 42.23 | AI137: 43.23 | AJ137: 38.23 | AK137: 38.23
A138: 1043043 | B138: 01043 | C138: Alabama | D138: Cullman | E138: Barley | F138: Bushel | G138: 4 | H138: 3 | I138: 72 | J138: 59 | K138: 64 | L138: 40 | M138: 37.6 | O138: 59 | P138: 64 | Q138: 40 | R138: 37.6 | S138: 46 | AA138: 40 | AB138: 37.6 | AC138: 46 | AD138: 49.5 | AE138: 50.5
A139: 1043013 | B139: 01043 | C139: Alabama | D139: Cullman | E139: Corn | F139: Bushel | G139: 1 | H139: 3 | I139: 143.59 | J139: 199.04 | K139: 159.96 | L139: 110.47 | M139: 164.39 | O139: 202.96 | P139: 163.57 | Q139: 113.77 | R139: 167.38 | S139: 195.44 | U139: 165.28 | V139: 115.59 | W139: 169.31 | X139: 197.48 | Y139: 166.8 | AA139: 119.89 | AB139: 173.27 | AC139: 201.1 | AD139: 170.08 | AE139: 189.37 | AG139: 167.23 | AH139: 117.23 | AI139: 171.23 | AJ139: 199.23 | AK139: 168.23
A140: 1043113 | B140: 01043 | C140: Alabama | D140: Cullman | E140: Grain Sorghum | F140: Bushel | G140: 11 | H140: 3 | I140: 50 | J140: 50 | K140: 53 | L140: 38 | M140: 38 | O140: 50 | P140: 53 | Q140: 38 | R140: 38 | S140: 42 | U140: 53 | V140: 38 | W140: 38 | X140: 42 | Y140: 44.2 | AA140: 38 | AB140: 38 | AC140: 42 | AD140: 44.2 | AE140: 43 | AG140: 54.23 | AH140: 39.23 | AI140: 39.23 | AJ140: 43.23 | AK140: 46.23
A141: 1043143 | B141: 01043 | C141: Alabama | D141: Cullman | E141: Oats | F141: Bushel | G141: 14 | H141: 3 | I141: 60 | J141: 55 | K141: 50 | L141: 90 | M141: 47 | O141: 55 | P141: 50 | Q141: 90 | R141: 47 | S141: 69 | AA141: 90 | AB141: 47 | AC141: 69 | AD141: 62.2 | AE141: 50
A142: 1043213 | B142: 01043 | C142: Alabama | D142: Cullman | E142: Seed Cotton | F142: Pound of seed | G142: 21 | H142: 3 | I142: 2891.04 | J142: 2779.2 | K142: 2840.16 | L142: 2581.92 | M142: 2690.88 | O142: 2803.2 | P142: 2865.6 | Q142: 2608.8 | R142: 2719.2 | S142: 2806.18 | U142: 2898.53 | V142: 2641.44 | W142: 2751.55 | X142: 2838.24 | Y142: 2480.52 | AA142: 2672.78 | AB142: 2782.92 | AC142: 2869.63 | AD142: 2511.94 | AE142: 3007.92 | AG142: 2900.23 | AH142: 2643.23 | AI142: 2753.23 | AJ142: 2840.23 | AK142: 2482.23
A143: 1043023 | B143: 01043 | C143: Alabama | D143: Cullman | E143: Soybeans | F143: Bushel | G143: 2 | H143: 3 | I143: 52.76 | J143: 45.65 | K143: 53.72 | L143: 29.84 | M143: 56.36 | O143: 45.96 | P143: 54.04 | Q143: 30.17 | R143: 56.7 | S143: 41.78 | U143: 54.22 | V143: 30.38 | W143: 56.94 | X143: 42.05 | Y143: 47.23 | AA143: 31.01 | AB143: 57.52 | AC143: 42.58 | AD143: 47.71 | AE143: 57.87 | AG143: 56.23 | AH143: 32.23 | AI143: 58.23 | AJ143: 44.23 | AK143: 49.23
A144: 1043033 | B144: 01043 | C144: Alabama | D144: Cullman | E144: Wheat | F144: Bushel | G144: 3 | H144: 3 | I144: 63.33 | J144: 68.57 | K144: 72.79 | L144: 72.68 | M144: 58 | O144: 68.57 | P144: 72.79 | Q144: 72.68 | R144: 58 | S144: 76 | U144: 72.79 | V144: 72.68 | W144: 58 | X144: 76 | Y144: 69.8 | AA144: 72.68 | AB144: 58 | AC144: 76 | AD144: 69.8 | AE144: 73 | AG144: 74.23 | AH144: 74.23 | AI144: 59.23 | AJ144: 77.23 | AK144: 71.23
A145: 1045013 | B145: 01045 | C145: Alabama | D145: Dale | E145: Corn | F145: Bushel | G145: 1 | H145: 3 | I145: 111.76 | J145: 109.5 | K145: 98.17 | L145: 96.77 | M145: 122.59 | O145: 111.8 | P145: 100.29 | Q145: 98.71 | R145: 124.35 | S145: 125.23 | U145: 102.71 | V145: 100.96 | W145: 126.43 | X145: 127.14 | Y145: 67.87 | AA145: 102.95 | AB145: 128.35 | AC145: 128.99 | AD145: 69.65 | AE145: 134.98 | AG145: 104.23 | AH145: 102.23 | AI145: 128.23 | AJ145: 129.23 | AK145: 69.23
A146: 1045113 | B146: 01045 | C146: Alabama | D146: Dale | E146: Grain Sorghum | F146: Bushel | G146: 11 | H146: 3 | I146: 50 | J146: 50 | K146: 53 | L146: 37 | M146: 32 | O146: 50 | P146: 53 | Q146: 37 | R146: 32 | S146: 43 | U146: 53 | V146: 37 | W146: 32 | X146: 43 | Y146: 43 | AA146: 37 | AB146: 32 | AC146: 43 | AD146: 43 | AE146: 43 | AG146: 54.23 | AH146: 38.23 | AI146: 33.23 | AJ146: 44.23 | AK146: 44.23
A147: 1045143 | B147: 01045 | C147: Alabama | D147: Dale | E147: Oats | F147: Bushel | G147: 14 | H147: 3 | I147: 60 | J147: 55 | K147: 50 | L147: 38.4 | M147: 48 | O147: 55 | P147: 50 | Q147: 38.4 | R147: 48 | S147: 44 | U147: 50 | V147: 38.4 | W147: 48 | X147: 44 | Y147: 43.8 | AA147: 38.4 | AB147: 48 | AC147: 44 | AD147: 43.8 | AE147: 41.6 | AG147: 51.23 | AH147: 40.23 | AI147: 49.23 | AJ147: 45.23 | AK147: 45.23
A148: 1045153 | B148: 01045 | C148: Alabama | D148: Dale | E148: Peanuts | F148: Pound | G148: 15 | H148: 3 | I148: 3290.34 | J148: 2496.13 | K148: 2814.95 | L148: 3202.39 | M148: 3522.6 | U148: 2846.63 | V148: 3231.47 | W148: 3549.08 | X148: 3393.8 | Y148: 2369.41 | AA148: 3251.71 | AB148: 3567.72 | AC148: 3410.84 | AD148: 2384.85 | AE148: 3316.79 | AG148: 2848.23 | AH148: 3233.23 | AI148: 3551.23 | AJ148: 3395.23 | AK148: 2371.23
A149: 1045023 | B149: 01045 | C149: Alabama | D149: Dale | E149: Soybeans | F149: Bushel | G149: 2 | H149: 3 | I149: 26.69 | J149: 18.76 | K149: 29.46 | L149: 32.12 | M149: 23 | O149: 18.76 | P149: 29.46 | Q149: 32.12 | R149: 23 | S149: 21.6
A150: 1045033 | B150: 01045 | C150: Alabama | D150: Dale | E150: Wheat | F150: Bushel | G150: 3 | H150: 3 | I150: 41.86 | J150: 56 | K150: 68 | L150: 27.2 | M150: 34 | O150: 56 | P150: 68 | Q150: 27.2 | R150: 34 | S150: 44 | U150: 68 | V150: 27.2 | W150: 34 | X150: 44 | Y150: 50.5 | AA150: 27.2 | AB150: 34 | AC150: 44 | AD150: 50.5 | AE150: 28 | AG150: 69.23 | AH150: 29.23 | AI150: 35.23 | AJ150: 45.23 | AK150: 52.23
A151: 1045213 | B151: 01045 | C151: Alabama | D151: Dale | E151: Seed Cotton | F151: Pound of seed | G151: 21 | H151: 3 | I151: 1464.55 | J151: 1991.54 | K151: 1561.7 | L151: 2444.64 | M151: 1955.3 | O151: 2013.86 | P151: 1584.05 | Q151: 2467.01 | R151: 1977.7 | S151: 1595.33 | U151: 1606.92 | V151: 2489.81 | W151: 2000.42 | X151: 1617.98 | Y151: 1915.01 | AA151: 2512.03 | AB151: 2022.7 | AC151: 1640.3 | AD151: 1937.38 | AE151: 1433.9 | AG151: 1444.23 | AH151: 2342.23 | AI151: 1932.23 | AJ151: 1515.23 | AK151: 1782.23
A152: 1047013 | B152: 01047 | C152: Alabama | D152: Dallas | E152: Corn | F152: Bushel | G152: 1 | H152: 3 | I152: 118.91 | J152: 117.6 | K152: 95.49 | L152: 111.37 | M152: 134.75 | O152: 120.9 | P152: 98.53 | Q152: 114.15 | R152: 137.27 | S152: 125.87 | U152: 102.09 | V152: 117.45 | W152: 140.31 | X152: 128.65 | Y152: 133.66 | AA152: 121.75 | AB152: 144.27 | AC152: 132.27 | AD152: 136.94 | AE152: 152.62 | AG152: 104.23 | AH152: 119.23 | AI152: 142.23 | AJ152: 130.23 | AK152: 135.23
A153: 1047113 | B153: 01047 | C153: Alabama | D153: Dallas | E153: Grain Sorghum | F153: Bushel | G153: 11 | H153: 3 | I153: 50 | J153: 50 | K153: 53 | L153: 35 | M153: 39 | O153: 50 | P153: 53 | Q153: 35 | R153: 39 | S153: 44 | U153: 53 | V153: 35 | W153: 39 | X153: 44 | Y153: 46 | AA153: 35 | AB153: 39 | AC153: 44 | AD153: 46 | AE153: 44
A154: 1047143 | B154: 01047 | C154: Alabama | D154: Dallas | E154: Oats | F154: Bushel | G154: 14 | H154: 3 | I154: 60 | J154: 55 | K154: 50 | L154: 37.6 | M154: 47 | O154: 55 | P154: 50 | Q154: 37.6 | R154: 47 | S154: 47 | U154: 50 | V154: 37.6 | W154: 47 | X154: 47 | Y154: 46.8 | AA154: 37.6 | AB154: 47 | AC154: 47 | AD154: 46.8 | AE154: 40 | AG154: 51.23 | AH154: 39.23 | AI154: 48.23 | AJ154: 48.23 | AK154: 48.23
A155: 1047153 | B155: 01047 | C155: Alabama | D155: Dallas | E155: Peanuts | F155: Pound | G155: 15 | H155: 3 | I155: 3324.47 | J155: 2337.02 | K155: 3590.68 | L155: 3743.38 | M155: 3935.19 | U155: 3590.68 | V155: 3743.38 | W155: 3935.19 | X155: 3536.78 | Y155: 1952.8 | AA155: 3743.38 | AB155: 3935.19 | AC155: 3536.78 | AD155: 1952.8 | AE155: 3596.73 | AG155: 3592.23 | AH155: 3745.23 | AI155: 3937.23 | AJ155: 3538.23 | AK155: 1954.23
A156: 1047023 | B156: 01047 | C156: Alabama | D156: Dallas | E156: Soybeans | F156: Bushel | G156: 2 | H156: 3 | I156: 37.64 | J156: 27.09 | K156: 27.81 | L156: 32.12 | M156: 39 | O156: 27.48 | P156: 28.17 | Q156: 32.45 | R156: 39.3 | S156: 46.95 | U156: 28.41 | V156: 32.69 | W156: 39.54 | X156: 47.19 | Y156: 28.63 | AA156: 33.17 | AB156: 39.98 | AC156: 47.59 | AD156: 28.99 | AE156: 41.5 | AG156: 30.23 | AH156: 34.23 | AI156: 41.23 | AJ156: 49.23 | AK156: 30.23
A157: 1047033 | B157: 01047 | C157: Alabama | D157: Dallas | E157: Wheat | F157: Bushel | G157: 3 | H157: 3 | I157: 38.51 | J157: 54.6 | K157: 39.7 | L157: 37 | M157: 40 | O157: 54.6 | P157: 39.7 | Q157: 37 | R157: 40 | S157: 49.08 | U157: 39.7 | V157: 37 | W157: 40 | X157: 49.08 | Y157: 44.2 | AA157: 37 | AB157: 40 | AC157: 49.08 | AD157: 44.2 | AE157: 35.2 | AG157: 41.23 | AH157: 38.23 | AI157: 41.23 | AJ157: 51.23 | AK157: 46.23
A158: 1049043 | B158: 01049 | C158: Alabama | D158: Dekalb | E158: Barley | F158: Bushel | G158: 4 | H158: 3 | I158: 72 | J158: 59 | K158: 64 | L158: 50 | M158: 43.2 | O158: 59 | P158: 64 | Q158: 50 | R158: 43.2 | S158: 48 | AA158: 50 | AB158: 43.2 | AC158: 48 | AD158: 48 | AE158: 50.5
A159: 1049013 | B159: 01049 | C159: Alabama | D159: Dekalb | E159: Corn | F159: Bushel | G159: 1 | H159: 3 | I159: 173.13 | J159: 185.16 | K159: 154.75 | L159: 98.37 | M159: 164.56 | O159: 188.35 | P159: 157.69 | Q159: 101.06 | R159: 167 | S159: 182.91 | U159: 159.99 | V159: 103.3 | W159: 169.18 | X159: 185.03 | Y159: 157.63 | AA159: 106.44 | AB159: 172.13 | AC159: 187.79 | AD159: 160.2 | AE159: 167.57 | AG159: 161.23 | AH159: 105.23 | AI159: 171.23 | AJ159: 187.23 | AK159: 159.23
A160: 1049113 | B160: 01049 | C160: Alabama | D160: Dekalb | E160: Grain Sorghum | F160: Bushel | G160: 11 | H160: 3 | I160: 50 | J160: 50 | K160: 53 | L160: 38 | M160: 38 | O160: 50 | P160: 53 | Q160: 38 | R160: 38 | S160: 45 | U160: 53 | V160: 38 | W160: 38 | X160: 45 | Y160: 44.8 | AA160: 38 | AB160: 38 | AC160: 45 | AD160: 44.8 | AE160: 44 | AG160: 54.23 | AH160: 39.23 | AI160: 39.23 | AJ160: 46.23 | AK160: 46.23
A161: 1049143 | B161: 01049 | C161: Alabama | D161: Dekalb | E161: Oats | F161: Bushel | G161: 14 | H161: 3 | I161: 60 | J161: 55 | K161: 50 | L161: 90 | M161: 47 | O161: 55 | P161: 50 | Q161: 90 | R161: 47 | S161: 61 | AA161: 90 | AB161: 47 | AC161: 61 | AD161: 60.6 | AE161: 50
A162: 1049213 | B162: 01049 | C162: Alabama | D162: DeKalb | E162: Seed Cotton | F162: Pound of seed | G162: 21 | H162: 3 | I162: 2112 | J162: 2724 | K162: 1963.2 | L162: 2620.8 | M162: 2484 | O162: 2724 | P162: 1963.2 | Q162: 2620.8 | R162: 2484 | S162: 3164.69 | U162: 1963.2 | V162: 2620.8 | W162: 2484 | X162: 3164.69 | Y162: 2648.71 | AA162: 2620.8 | AB162: 2484 | AC162: 3164.69 | AD162: 2648.71 | AE162: 1847.71 | AG162: 1965.23 | AH162: 2622.23 | AI162: 2485.23 | AJ162: 3166.23 | AK162: 2650.23
A163: 1049023 | B163: 01049 | C163: Alabama | D163: Dekalb | E163: Soybeans | F163: Bushel | G163: 2 | H163: 3 | I163: 49.32 | J163: 41.66 | K163: 48.25 | L163: 30.05 | M163: 50.14 | O163: 42.13 | P163: 48.7 | Q163: 30.48 | R163: 50.55 | S163: 49.5 | U163: 48.95 | V163: 30.75 | W163: 50.84 | X163: 49.81 | Y163: 29.37 | AA163: 31.22 | AB163: 51.29 | AC163: 50.24 | AD163: 29.78 | AE163: 43.56 | AG163: 50.23 | AH163: 32.23 | AI163: 52.23 | AJ163: 51.23 | AK163: 31.23
A164: 1049033 | B164: 01049 | C164: Alabama | D164: Dekalb | E164: Wheat | F164: Bushel | G164: 3 | H164: 3 | I164: 70.95 | J164: 70.8 | K164: 65.88 | L164: 62 | M164: 47 | O164: 70.8 | P164: 65.88 | Q164: 62 | R164: 47 | S164: 71.11 | U164: 65.88 | V164: 62 | W164: 47 | X164: 71.11 | Y164: 72.15 | AA164: 62 | AB164: 47 | AC164: 71.11 | AD164: 72.15 | AE164: 67.59 | AG164: 67.23 | AH164: 63.23 | AI164: 48.23 | AJ164: 73.23 | AK164: 74.23
A165: 1051013 | B165: 01051 | C165: Alabama | D165: Elmore | E165: Corn | F165: Bushel | G165: 1 | H165: 3 | I165: 174.03 | J165: 176.65 | K165: 188.48 | L165: 160.43 | M165: 181.24 | O165: 179.68 | P165: 191.27 | Q165: 162.98 | R165: 183.55 | S165: 179.6 | U165: 194.42 | V165: 165.91 | W165: 186.26 | X165: 182.09 | Y165: 160.98 | AA165: 169.82 | AB165: 189.86 | AC165: 185.38 | AD165: 163.96 | AE165: 159.21 | AG165: 196.23 | AH165: 167.23 | AI165: 188.23 | AJ165: 184.23 | AK165: 162.23
A166: 1051113 | B166: 01051 | C166: Alabama | D166: Elmore | E166: Grain Sorghum | F166: Bushel | G166: 11 | H166: 3 | I166: 50 | J166: 50 | K166: 53 | L166: 36 | M166: 32 | O166: 50 | P166: 53 | Q166: 36 | R166: 32 | S166: 43 | U166: 53 | V166: 36 | W166: 32 | X166: 43 | Y166: 45 | AA166: 36 | AB166: 32 | AC166: 43 | AD166: 45 | AE166: 43
A167: 1051143 | B167: 01051 | C167: Alabama | D167: Elmore | E167: Oats | F167: Bushel | G167: 14 | H167: 3 | I167: 60 | J167: 55 | K167: 50 | L167: 47 | M167: 48
A168: 1051153 | B168: 01051 | C168: Alabama | D168: Elmore | E168: Peanuts | F168: Pound | G168: 15 | H168: 3 | I168: 3911 | J168: 3194 | K168: 3524 | L168: 2944 | M168: 2576.8
A169: 1051213 | B169: 01051 | C169: Alabama | D169: Elmore | E169: Seed Cotton | F169: Pound of seed | G169: 21 | H169: 3 | I169: 2140.54 | J169: 2314.61 | K169: 2333.71 | L169: 1983.67 | M169: 1875.84 | U169: 2376.48 | V169: 2026.27 | W169: 1918.18 | X169: 2220.14 | Y169: 1756.06 | AA169: 2047.32 | AB169: 1939.22 | AC169: 2241.19 | AD169: 1777.1 | AE169: 1651.85 | AG169: 2378.23 | AH169: 2028.23 | AI169: 1920.23 | AJ169: 2222.23 | AK169: 1758.23
A170: 1051023 | B170: 01051 | C170: Alabama | D170: Elmore | E170: Soybeans | F170: Bushel | G170: 2 | H170: 3 | I170: 43.24 | J170: 39.5 | K170: 28.29 | L170: 21 | M170: 30.56 | O170: 39.5 | P170: 28.29 | Q170: 21 | R170: 30.56 | S170: 31.45
A171: 1051033 | B171: 01051 | C171: Alabama | D171: Elmore | E171: Wheat | F171: Bushel | G171: 3 | H171: 3 | I171: 53.29 | J171: 41.31 | K171: 68 | L171: 36 | M171: 42 | O171: 41.31 | P171: 68 | Q171: 36 | R171: 42 | S171: 47 | U171: 68 | V171: 36 | W171: 42 | X171: 47 | Y171: 46 | AA171: 36 | AB171: 42 | AC171: 47 | AD171: 46 | AE171: 40.1
A172: 1053013 | B172: 01053 | C172: Alabama | D172: Escambia | E172: Corn | F172: Bushel | G172: 1 | H172: 3 | I172: 181.63 | J172: 184.07 | K172: 165.32 | L172: 181.9 | M172: 193.8 | O172: 185.81 | P172: 166.92 | Q172: 183.36 | R172: 195.12 | S172: 187.94 | U172: 168.92 | V172: 185.2 | W172: 196.8 | X172: 189.46 | Y172: 155.2 | AA172: 187.48 | AB172: 198.9 | AC172: 191.38 | AD172: 156.94 | AE172: 165.9
A173: 1053113 | B173: 01053 | C173: Alabama | D173: Escambia | E173: Grain Sorghum | F173: Bushel | G173: 11 | H173: 3 | I173: 45 | J173: 50 | K173: 53 | L173: 42 | M173: 48
A174: 1053143 | B174: 01053 | C174: Alabama | D174: Escambia | E174: Oats | F174: Bushel | G174: 14 | H174: 3 | I174: 60 | J174: 55 | K174: 50 | L174: 44 | M174: 55 | O174: 55 | P174: 50 | Q174: 44 | R174: 55 | S174: 50 | U174: 50 | V174: 44 | W174: 55 | X174: 50 | Y174: 49.6 | AA174: 44 | AB174: 55 | AC174: 50 | AD174: 49.6 | AE174: 46.8 | AG174: 51.23 | AH174: 45.23 | AI174: 56.23 | AJ174: 51.23 | AK174: 51.23
A175: 1053153 | B175: 01053 | C175: Alabama | D175: Escambia | E175: Peanuts | F175: Pound | G175: 15 | H175: 3 | I175: 4940.55 | J175: 4103.81 | K175: 4169.78 | L175: 4494.12 | M175: 4138.98 | U175: 4250.98 | V175: 4572.5 | W175: 4214.54 | X175: 3707.05 | Y175: 4238.99 | AA175: 4609.32 | AB175: 4251.05 | AC175: 3743.25 | AD175: 4274.88 | AE175: 4044.94
A176: 1053223 | B176: 01053 | C176: Alabama | D176: Escambia | E176: Sesame Seed | F176: Pound | G176: 22 | H176: 3 | I176: 450 | J176: 410.4 | K176: 427 | L176: 513 | M176: 870
A177: 1053023 | B177: 01053 | C177: Alabama | D177: Escambia | E177: Soybeans | F177: Bushel | G177: 2 | H177: 3 | I177: 47.19 | J177: 39.83 | K177: 44.96 | L177: 55.13 | M177: 40.98 | O177: 40.24 | P177: 45.35 | Q177: 55.5 | R177: 41.33 | S177: 41.62 | U177: 45.36 | V177: 55.56 | W177: 41.44 | X177: 41.78 | Y177: 22.92 | AA177: 56.06 | AB177: 41.9 | AC177: 42.2 | AD177: 23.3 | AE177: 40.85 | AG177: 47.23 | AH177: 57.23 | AI177: 43.23 | AJ177: 43.23 | AK177: 24.23
A178: 1053233 | B178: 01053 | C178: Alabama | D178: Escambia | E178: Sunflower Seed | F178: Pound | G178: 23 | H178: 3 | I178: 1450 | J178: 1113 | K178: 1302 | L178: 1200 | M178: 964
A179: 1053033 | B179: 01053 | C179: Alabama | D179: Escambia | E179: Wheat | F179: Bushel | G179: 3 | H179: 3 | I179: 70.65 | J179: 59.86 | K179: 40.8 | L179: 52 | M179: 50 | O179: 59.86 | P179: 40.8 | Q179: 52 | R179: 50 | S179: 60 | U179: 40.8 | V179: 52 | W179: 50 | X179: 60 | Y179: 49 | AA179: 52 | AB179: 50 | AC179: 60 | AD179: 49 | AE179: 47.5 | AG179: 42.23 | AH179: 53.23 | AI179: 51.23 | AJ179: 61.23 | AK179: 50.23
A180: 1055043 | B180: 01055 | C180: Alabama | D180: Etowah | E180: Barley | F180: Bushel | G180: 4 | H180: 3 | I180: 72 | J180: 55 | K180: 64 | L180: 45 | M180: 37.6
A181: 1055013 | B181: 01055 | C181: Alabama | D181: Etowah | E181: Corn | F181: Bushel | G181: 1 | H181: 3 | I181: 168.85 | J181: 176.61 | K181: 118.8 | L181: 97.09 | M181: 170.25 | O181: 178.36 | P181: 120.53 | Q181: 98.77 | R181: 171.94 | S181: 164.3 | U181: 123.68 | V181: 101.67 | W181: 174.59 | X181: 166.7 | Y181: 131.2 | AA181: 103.51 | AB181: 176.44 | AC181: 168.56 | AD181: 133.07 | AE181: 150.03 | AG181: 125.23 | AH181: 103.23 | AI181: 176.23 | AJ181: 168.23 | AK181: 133.23
A182: 1055113 | B182: 01055 | C182: Alabama | D182: Etowah | E182: Grain Sorghum | F182: Bushel | G182: 11 | H182: 3 | I182: 50 | J182: 59 | K182: 53 | L182: 38 | M182: 38 | O182: 59 | P182: 53 | Q182: 38 | R182: 38 | S182: 47 | U182: 53 | V182: 38 | W182: 38 | X182: 47 | Y182: 47 | AA182: 38 | AB182: 38 | AC182: 47 | AD182: 47 | AE182: 46
A183: 1055143 | B183: 01055 | C183: Alabama | D183: Etowah | E183: Oats | F183: Bushel | G183: 14 | H183: 3 | I183: 60 | J183: 50 | K183: 50 | L183: 89 | M183: 43
A184: 1055213 | B184: 01055 | C184: Alabama | D184: Etowah | E184: Seed Cotton | F184: Pound of seed | G184: 21 | H184: 3 | I184: 2210.3 | J184: 2904.29 | K184: 2403.29 | L184: 2551.75 | M184: 2436.48 | U184: 2461.66 | V184: 2611.27 | W184: 2497.15 | X184: 2370.24 | Y184: 1786.58 | AA184: 2642.62 | AB184: 2528.52 | AC184: 2401.63 | AD184: 1818 | AE184: 2048.95 | AG184: 2463.23 | AH184: 2613.23 | AI184: 2499.23 | AJ184: 2372.23 | AK184: 1788.23
A185: 1055023 | B185: 01055 | C185: Alabama | D185: Etowah | E185: Soybeans | F185: Bushel | G185: 2 | H185: 3 | I185: 46.87 | J185: 41.53 | K185: 38.18 | L185: 26.87 | M185: 51.36 | O185: 41.98 | P185: 38.61 | Q185: 27.28 | R185: 51.79 | S185: 46.63 | U185: 38.78 | V185: 27.48 | W185: 52.02 | X185: 46.89 | Y185: 30.64 | AA185: 27.92 | AB185: 52.44 | AC185: 47.29 | AD185: 31.02 | AE185: 38.4 | AG185: 40.23 | AH185: 29.23 | AI185: 54.23 | AJ185: 48.23 | AK185: 32.23
A186: 1055033 | B186: 01055 | C186: Alabama | D186: Etowah | E186: Wheat | F186: Bushel | G186: 3 | H186: 3 | I186: 61.71 | J186: 56 | K186: 68 | L186: 55 | M186: 52 | O186: 56 | P186: 68 | Q186: 55 | R186: 52 | S186: 69 | U186: 68 | V186: 55 | W186: 52 | X186: 69 | Y186: 60 | AA186: 55 | AB186: 52 | AC186: 69 | AD186: 60 | AE186: 69
A187: 1057013 | B187: 01057 | C187: Alabama | D187: Fayette | E187: Corn | F187: Bushel | G187: 1 | H187: 3 | I187: 117.3 | J187: 153.5 | K187: 141.8 | L187: 91.6 | M187: 135.2 | O187: 154.14 | P187: 142.7 | Q187: 92.76 | R187: 136.59 | S187: 138.89 | U187: 145.9 | V187: 95.75 | W187: 139.37 | X187: 141.46 | Y187: 104.3 | AA187: 96.64 | AB187: 140.47 | AC187: 142.77 | AD187: 105.82 | AE187: 129.67 | AG187: 147.23 | AH187: 97.23 | AI187: 141.23 | AJ187: 143.23 | AK187: 106.23
A188: 1057113 | B188: 01057 | C188: Alabama | D188: Fayette | E188: Grain Sorghum | F188: Bushel | G188: 11 | H188: 3 | I188: 50 | J188: 55 | K188: 53 | L188: 41 | M188: 38.4 | O188: 55 | P188: 53 | Q188: 41 | R188: 38.4 | S188: 47 | AA188: 41 | AB188: 38.4 | AC188: 47 | AD188: 46.8 | AE188: 47
A189: 1057143 | B189: 01057 | C189: Alabama | D189: Fayette | E189: Oats | F189: Bushel | G189: 14 | H189: 3 | I189: 60 | J189: 50 | K189: 50 | L189: 39.2 | M189: 48 | O189: 50 | P189: 50 | Q189: 39.2 | R189: 48 | S189: 46 | AA189: 39.2 | AB189: 48 | AC189: 46 | AD189: 45.8 | AE189: 50
A190: 1057153 | B190: 01057 | C190: Alabama | D190: Fayette | E190: Peanuts | F190: Pound | G190: 15 | H190: 3 | I190: 3817 | J190: 3160 | K190: 3690 | L190: 3678 | M190: 3314
A191: 1057213 | B191: 01057 | C191: Alabama | D191: Fayette | E191: Seed Cotton | F191: Pound of seed | G191: 21 | H191: 3 | I191: 2269.58 | J191: 2413.32 | K191: 2252.26 | L191: 2315.69 | M191: 2134.37 | U191: 2322.19 | V191: 2381.26 | W191: 2195.59 | X191: 2029.49 | Y191: 1972.37 | AA191: 2407.49 | AB191: 2221.82 | AC191: 2055.72 | AD191: 1998.6 | AE191: 2239.27 | AG191: 2324.23 | AH191: 2383.23 | AI191: 2197.23 | AJ191: 2031.23 | AK191: 1974.23
A192: 1057023 | B192: 01057 | C192: Alabama | D192: Fayette | E192: Soybeans | F192: Bushel | G192: 2 | H192: 3 | I192: 23.11 | J192: 23.09 | K192: 23.16 | L192: 21.52 | M192: 37.11 | O192: 23.57 | P192: 23.58 | Q192: 21.92 | R192: 37.47 | S192: 24.03 | U192: 23.8 | V192: 22.15 | W192: 37.71 | X192: 24.28 | Y192: 21.34 | AA192: 22.18 | AB192: 37.78 | AC192: 24.39 | AD192: 21.49 | AE192: 21.26 | AG192: 25.23 | AH192: 24.23 | AI192: 39.23 | AJ192: 26.23 | AK192: 23.23
A193: 1057033 | B193: 01057 | C193: Alabama | D193: Fayette | E193: Wheat | F193: Bushel | G193: 3 | H193: 3 | I193: 69 | J193: 56 | K193: 68 | L193: 63 | M193: 48 | O193: 56 | P193: 68 | Q193: 63 | R193: 48 | S193: 59 | AA193: 63 | AB193: 48 | AC193: 59 | AD193: 58.8 | AE193: 58
A194: 1059043 | B194: 01059 | C194: Alabama | D194: Franklin | E194: Barley | F194: Bushel | G194: 4 | H194: 3 | I194: 72 | J194: 59 | K194: 64 | L194: 45.6 | M194: 45.6
A195: 1059013 | B195: 01059 | C195: Alabama | D195: Franklin | E195: Corn | F195: Bushel | G195: 1 | H195: 3 | I195: 145.2 | J195: 126.77 | K195: 104.95 | L195: 118.63 | M195: 172.15 | O195: 126.77 | P195: 104.95 | Q195: 118.63 | R195: 172.15 | S195: 96.17 | U195: 104.95 | V195: 118.63 | W195: 172.15 | X195: 96.17 | Y195: 152.89 | AA195: 118.63 | AB195: 172.15 | AC195: 96.17 | AD195: 152.89 | AE195: 139.92 | AG195: 106.23 | AH195: 120.23 | AI195: 174.23 | AJ195: 98.23 | AK195: 154.23
A196: 1059113 | B196: 01059 | C196: Alabama | D196: Franklin | E196: Grain Sorghum | F196: Bushel | G196: 11 | H196: 3 | I196: 50 | J196: 50 | K196: 53 | L196: 78 | M196: 52 | O196: 50 | P196: 53 | Q196: 78 | R196: 52 | S196: 58 | U196: 53 | V196: 78 | W196: 52 | X196: 58 | Y196: 53 | AA196: 78 | AB196: 52 | AC196: 58 | AD196: 53 | AE196: 54
A197: 1059143 | B197: 01059 | C197: Alabama | D197: Franklin | E197: Oats | F197: Bushel | G197: 14 | H197: 3 | I197: 61 | J197: 55 | K197: 52 | L197: 43 | M197: 48
A198: 1059153 | B198: 01059 | C198: Alabama | D198: Franklin | E198: Peanuts | F198: Pound | G198: 15 | H198: 3 | I198: 3817 | J198: 3133 | K198: 3948 | L198: 3685 | M198: 3794
A199: 1059213 | B199: 01059 | C199: Alabama | D199: Franklin | E199: Seed Cotton | F199: Pound of seed | G199: 21 | H199: 3 | I199: 2695.2 | J199: 2323.2 | K199: 2248.8 | L199: 3171 | M199: 2413.7 | U199: 2248.8 | V199: 3171 | W199: 2413.7 | X199: 2182.73 | Y199: 2521.13 | AA199: 3171 | AB199: 2413.7 | AC199: 2182.73 | AD199: 2521.13 | AE199: 2080.25 | AG199: 2250.23 | AH199: 3172.23 | AI199: 2415.23 | AJ199: 2184.23 | AK199: 2523.23
A200: 1059023 | B200: 01059 | C200: Alabama | D200: Franklin | E200: Soybeans | F200: Bushel | G200: 2 | H200: 3 | I200: 47.19 | J200: 41 | K200: 37.41 | L200: 33.83 | M200: 40.94 | O200: 41 | P200: 37.41 | Q200: 33.83 | R200: 40.94 | S200: 40.01 | U200: 37.41 | V200: 33.83 | W200: 40.94 | X200: 40.01 | Y200: 34.26 | AA200: 33.83 | AB200: 40.94 | AC200: 40.01 | AD200: 34.26 | AE200: 40.62 | AG200: 39.23 | AH200: 35.23 | AI200: 42.23 | AJ200: 42.23 | AK200: 36.23
... 2050 more rows

Sheet Tyields (hidden)
B1: ST_Cty | C1: State Name | D1: County Name | E1: Crop Name | G1: Unit | H1: Yield Type | J1: ty2013 | K1: ty2014 | L1: ty2015 | M1: ty2016 | N1: ty2017 | O1: ty2018 | P1: ty2019 | Q1: ty2020 | R1: ty2021 | S1: ty2022 | T1: ty2023
A2: 1001043 | B2: 01001 | C2: Alabama | D2: Autauga | E2: Barley | F2: 4 | G2: Bushel | H2: All | I2: 3 | J2: 37.6 | K2: 37.6 | L2: 37.6 | M2: 37.6 | N2: 37.6 | O2: 37.6 | P2: 37.6 | Q2: 37.6 | R2: =ROUNDUP(Q2,0)+0.21 -> 38.21 | S2: =ROUNDUP(R2,0)+0.22 -> 39.22 | T2: =ROUNDUP(S2,0)+0.23 -> 40.23
A3: 1001013 | B3: 01001 | C3: Alabama | D3: Autauga | E3: Corn | F3: 1 | G3: Bushel | H3: All | I3: 3 | J3: 62.4 | K3: 70.4 | L3: 73.6 | M3: 56.8 | N3: 68 | O3: 72.8 | P3: 74.4 | Q3: 76.8 | R3: =ROUNDUP(Q3,0)+0.21 -> 77.21 | S3: =ROUNDUP(R3,0)+0.22 -> 78.22 | T3: =ROUNDUP(S3,0)+0.23 -> 79.23
A4: 1001113 | B4: 01001 | C4: Alabama | D4: Autauga | E4: Grain Sorghum | F4: 11 | G4: Bushel | H4: All | I4: 3 | J4: 37.6 | K4: 37.6 | L4: 37.6 | M4: 37.6 | N4: 37.6 | O4: 37.6 | P4: 37.6 | Q4: 37.6 | R4: 38.21 | S4: 39.22 | T4: 40.23
A5: 1001143 | B5: 01001 | C5: Alabama | D5: Autauga | E5: Oats | F5: 14 | G5: Bushel | H5: All | I5: 3 | J5: 39.2 | K5: 39.2 | L5: 39.2 | M5: 39.2 | N5: 39.2 | O5: 39.2 | P5: 39.2 | Q5: 39.2 | R5: 40.21 | S5: 41.22 | T5: 42.23
A6: 1001153 | B6: 01001 | C6: Alabama | D6: Autauga | E6: Peanuts | F6: 15 | G6: Pound | H6: All | I6: 3 | J6: 1940.8 | K6: 1940.8 | L6: 1940.8 | M6: 1940.8 | N6: 2135.2 | O6: 2374.4 | P6: 2135.2 | Q6: 2562.4 | R6: 2563.21 | S6: 2564.22 | T6: 2565.23
A7: 1001213 | B7: 01001 | C7: Alabama | D7: Autauga | E7: Seed Cotton | F7: 21 | G7: Pound of seed | H7: All | I7: 3 | J7: 1159.68 | K7: 1157.76 | L7: 1171.2 | M7: 1322.88 | N7: 1315.2 | O7: 1315.2 | P7: 1426.56 | Q7: 1436.16 | R7: 1437.21 | S7: 1438.22 | T7: 1439.23
A8: 1001223 | B8: 01001 | C8: Alabama | D8: Autauga | E8: Sesame Seed | F8: 22 | G8: Pound | H8: All | I8: 3 | J8: 410.4 | K8: 410.4 | L8: 410.4 | M8: 410.4 | N8: 410.4 | O8: 410.4 | P8: 410.4 | Q8: 410.4 | R8: 411.21 | S8: 412.22 | T8: 413.23
A9: 1001023 | B9: 01001 | C9: Alabama | D9: Autauga | E9: Soybeans | F9: 2 | G9: Bushel | H9: All | I9: 3 | J9: 20 | K9: 21.6 | L9: 20.8 | M9: 19.2 | N9: 18.4 | O9: 20 | P9: 20 | Q9: 28.8 | R9: 29.21 | S9: 30.22 | T9: 31.23
A10: 1001233 | B10: 01001 | C10: Alabama | D10: Autauga | E10: Sunflower Seed | F10: 23 | G10: Pound | H10: All | I10: 3 | J10: 964 | K10: 964 | L10: 964 | M10: 964 | N10: 964 | O10: 964 | P10: 964 | Q10: 964 | R10: 964.21 | S10: 965.22 | T10: 966.23
A11: 1001033 | B11: 01001 | C11: Alabama | D11: Autauga | E11: Wheat | F11: 3 | G11: Bushel | H11: All | I11: 3 | J11: 32.8 | K11: 35.2 | L11: 37.6 | M11: 35.2 | N11: 35.2 | O11: 38.4 | P11: 38.4 | Q11: 38.4 | R11: 39.21 | S11: 40.22 | T11: 41.23
A12: 1003013 | B12: 01003 | C12: Alabama | D12: Baldwin | E12: Corn | F12: 1 | G12: Bushel | H12: All | I12: 3 | J12: 83.2 | K12: 80.8 | L12: 80.8 | M12: 80.8 | N12: 88.8 | O12: 92 | P12: 89.6 | Q12: 108 | R12: 108.21 | S12: 109.22 | T12: 110.23
A13: 1003011 | B13: 01003 | C13: Alabama | D13: Baldwin | E13: Corn | F13: 1 | G13: Bushel | H13: Irrigated | I13: 1 | J13: 120 | K13: 120 | L13: 120 | M13: 120 | N13: 121.6 | O13: 121.6 | P13: 121.6 | Q13: 129.6 | R13: 130.21 | S13: 131.22 | T13: 132.23
A14: 1003012 | B14: 01003 | C14: Alabama | D14: Baldwin | E14: Corn | F14: 1 | G14: Bushel | H14: Nonirrigated | I14: 2 | J14: 80 | K14: 80 | L14: 80 | M14: 80 | N14: 88 | O14: 88 | P14: 88 | Q14: 105.6 | R14: 106.21 | S14: 107.22 | T14: 108.23
A15: 1003113 | B15: 01003 | C15: Alabama | D15: Baldwin | E15: Grain Sorghum | F15: 11 | G15: Bushel | H15: All | I15: 3 | J15: 33.6 | K15: 33.6 | L15: 33.6 | M15: 33.6 | N15: 33.6 | O15: 33.6 | P15: 33.6 | Q15: 40 | R15: 40.21 | S15: 41.22 | T15: 42.23
A16: 1003143 | B16: 01003 | C16: Alabama | D16: Baldwin | E16: Oats | F16: 14 | G16: Bushel | H16: All | I16: 3 | J16: 39.2 | K16: 39.2 | L16: 39.2 | M16: 39.2 | N16: 39.2 | O16: 43.2 | P16: 43.2 | Q16: 43.2 | R16: 44.21 | S16: 45.22 | T16: 46.23
A17: 1003153 | B17: 01003 | C17: Alabama | D17: Baldwin | E17: Peanuts | F17: 15 | G17: Pound | H17: All | I17: 3 | J17: 2709.6 | K17: 2712 | L17: 2712.8 | M17: 2712 | N17: 2984.8 | O17: 2996.8 | P17: 2995.2 | Q17: 3328 | R17: 3328.21 | S17: 3329.22 | T17: 3330.23
A18: 1003151 | B18: 01003 | C18: Alabama | D18: Baldwin | E18: Peanuts | F18: 15 | G18: Pound | H18: Irrigated | I18: 1 | J18: 3060.8 | K18: 3060.8 | L18: 3060.8 | M18: 3060.8 | N18: 3367.2 | O18: 3367.2 | P18: 3367.2 | Q18: 3711.2 | R18: 3712.21 | S18: 3713.22 | T18: 3714.23
A19: 1003152 | B19: 01003 | C19: Alabama | D19: Baldwin | E19: Peanuts | F19: 15 | G19: Pound | H19: Nonirrigated | I19: 2 | J19: 2167.2 | K19: 2167.2 | L19: 2167.2 | M19: 2167.2 | N19: 2384 | O19: 2980 | P19: 2980 | Q19: 3313.6 | R19: 3314.21 | S19: 3315.22 | T19: 3316.23
A20: 1003173 | B20: 01003 | C20: Alabama | D20: Baldwin | E20: Rice_Long Grain | F20: 17 | G20: Pound | H20: All | I20: 3 | J20: 36 | K20: 36 | L20: 36 | M20: 36 | N20: 36 | O20: 36 | P20: 36 | Q20: 36 | R20: 36.21 | S20: 37.22 | T20: 38.23
A21: 1003213 | B21: 01003 | C21: Alabama | D21: Baldwin | E21: Seed Cotton | F21: 21 | G21: Pound of seed | H21: All | I21: 3 | J21: 1255.68 | K21: 1286.4 | L21: 1322.88 | M21: 1491.84 | N21: 1482.24 | O21: 1482.24 | P21: 1655.04 | Q21: 1637.76 | R21: 1638.21 | S21: 1639.22 | T21: 1640.23
A22: 1003023 | B22: 01003 | C22: Alabama | D22: Baldwin | E22: Soybeans | F22: 2 | G22: Bushel | H22: All | I22: 3 | J22: 24 | K22: 24 | L22: 24 | M22: 24 | N22: 24 | O22: 26.4 | P22: 26.4 | Q22: 26.4 | R22: 27.21 | S22: 28.22 | T22: 29.23
A23: 1003021 | B23: 01003 | C23: Alabama | D23: Baldwin | E23: Soybeans | F23: 2 | G23: Bushel | H23: Irrigated | I23: 1 | J23: 36 | K23: 36 | L23: 36 | M23: 36 | N23: 36 | O23: 32.8 | P23: 32.8 | Q23: 32.8 | R23: 33.21 | S23: 34.22 | T23: 35.23
A24: 1003022 | B24: 01003 | C24: Alabama | D24: Baldwin | E24: Soybeans | F24: 2 | G24: Bushel | H24: Nonirrigated | I24: 2 | J24: 24 | K24: 24 | L24: 24 | M24: 24 | N24: 24 | O24: 26.4 | P24: 26.4 | Q24: 26.4 | R24: 27.21 | S24: 28.22 | T24: 29.23
A25: 1003233 | B25: 01003 | C25: Alabama | D25: Baldwin | E25: Sunflower Seed | F25: 23 | G25: Pound | H25: All | I25: 3 | J25: 964 | K25: 964 | L25: 964 | M25: 964 | N25: 964 | O25: 964 | P25: 964 | Q25: 964 | R25: 964.21 | S25: 965.22 | T25: 966.23
A26: 1003033 | B26: 01003 | C26: Alabama | D26: Baldwin | E26: Wheat | F26: 3 | G26: Bushel | H26: All | I26: 3 | J26: 39.2 | K26: 36.8 | L26: 36.8 | M26: 36.8 | N26: 36.8 | O26: 36.8 | P26: 36.8 | Q26: 36.8 | R26: 37.21 | S26: 38.22 | T26: 39.23
A27: 1005013 | B27: 01005 | C27: Alabama | D27: Barbour | E27: Corn | F27: 1 | G27: Bushel | H27: All | I27: 3 | J27: 83.2 | K27: 82.4 | L27: 84 | M27: 76.8 | N27: 104 | O27: 94.4 | P27: 99.2 | Q27: 111.2 | R27: 112.21 | S27: 113.22 | T27: 114.23
A28: 1005011 | B28: 01005 | C28: Alabama | D28: Barbour | E28: Corn | F28: 1 | G28: Bushel | H28: Irrigated | I28: 1 | J28: 100 | K28: 100 | L28: 100 | M28: 100 | N28: 110.4 | O28: 110.4 | P28: 110.4 | Q28: 132.8 | R28: 133.21 | S28: 134.22 | T28: 135.23
A29: 1005012 | B29: 01005 | C29: Alabama | D29: Barbour | E29: Corn | F29: 1 | G29: Bushel | H29: Nonirrigated | I29: 2 | J29: 56.8 | K29: 56.8 | L29: 56.8 | M29: 56.8 | N29: 51.2 | O29: 51.2 | P29: 51.2 | Q29: 61.6 | R29: 62.21 | S29: 63.22 | T29: 64.23
A30: 1005113 | B30: 01005 | C30: Alabama | D30: Barbour | E30: Grain Sorghum | F30: 11 | G30: Bushel | H30: All | I30: 3 | J30: 28 | K30: 28 | L30: 28 | M30: 28 | N30: 25.6 | O30: 25.6 | P30: 25.6 | Q30: 24 | R30: 24.21 | S30: 25.22 | T30: 26.23
A31: 1005143 | B31: 01005 | C31: Alabama | D31: Barbour | E31: Oats | F31: 14 | G31: Bushel | H31: All | I31: 3 | J31: 38.4 | K31: 38.4 | L31: 38.4 | M31: 38.4 | N31: 38.4 | O31: 42.4 | P31: 42.4 | Q31: 42.4 | R31: 43.21 | S31: 44.22 | T31: 45.23
A32: 1005153 | B32: 01005 | C32: Alabama | D32: Barbour | E32: Peanuts | F32: 15 | G32: Pound | H32: All | I32: 3 | J32: 2093.6 | K32: 2345.6 | L32: 2232.8 | M32: 2229.6 | N32: 2453.6 | O32: 2285.6 | P32: 2236 | Q32: 2934.4 | R32: 2935.21 | S32: 2936.22 | T32: 2937.23
A33: 1005213 | B33: 01005 | C33: Alabama | D33: Barbour | E33: Seed Cotton | F33: 21 | G33: Pound of seed | H33: All | I33: 3 | J33: 1219.2 | K33: 1198.08 | L33: 1224.96 | M33: 1265.28 | N33: 1263.36 | O33: 1340.16 | P33: 1464.96 | Q33: 1474.56 | R33: 1475.21 | S33: 1476.22 | T33: 1477.23
A34: 1005211 | B34: 01005 | C34: Alabama | D34: Barbour | E34: Seed Cotton | F34: 21 | G34: Pound of seed | H34: Irrigated | I34: 1 | J34: 1574.4 | K34: 1574.4 | L34: 1574.4 | M34: 1731.84 | N34: 1731.84 | O34: 1731.84 | P34: 1904.64 | Q34: 1904.64 | R34: 1905.21 | S34: 1906.22 | T34: 1907.23
A35: 1005212 | B35: 01005 | C35: Alabama | D35: Barbour | E35: Seed Cotton | F35: 21 | G35: Pound of seed | H35: Nonirrigated | I35: 2 | J35: 1163.52 | K35: 1163.52 | L35: 1163.52 | M35: 1175.04 | N35: 1175.04 | O35: 1175.04 | P35: 1292.16 | Q35: 1292.16 | R35: 1293.21 | S35: 1294.22 | T35: 1295.23
A36: 1005223 | B36: 01005 | C36: Alabama | D36: Barbour | E36: Sesame Seed | F36: 22 | G36: Pound | H36: All | I36: 3 | J36: 421.6 | K36: 421.6 | L36: 421.6 | M36: 421.6 | N36: 421.6 | O36: 421.6 | P36: 421.6 | Q36: 421.6 | R36: 422.21 | S36: 423.22 | T36: 424.23
A37: 1005023 | B37: 01005 | C37: Alabama | D37: Barbour | E37: Soybeans | F37: 2 | G37: Bushel | H37: All | I37: 3 | J37: 22.4 | K37: 21.6 | L37: 19.2 | M37: 19.2 | N37: 19.2 | O37: 25.6 | P37: 20 | Q37: 24 | R37: 24.21 | S37: 25.22 | T37: 26.23
A38: 1005033 | B38: 01005 | C38: Alabama | D38: Barbour | E38: Wheat | F38: 3 | G38: Bushel | H38: All | I38: 3 | J38: 34.4 | K38: 35.2 | L38: 37.6 | M38: 36.8 | N38: 34.4 | O38: 36 | P38: 33.6 | Q38: 33.6 | R38: 34.21 | S38: 35.22 | T38: 36.23
A39: 1007213 | B39: 01007 | C39: Alabama | D39: Bibb | E39: Seed Cotton | F39: 21 | G39: Pound of seed | H39: All | I39: 3 | J39: 1403.52 | K39: 2202.24 | L39: 1637.76 | M39: 1075.2 | N39: 1269.12 | O39: 1075.2 | P39: 1075.2 | Q39: 1182.72 | R39: 1183.21 | S39: 1184.22 | T39: 1185.23
A40: 1009013 | B40: 01009 | C40: Alabama | D40: Blount | E40: Corn | F40: 1 | G40: Bushel | H40: All | I40: 3 | J40: 76.8 | K40: 77.6 | L40: 76.8 | M40: 76.8 | N40: 84.8 | O40: 84.8 | P40: 84.8 | Q40: 101.6 | R40: 102.21 | S40: 103.22 | T40: 104.23
A41: 1009113 | B41: 01009 | C41: Alabama | D41: Blount | E41: Grain Sorghum | F41: 11 | G41: Bushel | H41: All | I41: 3 | J41: 37.6 | K41: 37.6 | L41: 37.6 | M41: 37.6 | N41: 37.6 | O41: 37.6 | P41: 37.6 | Q41: 37.6 | R41: 38.21 | S41: 39.22 | T41: 40.23
A42: 1009143 | B42: 01009 | C42: Alabama | D42: Blount | E42: Oats | F42: 14 | G42: Bushel | H42: All | I42: 3 | J42: 44 | K42: 44 | L42: 44 | M42: 44 | N42: 44 | O42: 44 | P42: 44 | Q42: 44 | R42: 44.21 | S42: 45.22 | T42: 46.23
A43: 1009153 | B43: 01009 | C43: Alabama | D43: Blount | E43: Peanuts | F43: 15 | G43: Pound | H43: All | I43: 3 | J43: 2688.8 | K43: 2688.8 | L43: 2688.8 | M43: 2688.8 | N43: 2688.8 | O43: 2688.8 | P43: 2688.8 | Q43: 2688.8 | R43: 2689.21 | S43: 2690.22 | T43: 2691.23
A44: 1009213 | B44: 01009 | C44: Alabama | D44: Blount | E44: Seed Cotton | F44: 21 | G44: Pound of seed | H44: All | I44: 3 | J44: 1559.04 | K44: 1559.04 | L44: 1559.04 | M44: 1714.56 | N44: 1745.28 | O44: 1714.56 | P44: 1914.24 | Q44: 1914.24 | R44: 1915.21 | S44: 1916.22 | T44: 1917.23
A45: 1009023 | B45: 01009 | C45: Alabama | D45: Blount | E45: Soybeans | F45: 2 | G45: Bushel | H45: All | I45: 3 | J45: 22.4 | K45: 22.4 | L45: 22.4 | M45: 22.4 | N45: 22.4 | O45: 24.8 | P45: 24.8 | Q45: 24.8 | R45: 25.21 | S45: 26.22 | T45: 27.23
A46: 1009033 | B46: 01009 | C46: Alabama | D46: Blount | E46: Wheat | F46: 3 | G46: Bushel | H46: All | I46: 3 | J46: 37.6 | K46: 40 | L46: 40 | M46: 40 | N46: 40 | O46: 40 | P46: 40 | Q46: 44 | R46: 44.21 | S46: 45.22 | T46: 46.23
A47: 1011013 | B47: 01011 | C47: Alabama | D47: Bullock | E47: Corn | F47: 1 | G47: Bushel | H47: All | I47: 3 | J47: 83.2 | K47: 81.6 | L47: 80 | M47: 80 | N47: 72 | O47: 72 | P47: 72.8 | Q47: 84.8 | R47: 85.21 | S47: 86.22 | T47: 87.23
A48: 1011113 | B48: 01011 | C48: Alabama | D48: Bullock | E48: Grain Sorghum | F48: 11 | G48: Bushel | H48: All | I48: 3 | J48: 28 | K48: 28 | L48: 28 | M48: 28 | N48: 25.6 | O48: 25.6 | P48: 25.6 | Q48: 25.6 | R48: 26.21 | S48: 27.22 | T48: 28.23
A49: 1011143 | B49: 01011 | C49: Alabama | D49: Bullock | E49: Oats | F49: 14 | G49: Bushel | H49: All | I49: 3 | J49: 40.8 | K49: 40.8 | L49: 40.8 | M49: 40.8 | N49: 40.8 | O49: 40.8 | P49: 40.8 | Q49: 40.8 | R49: 41.21 | S49: 42.22 | T49: 43.23
A50: 1011173 | B50: 01011 | C50: Alabama | D50: Bullock | E50: Rice_Long Grain | F50: 17 | G50: Pound | H50: All | I50: 3 | J50: 36 | K50: 36 | L50: 36 | M50: 36 | N50: 36 | O50: 36 | P50: 36 | Q50: 36 | R50: 36.21 | S50: 37.22 | T50: 38.23
A51: 1011213 | B51: 01011 | C51: Alabama | D51: Bullock | E51: Seed Cotton | F51: 21 | G51: Pound of seed | H51: All | I51: 3 | J51: 1084.8 | K51: 1188.48 | L51: 1230.72 | M51: 1347.84 | N51: 1340.16 | O51: 1332.48 | P51: 1418.88 | Q51: 1501.44 | R51: 1502.21 | S51: 1503.22 | T51: 1504.23
A52: 1011023 | B52: 01011 | C52: Alabama | D52: Bullock | E52: Soybeans | F52: 2 | G52: Bushel | H52: All | I52: 3 | J52: 18.4 | K52: 19.2 | L52: 18.4 | M52: 18.4 | N52: 18.4 | O52: 20 | P52: 20 | Q52: 20 | R52: 20.21 | S52: 21.22 | T52: 22.23
A53: 1011033 | B53: 01011 | C53: Alabama | D53: Bullock | E53: Wheat | F53: 3 | G53: Bushel | H53: All | I53: 3 | J53: 27.2 | K53: 29.6 | L53: 29.6 | M53: 29.6 | N53: 29.6 | O53: 29.6 | P53: 29.6 | Q53: 32.8 | R53: 33.21 | S53: 34.22 | T53: 35.23
A54: 1013013 | B54: 01013 | C54: Alabama | D54: Butler | E54: Corn | F54: 1 | G54: Bushel | H54: All | I54: 3 | J54: 56.8 | K54: 56.8 | L54: 56.8 | M54: 56.8 | N54: 51.2 | O54: 51.2 | P54: 51.2 | Q54: 61.6 | R54: 62.21 | S54: 63.22 | T54: 64.23
A55: 1013113 | B55: 01013 | C55: Alabama | D55: Butler | E55: Grain Sorghum | F55: 11 | G55: Bushel | H55: All | I55: 3 | J55: 39.2 | K55: 39.2 | L55: 39.2 | M55: 39.2 | N55: 39.2 | O55: 39.2 | P55: 39.2 | Q55: 39.2 | R55: 40.21 | S55: 41.22 | T55: 42.23
A56: 1013143 | B56: 01013 | C56: Alabama | D56: Butler | E56: Oats | F56: 14 | G56: Bushel | H56: All | I56: 3 | J56: 42.4 | K56: 42.4 | L56: 42.4 | M56: 42.4 | N56: 42.4 | O56: 42.4 | P56: 42.4 | Q56: 42.4 | R56: 43.21 | S56: 44.22 | T56: 45.23
A57: 1013153 | B57: 01013 | C57: Alabama | D57: Butler | E57: Peanuts | F57: 15 | G57: Pound | H57: All | I57: 3 | J57: 2200 | K57: 2200 | L57: 2200 | M57: 2200 | N57: 2420.8 | O57: 2038.4 | P57: 2038.4 | Q57: 2446.4 | R57: 2447.21 | S57: 2448.22 | T57: 2449.23
A58: 1013213 | B58: 01013 | C58: Alabama | D58: Butler | E58: Seed Cotton | F58: 21 | G58: Pound of seed | H58: All | I58: 3 | J58: 1098.24 | K58: 1098.24 | L58: 1098.24 | M58: 1207.68 | N58: 1207.68 | O58: 1207.68 | P58: 1328.64 | Q58: 1328.64 | R58: 1329.21 | S58: 1330.22 | T58: 1331.23
A59: 1013023 | B59: 01013 | C59: Alabama | D59: Butler | E59: Soybeans | F59: 2 | G59: Bushel | H59: All | I59: 3 | J59: 18.4 | K59: 18.4 | L59: 18.4 | M59: 18.4 | N59: 18.4 | O59: 20 | P59: 20 | Q59: 20 | R59: 20.21 | S59: 21.22 | T59: 22.23
A60: 1013033 | B60: 01013 | C60: Alabama | D60: Butler | E60: Wheat | F60: 3 | G60: Bushel | H60: All | I60: 3 | J60: 30.4 | K60: 31.2 | L60: 31.2 | M60: 31.2 | N60: 31.2 | O60: 31.2 | P60: 31.2 | Q60: 31.2 | R60: 32.21 | S60: 33.22 | T60: 34.23
A61: 1015043 | B61: 01015 | C61: Alabama | D61: Calhoun | E61: Barley | F61: 4 | G61: Bushel | H61: All | I61: 3 | J61: 37.6 | K61: 37.6 | L61: 37.6 | M61: 37.6 | N61: 37.6 | O61: 37.6 | P61: 37.6 | Q61: 37.6 | R61: 38.21 | S61: 39.22 | T61: 40.23
A62: 1015013 | B62: 01015 | C62: Alabama | D62: Calhoun | E62: Corn | F62: 1 | G62: Bushel | H62: All | I62: 3 | J62: 99.2 | K62: 85.6 | L62: 84.8 | M62: 87.2 | N62: 94.4 | O62: 97.6 | P62: 98.4 | Q62: 111.2 | R62: 112.21 | S62: 113.22 | T62: 114.23
A63: 1015113 | B63: 01015 | C63: Alabama | D63: Calhoun | E63: Grain Sorghum | F63: 11 | G63: Bushel | H63: All | I63: 3 | J63: 30.4 | K63: 30.4 | L63: 30.4 | M63: 30.4 | N63: 30.4 | O63: 30.4 | P63: 30.4 | Q63: 30.4 | R63: 31.21 | S63: 32.22 | T63: 33.23
A64: 1015143 | B64: 01015 | C64: Alabama | D64: Calhoun | E64: Oats | F64: 14 | G64: Bushel | H64: All | I64: 3 | J64: 44 | K64: 44 | L64: 44 | M64: 44 | N64: 44 | O64: 44 | P64: 44 | Q64: 44 | R64: 44.21 | S64: 45.22 | T64: 46.23
A65: 1015213 | B65: 01015 | C65: Alabama | D65: Calhoun | E65: Seed Cotton | F65: 21 | G65: Pound of seed | H65: All | I65: 3 | J65: 1432.32 | K65: 1470.72 | L65: 1486.08 | M65: 1626.24 | N65: 1633.92 | O65: 1622.4 | P65: 1791.36 | Q65: 1776 | R65: 1776.21 | S65: 1777.22 | T65: 1778.23
A66: 1015023 | B66: 01015 | C66: Alabama | D66: Calhoun | E66: Soybeans | F66: 2 | G66: Bushel | H66: All | I66: 3 | J66: 23.2 | K66: 24 | L66: 24 | M66: 24 | N66: 23.2 | O66: 25.6 | P66: 25.6 | Q66: 24.8 | R66: 25.21 | S66: 26.22 | T66: 27.23
A67: 1015033 | B67: 01015 | C67: Alabama | D67: Calhoun | E67: Wheat | F67: 3 | G67: Bushel | H67: All | I67: 3 | J67: 37.6 | K67: 42.4 | L67: 41.6 | M67: 41.6 | N67: 41.6 | O67: 45.6 | P67: 45.6 | Q67: 45.6 | R67: =ROUNDUP(Q67,0)+0.21 -> 46.21 | S67: =ROUNDUP(R67,0)+0.22 -> 47.22 | T67: =ROUNDUP(S67,0)+0.23 -> 48.23
A68: 1017013 | B68: 01017 | C68: Alabama | D68: Chambers | E68: Corn | F68: 1 | G68: Bushel | H68: All | I68: 3 | J68: 76.8 | K68: 76.8 | L68: 76.8 | M68: 76.8 | N68: 78.4 | O68: 78.4 | P68: 78.4 | Q68: 84 | R68: 84.21 | S68: 85.22 | T68: 86.23
A69: 1017113 | B69: 01017 | C69: Alabama | D69: Chambers | E69: Grain Sorghum | F69: 11 | G69: Bushel | H69: All | I69: 3 | J69: 38.4 | K69: 38.4 | L69: 38.4 | M69: 38.4 | N69: 38.4 | O69: 38.4 | P69: 38.4 | Q69: 38.4 | R69: 39.21 | S69: 40.22 | T69: 41.23
A70: 1017143 | B70: 01017 | C70: Alabama | D70: Chambers | E70: Oats | F70: 14 | G70: Bushel | H70: All | I70: 3 | J70: 44 | K70: 44 | L70: 44 | M70: 44 | N70: 44 | O70: 44 | P70: 44 | Q70: 44 | R70: 44.21 | S70: 45.22 | T70: 46.23
A71: 1017153 | B71: 01017 | C71: Alabama | D71: Chambers | E71: Peanuts | F71: 15 | G71: Pound | H71: All | I71: 3 | J71: 2862.4 | K71: 2862.4 | L71: 2862.4 | M71: 2862.4 | N71: 2862.4 | O71: 2862.4 | P71: 2862.4 | Q71: 2862.4 | R71: 2863.21 | S71: 2864.22 | T71: 2865.23
A72: 1017213 | B72: 01017 | C72: Alabama | D72: Chambers | E72: Seed Cotton | F72: 21 | G72: Pound of seed | H72: All | I72: 3 | J72: 1255.68 | K72: 1171.2 | L72: 1171.2 | M72: 1119.36 | N72: 1119.36 | O72: 1119.36 | P72: 1184.64 | Q72: 1184.64 | R72: 1185.21 | S72: 1186.22 | T72: 1187.23
A73: 1017023 | B73: 01017 | C73: Alabama | D73: Chambers | E73: Soybeans | F73: 2 | G73: Bushel | H73: All | I73: 3 | J73: 31.2 | K73: 31.2 | L73: 31.2 | M73: 31.2 | N73: 31.2 | O73: 31.2 | P73: 31.2 | Q73: 31.2 | R73: 32.21 | S73: 33.22 | T73: 34.23
A74: 1017233 | B74: 01017 | C74: Alabama | D74: Chambers | E74: Sunflower Seed | F74: 23 | G74: Pound | H74: All | I74: 3 | J74: 964 | K74: 964 | L74: 964 | M74: 964 | N74: 964 | O74: 964 | P74: 964 | Q74: 964 | R74: 964.21 | S74: 965.22 | T74: 966.23
A75: 1017033 | B75: 01017 | C75: Alabama | D75: Chambers | E75: Wheat | F75: 3 | G75: Bushel | H75: All | I75: 3 | J75: 30.4 | K75: 36.8 | L75: 33.6 | M75: 34.4 | N75: 33.6 | O75: 33.6 | P75: 33.6 | Q75: 33.6 | R75: 34.21 | S75: 35.22 | T75: 36.23
A76: 1019043 | B76: 01019 | C76: Alabama | D76: Cherokee | E76: Barley | F76: 4 | G76: Bushel | H76: All | I76: 3 | J76: 37.6 | K76: 37.6 | L76: 37.6 | M76: 37.6 | N76: 37.6 | O76: 37.6 | P76: 37.6 | Q76: 37.6 | R76: 38.21 | S76: 39.22 | T76: 40.23
A77: 1019053 | B77: 01019 | C77: Alabama | D77: Cherokee | E77: Canola | F77: 5 | G77: Pound | H77: All | I77: 3 | J77: 990.4 | K77: 990.4 | L77: 990.4 | M77: 990.4 | N77: 990.4 | O77: 990.4 | P77: 990.4 | Q77: 990.4 | R77: 991.21 | S77: 992.22 | T77: 993.23
A78: 1019013 | B78: 01019 | C78: Alabama | D78: Cherokee | E78: Corn | F78: 1 | G78: Bushel | H78: All | I78: 3 | J78: 77.6 | K78: 76.8 | L78: 76 | M78: 78.4 | N78: 79.2 | O78: 78.4 | P78: 76.8 | Q78: 87.2 | R78: 88.21 | S78: 89.22 | T78: 90.23
A79: 1019113 | B79: 01019 | C79: Alabama | D79: Cherokee | E79: Grain Sorghum | F79: 11 | G79: Bushel | H79: All | I79: 3 | J79: 30.4 | K79: 30.4 | L79: 30.4 | M79: 30.4 | N79: 30.4 | O79: 30.4 | P79: 30.4 | Q79: 30.4 | R79: 31.21 | S79: 32.22 | T79: 33.23
A80: 1019143 | B80: 01019 | C80: Alabama | D80: Cherokee | E80: Oats | F80: 14 | G80: Bushel | H80: All | I80: 3 | J80: 44 | K80: 44 | L80: 44 | M80: 44 | N80: 44 | O80: 44 | P80: 44 | Q80: 44 | R80: 44.21 | S80: 45.22 | T80: 46.23
A81: 1019213 | B81: 01019 | C81: Alabama | D81: Cherokee | E81: Seed Cotton | F81: 21 | G81: Pound of seed | H81: All | I81: 3 | J81: 1257.6 | K81: 1265.28 | L81: 1259.52 | M81: 1388.16 | N81: 1390.08 | O81: 1392 | P81: 1532.16 | Q81: 1530.24 | R81: 1531.21 | S81: 1532.22 | T81: 1533.23
A82: 1019023 | B82: 01019 | C82: Alabama | D82: Cherokee | E82: Soybeans | F82: 2 | G82: Bushel | H82: All | I82: 3 | J82: 22.4 | K82: 22.4 | L82: 22.4 | M82: 22.4 | N82: 23.2 | O82: 24.8 | P82: 25.6 | Q82: 25.6 | R82: 26.21 | S82: 27.22 | T82: 28.23
A83: 1019233 | B83: 01019 | C83: Alabama | D83: Cherokee | E83: Sunflower Seed | F83: 23 | G83: Pound | H83: All | I83: 3 | J83: 883.2 | K83: 883.2 | L83: 883.2 | M83: 883.2 | N83: 883.2 | O83: 883.2 | P83: 883.2 | Q83: 883.2 | R83: 884.21 | S83: 885.22 | T83: 886.23
A84: 1019033 | B84: 01019 | C84: Alabama | D84: Cherokee | E84: Wheat | F84: 3 | G84: Bushel | H84: All | I84: 3 | J84: 39.2 | K84: 43.2 | L84: 43.2 | M84: 43.2 | N84: 43.2 | O84: 48 | P84: 47.2 | Q84: 47.2 | R84: 48.21 | S84: 49.22 | T84: 50.23
A85: 1021013 | B85: 01021 | C85: Alabama | D85: Chilton | E85: Corn | F85: 1 | G85: Bushel | H85: All | I85: 3 | J85: 76.8 | K85: 76.8 | L85: 76.8 | M85: 76.8 | N85: 68.8 | O85: 68.8 | P85: 68.8 | Q85: 82.4 | R85: 83.21 | S85: 84.22 | T85: 85.23
A86: 1021113 | B86: 01021 | C86: Alabama | D86: Chilton | E86: Grain Sorghum | F86: 11 | G86: Bushel | H86: All | I86: 3 | J86: 30.4 | K86: 30.4 | L86: 30.4 | M86: 30.4 | N86: 27.2 | O86: 27.2 | P86: 27.2 | Q86: 27.2 | R86: 28.21 | S86: 29.22 | T86: 30.23
A87: 1021143 | B87: 01021 | C87: Alabama | D87: Chilton | E87: Oats | F87: 14 | G87: Bushel | H87: All | I87: 3 | J87: 39.2 | K87: 39.2 | L87: 39.2 | M87: 39.2 | N87: 39.2 | O87: 39.2 | P87: 39.2 | Q87: 39.2 | R87: 40.21 | S87: 41.22 | T87: 42.23
A88: 1021213 | B88: 01021 | C88: Alabama | D88: Chilton | E88: Seed Cotton | F88: 21 | G88: Pound of seed | H88: All | I88: 3 | J88: 1403.52 | K88: 1061.76 | L88: 1061.76 | M88: 1167.36 | N88: 1167.36 | O88: 1167.36 | P88: 1284.48 | Q88: 1284.48 | R88: 1285.21 | S88: 1286.22 | T88: 1287.23
A89: 1021023 | B89: 01021 | C89: Alabama | D89: Chilton | E89: Soybeans | F89: 2 | G89: Bushel | H89: All | I89: 3 | J89: 22.4 | K89: 22.4 | L89: 22.4 | M89: 22.4 | N89: 22.4 | O89: 22.4 | P89: 22.4 | Q89: 22.4 | R89: 23.21 | S89: 24.22 | T89: 25.23
A90: 1021033 | B90: 01021 | C90: Alabama | D90: Chilton | E90: Wheat | F90: 3 | G90: Bushel | H90: All | I90: 3 | J90: 28.8 | K90: 32 | L90: 32 | M90: 32 | N90: 32 | O90: 35.2 | P90: 35.2 | Q90: 35.2 | R90: 36.21 | S90: 37.22 | T90: 38.23
A91: 1023013 | B91: 01023 | C91: Alabama | D91: Choctaw | E91: Corn | F91: 1 | G91: Bushel | H91: All | I91: 3 | J91: 56.8 | K91: 56.8 | L91: 56.8 | M91: 56.8 | N91: 56.8 | O91: 56.8 | P91: 56.8 | Q91: 56.8 | R91: 57.21 | S91: 58.22 | T91: 59.23
A92: 1023213 | B92: 01023 | C92: Alabama | D92: Choctaw | E92: Seed Cotton | F92: 21 | G92: Pound of seed | H92: All | I92: 3 | J92: 1052.16 | K92: 1104 | L92: 1052.16 | M92: 946.56 | N92: 946.56 | O92: 946.56 | P92: 852.48 | Q92: 852.48 | R92: 853.21 | S92: 854.22 | T92: 855.23
A93: 1025013 | B93: 01025 | C93: Alabama | D93: Clarke | E93: Corn | F93: 1 | G93: Bushel | H93: All | I93: 3 | J93: 56.8 | K93: 56.8 | L93: 56.8 | M93: 56.8 | N93: 56.8 | O93: 56.8 | P93: 56.8 | Q93: 68 | R93: 68.21 | S93: 69.22 | T93: 70.23
A94: 1025113 | B94: 01025 | C94: Alabama | D94: Clarke | E94: Grain Sorghum | F94: 11 | G94: Bushel | H94: All | I94: 3 | J94: 35.2 | K94: 35.2 | L94: 35.2 | M94: 35.2 | N94: 35.2 | O94: 35.2 | P94: 35.2 | Q94: 35.2 | R94: 36.21 | S94: 37.22 | T94: 38.23
A95: 1025143 | B95: 01025 | C95: Alabama | D95: Clarke | E95: Oats | F95: 14 | G95: Bushel | H95: All | I95: 3 | J95: 44 | K95: 44 | L95: 44 | M95: 44 | N95: 44 | O95: 44 | P95: 44 | Q95: 44 | R95: 44.21 | S95: 45.22 | T95: 46.23
A96: 1025153 | B96: 01025 | C96: Alabama | D96: Clarke | E96: Peanuts | F96: 15 | G96: Pound | H96: All | I96: 3 | J96: 1852.8 | K96: 1852.8 | L96: 1852.8 | M96: 1852.8 | N96: 2038.4 | O96: 2038.4 | P96: 2038.4 | Q96: 2362.4 | R96: 2363.21 | S96: 2364.22 | T96: 2365.23
A97: 1025213 | B97: 01025 | C97: Alabama | D97: Clarke | E97: Seed Cotton | F97: 21 | G97: Pound of seed | H97: All | I97: 3 | J97: 1176.96 | K97: 1176.96 | L97: 1176.96 | M97: 1121.28 | N97: 1121.28 | O97: 1121.28 | P97: 1232.64 | Q97: 1232.64 | R97: 1233.21 | S97: 1234.22 | T97: 1235.23
A98: 1025033 | B98: 01025 | C98: Alabama | D98: Clarke | E98: Wheat | F98: 3 | G98: Bushel | H98: All | I98: 3 | J98: 44 | K98: 44 | L98: 44 | M98: 44 | N98: 44 | O98: 44 | P98: 44 | Q98: 44 | R98: 44.21 | S98: 45.22 | T98: 46.23
A99: 1027013 | B99: 01027 | C99: Alabama | D99: Clay | E99: Corn | F99: 1 | G99: Bushel | H99: All | I99: 3 | J99: 76.8 | K99: 76.8 | L99: 76.8 | M99: 76.8 | N99: 84.8 | O99: 84.8 | P99: 84.8 | Q99: 89.6 | R99: 90.21 | S99: 91.22 | T99: 92.23
A100: 1027113 | B100: 01027 | C100: Alabama | D100: Clay | E100: Grain Sorghum | F100: 11 | G100: Bushel | H100: All | I100: 3 | J100: 30.4 | K100: 30.4 | L100: 30.4 | M100: 30.4 | N100: 30.4 | O100: 30.4 | P100: 30.4 | Q100: 30.4 | R100: 31.21 | S100: 32.22 | T100: 33.23
A101: 1027143 | B101: 01027 | C101: Alabama | D101: Clay | E101: Oats | F101: 14 | G101: Bushel | H101: All | I101: 3 | J101: 44 | K101: 44 | L101: 44 | M101: 44 | N101: 44 | O101: 44 | P101: 44 | Q101: 44 | R101: 44.21 | S101: 45.22 | T101: 46.23
A102: 1027213 | B102: 01027 | C102: Alabama | D102: Clay | E102: Seed Cotton | F102: 21 | G102: Pound of seed | H102: All | I102: 3 | J102: 1616.64 | K102: 1616.64 | L102: 1616.64 | M102: 1777.92 | N102: 1777.92 | O102: 1777.92 | P102: 1777.92 | Q102: 1777.92 | R102: 1778.21 | S102: 1779.22 | T102: 1780.23
A103: 1027023 | B103: 01027 | C103: Alabama | D103: Clay | E103: Soybeans | F103: 2 | G103: Bushel | H103: All | I103: 3 | J103: 22.4 | K103: 22.4 | L103: 22.4 | M103: 22.4 | N103: 22.4 | O103: 24.8 | P103: 24.8 | Q103: 24.8 | R103: 25.21 | S103: 26.22 | T103: 27.23
A104: 1027033 | B104: 01027 | C104: Alabama | D104: Clay | E104: Wheat | F104: 3 | G104: Bushel | H104: All | I104: 3 | J104: 39.2 | K104: 40 | L104: 40 | M104: 40 | N104: 40 | O104: 40 | P104: 40 | Q104: 40 | R104: 40.21 | S104: 41.22 | T104: 42.23
A105: 1029013 | B105: 01029 | C105: Alabama | D105: Cleburne | E105: Corn | F105: 1 | G105: Bushel | H105: All | I105: 3 | J105: 76.8 | K105: 76.8 | L105: 76.8 | M105: 76.8 | N105: 74.4 | O105: 74.4 | P105: 74.4 | Q105: 83.2 | R105: 84.21 | S105: 85.22 | T105: 86.23
A106: 1029113 | B106: 01029 | C106: Alabama | D106: Cleburne | E106: Grain Sorghum | F106: 11 | G106: Bushel | H106: All | I106: 3 | J106: 37.6 | K106: 37.6 | L106: 37.6 | M106: 37.6 | N106: 37.6 | O106: 37.6 | P106: 37.6 | Q106: 37.6 | R106: 38.21 | S106: 39.22 | T106: 40.23
A107: 1029143 | B107: 01029 | C107: Alabama | D107: Cleburne | E107: Oats | F107: 14 | G107: Bushel | H107: All | I107: 3 | J107: 44 | K107: 44 | L107: 44 | M107: 44 | N107: 44 | O107: 44 | P107: 44 | Q107: 44 | R107: 44.21 | S107: 45.22 | T107: 46.23
A108: 1029023 | B108: 01029 | C108: Alabama | D108: Cleburne | E108: Soybeans | F108: 2 | G108: Bushel | H108: All | I108: 3 | J108: 22.4 | K108: 22.4 | L108: 22.4 | M108: 22.4 | N108: 22.4 | O108: 24.8 | P108: 24.8 | Q108: 24.8 | R108: 25.21 | S108: 26.22 | T108: 27.23
A109: 1029033 | B109: 01029 | C109: Alabama | D109: Cleburne | E109: Wheat | F109: 3 | G109: Bushel | H109: All | I109: 3 | J109: 37.6 | K109: 40 | L109: 40 | M109: 40 | N109: 40 | O109: 40 | P109: 40 | Q109: 40 | R109: 40.21 | S109: 41.22 | T109: 42.23
A110: 1031053 | B110: 01031 | C110: Alabama | D110: Coffee | E110: Canola | F110: 5 | G110: Pound | H110: All | I110: 3 | J110: 990.4 | K110: 990.4 | L110: 990.4 | M110: 990.4 | N110: 990.4 | O110: 990.4 | P110: 990.4 | Q110: 990.4 | R110: 991.21 | S110: 992.22 | T110: 993.23
A111: 1031013 | B111: 01031 | C111: Alabama | D111: Coffee | E111: Corn | F111: 1 | G111: Bushel | H111: All | I111: 3 | J111: 66.4 | K111: 64 | L111: 64.8 | M111: 64.8 | N111: 64.8 | O111: 60 | P111: 61.6 | Q111: 70.4 | R111: 71.21 | S111: 72.22 | T111: 73.23
A112: 1031011 | B112: 01031 | C112: Alabama | D112: Coffee | E112: Corn | F112: 1 | G112: Bushel | H112: Irrigated | I112: 1 | J112: 107.2 | K112: 107.2 | L112: 107.2 | M112: 107.2 | N112: 117.6 | O112: 117.6 | P112: 117.6 | Q112: 140.8 | R112: 141.21 | S112: 142.22 | T112: 143.23
A113: 1031012 | B113: 01031 | C113: Alabama | D113: Coffee | E113: Corn | F113: 1 | G113: Bushel | H113: Nonirrigated | I113: 2 | J113: 61.6 | K113: 61.6 | L113: 61.6 | M113: 61.6 | N113: 56 | O113: 56 | P113: 56 | Q113: 64.8 | R113: 65.21 | S113: 66.22 | T113: 67.23
A114: 1031113 | B114: 01031 | C114: Alabama | D114: Coffee | E114: Grain Sorghum | F114: 11 | G114: Bushel | H114: All | I114: 3 | J114: 28 | K114: 28 | L114: 28 | M114: 28 | N114: 25.6 | O114: 25.6 | P114: 25.6 | Q114: 25.6 | R114: 26.21 | S114: 27.22 | T114: 28.23
A115: 1031143 | B115: 01031 | C115: Alabama | D115: Coffee | E115: Oats | F115: 14 | G115: Bushel | H115: All | I115: 3 | J115: 38.4 | K115: 38.4 | L115: 38.4 | M115: 38.4 | N115: 38.4 | O115: 34.4 | P115: 34.4 | Q115: 34.4 | R115: 35.21 | S115: 36.22 | T115: 37.23
A116: 1031153 | B116: 01031 | C116: Alabama | D116: Coffee | E116: Peanuts | F116: 15 | G116: Pound | H116: All | I116: 3 | J116: 1548.8 | K116: 1594.4 | L116: 1598.4 | M116: 1576 | N116: 1700.8 | O116: 1730.4 | P116: 1787.2 | Q116: 2071.2 | R116: 2072.21 | S116: 2073.22 | T116: 2074.23
A117: 1031151 | B117: 01031 | C117: Alabama | D117: Coffee | E117: Peanuts | F117: 15 | G117: Pound | H117: Irrigated | I117: 1 | J117: 2693.6 | K117: 2693.6 | L117: 2693.6 | M117: 2693.6 | N117: 2963.2 | O117: 2963.2 | P117: 2963.2 | Q117: 3556 | R117: 3556.21 | S117: 3557.22 | T117: 3558.23
A118: 1031152 | B118: 01031 | C118: Alabama | D118: Coffee | E118: Peanuts | F118: 15 | G118: Pound | H118: Nonirrigated | I118: 2 | J118: 1516 | K118: 1516 | L118: 1516 | M118: 1516 | N118: 1668 | O118: 1668 | P118: 1668 | Q118: 2001.6 | R118: 2002.21 | S118: 2003.22 | T118: 2004.23
A119: 1031213 | B119: 01031 | C119: Alabama | D119: Coffee | E119: Seed Cotton | F119: 21 | G119: Pound of seed | H119: All | I119: 3 | J119: 906.24 | K119: 921.6 | L119: 929.28 | M119: 1019.52 | N119: 1029.12 | O119: 1034.88 | P119: 1130.88 | Q119: 1140.48 | R119: 1141.21 | S119: 1142.22 | T119: 1143.23
A120: 1031023 | B120: 01031 | C120: Alabama | D120: Coffee | E120: Soybeans | F120: 2 | G120: Bushel | H120: All | I120: 3 | J120: 18.4 | K120: 18.4 | L120: 18.4 | M120: 20 | N120: 18.4 | O120: 20 | P120: 20 | Q120: 20.8 | R120: 21.21 | S120: 22.22 | T120: 23.23
A121: 1031033 | B121: 01031 | C121: Alabama | D121: Coffee | E121: Wheat | F121: 3 | G121: Bushel | H121: All | I121: 3 | J121: 30.4 | K121: 33.6 | L121: 33.6 | M121: 33.6 | N121: 33.6 | O121: 31.2 | P121: 31.2 | Q121: 31.2 | R121: 32.21 | S121: 33.22 | T121: 34.23
A122: 1033053 | B122: 01033 | C122: Alabama | D122: Colbert | E122: Canola | F122: 5 | G122: Pound | H122: All | I122: 3 | J122: 1152 | K122: 1152 | L122: 1152 | M122: 1152 | N122: 1152 | O122: 1152 | P122: 1152 | Q122: 1152 | R122: 1152.21 | S122: 1153.22 | T122: 1154.23
A123: 1033013 | B123: 01033 | C123: Alabama | D123: Colbert | E123: Corn | F123: 1 | G123: Bushel | H123: All | I123: 3 | J123: 83.2 | K123: 84 | L123: 83.2 | M123: 82.4 | N123: 92.8 | O123: 91.2 | P123: 92 | Q123: 111.2 | R123: 112.21 | S123: 113.22 | T123: 114.23
A124: 1033011 | B124: 01033 | C124: Alabama | D124: Colbert | E124: Corn | F124: 1 | G124: Bushel | H124: Irrigated | I124: 1 | J124: 120 | K124: 120 | L124: 120 | M124: 120 | N124: 132 | O124: 132 | P124: 132 | Q124: 156.8 | R124: 157.21 | S124: 158.22 | T124: 159.23
A125: 1033012 | B125: 01033 | C125: Alabama | D125: Colbert | E125: Corn | F125: 1 | G125: Bushel | H125: Nonirrigated | I125: 2 | J125: 80 | K125: 80 | L125: 80 | M125: 80 | N125: 88 | O125: 88 | P125: 88 | Q125: 105.6 | R125: 106.21 | S125: 107.22 | T125: 108.23
A126: 1033113 | B126: 01033 | C126: Alabama | D126: Colbert | E126: Grain Sorghum | F126: 11 | G126: Bushel | H126: All | I126: 3 | J126: 42.4 | K126: 42.4 | L126: 42.4 | M126: 42.4 | N126: 42.4 | O126: 42.4 | P126: 42.4 | Q126: 42.4 | R126: 43.21 | S126: 44.22 | T126: 45.23
A127: 1033143 | B127: 01033 | C127: Alabama | D127: Colbert | E127: Oats | F127: 14 | G127: Bushel | H127: All | I127: 3 | J127: 40.8 | K127: 40.8 | L127: 40.8 | M127: 40.8 | N127: 40.8 | O127: 40.8 | P127: 40.8 | Q127: 40.8 | R127: 41.21 | S127: 42.22 | T127: 43.23
A128: 1033213 | B128: 01033 | C128: Alabama | D128: Colbert | E128: Seed Cotton | F128: 21 | G128: Pound of seed | H128: All | I128: 3 | J128: 1242.24 | K128: 1284.48 | L128: 1194.24 | M128: 1332.48 | N128: 1326.72 | O128: 1313.28 | P128: 1459.2 | Q128: 1440 | R128: 1440.21 | S128: 1441.22 | T128: 1442.23
A129: 1033211 | B129: 01033 | C129: Alabama | D129: Colbert | E129: Seed Cotton | F129: 21 | G129: Pound of seed | H129: Irrigated | I129: 1 | J129: 1653.12 | K129: 1653.12 | L129: 1653.12 | M129: 1722.24 | N129: 1722.24 | O129: 1722.24 | P129: 1895.04 | Q129: 1895.04 | R129: 1896.21 | S129: 1897.22 | T129: 1898.23
A130: 1033212 | B130: 01033 | C130: Alabama | D130: Colbert | E130: Seed Cotton | F130: 21 | G130: Pound of seed | H130: Nonirrigated | I130: 2 | J130: 1173.12 | K130: 1173.12 | L130: 1173.12 | M130: 1290.24 | N130: 1290.24 | O130: 1290.24 | P130: 1418.88 | Q130: 1418.88 | R130: 1419.21 | S130: 1420.22 | T130: 1421.23
A131: 1033223 | B131: 01033 | C131: Alabama | D131: Colbert | E131: Sesame Seed | F131: 22 | G131: Pound | H131: All | I131: 3 | J131: 410.4 | K131: 410.4 | L131: 410.4 | M131: 410.4 | N131: 410.4 | O131: 410.4 | P131: 410.4 | Q131: 410.4 | R131: =ROUNDUP(Q131,0)+0.21 -> 411.21 | S131: =ROUNDUP(R131,0)+0.22 -> 412.22 | T131: =ROUNDUP(S131,0)+0.23 -> 413.23
A132: 1033023 | B132: 01033 | C132: Alabama | D132: Colbert | E132: Soybeans | F132: 2 | G132: Bushel | H132: All | I132: 3 | J132: 20 | K132: 20 | L132: 20 | M132: 20 | N132: 20 | O132: 23.2 | P132: 23.2 | Q132: 23.2 | R132: 24.21 | S132: 25.22 | T132: 26.23
A133: 1033233 | B133: 01033 | C133: Alabama | D133: Colbert | E133: Sunflower Seed | F133: 23 | G133: Pound | H133: All | I133: 3 | J133: 964 | K133: 964 | L133: 964 | M133: 964 | N133: 964 | O133: 964 | P133: 964 | Q133: 964 | R133: 964.21 | S133: 965.22 | T133: 966.23
A134: 1033033 | B134: 01033 | C134: Alabama | D134: Colbert | E134: Wheat | F134: 3 | G134: Bushel | H134: All | I134: 3 | J134: 39.2 | K134: 43.2 | L134: 43.2 | M134: 43.2 | N134: 43.2 | O134: 48 | P134: 48 | Q134: 48 | R134: 48.21 | S134: 49.22 | T134: 50.23
A135: 1035053 | B135: 01035 | C135: Alabama | D135: Conecuh | E135: Canola | F135: 5 | G135: Pound | H135: All | I135: 3 | J135: 990.4 | K135: 990.4 | L135: 990.4 | M135: 990.4 | N135: 990.4 | O135: 990.4 | P135: 990.4 | Q135: 990.4 | R135: 991.21 | S135: 992.22 | T135: 993.23
A136: 1035013 | B136: 01035 | C136: Alabama | D136: Conecuh | E136: Corn | F136: 1 | G136: Bushel | H136: All | I136: 3 | J136: 56.8 | K136: 56.8 | L136: 56.8 | M136: 56.8 | N136: 51.2 | O136: 51.2 | P136: 51.2 | Q136: 61.6 | R136: 62.21 | S136: 63.22 | T136: 64.23
A137: 1035113 | B137: 01035 | C137: Alabama | D137: Conecuh | E137: Grain Sorghum | F137: 11 | G137: Bushel | H137: All | I137: 3 | J137: 38.4 | K137: 38.4 | L137: 38.4 | M137: 38.4 | N137: 38.4 | O137: 38.4 | P137: 38.4 | Q137: 38.4 | R137: 39.21 | S137: 40.22 | T137: 41.23
A138: 1035143 | B138: 01035 | C138: Alabama | D138: Conecuh | E138: Oats | F138: 14 | G138: Bushel | H138: All | I138: 3 | J138: 44 | K138: 44 | L138: 44 | M138: 44 | N138: 44 | O138: 42.4 | P138: 42.4 | Q138: 42.4 | R138: 43.21 | S138: 44.22 | T138: 45.23
A139: 1035153 | B139: 01035 | C139: Alabama | D139: Conecuh | E139: Peanuts | F139: 15 | G139: Pound | H139: All | I139: 3 | J139: 1852.8 | K139: 1852.8 | L139: 1852.8 | M139: 2019.2 | N139: 2038.4 | O139: 2038.4 | P139: 2038.4 | Q139: 2446.4 | R139: 2447.21 | S139: 2448.22 | T139: 2449.23
A140: 1035213 | B140: 01035 | C140: Alabama | D140: Conecuh | E140: Seed Cotton | F140: 21 | G140: Pound of seed | H140: All | I140: 3 | J140: 1080.96 | K140: 1082.88 | L140: 1082.88 | M140: 1190.4 | N140: 1196.16 | O140: 1190.4 | P140: 1309.44 | Q140: 1309.44 | R140: 1310.21 | S140: 1311.22 | T140: 1312.23
A141: 1035023 | B141: 01035 | C141: Alabama | D141: Conecuh | E141: Soybeans | F141: 2 | G141: Bushel | H141: All | I141: 3 | J141: 18.4 | K141: 18.4 | L141: 18.4 | M141: 18.4 | N141: 18.4 | O141: 20 | P141: 20 | Q141: 20 | R141: 20.21 | S141: 21.22 | T141: 22.23
A142: 1035033 | B142: 01035 | C142: Alabama | D142: Conecuh | E142: Wheat | F142: 3 | G142: Bushel | H142: All | I142: 3 | J142: 39.2 | K142: 36 | L142: 36 | M142: 36 | N142: 36 | O142: 32.8 | P142: 32.8 | Q142: 32.8 | R142: 33.21 | S142: 34.22 | T142: 35.23
A143: 1039013 | B143: 01039 | C143: Alabama | D143: Covington | E143: Corn | F143: 1 | G143: Bushel | H143: All | I143: 3 | J143: 58.4 | K143: 58.4 | L143: 58.4 | M143: 58.4 | N143: 56 | O143: 56 | P143: 56 | Q143: 67.2 | R143: 68.21 | S143: 69.22 | T143: 70.23
A144: 1039113 | B144: 01039 | C144: Alabama | D144: Covington | E144: Grain Sorghum | F144: 11 | G144: Bushel | H144: All | I144: 3 | J144: 28 | K144: 28 | L144: 28 | M144: 28 | N144: 26.4 | O144: 26.4 | P144: 26.4 | Q144: 26.4 | R144: 27.21 | S144: 28.22 | T144: 29.23
A145: 1039143 | B145: 01039 | C145: Alabama | D145: Covington | E145: Oats | F145: 14 | G145: Bushel | H145: All | I145: 3 | J145: 38.4 | K145: 38.4 | L145: 38.4 | M145: 38.4 | N145: 38.4 | O145: 42.4 | P145: 42.4 | Q145: 42.4 | R145: 43.21 | S145: 44.22 | T145: 45.23
A146: 1039153 | B146: 01039 | C146: Alabama | D146: Covington | E146: Peanuts | F146: 15 | G146: Pound | H146: All | I146: 3 | J146: 2117.6 | K146: 2117.6 | L146: 2117.6 | M146: 2117.6 | N146: 2329.6 | O146: 2329.6 | P146: 2329.6 | Q146: 2623.2 | R146: 2624.21 | S146: 2625.22 | T146: 2626.23
A147: 1039213 | B147: 01039 | C147: Alabama | D147: Covington | E147: Seed Cotton | F147: 21 | G147: Pound of seed | H147: All | I147: 3 | J147: 1282.56 | K147: 1284.48 | L147: 1290.24 | M147: 1415.04 | N147: 1415.04 | O147: 1415.04 | P147: 1557.12 | Q147: 1551.36 | R147: 1552.21 | S147: 1553.22 | T147: 1554.23
A148: 1039023 | B148: 01039 | C148: Alabama | D148: Covington | E148: Soybeans | F148: 2 | G148: Bushel | H148: All | I148: 3 | J148: 18.4 | K148: 18.4 | L148: 18.4 | M148: 18.4 | N148: 18.4 | O148: 20 | P148: 20 | Q148: 20 | R148: 20.21 | S148: 21.22 | T148: 22.23
A149: 1039033 | B149: 01039 | C149: Alabama | D149: Covington | E149: Wheat | F149: 3 | G149: Bushel | H149: All | I149: 3 | J149: 30.4 | K149: 33.6 | L149: 33.6 | M149: 33.6 | N149: 33.6 | O149: 30.4 | P149: 30.4 | Q149: 30.4 | R149: 31.21 | S149: 32.22 | T149: 33.23
A150: 1041013 | B150: 01041 | C150: Alabama | D150: Crenshaw | E150: Corn | F150: 1 | G150: Bushel | H150: All | I150: 3 | J150: 62.4 | K150: 62.4 | L150: 62.4 | M150: 62.4 | N150: 68.8 | O150: 68.8 | P150: 68.8 | Q150: 82.4 | R150: 83.21 | S150: 84.22 | T150: 85.23
A151: 1041113 | B151: 01041 | C151: Alabama | D151: Crenshaw | E151: Grain Sorghum | F151: 11 | G151: Bushel | H151: All | I151: 3 | J151: 28 | K151: 28 | L151: 28 | M151: 28 | N151: 25.6 | O151: 25.6 | P151: 25.6 | Q151: 25.6 | R151: 26.21 | S151: 27.22 | T151: 28.23
